Workbook

Sheet Notes

Sheet Age profile chart

Sheet Forecast Ch1

Sheet Age profile summary
A1: Asset calcs | R1: Remaining life | W1: RC ($ millions) | AB1: RC (%)
R2: Very old | S2: Old | T2: moderate | U2: young | V2: new | W2: =R2 -> Very old | X2: =S2 -> Old | Y2: moderate | Z2: young | AA2: new | AB2: Very old | AC2: Old | AD2: moderate | AE2: young | AF2: new
M3: WARL | O3: WAL | Q3: WAA | R3: > | S3: > | T3: > | U3: > | V3: <=0.2 | W3: =R3 -> > | X3: > | Y3: > | Z3: > | AA3: <=0.2 | AB3: > | AC3: > | AD3: > | AE3: > | AF3: <=0.2
F4: Quantity | G4: Unit | H4: RC | I4: prop total | J4: Rank | K4: prop cat | L4: RC / unit | M4: (Rep life) | O4: Rep life | Q4: % Rep life | R4: =W4 -> 0.9 | S4: =X4 -> 0.8 | T4: =Y4 -> 0.4 | U4: =Z4 -> 0.2 | W4: 0.9 | X4: 0.8 | Y4: 0.4 | Z4: 0.2 | AA4: 0 | AB4: 0.9 | AC4: 0.8 | AD4: 0.4 | AE4: 0.2 | AF4: 0 | AG4: Std life | AH4: Std life | AI4: rep life
G5: Cost | H5: $ millions | I5: % | J5: total | K5: % | L5: $ ('000) | AG5: max | AH5: min
A6: 1 | D6: =VLOOKUP(A6,IDtable,2) -> POLES | F6: =SUMIF($A$21:$A$205,$A6,F$21:F$205) -> 469638 | H6: =SUMIF($A$21:$A$205,$A6,H$21:H$205)/1000 -> 2252.043501 | I6: =H6/($H$18) -> 0.1353612105 | J6: =RANK(I6,I$6:I$17) -> 3 | L6: =H6*1000/(F6+0.001) -> 4.795275288 | M6: =SUMIF($A$21:$A$205,$A6,N$21:N$205)/(H6*1000+0.000001) -> 22.64236014 | O6: =SUMIF($A$21:$A$205,$A6,P$21:P$205)/(H6*1000+0.000001) -> 54.14949066 | Q6: =(O6-M6)/(O6+0.000001) -> 0.5818545947 | R6: =$O6-R$4*$O6 -> 5.414949066 | S6: =$O6-S$4*$O6 -> 10.82989813 | T6: =$O6-T$4*$O6 -> 32.4896944 | U6: =$O6-U$4*$O6 -> 43.31959253 | V6: =$O6-V$4*$O6 -> 54.14949066 | W6: =SUMIF($A$21:$A$205,$A6,W$21:W$205)/1000 -> 188.9948442 | X6: 383.772741 | Y6: 1017.026551 | Z6: 272.1966248 | AA6: 390.0527397 | AB6: =IF($H6=0,0,W6/$H6) -> 0.08392148914 | AC6: =IF($H6=0,0,X6/$H6) -> 0.1704108917 | AD6: =IF($H6=0,0,Y6/$H6) -> 0.4516016456 | AE6: =IF($H6=0,0,Z6/$H6) -> 0.120866504 | AF6: =IF($H6=0,0,AA6/$H6) -> 0.1731994696 | AG6: =MAX(IF($A$21:$A$205=$A6,$O$21:$O$205)) -> 67.2267326 | AH6: =MIN(IF($A$21:$A$205=$A6,$O$21:$O$205)) -> 11.46189216 | AI6: =IF(H6=0,0,SUMIF($A$21:$A$205,$A6,$AJ$21:$AJ$205)/(H6*1000)) -> 54.14949066
A7: 2 | D7: OVERHEAD CONDUCTORS | F7: =SUMIF($A$21:$A$205,$A7,F$21:F$205) -> 25774.44202 | H7: =SUMIF($A$21:$A$205,$A7,H$21:H$205)/1000 -> 1923.798447 | I7: =H7/($H$18) -> 0.1156317303 | J7: 5 | L7: 74.63976799 | M7: 20.73135412 | O7: 57.4244366 | Q7: 0.6389802671 | R7: =$O7-R$4*$O7 -> 5.74244366 | S7: 11.48488732 | T7: 34.45466196 | U7: 45.93954928 | V7: 57.4244366 | W7: 396.8257899 | X7: 289.3068426 | Y7: 767.2359398 | Z7: 175.5846506 | AA7: 294.8452242 | AB7: =IF($H7=0,0,W7/$H7) -> 0.206272019 | AC7: =IF($H7=0,0,X7/$H7) -> 0.1503831355 | AD7: =IF($H7=0,0,Y7/$H7) -> 0.398813057 | AE7: =IF($H7=0,0,Z7/$H7) -> 0.09126977459 | AF7: =IF($H7=0,0,AA7/$H7) -> 0.1532620138 | AG7: =MAX(IF($A$21:$A$205=$A7,$O$21:$O$205)) -> 87.94502172 | AH7: =MIN(IF($A$21:$A$205=$A7,$O$21:$O$205)) -> 40.61 | AI7: =IF(H7=0,0,SUMIF($A$21:$A$205,$A7,$AJ$21:$AJ$205)/(H7*1000)) -> 57.4244366
A8: 3 | D8: UNDERGROUND CABLES | F8: 14768.68758 | H8: 6651.893265 | I8: 0.3998183535 | J8: 1 | L8: 450.4051413 | M8: 36.92969318 | O8: 67.93849054 | Q8: 0.4564245785 | R8: 6.793849054 | S8: 13.58769811 | T8: 40.76309432 | U8: 54.35079243 | V8: 67.93849054 | W8: 425.2692786 | X8: 595.4404774 | Y8: 2755.953831 | Z8: 761.3228424 | AA8: 2113.906835 | AB8: 0.06393206591 | AC8: 0.08951443652 | AD8: 0.4143111925 | AE8: 0.1144520533 | AF8: 0.3177902518 | AG8: =MAX(IF($A$21:$A$205=$A8,$O$21:$O$205)) -> 77.08029983 | AH8: =MIN(IF($A$21:$A$205=$A8,$O$21:$O$205)) -> 46.66 | AI8: 67.93849054
A9: 4 | D9: SERVICE LINES | F9: 983994 | H9: 801.314701 | I9: 0.0481637801 | J9: 6 | L9: 0.8143491731 | M9: 32.74582667 | O9: 64.80982835 | Q9: 0.4947397949 | R9: 6.480982835 | S9: 12.96196567 | T9: 38.88589701 | U9: 51.84786268 | V9: 64.80982835 | W9: 44.60492739 | X9: 129.2039188 | Y9: 298.3769243 | Z9: 101.9033617 | AA9: 227.2255688 | AB9: 0.05566468122 | AC9: 0.1612399206 | AD9: 0.3723592291 | AE9: 0.1271702137 | AF9: 0.2835659554 | AG9: =MAX(IF($A$21:$A$205=$A9,$O$21:$O$205)) -> 76.27713968 | AH9: =MIN(IF($A$21:$A$205=$A9,$O$21:$O$205)) -> 63.85323756 | AI9: 64.80982835
A10: 5 | D10: TRANSFORMERS | F10: 48211 | H10: 2195.300204 | I10: 0.1319506008 | J10: 4 | L10: 45.53525457 | M10: 29.25042543 | O10: 51.56152949 | Q10: 0.4327083359 | R10: 5.156152949 | S10: 10.3123059 | T10: 30.93691769 | U10: 41.24922359 | V10: 51.56152949 | W10: 213.6017954 | X10: 151.8142099 | Y10: 634.1088427 | Z10: 403.5325518 | AA10: 792.2428039 | AB10: 0.09729958344 | AC10: 0.06915419114 | AD10: 0.2888483505 | AE10: 0.1838165692 | AF10: 0.3608813057 | AG10: =MAX(IF($A$21:$A$205=$A10,$O$21:$O$205)) -> 79.96433342 | AH10: =MIN(IF($A$21:$A$205=$A10,$O$21:$O$205)) -> 32.98 | AI10: 51.56152949
A11: 6 | D11: SWITCHGEAR | F11: 131415.6 | H11: 2812.938306 | I11: 0.1690743248 | J11: 2 | L11: 21.40490387 | M11: 44.18961126 | O11: 67.59871909 | Q11: 0.346295134 | R11: 6.759871909 | S11: 13.51974382 | T11: 40.55923146 | U11: 54.07897528 | V11: 67.59871909 | W11: 208.829811 | X11: 116.6252463 | Y11: 772.9292326 | Z11: 428.8236478 | AA11: 1285.730368 | AB11: 0.0742390299 | AC11: 0.04146029299 | AD11: 0.274776461 | AE11: 0.1524468727 | AF11: 0.4570773435 | AG11: =MAX(IF($A$21:$A$205=$A11,$O$21:$O$205)) -> 134.3242507 | AH11: =MIN(IF($A$21:$A$205=$A11,$O$21:$O$205)) -> 18.55358153 | AI11: 67.59871909
A12: 7 | D12: PUBLIC LIGHTING | F12: 0 | H12: 0 | I12: 0 | J12: 7 | L12: 0 | M12: 0 | O12: 0 | Q12: 0 | R12: 0 | S12: 0 | T12: 0 | U12: 0 | V12: 0 | W12: 0 | X12: 0 | Y12: 0 | Z12: 0 | AA12: 0 | AB12: 0 | AC12: 0 | AD12: 0 | AE12: 0 | AF12: 0 | AG12: =MAX(IF($A$21:$A$205=$A12,$O$21:$O$205)) -> 0 | AH12: =MIN(IF($A$21:$A$205=$A12,$O$21:$O$205)) -> 0 | AI12: 0
A13: 8 | D13: SCADA, NETWORK CONTROL AND PROTECTION | F13: 0 | H13: 0 | I13: 0 | J13: 7 | L13: 0 | M13: 0 | O13: 0 | Q13: 0 | R13: 0 | S13: 0 | T13: 0 | U13: 0 | V13: 0 | W13: 0 | X13: 0 | Y13: 0 | Z13: 0 | AA13: 0 | AB13: 0 | AC13: 0 | AD13: 0 | AE13: 0 | AF13: 0 | AG13: =MAX(IF($A$21:$A$205=$A13,$O$21:$O$205)) -> 0 | AH13: =MIN(IF($A$21:$A$205=$A13,$O$21:$O$205)) -> 0 | AI13: 0
A14: 9 | D14: =VLOOKUP(A14,IDtable,2) -> OTHER | F14: =SUMIF($A$21:$A$205,$A14,F$21:F$205) -> 0 | H14: =SUMIF($A$21:$A$205,$A14,H$21:H$205)/1000 -> 0 | I14: =H14/($H$18) -> 0 | J14: 7 | L14: 0 | M14: 0 | O14: 0 | Q14: 0 | R14: =$O14-R$4*$O14 -> 0 | S14: 0 | T14: 0 | U14: 0 | V14: 0 | W14: 0 | X14: 0 | Y14: 0 | Z14: 0 | AA14: 0 | AB14: 0 | AC14: 0 | AD14: 0 | AE14: 0 | AF14: 0 | AG14: =MAX(IF($A$21:$A$205=$A14,$O$21:$O$205)) -> 0 | AH14: =MIN(IF($A$21:$A$205=$A14,$O$21:$O$205)) -> 0 | AI14: 0
A15: 10 | D15: =VLOOKUP(A15,IDtable,2) -> unused | F15: =SUMIF($A$21:$A$205,$A15,F$21:F$205) -> 0 | H15: =SUMIF($A$21:$A$205,$A15,H$21:H$205)/1000 -> 0 | I15: =H15/($H$18) -> 0 | J15: 7 | L15: 0 | M15: 0 | O15: 0 | Q15: 0 | R15: 0 | S15: 0 | T15: 0 | U15: 0 | V15: 0 | W15: 0 | X15: 0 | Y15: 0 | Z15: 0 | AA15: 0 | AB15: 0 | AC15: 0 | AD15: 0 | AE15: 0 | AF15: 0 | AG15: =MAX(IF($A$21:$A$205=$A15,$O$21:$O$205)) -> 0 | AH15: =MIN(IF($A$21:$A$205=$A15,$O$21:$O$205)) -> 0 | AI15: 0
A16: 11 | D16: =VLOOKUP(A16,IDtable,2) -> unused | F16: =SUMIF($A$21:$A$205,$A16,F$21:F$205) -> 0 | H16: =SUMIF($A$21:$A$205,$A16,H$21:H$205)/1000 -> 0 | I16: =H16/($H$18) -> 0 | J16: 7 | L16: 0 | M16: 0 | O16: 0 | Q16: 0 | R16: 0 | S16: 0 | T16: 0 | U16: 0 | V16: 0 | W16: 0 | X16: 0 | Y16: 0 | Z16: 0 | AA16: 0 | AB16: 0 | AC16: 0 | AD16: 0 | AE16: 0 | AF16: 0 | AG16: =MAX(IF($A$21:$A$205=$A16,$O$21:$O$205)) -> 0 | AH16: =MIN(IF($A$21:$A$205=$A16,$O$21:$O$205)) -> 0 | AI16: 0
A17: 12 | D17: =VLOOKUP(A17,IDtable,2) -> unused | F17: =SUMIF($A$21:$A$205,$A17,F$21:F$205) -> 0 | H17: =SUMIF($A$21:$A$205,$A17,H$21:H$205)/1000 -> 0 | I17: =H17/($H$18) -> 0 | J17: =RANK(I17,I$6:I$17) -> 7 | L17: =H17*1000/(F17+0.001) -> 0 | M17: =SUMIF($A$21:$A$205,$A17,N$21:N$205)/(H17*1000+0.000001) -> 0 | O17: =SUMIF($A$21:$A$205,$A17,P$21:P$205)/(H17*1000+0.000001) -> 0 | Q17: =(O17-M17)/(O17+0.000001) -> 0 | R17: 0 | S17: 0 | T17: 0 | U17: 0 | V17: 0 | W17: 0 | X17: 0 | Y17: 0 | Z17: 0 | AA17: 0 | AB17: 0 | AC17: 0 | AD17: 0 | AE17: 0 | AF17: 0 | AG17: =MAX(IF($A$21:$A$205=$A17,$O$21:$O$205)) -> 0 | AH17: =MIN(IF($A$21:$A$205=$A17,$O$21:$O$205)) -> 0 | AI17: 0
D18: Total | H18: =SUM(H6:H17) -> 16637.28842 | M18: =SUMPRODUCT(M6:M17,$H6:$H17)/$H18 -> 33.13537144 | O18: =SUMPRODUCT(O6:O17,$H6:$H17)/$H18 -> 62.4871519 | Q18: =SUMPRODUCT(Q6:Q17,$H6:$H17)/$H18 -> 0.4746081392 | W18: =SUM(W6:W17) -> 1478.126446 | X18: =SUM(X6:X17) -> 1666.163436 | Y18: =SUM(Y6:Y17) -> 6245.631321 | Z18: =SUM(Z6:Z17) -> 2143.363679 | AA18: =SUM(AA6:AA17) -> 5104.00354 | AB18: =W18/$H18 -> 0.08884419196 | AC18: =X18/$H18 -> 0.1001463336 | AD18: =Y18/$H18 -> 0.3753995941 | AE18: =Z18/$H18 -> 0.1288289068 | AF18: =AA18/$H18 -> 0.3067809736
D20: EDB categories
A21: ='Asset data'!A21 -> 0 | B21: ='Asset data'!B21 -> 0 | C21: ='Asset data'!C21 -> 0 | D21: ='Asset data'!E21 -> 0 | E21: =IF(A21>0,VLOOKUP(A21,IDtable,2),0) -> 0 | F21: =IF(A21>0,SUM('Asset data'!J21:CV21),0) -> 0 | G21: =IF(A21>0,'Asset data'!F21,0) -> 0 | H21: =IF(A21>0,SUM('Asset data'!CX21:GJ21),0) -> 0 | I21: =H21/$H$18/1000 -> 0 | J21: =IF(RANK(0,I$21:I$205)=RANK(I21,I$21:I$205),0,RANK(I21,I$21:I$205)) -> 0 | K21: =IF(A21>0,H21/(VLOOKUP(A21,$A$6:$H$17,8)*1000),0) -> 0 | L21: =IF($A21>0,H21/F21,0) -> 0 | M21: =IF($A21>0,SUMPRODUCT('Age profile (years)'!$CT21:$GF21,'Asset data'!$CX21:$GJ21)/H21-0.5,0) -> 0 | N21: =IF($A21>0,M21*H21,0) -> 0 | O21: =IF($A21>0,'Asset data'!G21,0) -> 0 | P21: =IF($A21>0,H21*O21,0) -> 0 | Q21: =IF($A21>0,(O21-M21)/O21,0) -> 0 | R21: =IF($A21>0,$O21-R$4*$O21,0) -> 0 | S21: 0 | T21: 0 | U21: 0 | W21: =IF($A21>0,SUMIF('Age profile (years)'!$CT21:$GF21,"<" & R21+0.5,'Asset data'!$CX21:$GJ21),0) -> 0 | X21: =IF($A21>0,SUMIF('Age profile (years)'!$CT21:$GF21,"<" & S21+0.5,'Asset data'!$CX21:$GJ21)-W21,0) -> 0 | Y21: =IF($A21>0,SUMIF('Age profile (years)'!$CT21:$GF21,"<" & T21+0.5,'Asset data'!$CX21:$GJ21)-X21-W21,0) -> 0 | Z21: =IF($A21>0,SUMIF('Age profile (years)'!$CT21:$GF21,"<" & U21+0.5,'Asset data'!$CX21:$GJ21)-Y21-X21-W21,0) -> 0 | AA21: =IF($A21>0,H21-Z21-Y21-X21-W21,0) -> 0 | AB21: =IF($A21>0,W21/$H21,0) -> 0 | AC21: 0 | AD21: 0 | AE21: 0 | AF21: 0 | AI21: =IF($A21>0,'RRR hist-forc'!K21,0) -> 0 | AJ21: =IF($A21>0,AI21*H21,0) -> 0
A22: ='Asset data'!A22 -> 1 | B22: ='Asset data'!B22 -> 0 | C22: ='Asset data'!C22 -> 0 | D22: ='Asset data'!E22 -> STAKING OF A WOODEN POLE | E22: POLES | F22: =IF(A22>0,SUM('Asset data'!J22:CV22),0) -> 23037 | G22: =IF(A22>0,'Asset data'!F22,0) -> 7.484688597 | H22: =IF(A22>0,SUM('Asset data'!CX22:GJ22),0) -> 172424.7712 | I22: 0.01036375441 | J22: 18 | K22: =IF(A22>0,H22/(VLOOKUP(A22,$A$6:$H$17,8)*1000),0) -> 0.07656369478 | L22: =IF($A22>0,H22/F22,0) -> 7.484688597 | M22: =IF($A22>0,SUMPRODUCT('Age profile (years)'!$CT22:$GF22,'Asset data'!$CX22:$GJ22)/H22-0.5,0) -> 7.506424448 | N22: =IF($A22>0,M22*H22,0) -> 1294293.518 | O22: =IF($A22>0,'Asset data'!G22,0) -> 12.55970356 | P22: =IF($A22>0,H22*O22,0) -> 2165604.013 | Q22: =IF($A22>0,(O22-M22)/O22,0) -> 0.4023406354 | R22: 1.255970356 | S22: 2.511940712 | T22: 7.535822135 | U22: 10.04776285 | W22: =IF($A22>0,SUMIF('Age profile (years)'!$CT22:$GF22,"<" & R22+0.5,'Asset data'!$CX22:$GJ22),0) -> 12147.64959 | X22: =IF($A22>0,SUMIF('Age profile (years)'!$CT22:$GF22,"<" & S22+0.5,'Asset data'!$CX22:$GJ22)-W22,0) -> 11930.59362 | Y22: =IF($A22>0,SUMIF('Age profile (years)'!$CT22:$GF22,"<" & T22+0.5,'Asset data'!$CX22:$GJ22)-X22-W22,0) -> 58477.87201 | Z22: =IF($A22>0,SUMIF('Age profile (years)'!$CT22:$GF22,"<" & U22+0.5,'Asset data'!$CX22:$GJ22)-Y22-X22-W22,0) -> 42580.39343 | AA22: =IF($A22>0,H22-Z22-Y22-X22-W22,0) -> 47288.26256 | AB22: 0.07045188176 | AC22: 0.06919303729 | AD22: 0.3391500629 | AE22: 0.2469505578 | AF22: 0.2742544602 | AI22: =IF($A22>0,'RRR hist-forc'!K22,0) -> 12.55970356 | AJ22: =IF($A22>0,AI22*H22,0) -> 2165604.013
A23: ='Asset data'!A23 -> 1 | B23: ='Asset data'!B23 -> 0 | C23: ='Asset data'!C23 -> 0 | D23: ='Asset data'!E23 -> ˂ = 1 kV; WOOD | E23: =IF(A23>0,VLOOKUP(A23,IDtable,2),0) -> POLES | F23: =IF(A23>0,SUM('Asset data'!J23:CV23),0) -> 278900 | G23: =IF(A23>0,'Asset data'!F23,0) -> 4.400616138 | H23: =IF(A23>0,SUM('Asset data'!CX23:GJ23),0) -> 1227331.841 | I23: =H23/$H$18/1000 -> 0.07376994435 | J23: =IF(RANK(0,I$21:I$205)=RANK(I23,I$21:I$205),0,RANK(I23,I$21:I$205)) -> 3 | K23: =IF(A23>0,H23/(VLOOKUP(A23,$A$6:$H$17,8)*1000),0) -> 0.5449858498 | L23: =IF($A23>0,H23/F23,0) -> 4.400616138 | M23: =IF($A23>0,SUMPRODUCT('Age profile (years)'!$CT23:$GF23,'Asset data'!$CX23:$GJ23)/H23-0.5,0) -> 23.06489781 | N23: =IF($A23>0,M23*H23,0) -> 28308283.5 | O23: =IF($A23>0,'Asset data'!G23,0) -> 60.16284782 | P23: =IF($A23>0,H23*O23,0) -> 73839778.78 | Q23: =IF($A23>0,(O23-M23)/O23,0) -> 0.6166255646 | R23: 6.016284782 | S23: 12.03256956 | T23: 36.09770869 | U23: 48.13027826 | W23: =IF($A23>0,SUMIF('Age profile (years)'!$CT23:$GF23,"<" & R23+0.5,'Asset data'!$CX23:$GJ23),0) -> 110908.7285 | X23: =IF($A23>0,SUMIF('Age profile (years)'!$CT23:$GF23,"<" & S23+0.5,'Asset data'!$CX23:$GJ23)-W23,0) -> 274888.8877 | Y23: =IF($A23>0,SUMIF('Age profile (years)'!$CT23:$GF23,"<" & T23+0.5,'Asset data'!$CX23:$GJ23)-X23-W23,0) -> 568066.7361 | Z23: =IF($A23>0,SUMIF('Age profile (years)'!$CT23:$GF23,"<" & U23+0.5,'Asset data'!$CX23:$GJ23)-Y23-X23-W23,0) -> 124665.0546 | AA23: =IF($A23>0,H23-Z23-Y23-X23-W23,0) -> 148802.4341 | AB23: =IF($A23>0,W23/$H23,0) -> 0.09036572248 | AC23: =IF($A23>0,X23/$H23,0) -> 0.2239727501 | AD23: =IF($A23>0,Y23/$H23,0) -> 0.4628468985 | AE23: =IF($A23>0,Z23/$H23,0) -> 0.1015740409 | AF23: =IF($A23>0,AA23/$H23,0) -> 0.121240588 | AI23: =IF($A23>0,'RRR hist-forc'!K23,0) -> 60.16284782 | AJ23: =IF($A23>0,AI23*H23,0) -> 73839778.78
A24: ='Asset data'!A24 -> 1 | B24: ='Asset data'!B24 -> 0 | C24: ='Asset data'!C24 -> 0 | D24: ='Asset data'!E24 -> > 1 kV & < = 11 kV; WOOD | E24: POLES | F24: =IF(A24>0,SUM('Asset data'!J24:CV24),0) -> 129070 | G24: =IF(A24>0,'Asset data'!F24,0) -> 4.063306302 | H24: =IF(A24>0,SUM('Asset data'!CX24:GJ24),0) -> 524450.9443 | I24: 0.03152262142 | J24: 11 | K24: 0.2328778037 | L24: 4.063306302 | M24: =IF($A24>0,SUMPRODUCT('Age profile (years)'!$CT24:$GF24,'Asset data'!$CX24:$GJ24)/H24-0.5,0) -> 24.30715891 | N24: 12747912.44 | O24: =IF($A24>0,'Asset data'!G24,0) -> 53.09752699 | P24: 27847048.17 | Q24: 0.5422167418 | R24: 5.309752699 | S24: 10.6195054 | T24: 31.85851619 | U24: 42.47802159 | W24: =IF($A24>0,SUMIF('Age profile (years)'!$CT24:$GF24,"<" & R24+0.5,'Asset data'!$CX24:$GJ24),0) -> 59039.84056 | X24: =IF($A24>0,SUMIF('Age profile (years)'!$CT24:$GF24,"<" & S24+0.5,'Asset data'!$CX24:$GJ24)-W24,0) -> 82176.30664 | Y24: =IF($A24>0,SUMIF('Age profile (years)'!$CT24:$GF24,"<" & T24+0.5,'Asset data'!$CX24:$GJ24)-X24-W24,0) -> 211300.0543 | Z24: =IF($A24>0,SUMIF('Age profile (years)'!$CT24:$GF24,"<" & U24+0.5,'Asset data'!$CX24:$GJ24)-Y24-X24-W24,0) -> 66670.7298 | AA24: 105264.013 | AB24: 0.1125745719 | AC24: 0.1566901681 | AD24: 0.4028976524 | AE24: 0.127124816 | AF24: 0.2007127915 | AI24: =IF($A24>0,'RRR hist-forc'!K24,0) -> 53.09752699 | AJ24: 27847048.17
A25: ='Asset data'!A25 -> 1 | B25: ='Asset data'!B25 -> 0 | C25: ='Asset data'!C25 -> 0 | D25: ='Asset data'!E25 -> ˃ 11 kV & < = 22 kV; WOOD | E25: POLES | F25: =IF(A25>0,SUM('Asset data'!J25:CV25),0) -> 643 | G25: =IF(A25>0,'Asset data'!F25,0) -> 0.5108338757 | H25: =IF(A25>0,SUM('Asset data'!CX25:GJ25),0) -> 328.466182 | I25: 1.97427714e-05 | J25: 57 | K25: 0.0001458525033 | L25: 0.5108338757 | M25: =IF($A25>0,SUMPRODUCT('Age profile (years)'!$CT25:$GF25,'Asset data'!$CX25:$GJ25)/H25-0.5,0) -> 28.5 | N25: 9361.286188 | O25: =IF($A25>0,'Asset data'!G25,0) -> 57.34373643 | P25: 18835.47817 | Q25: 0.5029971576 | R25: 5.734373643 | S25: 11.46874729 | T25: 34.40624186 | U25: 45.87498914 | W25: =IF($A25>0,SUMIF('Age profile (years)'!$CT25:$GF25,"<" & R25+0.5,'Asset data'!$CX25:$GJ25),0) -> 0 | X25: =IF($A25>0,SUMIF('Age profile (years)'!$CT25:$GF25,"<" & S25+0.5,'Asset data'!$CX25:$GJ25)-W25,0) -> 12.77084689 | Y25: =IF($A25>0,SUMIF('Age profile (years)'!$CT25:$GF25,"<" & T25+0.5,'Asset data'!$CX25:$GJ25)-X25-W25,0) -> 175.2160193 | Z25: =IF($A25>0,SUMIF('Age profile (years)'!$CT25:$GF25,"<" & U25+0.5,'Asset data'!$CX25:$GJ25)-Y25-X25-W25,0) -> 83.26592173 | AA25: 57.21339407 | AB25: 0 | AC25: 0.03888024883 | AD25: 0.533437014 | AE25: 0.2534992224 | AF25: 0.1741835148 | AI25: =IF($A25>0,'RRR hist-forc'!K25,0) -> 57.34373643 | AJ25: 18835.47817
A26: ='Asset data'!A26 -> 1 | B26: ='Asset data'!B26 -> 0 | C26: ='Asset data'!C26 -> 0 | D26: ='Asset data'!E26 -> > 22 kV & < = 66 kV; WOOD | E26: POLES | F26: =IF(A26>0,SUM('Asset data'!J26:CV26),0) -> 17641 | G26: =IF(A26>0,'Asset data'!F26,0) -> 0.5108338757 | H26: =IF(A26>0,SUM('Asset data'!CX26:GJ26),0) -> 9011.6204 | I26: 0.0005416519911 | J26: 43 | K26: 0.004001530343 | L26: 0.5108338757 | M26: =IF($A26>0,SUMPRODUCT('Age profile (years)'!$CT26:$GF26,'Asset data'!$CX26:$GJ26)/H26-0.5,0) -> 25.22637606 | N26: 227330.5251 | O26: =IF($A26>0,'Asset data'!G26,0) -> 56.62326383 | P26: 510267.3595 | Q26: 0.5544874253 | R26: 5.662326383 | S26: 11.32465277 | T26: 33.9739583 | U26: 45.29861107 | W26: =IF($A26>0,SUMIF('Age profile (years)'!$CT26:$GF26,"<" & R26+0.5,'Asset data'!$CX26:$GJ26),0) -> 423.4812829 | X26: =IF($A26>0,SUMIF('Age profile (years)'!$CT26:$GF26,"<" & S26+0.5,'Asset data'!$CX26:$GJ26)-W26,0) -> 1567.749164 | Y26: =IF($A26>0,SUMIF('Age profile (years)'!$CT26:$GF26,"<" & T26+0.5,'Asset data'!$CX26:$GJ26)-X26-W26,0) -> 4446.808888 | Z26: =IF($A26>0,SUMIF('Age profile (years)'!$CT26:$GF26,"<" & U26+0.5,'Asset data'!$CX26:$GJ26)-Y26-X26-W26,0) -> 1017.070246 | AA26: 1556.510819 | AB26: 0.04699280086 | AC26: 0.1739697296 | AD26: 0.4934527521 | AE26: 0.1128620826 | AF26: 0.1727226348 | AI26: =IF($A26>0,'RRR hist-forc'!K26,0) -> 56.62326383 | AJ26: 510267.3595
A27: ='Asset data'!A27 -> 1 | B27: ='Asset data'!B27 -> 0 | C27: ='Asset data'!C27 -> 0 | D27: ='Asset data'!E27 -> > 66 kV & < = 132 kV; WOOD | E27: POLES | F27: =IF(A27>0,SUM('Asset data'!J27:CV27),0) -> 4610 | G27: =IF(A27>0,'Asset data'!F27,0) -> 0.5108338757 | H27: =IF(A27>0,SUM('Asset data'!CX27:GJ27),0) -> 2354.944167 | I27: 0.0001415461526 | J27: 52 | K27: 0.001045692131 | L27: 0.5108338757 | M27: =IF($A27>0,SUMPRODUCT('Age profile (years)'!$CT27:$GF27,'Asset data'!$CX27:$GJ27)/H27-0.5,0) -> 23.95835141 | N27: 56420.5799 | O27: =IF($A27>0,'Asset data'!G27,0) -> 60.42208046 | P27: 142290.6259 | Q27: 0.6034835076 | R27: 6.042208046 | S27: 12.08441609 | T27: 36.25324828 | U27: 48.33766437 | W27: =IF($A27>0,SUMIF('Age profile (years)'!$CT27:$GF27,"<" & R27+0.5,'Asset data'!$CX27:$GJ27),0) -> 13.79251464 | X27: =IF($A27>0,SUMIF('Age profile (years)'!$CT27:$GF27,"<" & S27+0.5,'Asset data'!$CX27:$GJ27)-W27,0) -> 248.2652636 | Y27: =IF($A27>0,SUMIF('Age profile (years)'!$CT27:$GF27,"<" & T27+0.5,'Asset data'!$CX27:$GJ27)-X27-W27,0) -> 1757.268532 | Z27: =IF($A27>0,SUMIF('Age profile (years)'!$CT27:$GF27,"<" & U27+0.5,'Asset data'!$CX27:$GJ27)-Y27-X27-W27,0) -> 195.1385405 | AA27: 140.4793158 | AB27: 0.005856832972 | AC27: 0.1054229935 | AD27: 0.7462039046 | AE27: 0.08286334056 | AF27: 0.05965292842 | AI27: =IF($A27>0,'RRR hist-forc'!K27,0) -> 60.42208046 | AJ27: 142290.6259
A28: ='Asset data'!A28 -> 0 | B28: ='Asset data'!B28 -> 0 | C28: ='Asset data'!C28 -> 0 | D28: ='Asset data'!E28 -> > 132 kV; WOOD | E28: 0 | F28: =IF(A28>0,SUM('Asset data'!J28:CV28),0) -> 0 | G28: =IF(A28>0,'Asset data'!F28,0) -> 0 | H28: =IF(A28>0,SUM('Asset data'!CX28:GJ28),0) -> 0 | I28: 0 | J28: 0 | K28: 0 | L28: 0 | M28: =IF($A28>0,SUMPRODUCT('Age profile (years)'!$CT28:$GF28,'Asset data'!$CX28:$GJ28)/H28-0.5,0) -> 0 | N28: 0 | O28: =IF($A28>0,'Asset data'!G28,0) -> 0 | P28: 0 | Q28: 0 | R28: 0 | S28: 0 | T28: 0 | U28: 0 | W28: =IF($A28>0,SUMIF('Age profile (years)'!$CT28:$GF28,"<" & R28+0.5,'Asset data'!$CX28:$GJ28),0) -> 0 | X28: =IF($A28>0,SUMIF('Age profile (years)'!$CT28:$GF28,"<" & S28+0.5,'Asset data'!$CX28:$GJ28)-W28,0) -> 0 | Y28: =IF($A28>0,SUMIF('Age profile (years)'!$CT28:$GF28,"<" & T28+0.5,'Asset data'!$CX28:$GJ28)-X28-W28,0) -> 0 | Z28: =IF($A28>0,SUMIF('Age profile (years)'!$CT28:$GF28,"<" & U28+0.5,'Asset data'!$CX28:$GJ28)-Y28-X28-W28,0) -> 0 | AA28: 0 | AB28: 0 | AC28: 0 | AD28: 0 | AE28: 0 | AF28: 0 | AI28: =IF($A28>0,'RRR hist-forc'!K28,0) -> 0 | AJ28: 0
A29: ='Asset data'!A29 -> 1 | B29: ='Asset data'!B29 -> 0 | C29: ='Asset data'!C29 -> 0 | D29: ='Asset data'!E29 -> ˂ = 1 kV; CONCRETE | E29: POLES | F29: =IF(A29>0,SUM('Asset data'!J29:CV29),0) -> 464 | G29: =IF(A29>0,'Asset data'!F29,0) -> 9.643251227 | H29: =IF(A29>0,SUM('Asset data'!CX29:GJ29),0) -> 4474.468569 | I29: 0.0002689421771 | J29: 48 | K29: 0.001986848197 | L29: 9.643251227 | M29: =IF($A29>0,SUMPRODUCT('Age profile (years)'!$CT29:$GF29,'Asset data'!$CX29:$GJ29)/H29-0.5,0) -> 26.95474138 | N29: 120608.1431 | O29: =IF($A29>0,'Asset data'!G29,0) -> 48.10554264 | P29: 215246.7386 | Q29: 0.4396749335 | R29: 4.810554264 | S29: 9.621108529 | T29: 28.86332559 | U29: 38.48443412 | W29: =IF($A29>0,SUMIF('Age profile (years)'!$CT29:$GF29,"<" & R29+0.5,'Asset data'!$CX29:$GJ29),0) -> 366.4435466 | X29: =IF($A29>0,SUMIF('Age profile (years)'!$CT29:$GF29,"<" & S29+0.5,'Asset data'!$CX29:$GJ29)-W29,0) -> 356.8002954 | Y29: =IF($A29>0,SUMIF('Age profile (years)'!$CT29:$GF29,"<" & T29+0.5,'Asset data'!$CX29:$GJ29)-X29-W29,0) -> 2044.36926 | Z29: =IF($A29>0,SUMIF('Age profile (years)'!$CT29:$GF29,"<" & U29+0.5,'Asset data'!$CX29:$GJ29)-Y29-X29-W29,0) -> 501.4490638 | AA29: 1205.406403 | AB29: 0.08189655172 | AC29: 0.07974137931 | AD29: 0.4568965517 | AE29: 0.1120689655 | AF29: 0.2693965517 | AI29: =IF($A29>0,'RRR hist-forc'!K29,0) -> 48.10554264 | AJ29: 215246.7386
A30: ='Asset data'!A30 -> 1 | B30: ='Asset data'!B30 -> 0 | C30: ='Asset data'!C30 -> 0 | D30: ='Asset data'!E30 -> > 1 kV & < = 11 kV; CONCRETE | E30: POLES | F30: =IF(A30>0,SUM('Asset data'!J30:CV30),0) -> 274 | G30: =IF(A30>0,'Asset data'!F30,0) -> 11.4509847 | H30: =IF(A30>0,SUM('Asset data'!CX30:GJ30),0) -> 3137.569807 | I30: 0.000188586609 | J30: 50 | K30: 0.001393210125 | L30: 11.4509847 | M30: =IF($A30>0,SUMPRODUCT('Age profile (years)'!$CT30:$GF30,'Asset data'!$CX30:$GJ30)/H30-0.5,0) -> 12.75182482 | N30: 40009.74053 | O30: =IF($A30>0,'Asset data'!G30,0) -> 26.75588831 | P30: 83948.46731 | Q30: 0.5234011792 | R30: 2.675588831 | S30: 5.351177662 | T30: 16.05353298 | U30: 21.40471065 | W30: =IF($A30>0,SUMIF('Age profile (years)'!$CT30:$GF30,"<" & R30+0.5,'Asset data'!$CX30:$GJ30),0) -> 45.80393879 | X30: =IF($A30>0,SUMIF('Age profile (years)'!$CT30:$GF30,"<" & S30+0.5,'Asset data'!$CX30:$GJ30)-W30,0) -> 34.35295409 | Y30: =IF($A30>0,SUMIF('Age profile (years)'!$CT30:$GF30,"<" & T30+0.5,'Asset data'!$CX30:$GJ30)-X30-W30,0) -> 2049.726261 | Z30: =IF($A30>0,SUMIF('Age profile (years)'!$CT30:$GF30,"<" & U30+0.5,'Asset data'!$CX30:$GJ30)-Y30-X30-W30,0) -> 412.2354491 | AA30: 595.4512042 | AB30: 0.01459854015 | AC30: 0.01094890511 | AD30: 0.6532846715 | AE30: 0.1313868613 | AF30: 0.1897810219 | AI30: =IF($A30>0,'RRR hist-forc'!K30,0) -> 26.75588831 | AJ30: 83948.46731
A31: ='Asset data'!A31 -> 0 | B31: ='Asset data'!B31 -> 0 | C31: ='Asset data'!C31 -> 0 | D31: ='Asset data'!E31 -> ˃ 11 kV & < = 22 kV; CONCRETE | E31: 0 | F31: =IF(A31>0,SUM('Asset data'!J31:CV31),0) -> 0 | G31: =IF(A31>0,'Asset data'!F31,0) -> 0 | H31: =IF(A31>0,SUM('Asset data'!CX31:GJ31),0) -> 0 | I31: 0 | J31: 0 | K31: 0 | L31: 0 | M31: =IF($A31>0,SUMPRODUCT('Age profile (years)'!$CT31:$GF31,'Asset data'!$CX31:$GJ31)/H31-0.5,0) -> 0 | N31: 0 | O31: =IF($A31>0,'Asset data'!G31,0) -> 0 | P31: 0 | Q31: 0 | R31: 0 | S31: 0 | T31: 0 | U31: 0 | W31: =IF($A31>0,SUMIF('Age profile (years)'!$CT31:$GF31,"<" & R31+0.5,'Asset data'!$CX31:$GJ31),0) -> 0 | X31: =IF($A31>0,SUMIF('Age profile (years)'!$CT31:$GF31,"<" & S31+0.5,'Asset data'!$CX31:$GJ31)-W31,0) -> 0 | Y31: =IF($A31>0,SUMIF('Age profile (years)'!$CT31:$GF31,"<" & T31+0.5,'Asset data'!$CX31:$GJ31)-X31-W31,0) -> 0 | Z31: =IF($A31>0,SUMIF('Age profile (years)'!$CT31:$GF31,"<" & U31+0.5,'Asset data'!$CX31:$GJ31)-Y31-X31-W31,0) -> 0 | AA31: 0 | AB31: 0 | AC31: 0 | AD31: 0 | AE31: 0 | AF31: 0 | AI31: =IF($A31>0,'RRR hist-forc'!K31,0) -> 0 | AJ31: 0
A32: ='Asset data'!A32 -> 1 | B32: ='Asset data'!B32 -> 0 | C32: ='Asset data'!C32 -> 0 | D32: ='Asset data'!E32 -> > 22 kV & < = 66 kV; CONCRETE | E32: POLES | F32: =IF(A32>0,SUM('Asset data'!J32:CV32),0) -> 3390 | G32: =IF(A32>0,'Asset data'!F32,0) -> 20.18874088 | H32: =IF(A32>0,SUM('Asset data'!CX32:GJ32),0) -> 68439.83159 | I32: 0.004113640988 | J32: 27 | K32: 0.03039010195 | L32: 20.18874088 | M32: =IF($A32>0,SUMPRODUCT('Age profile (years)'!$CT32:$GF32,'Asset data'!$CX32:$GJ32)/H32-0.5,0) -> 33.67433628 | N32: 2304665.904 | O32: =IF($A32>0,'Asset data'!G32,0) -> 44.19260296 | P32: 3024534.304 | Q32: 0.2380096661 | R32: 4.419260296 | S32: 8.838520591 | T32: 26.51556177 | U32: 35.35408236 | W32: =IF($A32>0,SUMIF('Age profile (years)'!$CT32:$GF32,"<" & R32+0.5,'Asset data'!$CX32:$GJ32),0) -> 2099.629052 | X32: =IF($A32>0,SUMIF('Age profile (years)'!$CT32:$GF32,"<" & S32+0.5,'Asset data'!$CX32:$GJ32)-W32,0) -> 444.1522994 | Y32: =IF($A32>0,SUMIF('Age profile (years)'!$CT32:$GF32,"<" & T32+0.5,'Asset data'!$CX32:$GJ32)-X32-W32,0) -> 9266.632065 | Z32: =IF($A32>0,SUMIF('Age profile (years)'!$CT32:$GF32,"<" & U32+0.5,'Asset data'!$CX32:$GJ32)-Y32-X32-W32,0) -> 11931.54586 | AA32: 44697.87231 | AB32: 0.03067846608 | AC32: 0.006489675516 | AD32: 0.1353982301 | AE32: 0.1743362832 | AF32: 0.6530973451 | AI32: =IF($A32>0,'RRR hist-forc'!K32,0) -> 44.19260296 | AJ32: 3024534.304
A33: ='Asset data'!A33 -> 1 | B33: ='Asset data'!B33 -> 0 | C33: ='Asset data'!C33 -> 0 | D33: ='Asset data'!E33 -> > 66 kV & < = 132 kV; CONCRETE | E33: POLES | F33: =IF(A33>0,SUM('Asset data'!J33:CV33),0) -> 2547 | G33: =IF(A33>0,'Asset data'!F33,0) -> 14.41742799 | H33: =IF(A33>0,SUM('Asset data'!CX33:GJ33),0) -> 36721.1891 | I33: 0.002207161898 | J33: 34 | K33: 0.01630571927 | L33: 14.41742799 | M33: =IF($A33>0,SUMPRODUCT('Age profile (years)'!$CT33:$GF33,'Asset data'!$CX33:$GJ33)/H33-0.5,0) -> 30.25382803 | N33: 1110956.54 | O33: =IF($A33>0,'Asset data'!G33,0) -> 41.02697996 | P33: 1506559.489 | Q33: 0.2625870082 | R33: 4.102697996 | S33: 8.205395991 | T33: 24.61618797 | U33: 32.82158397 | W33: =IF($A33>0,SUMIF('Age profile (years)'!$CT33:$GF33,"<" & R33+0.5,'Asset data'!$CX33:$GJ33),0) -> 1138.976811 | X33: =IF($A33>0,SUMIF('Age profile (years)'!$CT33:$GF33,"<" & S33+0.5,'Asset data'!$CX33:$GJ33)-W33,0) -> 0 | Y33: =IF($A33>0,SUMIF('Age profile (years)'!$CT33:$GF33,"<" & T33+0.5,'Asset data'!$CX33:$GJ33)-X33-W33,0) -> 6358.085745 | Z33: =IF($A33>0,SUMIF('Age profile (years)'!$CT33:$GF33,"<" & U33+0.5,'Asset data'!$CX33:$GJ33)-Y33-X33-W33,0) -> 10524.72243 | AA33: 18699.40411 | AB33: 0.03101688261 | AC33: 0 | AD33: 0.1731448763 | AE33: 0.2866117 | AF33: 0.509226541 | AI33: =IF($A33>0,'RRR hist-forc'!K33,0) -> 41.02697996 | AJ33: 1506559.489
A34: ='Asset data'!A34 -> 0 | B34: ='Asset data'!B34 -> 0 | C34: ='Asset data'!C34 -> 0 | D34: ='Asset data'!E34 -> > 132 kV; CONCRETE | E34: 0 | F34: =IF(A34>0,SUM('Asset data'!J34:CV34),0) -> 0 | G34: =IF(A34>0,'Asset data'!F34,0) -> 0 | H34: =IF(A34>0,SUM('Asset data'!CX34:GJ34),0) -> 0 | I34: 0 | J34: 0 | K34: 0 | L34: 0 | M34: =IF($A34>0,SUMPRODUCT('Age profile (years)'!$CT34:$GF34,'Asset data'!$CX34:$GJ34)/H34-0.5,0) -> 0 | N34: 0 | O34: =IF($A34>0,'Asset data'!G34,0) -> 0 | P34: 0 | Q34: 0 | R34: 0 | S34: 0 | T34: 0 | U34: 0 | W34: =IF($A34>0,SUMIF('Age profile (years)'!$CT34:$GF34,"<" & R34+0.5,'Asset data'!$CX34:$GJ34),0) -> 0 | X34: =IF($A34>0,SUMIF('Age profile (years)'!$CT34:$GF34,"<" & S34+0.5,'Asset data'!$CX34:$GJ34)-W34,0) -> 0 | Y34: =IF($A34>0,SUMIF('Age profile (years)'!$CT34:$GF34,"<" & T34+0.5,'Asset data'!$CX34:$GJ34)-X34-W34,0) -> 0 | Z34: =IF($A34>0,SUMIF('Age profile (years)'!$CT34:$GF34,"<" & U34+0.5,'Asset data'!$CX34:$GJ34)-Y34-X34-W34,0) -> 0 | AA34: 0 | AB34: 0 | AC34: 0 | AD34: 0 | AE34: 0 | AF34: 0 | AI34: =IF($A34>0,'RRR hist-forc'!K34,0) -> 0 | AJ34: 0
A35: ='Asset data'!A35 -> 1 | B35: ='Asset data'!B35 -> 0 | C35: ='Asset data'!C35 -> 0 | D35: ='Asset data'!E35 -> ˂ = 1 kV; STEEL | E35: POLES | F35: =IF(A35>0,SUM('Asset data'!J35:CV35),0) -> 7915 | G35: =IF(A35>0,'Asset data'!F35,0) -> 8.35319239 | H35: =IF(A35>0,SUM('Asset data'!CX35:GJ35),0) -> 66115.51777 | I35: 0.003973935902 | J35: 28 | K35: 0.02935801096 | L35: 8.35319239 | M35: =IF($A35>0,SUMPRODUCT('Age profile (years)'!$CT35:$GF35,'Asset data'!$CX35:$GJ35)/H35-0.5,0) -> 31.78313329 | N35: 2101358.314 | O35: =IF($A35>0,'Asset data'!G35,0) -> 55.5126016 | P35: 3670244.397 | Q35: 0.42746093 | R35: 5.55126016 | S35: 11.10252032 | T35: 33.30756096 | U35: 44.41008128 | W35: =IF($A35>0,SUMIF('Age profile (years)'!$CT35:$GF35,"<" & R35+0.5,'Asset data'!$CX35:$GJ35),0) -> 2631.255603 | X35: =IF($A35>0,SUMIF('Age profile (years)'!$CT35:$GF35,"<" & S35+0.5,'Asset data'!$CX35:$GJ35)-W35,0) -> 4602.609007 | Y35: =IF($A35>0,SUMIF('Age profile (years)'!$CT35:$GF35,"<" & T35+0.5,'Asset data'!$CX35:$GJ35)-X35-W35,0) -> 29478.41595 | Z35: =IF($A35>0,SUMIF('Age profile (years)'!$CT35:$GF35,"<" & U35+0.5,'Asset data'!$CX35:$GJ35)-Y35-X35-W35,0) -> 9965.358522 | AA35: 19437.87869 | AB35: 0.03979785218 | AC35: 0.06961465572 | AD35: 0.4458622868 | AE35: 0.1507264687 | AF35: 0.2939987366 | AI35: =IF($A35>0,'RRR hist-forc'!K35,0) -> 55.5126016 | AJ35: 3670244.397
A36: ='Asset data'!A36 -> 1 | B36: ='Asset data'!B36 -> 0 | C36: ='Asset data'!C36 -> 0 | D36: ='Asset data'!E36 -> > 1 kV & < = 11 kV; STEEL | E36: POLES | F36: =IF(A36>0,SUM('Asset data'!J36:CV36),0) -> 39 | G36: =IF(A36>0,'Asset data'!F36,0) -> 8.502050356 | H36: =IF(A36>0,SUM('Asset data'!CX36:GJ36),0) -> 331.5799639 | I36: 1.992992821e-05 | J36: 56 | K36: 0.0001472351506 | L36: 8.502050356 | M36: =IF($A36>0,SUMPRODUCT('Age profile (years)'!$CT36:$GF36,'Asset data'!$CX36:$GJ36)/H36-0.5,0) -> 24.26923077 | N36: 8047.190662 | O36: =IF($A36>0,'Asset data'!G36,0) -> 48.38758346 | P36: 16044.35318 | Q36: 0.4984409422 | R36: 4.838758346 | S36: 9.677516692 | T36: 29.03255008 | U36: 38.71006677 | W36: =IF($A36>0,SUMIF('Age profile (years)'!$CT36:$GF36,"<" & R36+0.5,'Asset data'!$CX36:$GJ36),0) -> 34.00820143 | X36: =IF($A36>0,SUMIF('Age profile (years)'!$CT36:$GF36,"<" & S36+0.5,'Asset data'!$CX36:$GJ36)-W36,0) -> 25.50615107 | Y36: =IF($A36>0,SUMIF('Age profile (years)'!$CT36:$GF36,"<" & T36+0.5,'Asset data'!$CX36:$GJ36)-X36-W36,0) -> 119.028705 | Z36: =IF($A36>0,SUMIF('Age profile (years)'!$CT36:$GF36,"<" & U36+0.5,'Asset data'!$CX36:$GJ36)-Y36-X36-W36,0) -> -1.421085472e-14 | AA36: 153.0369064 | AB36: 0.1025641026 | AC36: 0.07692307692 | AD36: 0.358974359 | AE36: -4.285800188e-17 | AF36: 0.4615384615 | AI36: =IF($A36>0,'RRR hist-forc'!K36,0) -> 48.38758346 | AJ36: 16044.35318
A37: ='Asset data'!A37 -> 1 | B37: ='Asset data'!B37 -> 0 | C37: ='Asset data'!C37 -> 0 | D37: ='Asset data'!E37 -> ˃ 11 kV & < = 22 kV; STEEL | E37: POLES | F37: =IF(A37>0,SUM('Asset data'!J37:CV37),0) -> 8 | G37: =IF(A37>0,'Asset data'!F37,0) -> 9.224428936 | H37: =IF(A37>0,SUM('Asset data'!CX37:GJ37),0) -> 73.79543149 | I37: 4.4355444e-06 | J37: 61 | K37: 3.276820873e-05 | L37: 9.224428936 | M37: =IF($A37>0,SUMPRODUCT('Age profile (years)'!$CT37:$GF37,'Asset data'!$CX37:$GJ37)/H37-0.5,0) -> 7.5 | N37: 553.4657362 | O37: =IF($A37>0,'Asset data'!G37,0) -> 16.65842734 | P37: 1229.315833 | Q37: 0.5497774281 | R37: =IF($A37>0,$O37-R$4*$O37,0) -> 1.665842734 | S37: 3.331685467 | T37: 9.995056402 | U37: 13.32674187 | W37: =IF($A37>0,SUMIF('Age profile (years)'!$CT37:$GF37,"<" & R37+0.5,'Asset data'!$CX37:$GJ37),0) -> 0 | X37: =IF($A37>0,SUMIF('Age profile (years)'!$CT37:$GF37,"<" & S37+0.5,'Asset data'!$CX37:$GJ37)-W37,0) -> 0 | Y37: =IF($A37>0,SUMIF('Age profile (years)'!$CT37:$GF37,"<" & T37+0.5,'Asset data'!$CX37:$GJ37)-X37-W37,0) -> 64.57100255 | Z37: =IF($A37>0,SUMIF('Age profile (years)'!$CT37:$GF37,"<" & U37+0.5,'Asset data'!$CX37:$GJ37)-Y37-X37-W37,0) -> 0 | AA37: 9.224428936 | AB37: 0 | AC37: 0 | AD37: 0.875 | AE37: 0 | AF37: 0.125 | AI37: =IF($A37>0,'RRR hist-forc'!K37,0) -> 16.65842734 | AJ37: 1229.315833
A38: ='Asset data'!A38 -> 1 | B38: ='Asset data'!B38 -> 0 | C38: ='Asset data'!C38 -> 0 | D38: ='Asset data'!E38 -> > 22 kV & < = 66 kV; STEEL | E38: POLES | F38: =IF(A38>0,SUM('Asset data'!J38:CV38),0) -> 232 | G38: =IF(A38>0,'Asset data'!F38,0) -> 19.83449594 | H38: =IF(A38>0,SUM('Asset data'!CX38:GJ38),0) -> 4601.603059 | I38: 0.0002765837162 | J38: 46 | K38: 0.002043301143 | L38: 19.83449594 | M38: =IF($A38>0,SUMPRODUCT('Age profile (years)'!$CT38:$GF38,'Asset data'!$CX38:$GJ38)/H38-0.5,0) -> 6.551724138 | N38: 30148.43383 | O38: =IF($A38>0,'Asset data'!G38,0) -> 11.46189216 | P38: 52743.07805 | Q38: 0.4283907017 | R38: 1.146189216 | S38: 2.292378433 | T38: 6.877135299 | U38: 9.169513732 | W38: =IF($A38>0,SUMIF('Age profile (years)'!$CT38:$GF38,"<" & R38+0.5,'Asset data'!$CX38:$GJ38),0) -> 39.66899189 | X38: =IF($A38>0,SUMIF('Age profile (years)'!$CT38:$GF38,"<" & S38+0.5,'Asset data'!$CX38:$GJ38)-W38,0) -> 79.33798377 | Y38: =IF($A38>0,SUMIF('Age profile (years)'!$CT38:$GF38,"<" & T38+0.5,'Asset data'!$CX38:$GJ38)-X38-W38,0) -> 1904.111611 | Z38: =IF($A38>0,SUMIF('Age profile (years)'!$CT38:$GF38,"<" & U38+0.5,'Asset data'!$CX38:$GJ38)-Y38-X38-W38,0) -> 2062.787578 | AA38: 515.6968945 | AB38: 0.008620689655 | AC38: 0.01724137931 | AD38: 0.4137931034 | AE38: 0.4482758621 | AF38: 0.1120689655 | AI38: =IF($A38>0,'RRR hist-forc'!K38,0) -> 11.46189216 | AJ38: 52743.07805
A39: ='Asset data'!A39 -> 1 | B39: ='Asset data'!B39 -> 0 | C39: ='Asset data'!C39 -> 0 | D39: ='Asset data'!E39 -> > 66 kV & < = 132 kV; STEEL | E39: POLES | F39: =IF(A39>0,SUM('Asset data'!J39:CV39),0) -> 129 | G39: =IF(A39>0,'Asset data'!F39,0) -> 15.08079068 | H39: =IF(A39>0,SUM('Asset data'!CX39:GJ39),0) -> 1945.421998 | I39: 0.0001169314343 | J39: 53 | K39: 0.0008638474335 | L39: 15.08079068 | M39: =IF($A39>0,SUMPRODUCT('Age profile (years)'!$CT39:$GF39,'Asset data'!$CX39:$GJ39)/H39-0.5,0) -> 30.25968992 | N39: 58867.86643 | O39: =IF($A39>0,'Asset data'!G39,0) -> 47.80195984 | P39: 92994.98423 | Q39: 0.3669780481 | R39: 4.780195984 | S39: 9.560391969 | T39: 28.68117591 | U39: 38.24156787 | W39: =IF($A39>0,SUMIF('Age profile (years)'!$CT39:$GF39,"<" & R39+0.5,'Asset data'!$CX39:$GJ39),0) -> 105.5655348 | X39: =IF($A39>0,SUMIF('Age profile (years)'!$CT39:$GF39,"<" & S39+0.5,'Asset data'!$CX39:$GJ39)-W39,0) -> 0 | Y39: =IF($A39>0,SUMIF('Age profile (years)'!$CT39:$GF39,"<" & T39+0.5,'Asset data'!$CX39:$GJ39)-X39-W39,0) -> 738.9587435 | Z39: =IF($A39>0,SUMIF('Age profile (years)'!$CT39:$GF39,"<" & U39+0.5,'Asset data'!$CX39:$GJ39)-Y39-X39-W39,0) -> 5.684341886e-14 | AA39: 1100.89772 | AB39: 0.05426356589 | AC39: 0 | AD39: 0.3798449612 | AE39: 2.921906862e-17 | AF39: 0.5658914729 | AI39: =IF($A39>0,'RRR hist-forc'!K39,0) -> 47.80195984 | AJ39: 92994.98423
A40: ='Asset data'!A40 -> 0 | B40: ='Asset data'!B40 -> 0 | C40: ='Asset data'!C40 -> 0 | D40: ='Asset data'!E40 -> > 132 kV; STEEL | E40: 0 | F40: =IF(A40>0,SUM('Asset data'!J40:CV40),0) -> 0 | G40: =IF(A40>0,'Asset data'!F40,0) -> 0 | H40: =IF(A40>0,SUM('Asset data'!CX40:GJ40),0) -> 0 | I40: 0 | J40: 0 | K40: 0 | L40: 0 | M40: =IF($A40>0,SUMPRODUCT('Age profile (years)'!$CT40:$GF40,'Asset data'!$CX40:$GJ40)/H40-0.5,0) -> 0 | N40: 0 | O40: =IF($A40>0,'Asset data'!G40,0) -> 0 | P40: 0 | Q40: 0 | R40: 0 | S40: 0 | T40: 0 | U40: 0 | W40: =IF($A40>0,SUMIF('Age profile (years)'!$CT40:$GF40,"<" & R40+0.5,'Asset data'!$CX40:$GJ40),0) -> 0 | X40: =IF($A40>0,SUMIF('Age profile (years)'!$CT40:$GF40,"<" & S40+0.5,'Asset data'!$CX40:$GJ40)-W40,0) -> 0 | Y40: =IF($A40>0,SUMIF('Age profile (years)'!$CT40:$GF40,"<" & T40+0.5,'Asset data'!$CX40:$GJ40)-X40-W40,0) -> 0 | Z40: =IF($A40>0,SUMIF('Age profile (years)'!$CT40:$GF40,"<" & U40+0.5,'Asset data'!$CX40:$GJ40)-Y40-X40-W40,0) -> 0 | AA40: 0 | AB40: 0 | AC40: 0 | AD40: 0 | AE40: 0 | AF40: 0 | AI40: =IF($A40>0,'RRR hist-forc'!K40,0) -> 0 | AJ40: 0
A41: ='Asset data'!A41 -> 0 | B41: ='Asset data'!B41 -> 0 | C41: ='Asset data'!C41 -> 0 | D41: ='Asset data'!E41 -> OTHER - PLEASE ADD A ROW IF NECESSARY AND NOMINATE THE CATEGORY | E41: 0 | F41: =IF(A41>0,SUM('Asset data'!J41:CV41),0) -> 0 | G41: =IF(A41>0,'Asset data'!F41,0) -> 0 | H41: =IF(A41>0,SUM('Asset data'!CX41:GJ41),0) -> 0 | I41: 0 | J41: 0 | K41: 0 | L41: 0 | M41: =IF($A41>0,SUMPRODUCT('Age profile (years)'!$CT41:$GF41,'Asset data'!$CX41:$GJ41)/H41-0.5,0) -> 0 | N41: 0 | O41: =IF($A41>0,'Asset data'!G41,0) -> 0 | P41: 0 | Q41: 0 | R41: 0 | S41: 0 | T41: 0 | U41: 0 | W41: =IF($A41>0,SUMIF('Age profile (years)'!$CT41:$GF41,"<" & R41+0.5,'Asset data'!$CX41:$GJ41),0) -> 0 | X41: =IF($A41>0,SUMIF('Age profile (years)'!$CT41:$GF41,"<" & S41+0.5,'Asset data'!$CX41:$GJ41)-W41,0) -> 0 | Y41: =IF($A41>0,SUMIF('Age profile (years)'!$CT41:$GF41,"<" & T41+0.5,'Asset data'!$CX41:$GJ41)-X41-W41,0) -> 0 | Z41: =IF($A41>0,SUMIF('Age profile (years)'!$CT41:$GF41,"<" & U41+0.5,'Asset data'!$CX41:$GJ41)-Y41-X41-W41,0) -> 0 | AA41: 0 | AB41: 0 | AC41: 0 | AD41: 0 | AE41: 0 | AF41: 0 | AI41: =IF($A41>0,'RRR hist-forc'!K41,0) -> 0 | AJ41: 0
A42: ='Asset data'!A42 -> 1 | B42: ='Asset data'!B42 -> 0 | C42: ='Asset data'!C42 -> 0 | D42: ='Asset data'!E42 -> TOWERS | E42: POLES | F42: =IF(A42>0,SUM('Asset data'!J42:CV42),0) -> 739 | G42: =IF(A42>0,'Asset data'!F42,0) -> 176.3192638 | H42: =IF(A42>0,SUM('Asset data'!CX42:GJ42),0) -> 130299.9359 | I42: 0.007831801229 | J42: 23 | K42: 0.05785853421 | L42: 176.3192638 | M42: =IF($A42>0,SUMPRODUCT('Age profile (years)'!$CT42:$GF42,'Asset data'!$CX42:$GJ42)/H42-0.5,0) -> 19.74492558 | N42: 2572762.537 | O42: =IF($A42>0,'Asset data'!G42,0) -> 67.2267326 | P42: 8759638.95 | Q42: 0.7062935411 | R42: 6.72267326 | S42: 13.44534652 | T42: 40.33603956 | U42: 53.78138608 | W42: =IF($A42>0,SUMIF('Age profile (years)'!$CT42:$GF42,"<" & R42+0.5,'Asset data'!$CX42:$GJ42),0) -> 0 | X42: =IF($A42>0,SUMIF('Age profile (years)'!$CT42:$GF42,"<" & S42+0.5,'Asset data'!$CX42:$GJ42)-W42,0) -> 7405.409078 | Y42: =IF($A42>0,SUMIF('Age profile (years)'!$CT42:$GF42,"<" & T42+0.5,'Asset data'!$CX42:$GJ42)-X42-W42,0) -> 120778.6957 | Z42: =IF($A42>0,SUMIF('Age profile (years)'!$CT42:$GF42,"<" & U42+0.5,'Asset data'!$CX42:$GJ42)-Y42-X42-W42,0) -> 1586.873374 | AA42: 528.9577913 | AB42: 0 | AC42: 0.05683355886 | AD42: 0.9269282815 | AE42: 0.01217861976 | AF42: 0.004059539919 | AI42: =IF($A42>0,'RRR hist-forc'!K42,0) -> 67.2267326 | AJ42: 8759638.95
A43: ='Asset data'!A43 -> 2 | B43: ='Asset data'!B43 -> 0 | C43: ='Asset data'!C43 -> 0 | D43: ='Asset data'!E43 -> ˂ = 1 kV | E43: OVERHEAD CONDUCTORS | F43: =IF(A43>0,SUM('Asset data'!J43:CV43),0) -> 12900.84696 | G43: =IF(A43>0,'Asset data'!F43,0) -> 58.89030058 | H43: =IF(A43>0,SUM('Asset data'!CX43:GJ43),0) -> 759734.7553 | I43: 0.04566457803 | J43: 6 | K43: 0.394913904 | L43: 58.89030058 | M43: =IF($A43>0,SUMPRODUCT('Age profile (years)'!$CT43:$GF43,'Asset data'!$CX43:$GJ43)/H43-0.5,0) -> 25.95679282 | N43: 19720277.64 | O43: =IF($A43>0,'Asset data'!G43,0) -> 67.21718045 | P43: 51067228.14 | Q43: 0.6138369291 | R43: 6.721718045 | S43: 13.44343609 | T43: 40.33030827 | U43: 53.77374436 | W43: =IF($A43>0,SUMIF('Age profile (years)'!$CT43:$GF43,"<" & R43+0.5,'Asset data'!$CX43:$GJ43),0) -> 28354.49448 | X43: =IF($A43>0,SUMIF('Age profile (years)'!$CT43:$GF43,"<" & S43+0.5,'Asset data'!$CX43:$GJ43)-W43,0) -> 98899.23847 | Y43: =IF($A43>0,SUMIF('Age profile (years)'!$CT43:$GF43,"<" & T43+0.5,'Asset data'!$CX43:$GJ43)-X43-W43,0) -> 492184.0903 | Z43: =IF($A43>0,SUMIF('Age profile (years)'!$CT43:$GF43,"<" & U43+0.5,'Asset data'!$CX43:$GJ43)-Y43-X43-W43,0) -> 55744.12838 | AA43: 84552.80369 | AB43: 0.03732157083 | AC43: 0.1301760092 | AD43: 0.6478367441 | AE43: 0.07337314502 | AF43: 0.1112925308 | AI43: =IF($A43>0,'RRR hist-forc'!K43,0) -> 67.21718045 | AJ43: 51067228.14
A44: ='Asset data'!A44 -> 2 | B44: ='Asset data'!B44 -> 0 | C44: ='Asset data'!C44 -> 0 | D44: ='Asset data'!E44 -> > 1 kV & < = 11 kV | E44: OVERHEAD CONDUCTORS | F44: =IF(A44>0,SUM('Asset data'!J44:CV44),0) -> 9778.260716 | G44: =IF(A44>0,'Asset data'!F44,0) -> 70.16466111 | H44: =IF(A44>0,SUM('Asset data'!CX44:GJ44),0) -> 686088.3494 | I44: 0.04123799095 | J44: 8 | K44: 0.356632136 | L44: 70.16466111 | M44: =IF($A44>0,SUMPRODUCT('Age profile (years)'!$CT44:$GF44,'Asset data'!$CX44:$GJ44)/H44-0.5,0) -> 12.7229966 | N44: 8729099.734 | O44: =IF($A44>0,'Asset data'!G44,0) -> 47.3846896 | P44: 32510083.47 | Q44: 0.7314956222 | R44: 4.73846896 | S44: 9.47693792 | T44: 28.43081376 | U44: 37.90775168 | W44: =IF($A44>0,SUMIF('Age profile (years)'!$CT44:$GF44,"<" & R44+0.5,'Asset data'!$CX44:$GJ44),0) -> 298439.2942 | X44: =IF($A44>0,SUMIF('Age profile (years)'!$CT44:$GF44,"<" & S44+0.5,'Asset data'!$CX44:$GJ44)-W44,0) -> 69126.30647 | Y44: =IF($A44>0,SUMIF('Age profile (years)'!$CT44:$GF44,"<" & T44+0.5,'Asset data'!$CX44:$GJ44)-X44-W44,0) -> 146506.4927 | Z44: =IF($A44>0,SUMIF('Age profile (years)'!$CT44:$GF44,"<" & U44+0.5,'Asset data'!$CX44:$GJ44)-Y44-X44-W44,0) -> 77433.93982 | AA44: 94582.31611 | AB44: 0.4349866814 | AC44: 0.1007542345 | AD44: 0.2135388145 | AE44: 0.1128629278 | AF44: 0.1378573418 | AI44: =IF($A44>0,'RRR hist-forc'!K44,0) -> 47.3846896 | AJ44: 32510083.47
A45: ='Asset data'!A45 -> 2 | B45: ='Asset data'!B45 -> 0 | C45: ='Asset data'!C45 -> 0 | D45: ='Asset data'!E45 -> ˃ 11 kV & < = 22 kV ; SWER | E45: OVERHEAD CONDUCTORS | F45: =IF(A45>0,SUM('Asset data'!J45:CV45),0) -> 124.588944 | G45: =IF(A45>0,'Asset data'!F45,0) -> 36.24075581 | H45: =IF(A45>0,SUM('Asset data'!CX45:GJ45),0) -> 4515.197497 | I45: 0.0002713902279 | J45: 47 | K45: 0.002347022113 | L45: 36.24075581 | M45: =IF($A45>0,SUMPRODUCT('Age profile (years)'!$CT45:$GF45,'Asset data'!$CX45:$GJ45)/H45-0.5,0) -> 47.681125 | N45: 215289.6962 | O45: =IF($A45>0,'Asset data'!G45,0) -> 87.94502172 | P45: 397089.1419 | Q45: 0.4578303118 | R45: 8.794502172 | S45: 17.58900434 | T45: 52.76701303 | U45: 70.35601738 | W45: =IF($A45>0,SUMIF('Age profile (years)'!$CT45:$GF45,"<" & R45+0.5,'Asset data'!$CX45:$GJ45),0) -> 0 | X45: =IF($A45>0,SUMIF('Age profile (years)'!$CT45:$GF45,"<" & S45+0.5,'Asset data'!$CX45:$GJ45)-W45,0) -> 0 | Y45: =IF($A45>0,SUMIF('Age profile (years)'!$CT45:$GF45,"<" & T45+0.5,'Asset data'!$CX45:$GJ45)-X45-W45,0) -> 2501.589786 | Z45: =IF($A45>0,SUMIF('Age profile (years)'!$CT45:$GF45,"<" & U45+0.5,'Asset data'!$CX45:$GJ45)-Y45-X45-W45,0) -> 1742.329423 | AA45: 271.278288 | AB45: 0 | AC45: 0 | AD45: 0.5540377332 | AE45: 0.3858811102 | AF45: 0.06008115662 | AI45: =IF($A45>0,'RRR hist-forc'!K45,0) -> 87.94502172 | AJ45: 397089.1419
A46: ='Asset data'!A46 -> 2 | B46: ='Asset data'!B46 -> 0 | C46: ='Asset data'!C46 -> 0 | D46: ='Asset data'!E46 -> ˃ 11 kV & < = 22 kV ; SINGLE-PHASE | E46: OVERHEAD CONDUCTORS | F46: =IF(A46>0,SUM('Asset data'!J46:CV46),0) -> 71.77650673 | G46: =IF(A46>0,'Asset data'!F46,0) -> 73.23463169 | H46: =IF(A46>0,SUM('Asset data'!CX46:GJ46),0) -> 5256.526034 | I46: 0.0003159484828 | J46: 44 | K46: 0.002732368374 | L46: 73.23463169 | M46: =IF($A46>0,SUMPRODUCT('Age profile (years)'!$CT46:$GF46,'Asset data'!$CX46:$GJ46)/H46-0.5,0) -> 14.95874641 | N46: 78631.03992 | O46: =IF($A46>0,'Asset data'!G46,0) -> 40.61 | P46: 213467.5223 | Q46: 0.6316486972 | R46: 4.061 | S46: 8.122 | T46: 24.366 | U46: 32.488 | W46: =IF($A46>0,SUMIF('Age profile (years)'!$CT46:$GF46,"<" & R46+0.5,'Asset data'!$CX46:$GJ46),0) -> 2302.895188 | X46: =IF($A46>0,SUMIF('Age profile (years)'!$CT46:$GF46,"<" & S46+0.5,'Asset data'!$CX46:$GJ46)-W46,0) -> 0.1269031668 | Y46: =IF($A46>0,SUMIF('Age profile (years)'!$CT46:$GF46,"<" & T46+0.5,'Asset data'!$CX46:$GJ46)-X46-W46,0) -> 499.0063382 | Z46: =IF($A46>0,SUMIF('Age profile (years)'!$CT46:$GF46,"<" & U46+0.5,'Asset data'!$CX46:$GJ46)-Y46-X46-W46,0) -> 1986.642052 | AA46: 467.8555529 | AB46: 0.4381021178 | AC46: 2.414202194e-05 | AD46: 0.09493082216 | AE46: 0.3779382123 | AF46: 0.08900470574 | AI46: =IF($A46>0,'RRR hist-forc'!K46,0) -> 40.61 | AJ46: 213467.5223
A47: ='Asset data'!A47 -> 2 | B47: ='Asset data'!B47 -> 0 | C47: ='Asset data'!C47 -> 0 | D47: ='Asset data'!E47 -> ˃ 11 kV & < = 22 kV ; MULTIPLE-PHASE | E47: OVERHEAD CONDUCTORS | F47: =IF(A47>0,SUM('Asset data'!J47:CV47),0) -> 53.79886547 | G47: =IF(A47>0,'Asset data'!F47,0) -> 62.52225782 | H47: =IF(A47>0,SUM('Asset data'!CX47:GJ47),0) -> 3363.626537 | I47: 0.0002021739632 | J47: 49 | K47: 0.001748429802 | L47: 62.52225782 | M47: =IF($A47>0,SUMPRODUCT('Age profile (years)'!$CT47:$GF47,'Asset data'!$CX47:$GJ47)/H47-0.5,0) -> 39.77984399 | N47: 133804.5389 | O47: =IF($A47>0,'Asset data'!G47,0) -> 75.61549736 | P47: 254342.2936 | Q47: 0.4739194295 | R47: 7.561549736 | S47: 15.12309947 | T47: 45.36929841 | U47: 60.49239789 | W47: =IF($A47>0,SUMIF('Age profile (years)'!$CT47:$GF47,"<" & R47+0.5,'Asset data'!$CX47:$GJ47),0) -> 0 | X47: =IF($A47>0,SUMIF('Age profile (years)'!$CT47:$GF47,"<" & S47+0.5,'Asset data'!$CX47:$GJ47)-W47,0) -> 0 | Y47: =IF($A47>0,SUMIF('Age profile (years)'!$CT47:$GF47,"<" & T47+0.5,'Asset data'!$CX47:$GJ47)-X47-W47,0) -> 2405.378958 | Z47: =IF($A47>0,SUMIF('Age profile (years)'!$CT47:$GF47,"<" & U47+0.5,'Asset data'!$CX47:$GJ47)-Y47-X47-W47,0) -> 285.2313159 | AA47: 673.016264 | AB47: 0 | AC47: 0 | AD47: 0.7151147521 | AE47: 0.08479874705 | AF47: 0.2000865008 | AI47: =IF($A47>0,'RRR hist-forc'!K47,0) -> 75.61549736 | AJ47: 254342.2936
A48: ='Asset data'!A48 -> 2 | B48: ='Asset data'!B48 -> 0 | C48: ='Asset data'!C48 -> 0 | D48: ='Asset data'!E48 -> > 22 kV & < = 66 kV | E48: OVERHEAD CONDUCTORS | F48: =IF(A48>0,SUM('Asset data'!J48:CV48),0) -> 1759.307359 | G48: =IF(A48>0,'Asset data'!F48,0) -> 228.5221839 | H48: =IF(A48>0,SUM('Asset data'!CX48:GJ48),0) -> 402040.7599 | I48: 0.02416504118 | J48: 12 | K48: 0.2089827864 | L48: 228.5221839 | M48: =IF($A48>0,SUMPRODUCT('Age profile (years)'!$CT48:$GF48,'Asset data'!$CX48:$GJ48)/H48-0.5,0) -> 23.07063145 | N48: 9275334.201 | O48: =IF($A48>0,'Asset data'!G48,0) -> 54.78910948 | P48: 22027455.21 | Q48: 0.5789193934 | R48: 5.478910948 | S48: 10.9578219 | T48: 32.87346569 | U48: 43.83128758 | W48: =IF($A48>0,SUMIF('Age profile (years)'!$CT48:$GF48,"<" & R48+0.5,'Asset data'!$CX48:$GJ48),0) -> 67729.106 | X48: =IF($A48>0,SUMIF('Age profile (years)'!$CT48:$GF48,"<" & S48+0.5,'Asset data'!$CX48:$GJ48)-W48,0) -> 105734.5132 | Y48: =IF($A48>0,SUMIF('Age profile (years)'!$CT48:$GF48,"<" & T48+0.5,'Asset data'!$CX48:$GJ48)-X48-W48,0) -> 90467.67896 | Z48: =IF($A48>0,SUMIF('Age profile (years)'!$CT48:$GF48,"<" & U48+0.5,'Asset data'!$CX48:$GJ48)-Y48-X48-W48,0) -> 35357.22838 | AA48: 102752.2334 | AB48: 0.1684632822 | AC48: 0.2629945113 | AD48: 0.225021162 | AE48: 0.0879443875 | AF48: 0.2555766569 | AI48: =IF($A48>0,'RRR hist-forc'!K48,0) -> 54.78910948 | AJ48: 22027455.21
A49: ='Asset data'!A49 -> 2 | B49: ='Asset data'!B49 -> 0 | C49: ='Asset data'!C49 -> 0 | D49: ='Asset data'!E49 -> > 66 kV & < = 132 kV | E49: OVERHEAD CONDUCTORS | F49: =IF(A49>0,SUM('Asset data'!J49:CV49),0) -> 1085.862666 | G49: =IF(A49>0,'Asset data'!F49,0) -> 57.83349437 | H49: =IF(A49>0,SUM('Asset data'!CX49:GJ49),0) -> 62799.2324 | I49: 0.003774607424 | J49: 29 | K49: 0.03264335331 | L49: 57.83349437 | M49: =IF($A49>0,SUMPRODUCT('Age profile (years)'!$CT49:$GF49,'Asset data'!$CX49:$GJ49)/H49-0.5,0) -> 27.55622881 | N49: 1730510.017 | O49: =IF($A49>0,'Asset data'!G49,0) -> 63.74880762 | P49: 4003376.185 | Q49: 0.5677373455 | R49: 6.374880762 | S49: 12.74976152 | T49: 38.24928457 | U49: 50.9990461 | W49: =IF($A49>0,SUMIF('Age profile (years)'!$CT49:$GF49,"<" & R49+0.5,'Asset data'!$CX49:$GJ49),0) -> 0 | X49: =IF($A49>0,SUMIF('Age profile (years)'!$CT49:$GF49,"<" & S49+0.5,'Asset data'!$CX49:$GJ49)-W49,0) -> 15546.65756 | Y49: =IF($A49>0,SUMIF('Age profile (years)'!$CT49:$GF49,"<" & T49+0.5,'Asset data'!$CX49:$GJ49)-X49-W49,0) -> 32671.70266 | Z49: =IF($A49>0,SUMIF('Age profile (years)'!$CT49:$GF49,"<" & U49+0.5,'Asset data'!$CX49:$GJ49)-Y49-X49-W49,0) -> 3035.151245 | AA49: 11545.72093 | AB49: 0 | AC49: 0.2475612674 | AD49: 0.5202564015 | AE49: 0.04833102459 | AF49: 0.1838513066 | AI49: =IF($A49>0,'RRR hist-forc'!K49,0) -> 63.74880762 | AJ49: 4003376.185
A50: ='Asset data'!A50 -> 0 | B50: ='Asset data'!B50 -> 0 | C50: ='Asset data'!C50 -> 0 | D50: ='Asset data'!E50 -> > 132 kV | E50: 0 | F50: =IF(A50>0,SUM('Asset data'!J50:CV50),0) -> 0 | G50: =IF(A50>0,'Asset data'!F50,0) -> 0 | H50: =IF(A50>0,SUM('Asset data'!CX50:GJ50),0) -> 0 | I50: 0 | J50: 0 | K50: 0 | L50: 0 | M50: =IF($A50>0,SUMPRODUCT('Age profile (years)'!$CT50:$GF50,'Asset data'!$CX50:$GJ50)/H50-0.5,0) -> 0 | N50: 0 | O50: =IF($A50>0,'Asset data'!G50,0) -> 0 | P50: 0 | Q50: 0 | R50: 0 | S50: 0 | T50: 0 | U50: 0 | W50: =IF($A50>0,SUMIF('Age profile (years)'!$CT50:$GF50,"<" & R50+0.5,'Asset data'!$CX50:$GJ50),0) -> 0 | X50: =IF($A50>0,SUMIF('Age profile (years)'!$CT50:$GF50,"<" & S50+0.5,'Asset data'!$CX50:$GJ50)-W50,0) -> 0 | Y50: =IF($A50>0,SUMIF('Age profile (years)'!$CT50:$GF50,"<" & T50+0.5,'Asset data'!$CX50:$GJ50)-X50-W50,0) -> 0 | Z50: =IF($A50>0,SUMIF('Age profile (years)'!$CT50:$GF50,"<" & U50+0.5,'Asset data'!$CX50:$GJ50)-Y50-X50-W50,0) -> 0 | AA50: 0 | AB50: 0 | AC50: 0 | AD50: 0 | AE50: 0 | AF50: 0 | AI50: =IF($A50>0,'RRR hist-forc'!K50,0) -> 0 | AJ50: 0
A51: ='Asset data'!A51 -> 0 | B51: ='Asset data'!B51 -> 0 | C51: ='Asset data'!C51 -> 0 | D51: ='Asset data'!E51 -> OTHER - PLEASE ADD A ROW IF NECESSARY AND NOMINATE THE CATEGORY | E51: 0 | F51: =IF(A51>0,SUM('Asset data'!J51:CV51),0) -> 0 | G51: =IF(A51>0,'Asset data'!F51,0) -> 0 | H51: =IF(A51>0,SUM('Asset data'!CX51:GJ51),0) -> 0 | I51: 0 | J51: 0 | K51: 0 | L51: 0 | M51: =IF($A51>0,SUMPRODUCT('Age profile (years)'!$CT51:$GF51,'Asset data'!$CX51:$GJ51)/H51-0.5,0) -> 0 | N51: 0 | O51: =IF($A51>0,'Asset data'!G51,0) -> 0 | P51: 0 | Q51: 0 | R51: 0 | S51: 0 | T51: 0 | U51: 0 | W51: =IF($A51>0,SUMIF('Age profile (years)'!$CT51:$GF51,"<" & R51+0.5,'Asset data'!$CX51:$GJ51),0) -> 0 | X51: =IF($A51>0,SUMIF('Age profile (years)'!$CT51:$GF51,"<" & S51+0.5,'Asset data'!$CX51:$GJ51)-W51,0) -> 0 | Y51: =IF($A51>0,SUMIF('Age profile (years)'!$CT51:$GF51,"<" & T51+0.5,'Asset data'!$CX51:$GJ51)-X51-W51,0) -> 0 | Z51: =IF($A51>0,SUMIF('Age profile (years)'!$CT51:$GF51,"<" & U51+0.5,'Asset data'!$CX51:$GJ51)-Y51-X51-W51,0) -> 0 | AA51: 0 | AB51: 0 | AC51: 0 | AD51: 0 | AE51: 0 | AF51: 0 | AI51: =IF($A51>0,'RRR hist-forc'!K51,0) -> 0 | AJ51: 0
A52: ='Asset data'!A52 -> 3 | B52: ='Asset data'!B52 -> 0 | C52: ='Asset data'!C52 -> 0 | D52: ='Asset data'!E52 -> ˂ = 1 kV | E52: UNDERGROUND CABLES | F52: =IF(A52>0,SUM('Asset data'!J52:CV52),0) -> 5604.137059 | G52: =IF(A52>0,'Asset data'!F52,0) -> 206.7605506 | H52: =IF(A52>0,SUM('Asset data'!CX52:GJ52),0) -> 1158714.464 | I52: 0.06964563183 | J52: 4 | K52: 0.1741931835 | L52: 206.7605506 | M52: =IF($A52>0,SUMPRODUCT('Age profile (years)'!$CT52:$GF52,'Asset data'!$CX52:$GJ52)/H52-0.5,0) -> 38.77354969 | N52: 44927472.85 | O52: =IF($A52>0,'Asset data'!G52,0) -> 66.19827032 | P52: 76704893.32 | Q52: 0.4142815288 | R52: 6.619827032 | S52: 13.23965406 | T52: 39.71896219 | U52: 52.95861626 | W52: =IF($A52>0,SUMIF('Age profile (years)'!$CT52:$GF52,"<" & R52+0.5,'Asset data'!$CX52:$GJ52),0) -> 29056.32425 | X52: =IF($A52>0,SUMIF('Age profile (years)'!$CT52:$GF52,"<" & S52+0.5,'Asset data'!$CX52:$GJ52)-W52,0) -> 95244.40886 | Y52: =IF($A52>0,SUMIF('Age profile (years)'!$CT52:$GF52,"<" & T52+0.5,'Asset data'!$CX52:$GJ52)-X52-W52,0) -> 463258.0969 | Z52: =IF($A52>0,SUMIF('Age profile (years)'!$CT52:$GF52,"<" & U52+0.5,'Asset data'!$CX52:$GJ52)-Y52-X52-W52,0) -> 174539.4326 | AA52: 396616.2016 | AB52: 0.02507634551 | AC52: 0.08219834291 | AD52: 0.3998034988 | AE52: 0.1506319615 | AF52: 0.3422898512 | AI52: =IF($A52>0,'RRR hist-forc'!K52,0) -> 66.19827032 | AJ52: 76704893.32
A53: ='Asset data'!A53 -> 3 | B53: ='Asset data'!B53 -> 0 | C53: ='Asset data'!C53 -> 0 | D53: ='Asset data'!E53 -> > 1 kV & < = 11 kV | E53: UNDERGROUND CABLES | F53: =IF(A53>0,SUM('Asset data'!J53:CV53),0) -> 7771.177604 | G53: =IF(A53>0,'Asset data'!F53,0) -> 572.790279 | H53: =IF(A53>0,SUM('Asset data'!CX53:GJ53),0) -> 4451254.988 | I53: 0.2675469028 | J53: 1 | K53: 0.6691711384 | L53: 572.790279 | M53: =IF($A53>0,SUMPRODUCT('Age profile (years)'!$CT53:$GF53,'Asset data'!$CX53:$GJ53)/H53-0.5,0) -> 39.75419426 | N53: 176956055.5 | O53: =IF($A53>0,'Asset data'!G53,0) -> 70.60237147 | P53: 314269158.2 | Q53: 0.4369283435 | R53: 7.060237147 | S53: 14.12047429 | T53: 42.36142288 | U53: 56.48189718 | W53: =IF($A53>0,SUMIF('Age profile (years)'!$CT53:$GF53,"<" & R53+0.5,'Asset data'!$CX53:$GJ53),0) -> 168159.7421 | X53: =IF($A53>0,SUMIF('Age profile (years)'!$CT53:$GF53,"<" & S53+0.5,'Asset data'!$CX53:$GJ53)-W53,0) -> 295633.424 | Y53: =IF($A53>0,SUMIF('Age profile (years)'!$CT53:$GF53,"<" & T53+0.5,'Asset data'!$CX53:$GJ53)-X53-W53,0) -> 1974435.38 | Z53: =IF($A53>0,SUMIF('Age profile (years)'!$CT53:$GF53,"<" & U53+0.5,'Asset data'!$CX53:$GJ53)-Y53-X53-W53,0) -> 529865.8659 | AA53: 1483160.576 | AB53: 0.03777805193 | AC53: 0.06641574674 | AD53: 0.4435682487 | AE53: 0.1190374102 | AF53: 0.3332005424 | AI53: =IF($A53>0,'RRR hist-forc'!K53,0) -> 70.60237147 | AJ53: 314269158.2
A54: ='Asset data'!A54 -> 3 | B54: ='Asset data'!B54 -> 0 | C54: ='Asset data'!C54 -> 0 | D54: ='Asset data'!E54 -> > 11 kV & < = 22 kV | E54: UNDERGROUND CABLES | F54: =IF(A54>0,SUM('Asset data'!J54:CV54),0) -> 0.010000497 | G54: =IF(A54>0,'Asset data'!F54,0) -> 588.1384003 | H54: =IF(A54>0,SUM('Asset data'!CX54:GJ54),0) -> 5.881676307 | I54: 3.535237328e-07 | J54: 64 | K54: 8.842108665e-07 | L54: 588.1384003 | M54: =IF($A54>0,SUMPRODUCT('Age profile (years)'!$CT54:$GF54,'Asset data'!$CX54:$GJ54)/H54-0.5,0) -> 43.5 | N54: 255.8529194 | O54: =IF($A54>0,'Asset data'!G54,0) -> 66.509986 | P54: 391.1902088 | Q54: 0.3459628754 | R54: 6.6509986 | S54: 13.3019972 | T54: 39.9059916 | U54: 53.2079888 | W54: =IF($A54>0,SUMIF('Age profile (years)'!$CT54:$GF54,"<" & R54+0.5,'Asset data'!$CX54:$GJ54),0) -> 0 | X54: =IF($A54>0,SUMIF('Age profile (years)'!$CT54:$GF54,"<" & S54+0.5,'Asset data'!$CX54:$GJ54)-W54,0) -> 0 | Y54: =IF($A54>0,SUMIF('Age profile (years)'!$CT54:$GF54,"<" & T54+0.5,'Asset data'!$CX54:$GJ54)-X54-W54,0) -> 0 | Z54: =IF($A54>0,SUMIF('Age profile (years)'!$CT54:$GF54,"<" & U54+0.5,'Asset data'!$CX54:$GJ54)-Y54-X54-W54,0) -> 5.881676307 | AA54: 0 | AB54: 0 | AC54: 0 | AD54: 0 | AE54: 1 | AF54: 0 | AI54: =IF($A54>0,'RRR hist-forc'!K54,0) -> 66.509986 | AJ54: 391.1902088
A55: ='Asset data'!A55 -> 3 | B55: ='Asset data'!B55 -> 0 | C55: ='Asset data'!C55 -> 0 | D55: ='Asset data'!E55 -> > 22 kV & < = 33 kV | E55: UNDERGROUND CABLES | F55: =IF(A55>0,SUM('Asset data'!J55:CV55),0) -> 803.910485 | G55: =IF(A55>0,'Asset data'!F55,0) -> 488.4063137 | H55: =IF(A55>0,SUM('Asset data'!CX55:GJ55),0) -> 392634.9565 | I55: 0.02359969645 | J55: 13 | K55: 0.0590260458 | L55: 488.4063137 | M55: =IF($A55>0,SUMPRODUCT('Age profile (years)'!$CT55:$GF55,'Asset data'!$CX55:$GJ55)/H55-0.5,0) -> 34.01580238 | N55: 13355793.09 | O55: =IF($A55>0,'Asset data'!G55,0) -> 77.08029983 | P55: 30264420.17 | Q55: 0.5586965482 | R55: 7.708029983 | S55: 15.41605997 | T55: 46.2481799 | U55: 61.66423987 | W55: =IF($A55>0,SUMIF('Age profile (years)'!$CT55:$GF55,"<" & R55+0.5,'Asset data'!$CX55:$GJ55),0) -> 46509.77881 | X55: =IF($A55>0,SUMIF('Age profile (years)'!$CT55:$GF55,"<" & S55+0.5,'Asset data'!$CX55:$GJ55)-W55,0) -> 41471.73198 | Y55: =IF($A55>0,SUMIF('Age profile (years)'!$CT55:$GF55,"<" & T55+0.5,'Asset data'!$CX55:$GJ55)-X55-W55,0) -> 196283.6073 | Z55: =IF($A55>0,SUMIF('Age profile (years)'!$CT55:$GF55,"<" & U55+0.5,'Asset data'!$CX55:$GJ55)-Y55-X55-W55,0) -> 7001.577439 | AA55: 101368.261 | AB55: 0.1184555222 | AC55: 0.105624146 | AD55: 0.4999137343 | AE55: 0.01783228244 | AF55: 0.2581743151 | AI55: =IF($A55>0,'RRR hist-forc'!K55,0) -> 77.08029983 | AJ55: 30264420.17
A56: ='Asset data'!A56 -> 3 | B56: ='Asset data'!B56 -> 0 | C56: ='Asset data'!C56 -> 0 | D56: ='Asset data'!E56 -> > 33 kV & < = 66 kV | E56: UNDERGROUND CABLES | F56: =IF(A56>0,SUM('Asset data'!J56:CV56),0) -> 2.504843336 | G56: =IF(A56>0,'Asset data'!F56,0) -> 1101.501908 | H56: =IF(A56>0,SUM('Asset data'!CX56:GJ56),0) -> 2759.089715 | I56: 0.0001658377041 | J56: 51 | K56: 0.0004147826198 | L56: 1101.501908 | M56: =IF($A56>0,SUMPRODUCT('Age profile (years)'!$CT56:$GF56,'Asset data'!$CX56:$GJ56)/H56-0.5,0) -> 37.64662732 | N56: 103870.4223 | O56: =IF($A56>0,'Asset data'!G56,0) -> 46.66 | P56: 128739.1261 | Q56: 0.1931712961 | R56: 4.666 | S56: 9.332 | T56: 27.996 | U56: 37.328 | W56: =IF($A56>0,SUMIF('Age profile (years)'!$CT56:$GF56,"<" & R56+0.5,'Asset data'!$CX56:$GJ56),0) -> 399.7116511 | X56: =IF($A56>0,SUMIF('Age profile (years)'!$CT56:$GF56,"<" & S56+0.5,'Asset data'!$CX56:$GJ56)-W56,0) -> 0 | Y56: =IF($A56>0,SUMIF('Age profile (years)'!$CT56:$GF56,"<" & T56+0.5,'Asset data'!$CX56:$GJ56)-X56-W56,0) -> 75.22378596 | Z56: =IF($A56>0,SUMIF('Age profile (years)'!$CT56:$GF56,"<" & U56+0.5,'Asset data'!$CX56:$GJ56)-Y56-X56-W56,0) -> 0 | AA56: 2284.154278 | AB56: 0.1448708423 | AC56: 0 | AD56: 0.02726398694 | AE56: 0 | AF56: 0.8278651707 | AI56: =IF($A56>0,'RRR hist-forc'!K56,0) -> 46.66 | AJ56: 128739.1261
A57: ='Asset data'!A57 -> 3 | B57: ='Asset data'!B57 -> 0 | C57: ='Asset data'!C57 -> 0 | D57: ='Asset data'!E57 -> > 66 kV & < = 132 kV | E57: UNDERGROUND CABLES | F57: =IF(A57>0,SUM('Asset data'!J57:CV57),0) -> 586.9475842 | G57: =IF(A57>0,'Asset data'!F57,0) -> 1101.501908 | H57: =IF(A57>0,SUM('Asset data'!CX57:GJ57),0) -> 646523.8841 | I57: 0.03885993124 | J57: 9 | K57: 0.09719396544 | L57: 1101.501908 | M57: =IF($A57>0,SUMPRODUCT('Age profile (years)'!$CT57:$GF57,'Asset data'!$CX57:$GJ57)/H57-0.5,0) -> 15.94516436 | N57: 10308929.59 | O57: =IF($A57>0,'Asset data'!G57,0) -> 47.25577253 | P57: 30551985.6 | Q57: 0.6625774269 | R57: 4.725577253 | S57: 9.451154505 | T57: 28.35346352 | U57: 37.80461802 | W57: =IF($A57>0,SUMIF('Age profile (years)'!$CT57:$GF57,"<" & R57+0.5,'Asset data'!$CX57:$GJ57),0) -> 181143.7218 | X57: =IF($A57>0,SUMIF('Age profile (years)'!$CT57:$GF57,"<" & S57+0.5,'Asset data'!$CX57:$GJ57)-W57,0) -> 163090.9125 | Y57: =IF($A57>0,SUMIF('Age profile (years)'!$CT57:$GF57,"<" & T57+0.5,'Asset data'!$CX57:$GJ57)-X57-W57,0) -> 121901.5228 | Z57: =IF($A57>0,SUMIF('Age profile (years)'!$CT57:$GF57,"<" & U57+0.5,'Asset data'!$CX57:$GJ57)-Y57-X57-W57,0) -> 49910.08481 | AA57: 130477.6422 | AB57: 0.2801810207 | AC57: 0.2522581401 | AD57: 0.1885491407 | AE57: 0.07719758858 | AF57: 0.2018141099 | AI57: =IF($A57>0,'RRR hist-forc'!K57,0) -> 47.25577253 | AJ57: 30551985.6
A58: ='Asset data'!A58 -> 0 | B58: ='Asset data'!B58 -> 0 | C58: ='Asset data'!C58 -> 0 | D58: ='Asset data'!E58 -> > 132 kV | E58: 0 | F58: =IF(A58>0,SUM('Asset data'!J58:CV58),0) -> 0 | G58: =IF(A58>0,'Asset data'!F58,0) -> 0 | H58: =IF(A58>0,SUM('Asset data'!CX58:GJ58),0) -> 0 | I58: 0 | J58: 0 | K58: 0 | L58: 0 | M58: =IF($A58>0,SUMPRODUCT('Age profile (years)'!$CT58:$GF58,'Asset data'!$CX58:$GJ58)/H58-0.5,0) -> 0 | N58: 0 | O58: =IF($A58>0,'Asset data'!G58,0) -> 0 | P58: 0 | Q58: 0 | R58: 0 | S58: 0 | T58: 0 | U58: 0 | W58: =IF($A58>0,SUMIF('Age profile (years)'!$CT58:$GF58,"<" & R58+0.5,'Asset data'!$CX58:$GJ58),0) -> 0 | X58: =IF($A58>0,SUMIF('Age profile (years)'!$CT58:$GF58,"<" & S58+0.5,'Asset data'!$CX58:$GJ58)-W58,0) -> 0 | Y58: =IF($A58>0,SUMIF('Age profile (years)'!$CT58:$GF58,"<" & T58+0.5,'Asset data'!$CX58:$GJ58)-X58-W58,0) -> 0 | Z58: =IF($A58>0,SUMIF('Age profile (years)'!$CT58:$GF58,"<" & U58+0.5,'Asset data'!$CX58:$GJ58)-Y58-X58-W58,0) -> 0 | AA58: 0 | AB58: 0 | AC58: 0 | AD58: 0 | AE58: 0 | AF58: 0 | AI58: =IF($A58>0,'RRR hist-forc'!K58,0) -> 0 | AJ58: 0
A59: ='Asset data'!A59 -> 0 | B59: ='Asset data'!B59 -> 0 | C59: ='Asset data'!C59 -> 0 | D59: ='Asset data'!E59 -> OTHER - PLEASE ADD A ROW IF NECESSARY AND NOMINATE THE CATEGORY | E59: 0 | F59: =IF(A59>0,SUM('Asset data'!J59:CV59),0) -> 0 | G59: =IF(A59>0,'Asset data'!F59,0) -> 0 | H59: =IF(A59>0,SUM('Asset data'!CX59:GJ59),0) -> 0 | I59: 0 | J59: 0 | K59: 0 | L59: 0 | M59: =IF($A59>0,SUMPRODUCT('Age profile (years)'!$CT59:$GF59,'Asset data'!$CX59:$GJ59)/H59-0.5,0) -> 0 | N59: 0 | O59: =IF($A59>0,'Asset data'!G59,0) -> 0 | P59: 0 | Q59: 0 | R59: 0 | S59: 0 | T59: 0 | U59: 0 | W59: =IF($A59>0,SUMIF('Age profile (years)'!$CT59:$GF59,"<" & R59+0.5,'Asset data'!$CX59:$GJ59),0) -> 0 | X59: =IF($A59>0,SUMIF('Age profile (years)'!$CT59:$GF59,"<" & S59+0.5,'Asset data'!$CX59:$GJ59)-W59,0) -> 0 | Y59: =IF($A59>0,SUMIF('Age profile (years)'!$CT59:$GF59,"<" & T59+0.5,'Asset data'!$CX59:$GJ59)-X59-W59,0) -> 0 | Z59: =IF($A59>0,SUMIF('Age profile (years)'!$CT59:$GF59,"<" & U59+0.5,'Asset data'!$CX59:$GJ59)-Y59-X59-W59,0) -> 0 | AA59: 0 | AB59: 0 | AC59: 0 | AD59: 0 | AE59: 0 | AF59: 0 | AI59: =IF($A59>0,'RRR hist-forc'!K59,0) -> 0 | AJ59: 0
A60: ='Asset data'!A60 -> 4 | B60: ='Asset data'!B60 -> 0 | C60: ='Asset data'!C60 -> 0 | D60: ='Asset data'!E60 -> ˂ = 11 kV ; RESIDENTIAL ; SIMPLE TYPE | E60: SERVICE LINES | F60: =IF(A60>0,SUM('Asset data'!J60:CV60),0) -> 910928 | G60: =IF(A60>0,'Asset data'!F60,0) -> 0.8119375765 | H60: =IF(A60>0,SUM('Asset data'!CX60:GJ60),0) -> 739616.6727 | I60: 0.04445536159 | J60: 7 | K60: 0.923003998 | L60: 0.8119375765 | M60: =IF($A60>0,SUMPRODUCT('Age profile (years)'!$CT60:$GF60,'Asset data'!$CX60:$GJ60)/H60-0.5,0) -> 31.95928548 | N60: 23637620.39 | O60: =IF($A60>0,'Asset data'!G60,0) -> 63.85323756 | P60: 47226919.11 | Q60: 0.4994884097 | R60: 6.385323756 | S60: 12.77064751 | T60: 38.31194254 | U60: 51.08259005 | W60: =IF($A60>0,SUMIF('Age profile (years)'!$CT60:$GF60,"<" & R60+0.5,'Asset data'!$CX60:$GJ60),0) -> 43160.97769 | X60: =IF($A60>0,SUMIF('Age profile (years)'!$CT60:$GF60,"<" & S60+0.5,'Asset data'!$CX60:$GJ60)-W60,0) -> 127718.5927 | Y60: =IF($A60>0,SUMIF('Age profile (years)'!$CT60:$GF60,"<" & T60+0.5,'Asset data'!$CX60:$GJ60)-X60-W60,0) -> 265940.4099 | Z60: =IF($A60>0,SUMIF('Age profile (years)'!$CT60:$GF60,"<" & U60+0.5,'Asset data'!$CX60:$GJ60)-Y60-X60-W60,0) -> 93851.86447 | AA60: 208944.8279 | AB60: 0.05835587445 | AC60: 0.1726821439 | AD60: 0.3595651907 | AE60: 0.1268925755 | AF60: 0.2825042155 | AI60: =IF($A60>0,'RRR hist-forc'!K60,0) -> 63.85323756 | AJ60: 47226919.11
A61: ='Asset data'!A61 -> 4 | B61: ='Asset data'!B61 -> 0 | C61: ='Asset data'!C61 -> 0 | D61: ='Asset data'!E61 -> ˂ = 11 kV ; COMMERCIAL & INDUSTRIAL ; SIMPLE TYPE | E61: SERVICE LINES | F61: =IF(A61>0,SUM('Asset data'!J61:CV61),0) -> 73066 | G61: =IF(A61>0,'Asset data'!F61,0) -> 0.8444150262 | H61: =IF(A61>0,SUM('Asset data'!CX61:GJ61),0) -> 61698.02831 | I61: 0.003708418508 | J61: 30 | K61: 0.07699600198 | L61: 0.8444150262 | M61: =IF($A61>0,SUMPRODUCT('Age profile (years)'!$CT61:$GF61,'Asset data'!$CX61:$GJ61)/H61-0.5,0) -> 42.17463663 | N61: 2602091.925 | O61: =IF($A61>0,'Asset data'!G61,0) -> 76.27713968 | P61: 4706149.123 | Q61: 0.44708681 | R61: 7.627713968 | S61: 15.25542794 | T61: 45.76628381 | U61: 61.02171175 | W61: =IF($A61>0,SUMIF('Age profile (years)'!$CT61:$GF61,"<" & R61+0.5,'Asset data'!$CX61:$GJ61),0) -> 1443.949695 | X61: =IF($A61>0,SUMIF('Age profile (years)'!$CT61:$GF61,"<" & S61+0.5,'Asset data'!$CX61:$GJ61)-W61,0) -> 1485.326031 | Y61: =IF($A61>0,SUMIF('Age profile (years)'!$CT61:$GF61,"<" & T61+0.5,'Asset data'!$CX61:$GJ61)-X61-W61,0) -> 32436.5144 | Z61: =IF($A61>0,SUMIF('Age profile (years)'!$CT61:$GF61,"<" & U61+0.5,'Asset data'!$CX61:$GJ61)-Y61-X61-W61,0) -> 8051.497275 | AA61: 18280.7409 | AB61: 0.02340349821 | AC61: 0.02407412476 | AD61: 0.5257301618 | AE61: 0.1304984535 | AF61: 0.2962937618 | AI61: =IF($A61>0,'RRR hist-forc'!K61,0) -> 76.27713968 | AJ61: 4706149.123
A62: ='Asset data'!A62 -> 0 | B62: ='Asset data'!B62 -> 0 | C62: ='Asset data'!C62 -> 0 | D62: ='Asset data'!E62 -> ˂ = 11 kV ; RESIDENTIAL ; COMPLEX TYPE | E62: 0 | F62: =IF(A62>0,SUM('Asset data'!J62:CV62),0) -> 0 | G62: =IF(A62>0,'Asset data'!F62,0) -> 0 | H62: =IF(A62>0,SUM('Asset data'!CX62:GJ62),0) -> 0 | I62: 0 | J62: 0 | K62: 0 | L62: 0 | M62: =IF($A62>0,SUMPRODUCT('Age profile (years)'!$CT62:$GF62,'Asset data'!$CX62:$GJ62)/H62-0.5,0) -> 0 | N62: 0 | O62: =IF($A62>0,'Asset data'!G62,0) -> 0 | P62: 0 | Q62: 0 | R62: 0 | S62: 0 | T62: 0 | U62: 0 | W62: =IF($A62>0,SUMIF('Age profile (years)'!$CT62:$GF62,"<" & R62+0.5,'Asset data'!$CX62:$GJ62),0) -> 0 | X62: =IF($A62>0,SUMIF('Age profile (years)'!$CT62:$GF62,"<" & S62+0.5,'Asset data'!$CX62:$GJ62)-W62,0) -> 0 | Y62: =IF($A62>0,SUMIF('Age profile (years)'!$CT62:$GF62,"<" & T62+0.5,'Asset data'!$CX62:$GJ62)-X62-W62,0) -> 0 | Z62: =IF($A62>0,SUMIF('Age profile (years)'!$CT62:$GF62,"<" & U62+0.5,'Asset data'!$CX62:$GJ62)-Y62-X62-W62,0) -> 0 | AA62: 0 | AB62: 0 | AC62: 0 | AD62: 0 | AE62: 0 | AF62: 0 | AI62: =IF($A62>0,'RRR hist-forc'!K62,0) -> 0 | AJ62: 0
A63: ='Asset data'!A63 -> 0 | B63: ='Asset data'!B63 -> 0 | C63: ='Asset data'!C63 -> 0 | D63: ='Asset data'!E63 -> ˂ = 11 kV ; COMMERCIAL & INDUSTRIAL ; COMPLEX TYPE | E63: 0 | F63: =IF(A63>0,SUM('Asset data'!J63:CV63),0) -> 0 | G63: =IF(A63>0,'Asset data'!F63,0) -> 0 | H63: =IF(A63>0,SUM('Asset data'!CX63:GJ63),0) -> 0 | I63: 0 | J63: 0 | K63: 0 | L63: 0 | M63: =IF($A63>0,SUMPRODUCT('Age profile (years)'!$CT63:$GF63,'Asset data'!$CX63:$GJ63)/H63-0.5,0) -> 0 | N63: 0 | O63: =IF($A63>0,'Asset data'!G63,0) -> 0 | P63: 0 | Q63: 0 | R63: 0 | S63: 0 | T63: 0 | U63: 0 | W63: =IF($A63>0,SUMIF('Age profile (years)'!$CT63:$GF63,"<" & R63+0.5,'Asset data'!$CX63:$GJ63),0) -> 0 | X63: =IF($A63>0,SUMIF('Age profile (years)'!$CT63:$GF63,"<" & S63+0.5,'Asset data'!$CX63:$GJ63)-W63,0) -> 0 | Y63: =IF($A63>0,SUMIF('Age profile (years)'!$CT63:$GF63,"<" & T63+0.5,'Asset data'!$CX63:$GJ63)-X63-W63,0) -> 0 | Z63: =IF($A63>0,SUMIF('Age profile (years)'!$CT63:$GF63,"<" & U63+0.5,'Asset data'!$CX63:$GJ63)-Y63-X63-W63,0) -> 0 | AA63: 0 | AB63: 0 | AC63: 0 | AD63: 0 | AE63: 0 | AF63: 0 | AI63: =IF($A63>0,'RRR hist-forc'!K63,0) -> 0 | AJ63: 0
A64: ='Asset data'!A64 -> 0 | B64: ='Asset data'!B64 -> 0 | C64: ='Asset data'!C64 -> 0 | D64: ='Asset data'!E64 -> ˂ = 11 kV ; SUBDIVISION ; COMPLEX TYPE | E64: 0 | F64: =IF(A64>0,SUM('Asset data'!J64:CV64),0) -> 0 | G64: =IF(A64>0,'Asset data'!F64,0) -> 0 | H64: =IF(A64>0,SUM('Asset data'!CX64:GJ64),0) -> 0 | I64: 0 | J64: 0 | K64: 0 | L64: 0 | M64: =IF($A64>0,SUMPRODUCT('Age profile (years)'!$CT64:$GF64,'Asset data'!$CX64:$GJ64)/H64-0.5,0) -> 0 | N64: 0 | O64: =IF($A64>0,'Asset data'!G64,0) -> 0 | P64: 0 | Q64: 0 | R64: 0 | S64: 0 | T64: 0 | U64: 0 | W64: =IF($A64>0,SUMIF('Age profile (years)'!$CT64:$GF64,"<" & R64+0.5,'Asset data'!$CX64:$GJ64),0) -> 0 | X64: =IF($A64>0,SUMIF('Age profile (years)'!$CT64:$GF64,"<" & S64+0.5,'Asset data'!$CX64:$GJ64)-W64,0) -> 0 | Y64: =IF($A64>0,SUMIF('Age profile (years)'!$CT64:$GF64,"<" & T64+0.5,'Asset data'!$CX64:$GJ64)-X64-W64,0) -> 0 | Z64: =IF($A64>0,SUMIF('Age profile (years)'!$CT64:$GF64,"<" & U64+0.5,'Asset data'!$CX64:$GJ64)-Y64-X64-W64,0) -> 0 | AA64: 0 | AB64: 0 | AC64: 0 | AD64: 0 | AE64: 0 | AF64: 0 | AI64: =IF($A64>0,'RRR hist-forc'!K64,0) -> 0 | AJ64: 0
A65: ='Asset data'!A65 -> 0 | B65: ='Asset data'!B65 -> 0 | C65: ='Asset data'!C65 -> 0 | D65: ='Asset data'!E65 -> > 11 kV & < = 22 kV ; COMMERCIAL & INDUSTRIAL | E65: 0 | F65: =IF(A65>0,SUM('Asset data'!J65:CV65),0) -> 0 | G65: =IF(A65>0,'Asset data'!F65,0) -> 0 | H65: =IF(A65>0,SUM('Asset data'!CX65:GJ65),0) -> 0 | I65: 0 | J65: 0 | K65: 0 | L65: 0 | M65: =IF($A65>0,SUMPRODUCT('Age profile (years)'!$CT65:$GF65,'Asset data'!$CX65:$GJ65)/H65-0.5,0) -> 0 | N65: 0 | O65: =IF($A65>0,'Asset data'!G65,0) -> 0 | P65: 0 | Q65: 0 | R65: 0 | S65: 0 | T65: 0 | U65: 0 | W65: =IF($A65>0,SUMIF('Age profile (years)'!$CT65:$GF65,"<" & R65+0.5,'Asset data'!$CX65:$GJ65),0) -> 0 | X65: =IF($A65>0,SUMIF('Age profile (years)'!$CT65:$GF65,"<" & S65+0.5,'Asset data'!$CX65:$GJ65)-W65,0) -> 0 | Y65: =IF($A65>0,SUMIF('Age profile (years)'!$CT65:$GF65,"<" & T65+0.5,'Asset data'!$CX65:$GJ65)-X65-W65,0) -> 0 | Z65: =IF($A65>0,SUMIF('Age profile (years)'!$CT65:$GF65,"<" & U65+0.5,'Asset data'!$CX65:$GJ65)-Y65-X65-W65,0) -> 0 | AA65: 0 | AB65: 0 | AC65: 0 | AD65: 0 | AE65: 0 | AF65: 0 | AI65: =IF($A65>0,'RRR hist-forc'!K65,0) -> 0 | AJ65: 0
A66: ='Asset data'!A66 -> 0 | B66: ='Asset data'!B66 -> 0 | C66: ='Asset data'!C66 -> 0 | D66: ='Asset data'!E66 -> > 11 kV & < = 22 kV ; SUBDIVISION | E66: 0 | F66: =IF(A66>0,SUM('Asset data'!J66:CV66),0) -> 0 | G66: =IF(A66>0,'Asset data'!F66,0) -> 0 | H66: =IF(A66>0,SUM('Asset data'!CX66:GJ66),0) -> 0 | I66: 0 | J66: 0 | K66: 0 | L66: 0 | M66: =IF($A66>0,SUMPRODUCT('Age profile (years)'!$CT66:$GF66,'Asset data'!$CX66:$GJ66)/H66-0.5,0) -> 0 | N66: 0 | O66: =IF($A66>0,'Asset data'!G66,0) -> 0 | P66: 0 | Q66: 0 | R66: 0 | S66: 0 | T66: 0 | U66: 0 | W66: =IF($A66>0,SUMIF('Age profile (years)'!$CT66:$GF66,"<" & R66+0.5,'Asset data'!$CX66:$GJ66),0) -> 0 | X66: =IF($A66>0,SUMIF('Age profile (years)'!$CT66:$GF66,"<" & S66+0.5,'Asset data'!$CX66:$GJ66)-W66,0) -> 0 | Y66: =IF($A66>0,SUMIF('Age profile (years)'!$CT66:$GF66,"<" & T66+0.5,'Asset data'!$CX66:$GJ66)-X66-W66,0) -> 0 | Z66: =IF($A66>0,SUMIF('Age profile (years)'!$CT66:$GF66,"<" & U66+0.5,'Asset data'!$CX66:$GJ66)-Y66-X66-W66,0) -> 0 | AA66: 0 | AB66: 0 | AC66: 0 | AD66: 0 | AE66: 0 | AF66: 0 | AI66: =IF($A66>0,'RRR hist-forc'!K66,0) -> 0 | AJ66: 0
A67: ='Asset data'!A67 -> 0 | B67: ='Asset data'!B67 -> 0 | C67: ='Asset data'!C67 -> 0 | D67: ='Asset data'!E67 -> > 22 kV & < = 33 kV ; COMMERCIAL & INDUSTRIAL | E67: 0 | F67: =IF(A67>0,SUM('Asset data'!J67:CV67),0) -> 0 | G67: =IF(A67>0,'Asset data'!F67,0) -> 0 | H67: =IF(A67>0,SUM('Asset data'!CX67:GJ67),0) -> 0 | I67: 0 | J67: 0 | K67: 0 | L67: 0 | M67: =IF($A67>0,SUMPRODUCT('Age profile (years)'!$CT67:$GF67,'Asset data'!$CX67:$GJ67)/H67-0.5,0) -> 0 | N67: 0 | O67: =IF($A67>0,'Asset data'!G67,0) -> 0 | P67: 0 | Q67: 0 | R67: 0 | S67: 0 | T67: 0 | U67: 0 | W67: =IF($A67>0,SUMIF('Age profile (years)'!$CT67:$GF67,"<" & R67+0.5,'Asset data'!$CX67:$GJ67),0) -> 0 | X67: =IF($A67>0,SUMIF('Age profile (years)'!$CT67:$GF67,"<" & S67+0.5,'Asset data'!$CX67:$GJ67)-W67,0) -> 0 | Y67: =IF($A67>0,SUMIF('Age profile (years)'!$CT67:$GF67,"<" & T67+0.5,'Asset data'!$CX67:$GJ67)-X67-W67,0) -> 0 | Z67: =IF($A67>0,SUMIF('Age profile (years)'!$CT67:$GF67,"<" & U67+0.5,'Asset data'!$CX67:$GJ67)-Y67-X67-W67,0) -> 0 | AA67: 0 | AB67: 0 | AC67: 0 | AD67: 0 | AE67: 0 | AF67: 0 | AI67: =IF($A67>0,'RRR hist-forc'!K67,0) -> 0 | AJ67: 0
A68: ='Asset data'!A68 -> 0 | B68: ='Asset data'!B68 -> 0 | C68: ='Asset data'!C68 -> 0 | D68: ='Asset data'!E68 -> > 22 kV & < = 33 kV ; SUBDIVISION | E68: 0 | F68: =IF(A68>0,SUM('Asset data'!J68:CV68),0) -> 0 | G68: =IF(A68>0,'Asset data'!F68,0) -> 0 | H68: =IF(A68>0,SUM('Asset data'!CX68:GJ68),0) -> 0 | I68: 0 | J68: 0 | K68: 0 | L68: 0 | M68: =IF($A68>0,SUMPRODUCT('Age profile (years)'!$CT68:$GF68,'Asset data'!$CX68:$GJ68)/H68-0.5,0) -> 0 | N68: 0 | O68: =IF($A68>0,'Asset data'!G68,0) -> 0 | P68: 0 | Q68: 0 | R68: 0 | S68: 0 | T68: 0 | U68: 0 | W68: =IF($A68>0,SUMIF('Age profile (years)'!$CT68:$GF68,"<" & R68+0.5,'Asset data'!$CX68:$GJ68),0) -> 0 | X68: =IF($A68>0,SUMIF('Age profile (years)'!$CT68:$GF68,"<" & S68+0.5,'Asset data'!$CX68:$GJ68)-W68,0) -> 0 | Y68: =IF($A68>0,SUMIF('Age profile (years)'!$CT68:$GF68,"<" & T68+0.5,'Asset data'!$CX68:$GJ68)-X68-W68,0) -> 0 | Z68: =IF($A68>0,SUMIF('Age profile (years)'!$CT68:$GF68,"<" & U68+0.5,'Asset data'!$CX68:$GJ68)-Y68-X68-W68,0) -> 0 | AA68: 0 | AB68: 0 | AC68: 0 | AD68: 0 | AE68: 0 | AF68: 0 | AI68: =IF($A68>0,'RRR hist-forc'!K68,0) -> 0 | AJ68: 0
A69: ='Asset data'!A69 -> 0 | B69: ='Asset data'!B69 -> 0 | C69: ='Asset data'!C69 -> 0 | D69: ='Asset data'!E69 -> > 33 kV & < = 66 kV ; COMMERCIAL & INDUSTRIAL | E69: 0 | F69: =IF(A69>0,SUM('Asset data'!J69:CV69),0) -> 0 | G69: =IF(A69>0,'Asset data'!F69,0) -> 0 | H69: =IF(A69>0,SUM('Asset data'!CX69:GJ69),0) -> 0 | I69: 0 | J69: 0 | K69: 0 | L69: 0 | M69: =IF($A69>0,SUMPRODUCT('Age profile (years)'!$CT69:$GF69,'Asset data'!$CX69:$GJ69)/H69-0.5,0) -> 0 | N69: 0 | O69: =IF($A69>0,'Asset data'!G69,0) -> 0 | P69: 0 | Q69: 0 | R69: 0 | S69: 0 | T69: 0 | U69: 0 | W69: =IF($A69>0,SUMIF('Age profile (years)'!$CT69:$GF69,"<" & R69+0.5,'Asset data'!$CX69:$GJ69),0) -> 0 | X69: =IF($A69>0,SUMIF('Age profile (years)'!$CT69:$GF69,"<" & S69+0.5,'Asset data'!$CX69:$GJ69)-W69,0) -> 0 | Y69: =IF($A69>0,SUMIF('Age profile (years)'!$CT69:$GF69,"<" & T69+0.5,'Asset data'!$CX69:$GJ69)-X69-W69,0) -> 0 | Z69: =IF($A69>0,SUMIF('Age profile (years)'!$CT69:$GF69,"<" & U69+0.5,'Asset data'!$CX69:$GJ69)-Y69-X69-W69,0) -> 0 | AA69: 0 | AB69: 0 | AC69: 0 | AD69: 0 | AE69: 0 | AF69: 0 | AI69: =IF($A69>0,'RRR hist-forc'!K69,0) -> 0 | AJ69: 0
A70: ='Asset data'!A70 -> 0 | B70: ='Asset data'!B70 -> 0 | C70: ='Asset data'!C70 -> 0 | D70: ='Asset data'!E70 -> > 33 kV & < = 66 kV ; SUBDIVISION | E70: 0 | F70: =IF(A70>0,SUM('Asset data'!J70:CV70),0) -> 0 | G70: =IF(A70>0,'Asset data'!F70,0) -> 0 | H70: =IF(A70>0,SUM('Asset data'!CX70:GJ70),0) -> 0 | I70: 0 | J70: 0 | K70: 0 | L70: 0 | M70: =IF($A70>0,SUMPRODUCT('Age profile (years)'!$CT70:$GF70,'Asset data'!$CX70:$GJ70)/H70-0.5,0) -> 0 | N70: 0 | O70: =IF($A70>0,'Asset data'!G70,0) -> 0 | P70: 0 | Q70: 0 | R70: 0 | S70: 0 | T70: 0 | U70: 0 | W70: =IF($A70>0,SUMIF('Age profile (years)'!$CT70:$GF70,"<" & R70+0.5,'Asset data'!$CX70:$GJ70),0) -> 0 | X70: =IF($A70>0,SUMIF('Age profile (years)'!$CT70:$GF70,"<" & S70+0.5,'Asset data'!$CX70:$GJ70)-W70,0) -> 0 | Y70: =IF($A70>0,SUMIF('Age profile (years)'!$CT70:$GF70,"<" & T70+0.5,'Asset data'!$CX70:$GJ70)-X70-W70,0) -> 0 | Z70: =IF($A70>0,SUMIF('Age profile (years)'!$CT70:$GF70,"<" & U70+0.5,'Asset data'!$CX70:$GJ70)-Y70-X70-W70,0) -> 0 | AA70: 0 | AB70: 0 | AC70: 0 | AD70: 0 | AE70: 0 | AF70: 0 | AI70: =IF($A70>0,'RRR hist-forc'!K70,0) -> 0 | AJ70: 0
A71: ='Asset data'!A71 -> 0 | B71: ='Asset data'!B71 -> 0 | C71: ='Asset data'!C71 -> 0 | D71: ='Asset data'!E71 -> > 66 kV & < = 132 kV ; COMMERCIAL & INDUSTRIAL | E71: 0 | F71: =IF(A71>0,SUM('Asset data'!J71:CV71),0) -> 0 | G71: =IF(A71>0,'Asset data'!F71,0) -> 0 | H71: =IF(A71>0,SUM('Asset data'!CX71:GJ71),0) -> 0 | I71: 0 | J71: 0 | K71: 0 | L71: 0 | M71: =IF($A71>0,SUMPRODUCT('Age profile (years)'!$CT71:$GF71,'Asset data'!$CX71:$GJ71)/H71-0.5,0) -> 0 | N71: 0 | O71: =IF($A71>0,'Asset data'!G71,0) -> 0 | P71: 0 | Q71: 0 | R71: 0 | S71: 0 | T71: 0 | U71: 0 | W71: =IF($A71>0,SUMIF('Age profile (years)'!$CT71:$GF71,"<" & R71+0.5,'Asset data'!$CX71:$GJ71),0) -> 0 | X71: =IF($A71>0,SUMIF('Age profile (years)'!$CT71:$GF71,"<" & S71+0.5,'Asset data'!$CX71:$GJ71)-W71,0) -> 0 | Y71: =IF($A71>0,SUMIF('Age profile (years)'!$CT71:$GF71,"<" & T71+0.5,'Asset data'!$CX71:$GJ71)-X71-W71,0) -> 0 | Z71: =IF($A71>0,SUMIF('Age profile (years)'!$CT71:$GF71,"<" & U71+0.5,'Asset data'!$CX71:$GJ71)-Y71-X71-W71,0) -> 0 | AA71: 0 | AB71: 0 | AC71: 0 | AD71: 0 | AE71: 0 | AF71: 0 | AI71: =IF($A71>0,'RRR hist-forc'!K71,0) -> 0 | AJ71: 0
A72: ='Asset data'!A72 -> 0 | B72: ='Asset data'!B72 -> 0 | C72: ='Asset data'!C72 -> 0 | D72: ='Asset data'!E72 -> > 66 kV & < = 132 kV ; SUBDIVISION | E72: 0 | F72: =IF(A72>0,SUM('Asset data'!J72:CV72),0) -> 0 | G72: =IF(A72>0,'Asset data'!F72,0) -> 0 | H72: =IF(A72>0,SUM('Asset data'!CX72:GJ72),0) -> 0 | I72: 0 | J72: 0 | K72: 0 | L72: 0 | M72: =IF($A72>0,SUMPRODUCT('Age profile (years)'!$CT72:$GF72,'Asset data'!$CX72:$GJ72)/H72-0.5,0) -> 0 | N72: 0 | O72: =IF($A72>0,'Asset data'!G72,0) -> 0 | P72: 0 | Q72: 0 | R72: 0 | S72: 0 | T72: 0 | U72: 0 | W72: =IF($A72>0,SUMIF('Age profile (years)'!$CT72:$GF72,"<" & R72+0.5,'Asset data'!$CX72:$GJ72),0) -> 0 | X72: =IF($A72>0,SUMIF('Age profile (years)'!$CT72:$GF72,"<" & S72+0.5,'Asset data'!$CX72:$GJ72)-W72,0) -> 0 | Y72: =IF($A72>0,SUMIF('Age profile (years)'!$CT72:$GF72,"<" & T72+0.5,'Asset data'!$CX72:$GJ72)-X72-W72,0) -> 0 | Z72: =IF($A72>0,SUMIF('Age profile (years)'!$CT72:$GF72,"<" & U72+0.5,'Asset data'!$CX72:$GJ72)-Y72-X72-W72,0) -> 0 | AA72: 0 | AB72: 0 | AC72: 0 | AD72: 0 | AE72: 0 | AF72: 0 | AI72: =IF($A72>0,'RRR hist-forc'!K72,0) -> 0 | AJ72: 0
A73: ='Asset data'!A73 -> 0 | B73: ='Asset data'!B73 -> 0 | C73: ='Asset data'!C73 -> 0 | D73: ='Asset data'!E73 -> > 132 kV ; COMMERCIAL & INDUSTRIAL | E73: 0 | F73: =IF(A73>0,SUM('Asset data'!J73:CV73),0) -> 0 | G73: =IF(A73>0,'Asset data'!F73,0) -> 0 | H73: =IF(A73>0,SUM('Asset data'!CX73:GJ73),0) -> 0 | I73: 0 | J73: 0 | K73: 0 | L73: 0 | M73: =IF($A73>0,SUMPRODUCT('Age profile (years)'!$CT73:$GF73,'Asset data'!$CX73:$GJ73)/H73-0.5,0) -> 0 | N73: 0 | O73: =IF($A73>0,'Asset data'!G73,0) -> 0 | P73: 0 | Q73: 0 | R73: 0 | S73: 0 | T73: 0 | U73: 0 | W73: =IF($A73>0,SUMIF('Age profile (years)'!$CT73:$GF73,"<" & R73+0.5,'Asset data'!$CX73:$GJ73),0) -> 0 | X73: =IF($A73>0,SUMIF('Age profile (years)'!$CT73:$GF73,"<" & S73+0.5,'Asset data'!$CX73:$GJ73)-W73,0) -> 0 | Y73: =IF($A73>0,SUMIF('Age profile (years)'!$CT73:$GF73,"<" & T73+0.5,'Asset data'!$CX73:$GJ73)-X73-W73,0) -> 0 | Z73: =IF($A73>0,SUMIF('Age profile (years)'!$CT73:$GF73,"<" & U73+0.5,'Asset data'!$CX73:$GJ73)-Y73-X73-W73,0) -> 0 | AA73: 0 | AB73: 0 | AC73: 0 | AD73: 0 | AE73: 0 | AF73: 0 | AI73: =IF($A73>0,'RRR hist-forc'!K73,0) -> 0 | AJ73: 0
A74: ='Asset data'!A74 -> 0 | B74: ='Asset data'!B74 -> 0 | C74: ='Asset data'!C74 -> 0 | D74: ='Asset data'!E74 -> > 132 kV ; SUBDIVISION | E74: 0 | F74: =IF(A74>0,SUM('Asset data'!J74:CV74),0) -> 0 | G74: =IF(A74>0,'Asset data'!F74,0) -> 0 | H74: =IF(A74>0,SUM('Asset data'!CX74:GJ74),0) -> 0 | I74: 0 | J74: 0 | K74: 0 | L74: 0 | M74: =IF($A74>0,SUMPRODUCT('Age profile (years)'!$CT74:$GF74,'Asset data'!$CX74:$GJ74)/H74-0.5,0) -> 0 | N74: 0 | O74: =IF($A74>0,'Asset data'!G74,0) -> 0 | P74: 0 | Q74: 0 | R74: 0 | S74: 0 | T74: 0 | U74: 0 | W74: =IF($A74>0,SUMIF('Age profile (years)'!$CT74:$GF74,"<" & R74+0.5,'Asset data'!$CX74:$GJ74),0) -> 0 | X74: =IF($A74>0,SUMIF('Age profile (years)'!$CT74:$GF74,"<" & S74+0.5,'Asset data'!$CX74:$GJ74)-W74,0) -> 0 | Y74: =IF($A74>0,SUMIF('Age profile (years)'!$CT74:$GF74,"<" & T74+0.5,'Asset data'!$CX74:$GJ74)-X74-W74,0) -> 0 | Z74: =IF($A74>0,SUMIF('Age profile (years)'!$CT74:$GF74,"<" & U74+0.5,'Asset data'!$CX74:$GJ74)-Y74-X74-W74,0) -> 0 | AA74: 0 | AB74: 0 | AC74: 0 | AD74: 0 | AE74: 0 | AF74: 0 | AI74: =IF($A74>0,'RRR hist-forc'!K74,0) -> 0 | AJ74: 0
A75: ='Asset data'!A75 -> 0 | B75: ='Asset data'!B75 -> 0 | C75: ='Asset data'!C75 -> 0 | D75: ='Asset data'!E75 -> OTHER - PLEASE ADD A ROW IF NECESSARY AND NOMINATE THE CATEGORY | E75: 0 | F75: =IF(A75>0,SUM('Asset data'!J75:CV75),0) -> 0 | G75: =IF(A75>0,'Asset data'!F75,0) -> 0 | H75: =IF(A75>0,SUM('Asset data'!CX75:GJ75),0) -> 0 | I75: 0 | J75: 0 | K75: 0 | L75: 0 | M75: =IF($A75>0,SUMPRODUCT('Age profile (years)'!$CT75:$GF75,'Asset data'!$CX75:$GJ75)/H75-0.5,0) -> 0 | N75: 0 | O75: =IF($A75>0,'Asset data'!G75,0) -> 0 | P75: 0 | Q75: 0 | R75: 0 | S75: 0 | T75: 0 | U75: 0 | W75: =IF($A75>0,SUMIF('Age profile (years)'!$CT75:$GF75,"<" & R75+0.5,'Asset data'!$CX75:$GJ75),0) -> 0 | X75: =IF($A75>0,SUMIF('Age profile (years)'!$CT75:$GF75,"<" & S75+0.5,'Asset data'!$CX75:$GJ75)-W75,0) -> 0 | Y75: =IF($A75>0,SUMIF('Age profile (years)'!$CT75:$GF75,"<" & T75+0.5,'Asset data'!$CX75:$GJ75)-X75-W75,0) -> 0 | Z75: =IF($A75>0,SUMIF('Age profile (years)'!$CT75:$GF75,"<" & U75+0.5,'Asset data'!$CX75:$GJ75)-Y75-X75-W75,0) -> 0 | AA75: 0 | AB75: 0 | AC75: 0 | AD75: 0 | AE75: 0 | AF75: 0 | AI75: =IF($A75>0,'RRR hist-forc'!K75,0) -> 0 | AJ75: 0
A76: ='Asset data'!A76 -> 0 | B76: ='Asset data'!B76 -> 0 | C76: ='Asset data'!C76 -> 0 | D76: ='Asset data'!E76 -> < = 11kV; RESIDENTIAL ; SIMPLE ; OVERHEAD | E76: 0 | F76: =IF(A76>0,SUM('Asset data'!J76:CV76),0) -> 0 | G76: =IF(A76>0,'Asset data'!F76,0) -> 0 | H76: =IF(A76>0,SUM('Asset data'!CX76:GJ76),0) -> 0 | I76: 0 | J76: 0 | K76: 0 | L76: 0 | M76: =IF($A76>0,SUMPRODUCT('Age profile (years)'!$CT76:$GF76,'Asset data'!$CX76:$GJ76)/H76-0.5,0) -> 0 | N76: 0 | O76: =IF($A76>0,'Asset data'!G76,0) -> 0 | P76: 0 | Q76: 0 | R76: 0 | S76: 0 | T76: 0 | U76: 0 | W76: =IF($A76>0,SUMIF('Age profile (years)'!$CT76:$GF76,"<" & R76+0.5,'Asset data'!$CX76:$GJ76),0) -> 0 | X76: =IF($A76>0,SUMIF('Age profile (years)'!$CT76:$GF76,"<" & S76+0.5,'Asset data'!$CX76:$GJ76)-W76,0) -> 0 | Y76: =IF($A76>0,SUMIF('Age profile (years)'!$CT76:$GF76,"<" & T76+0.5,'Asset data'!$CX76:$GJ76)-X76-W76,0) -> 0 | Z76: =IF($A76>0,SUMIF('Age profile (years)'!$CT76:$GF76,"<" & U76+0.5,'Asset data'!$CX76:$GJ76)-Y76-X76-W76,0) -> 0 | AA76: 0 | AB76: 0 | AC76: 0 | AD76: 0 | AE76: 0 | AF76: 0 | AI76: =IF($A76>0,'RRR hist-forc'!K76,0) -> 0 | AJ76: 0
A77: ='Asset data'!A77 -> 0 | B77: ='Asset data'!B77 -> 0 | C77: ='Asset data'!C77 -> 0 | D77: ='Asset data'!E77 -> < = 11kV; RESIDENTIAL ; SIMPLE ; UNDERGROUND | E77: 0 | F77: =IF(A77>0,SUM('Asset data'!J77:CV77),0) -> 0 | G77: =IF(A77>0,'Asset data'!F77,0) -> 0 | H77: =IF(A77>0,SUM('Asset data'!CX77:GJ77),0) -> 0 | I77: 0 | J77: 0 | K77: 0 | L77: 0 | M77: =IF($A77>0,SUMPRODUCT('Age profile (years)'!$CT77:$GF77,'Asset data'!$CX77:$GJ77)/H77-0.5,0) -> 0 | N77: 0 | O77: =IF($A77>0,'Asset data'!G77,0) -> 0 | P77: 0 | Q77: 0 | R77: 0 | S77: 0 | T77: 0 | U77: 0 | W77: =IF($A77>0,SUMIF('Age profile (years)'!$CT77:$GF77,"<" & R77+0.5,'Asset data'!$CX77:$GJ77),0) -> 0 | X77: =IF($A77>0,SUMIF('Age profile (years)'!$CT77:$GF77,"<" & S77+0.5,'Asset data'!$CX77:$GJ77)-W77,0) -> 0 | Y77: =IF($A77>0,SUMIF('Age profile (years)'!$CT77:$GF77,"<" & T77+0.5,'Asset data'!$CX77:$GJ77)-X77-W77,0) -> 0 | Z77: =IF($A77>0,SUMIF('Age profile (years)'!$CT77:$GF77,"<" & U77+0.5,'Asset data'!$CX77:$GJ77)-Y77-X77-W77,0) -> 0 | AA77: 0 | AB77: 0 | AC77: 0 | AD77: 0 | AE77: 0 | AF77: 0 | AI77: =IF($A77>0,'RRR hist-forc'!K77,0) -> 0 | AJ77: 0
A78: ='Asset data'!A78 -> 0 | B78: ='Asset data'!B78 -> 0 | C78: ='Asset data'!C78 -> 0 | D78: ='Asset data'!E78 -> < = 11kV; COMMERCIAL & INDUSTRIAL ; SIMPLE ; OVERHEAD | E78: 0 | F78: =IF(A78>0,SUM('Asset data'!J78:CV78),0) -> 0 | G78: =IF(A78>0,'Asset data'!F78,0) -> 0 | H78: =IF(A78>0,SUM('Asset data'!CX78:GJ78),0) -> 0 | I78: 0 | J78: 0 | K78: 0 | L78: 0 | M78: =IF($A78>0,SUMPRODUCT('Age profile (years)'!$CT78:$GF78,'Asset data'!$CX78:$GJ78)/H78-0.5,0) -> 0 | N78: 0 | O78: =IF($A78>0,'Asset data'!G78,0) -> 0 | P78: 0 | Q78: 0 | R78: 0 | S78: 0 | T78: 0 | U78: 0 | W78: =IF($A78>0,SUMIF('Age profile (years)'!$CT78:$GF78,"<" & R78+0.5,'Asset data'!$CX78:$GJ78),0) -> 0 | X78: =IF($A78>0,SUMIF('Age profile (years)'!$CT78:$GF78,"<" & S78+0.5,'Asset data'!$CX78:$GJ78)-W78,0) -> 0 | Y78: =IF($A78>0,SUMIF('Age profile (years)'!$CT78:$GF78,"<" & T78+0.5,'Asset data'!$CX78:$GJ78)-X78-W78,0) -> 0 | Z78: =IF($A78>0,SUMIF('Age profile (years)'!$CT78:$GF78,"<" & U78+0.5,'Asset data'!$CX78:$GJ78)-Y78-X78-W78,0) -> 0 | AA78: 0 | AB78: 0 | AC78: 0 | AD78: 0 | AE78: 0 | AF78: 0 | AI78: =IF($A78>0,'RRR hist-forc'!K78,0) -> 0 | AJ78: 0
A79: ='Asset data'!A79 -> 0 | B79: ='Asset data'!B79 -> 0 | C79: ='Asset data'!C79 -> 0 | D79: ='Asset data'!E79 -> < = 11kV; COMMERCIAL & INDUSTRIAL ; SIMPLE ; UNDERGROUND | E79: 0 | F79: =IF(A79>0,SUM('Asset data'!J79:CV79),0) -> 0 | G79: =IF(A79>0,'Asset data'!F79,0) -> 0 | H79: =IF(A79>0,SUM('Asset data'!CX79:GJ79),0) -> 0 | I79: 0 | J79: 0 | K79: 0 | L79: 0 | M79: =IF($A79>0,SUMPRODUCT('Age profile (years)'!$CT79:$GF79,'Asset data'!$CX79:$GJ79)/H79-0.5,0) -> 0 | N79: 0 | O79: =IF($A79>0,'Asset data'!G79,0) -> 0 | P79: 0 | Q79: 0 | R79: 0 | S79: 0 | T79: 0 | U79: 0 | W79: =IF($A79>0,SUMIF('Age profile (years)'!$CT79:$GF79,"<" & R79+0.5,'Asset data'!$CX79:$GJ79),0) -> 0 | X79: =IF($A79>0,SUMIF('Age profile (years)'!$CT79:$GF79,"<" & S79+0.5,'Asset data'!$CX79:$GJ79)-W79,0) -> 0 | Y79: =IF($A79>0,SUMIF('Age profile (years)'!$CT79:$GF79,"<" & T79+0.5,'Asset data'!$CX79:$GJ79)-X79-W79,0) -> 0 | Z79: =IF($A79>0,SUMIF('Age profile (years)'!$CT79:$GF79,"<" & U79+0.5,'Asset data'!$CX79:$GJ79)-Y79-X79-W79,0) -> 0 | AA79: 0 | AB79: 0 | AC79: 0 | AD79: 0 | AE79: 0 | AF79: 0 | AI79: =IF($A79>0,'RRR hist-forc'!K79,0) -> 0 | AJ79: 0
A80: ='Asset data'!A80 -> 5 | B80: ='Asset data'!B80 -> 0 | C80: ='Asset data'!C80 -> 0 | D80: ='Asset data'!E80 -> POLE MOUNTED ; < = 22kV ; < = 60 kVA ; SINGLE PHASE | E80: TRANSFORMERS | F80: =IF(A80>0,SUM('Asset data'!J80:CV80),0) -> 4648 | G80: =IF(A80>0,'Asset data'!F80,0) -> 5.67663416 | H80: =IF(A80>0,SUM('Asset data'!CX80:GJ80),0) -> 26384.99557 | I80: 0.001585895183 | J80: 36 | K80: 0.01201885534 | L80: 5.67663416 | M80: =IF($A80>0,SUMPRODUCT('Age profile (years)'!$CT80:$GF80,'Asset data'!$CX80:$GJ80)/H80-0.5,0) -> 54.55314114 | N80: 1439384.387 | O80: =IF($A80>0,'Asset data'!G80,0) -> 79.96433342 | P80: 2109858.583 | Q80: 0.3177815808 | R80: 7.996433342 | S80: 15.99286668 | T80: 47.97860005 | U80: 63.97146673 | W80: =IF($A80>0,SUMIF('Age profile (years)'!$CT80:$GF80,"<" & R80+0.5,'Asset data'!$CX80:$GJ80),0) -> 0 | X80: =IF($A80>0,SUMIF('Age profile (years)'!$CT80:$GF80,"<" & S80+0.5,'Asset data'!$CX80:$GJ80)-W80,0) -> 5.67663416 | Y80: =IF($A80>0,SUMIF('Age profile (years)'!$CT80:$GF80,"<" & T80+0.5,'Asset data'!$CX80:$GJ80)-X80-W80,0) -> 7351.241237 | Z80: =IF($A80>0,SUMIF('Age profile (years)'!$CT80:$GF80,"<" & U80+0.5,'Asset data'!$CX80:$GJ80)-Y80-X80-W80,0) -> 11779.01588 | AA80: 7249.061822 | AB80: 0 | AC80: 0.0002151462995 | AD80: 0.2786144578 | AE80: 0.4464285714 | AF80: 0.2747418244 | AI80: =IF($A80>0,'RRR hist-forc'!K80,0) -> 79.96433342 | AJ80: 2109858.583
A81: ='Asset data'!A81 -> 5 | B81: ='Asset data'!B81 -> 0 | C81: ='Asset data'!C81 -> 0 | D81: ='Asset data'!E81 -> POLE MOUNTED ; < = 22kV ; > 60 kVA AND < = 600 kVA ; SINGLE PHASE | E81: TRANSFORMERS | F81: =IF(A81>0,SUM('Asset data'!J81:CV81),0) -> 439 | G81: =IF(A81>0,'Asset data'!F81,0) -> 11.09258886 | H81: =IF(A81>0,SUM('Asset data'!CX81:GJ81),0) -> 4869.646508 | I81: 0.0002926947219 | J81: 45 | K81: 0.002218214393 | L81: 11.09258886 | M81: =IF($A81>0,SUMPRODUCT('Age profile (years)'!$CT81:$GF81,'Asset data'!$CX81:$GJ81)/H81-0.5,0) -> 39.57061503 | N81: 192694.9073 | O81: =IF($A81>0,'Asset data'!G81,0) -> 54.35064088 | P81: 264668.4086 | Q81: 0.2719383913 | R81: 5.435064088 | S81: 10.87012818 | T81: 32.61038453 | U81: 43.4805127 | W81: =IF($A81>0,SUMIF('Age profile (years)'!$CT81:$GF81,"<" & R81+0.5,'Asset data'!$CX81:$GJ81),0) -> 232.944366 | X81: =IF($A81>0,SUMIF('Age profile (years)'!$CT81:$GF81,"<" & S81+0.5,'Asset data'!$CX81:$GJ81)-W81,0) -> 122.0184774 | Y81: =IF($A81>0,SUMIF('Age profile (years)'!$CT81:$GF81,"<" & T81+0.5,'Asset data'!$CX81:$GJ81)-X81-W81,0) -> 421.5183765 | Z81: =IF($A81>0,SUMIF('Age profile (years)'!$CT81:$GF81,"<" & U81+0.5,'Asset data'!$CX81:$GJ81)-Y81-X81-W81,0) -> 1575.147618 | AA81: 2518.01767 | AB81: 0.04783599089 | AC81: 0.02505694761 | AD81: 0.08656036446 | AE81: 0.3234624146 | AF81: 0.5170842825 | AI81: =IF($A81>0,'RRR hist-forc'!K81,0) -> 54.35064088 | AJ81: 264668.4086
A82: ='Asset data'!A82 -> 0 | B82: ='Asset data'!B82 -> 0 | C82: ='Asset data'!C82 -> 0 | D82: ='Asset data'!E82 -> POLE MOUNTED ; < = 22kV ; > 600 kVA ; SINGLE PHASE | E82: 0 | F82: =IF(A82>0,SUM('Asset data'!J82:CV82),0) -> 0 | G82: =IF(A82>0,'Asset data'!F82,0) -> 0 | H82: =IF(A82>0,SUM('Asset data'!CX82:GJ82),0) -> 0 | I82: 0 | J82: 0 | K82: 0 | L82: 0 | M82: =IF($A82>0,SUMPRODUCT('Age profile (years)'!$CT82:$GF82,'Asset data'!$CX82:$GJ82)/H82-0.5,0) -> 0 | N82: 0 | O82: =IF($A82>0,'Asset data'!G82,0) -> 0 | P82: 0 | Q82: 0 | R82: 0 | S82: 0 | T82: 0 | U82: 0 | W82: =IF($A82>0,SUMIF('Age profile (years)'!$CT82:$GF82,"<" & R82+0.5,'Asset data'!$CX82:$GJ82),0) -> 0 | X82: =IF($A82>0,SUMIF('Age profile (years)'!$CT82:$GF82,"<" & S82+0.5,'Asset data'!$CX82:$GJ82)-W82,0) -> 0 | Y82: =IF($A82>0,SUMIF('Age profile (years)'!$CT82:$GF82,"<" & T82+0.5,'Asset data'!$CX82:$GJ82)-X82-W82,0) -> 0 | Z82: =IF($A82>0,SUMIF('Age profile (years)'!$CT82:$GF82,"<" & U82+0.5,'Asset data'!$CX82:$GJ82)-Y82-X82-W82,0) -> 0 | AA82: 0 | AB82: 0 | AC82: 0 | AD82: 0 | AE82: 0 | AF82: 0 | AI82: =IF($A82>0,'RRR hist-forc'!K82,0) -> 0 | AJ82: 0
A83: ='Asset data'!A83 -> 5 | B83: ='Asset data'!B83 -> 0 | C83: ='Asset data'!C83 -> 0 | D83: ='Asset data'!E83 -> POLE MOUNTED ; < = 22kV ; < = 60 kVA ; MULTIPLE PHASE | E83: TRANSFORMERS | F83: =IF(A83>0,SUM('Asset data'!J83:CV83),0) -> 2163 | G83: =IF(A83>0,'Asset data'!F83,0) -> 8.386676959 | H83: =IF(A83>0,SUM('Asset data'!CX83:GJ83),0) -> 18140.38226 | I83: 0.001090344881 | J83: 39 | K83: 0.008263280909 | L83: 8.386676959 | M83: =IF($A83>0,SUMPRODUCT('Age profile (years)'!$CT83:$GF83,'Asset data'!$CX83:$GJ83)/H83-0.5,0) -> 30.57859454 | N83: 554707.3941 | O83: =IF($A83>0,'Asset data'!G83,0) -> 59.6453994 | P83: 1081990.345 | Q83: 0.4873268542 | R83: 5.96453994 | S83: 11.92907988 | T83: 35.78723964 | U83: 47.71631952 | W83: =IF($A83>0,SUMIF('Age profile (years)'!$CT83:$GF83,"<" & R83+0.5,'Asset data'!$CX83:$GJ83),0) -> 1828.295577 | X83: =IF($A83>0,SUMIF('Age profile (years)'!$CT83:$GF83,"<" & S83+0.5,'Asset data'!$CX83:$GJ83)-W83,0) -> 1014.787912 | Y83: =IF($A83>0,SUMIF('Age profile (years)'!$CT83:$GF83,"<" & T83+0.5,'Asset data'!$CX83:$GJ83)-X83-W83,0) -> 7246.088892 | Z83: =IF($A83>0,SUMIF('Age profile (years)'!$CT83:$GF83,"<" & U83+0.5,'Asset data'!$CX83:$GJ83)-Y83-X83-W83,0) -> 5384.246608 | AA83: 2666.963273 | AB83: 0.1007859454 | AC83: 0.05594082293 | AD83: 0.399445215 | AE83: 0.2968099861 | AF83: 0.1470180305 | AI83: =IF($A83>0,'RRR hist-forc'!K83,0) -> 59.6453994 | AJ83: 1081990.345
A84: ='Asset data'!A84 -> 5 | B84: ='Asset data'!B84 -> 0 | C84: ='Asset data'!C84 -> 0 | D84: ='Asset data'!E84 -> POLE MOUNTED ; < = 22kV ; > 60 kVA AND < = 600 kVA ; MULTIPLE PHASE | E84: TRANSFORMERS | F84: =IF(A84>0,SUM('Asset data'!J84:CV84),0) -> 8615 | G84: =IF(A84>0,'Asset data'!F84,0) -> 17.94662312 | H84: =IF(A84>0,SUM('Asset data'!CX84:GJ84),0) -> 154610.1582 | I84: 0.009292990196 | J84: 19 | K84: 0.0704277975 | L84: 17.94662312 | M84: =IF($A84>0,SUMPRODUCT('Age profile (years)'!$CT84:$GF84,'Asset data'!$CX84:$GJ84)/H84-0.5,0) -> 32.39982589 | N84: 5009342.206 | O84: =IF($A84>0,'Asset data'!G84,0) -> 58.46584867 | P84: 9039414.113 | Q84: 0.4458333092 | R84: 5.846584867 | S84: 11.69316973 | T84: 35.0795092 | U84: 46.77267894 | W84: =IF($A84>0,SUMIF('Age profile (years)'!$CT84:$GF84,"<" & R84+0.5,'Asset data'!$CX84:$GJ84),0) -> 9134.831169 | X84: =IF($A84>0,SUMIF('Age profile (years)'!$CT84:$GF84,"<" & S84+0.5,'Asset data'!$CX84:$GJ84)-W84,0) -> 15182.84316 | Y84: =IF($A84>0,SUMIF('Age profile (years)'!$CT84:$GF84,"<" & T84+0.5,'Asset data'!$CX84:$GJ84)-X84-W84,0) -> 54342.37482 | Z84: =IF($A84>0,SUMIF('Age profile (years)'!$CT84:$GF84,"<" & U84+0.5,'Asset data'!$CX84:$GJ84)-Y84-X84-W84,0) -> 31693.73643 | AA84: 44256.37262 | AB84: 0.05908299478 | AC84: 0.09820081254 | AD84: 0.3514799768 | AE84: 0.2049912943 | AF84: 0.2862449216 | AI84: =IF($A84>0,'RRR hist-forc'!K84,0) -> 58.46584867 | AJ84: 9039414.113
A85: ='Asset data'!A85 -> 0 | B85: ='Asset data'!B85 -> 0 | C85: ='Asset data'!C85 -> 0 | D85: ='Asset data'!E85 -> POLE MOUNTED ; < = 22kV ; > 600 kVA ; MULTIPLE PHASE | E85: 0 | F85: =IF(A85>0,SUM('Asset data'!J85:CV85),0) -> 0 | G85: =IF(A85>0,'Asset data'!F85,0) -> 0 | H85: =IF(A85>0,SUM('Asset data'!CX85:GJ85),0) -> 0 | I85: 0 | J85: 0 | K85: 0 | L85: 0 | M85: =IF($A85>0,SUMPRODUCT('Age profile (years)'!$CT85:$GF85,'Asset data'!$CX85:$GJ85)/H85-0.5,0) -> 0 | N85: 0 | O85: =IF($A85>0,'Asset data'!G85,0) -> 0 | P85: 0 | Q85: 0 | R85: 0 | S85: 0 | T85: 0 | U85: 0 | W85: =IF($A85>0,SUMIF('Age profile (years)'!$CT85:$GF85,"<" & R85+0.5,'Asset data'!$CX85:$GJ85),0) -> 0 | X85: =IF($A85>0,SUMIF('Age profile (years)'!$CT85:$GF85,"<" & S85+0.5,'Asset data'!$CX85:$GJ85)-W85,0) -> 0 | Y85: =IF($A85>0,SUMIF('Age profile (years)'!$CT85:$GF85,"<" & T85+0.5,'Asset data'!$CX85:$GJ85)-X85-W85,0) -> 0 | Z85: =IF($A85>0,SUMIF('Age profile (years)'!$CT85:$GF85,"<" & U85+0.5,'Asset data'!$CX85:$GJ85)-Y85-X85-W85,0) -> 0 | AA85: 0 | AB85: 0 | AC85: 0 | AD85: 0 | AE85: 0 | AF85: 0 | AI85: =IF($A85>0,'RRR hist-forc'!K85,0) -> 0 | AJ85: 0
A86: ='Asset data'!A86 -> 5 | B86: ='Asset data'!B86 -> 0 | C86: ='Asset data'!C86 -> 0 | D86: ='Asset data'!E86 -> POLE MOUNTED ; > 22 kV ; < = 60 kVA | E86: TRANSFORMERS | F86: =IF(A86>0,SUM('Asset data'!J86:CV86),0) -> 6 | G86: =IF(A86>0,'Asset data'!F86,0) -> 10.36579849 | H86: =IF(A86>0,SUM('Asset data'!CX86:GJ86),0) -> 62.19479096 | I86: 3.738276898e-06 | J86: 62 | K86: 2.833088197e-05 | L86: 10.36579849 | M86: =IF($A86>0,SUMPRODUCT('Age profile (years)'!$CT86:$GF86,'Asset data'!$CX86:$GJ86)/H86-0.5,0) -> -6.5 | N86: -404.2661413 | O86: =IF($A86>0,'Asset data'!G86,0) -> 32.98 | P86: 2051.184206 | Q86: 1.197089145 | R86: 3.298 | S86: 6.596 | T86: 19.788 | U86: 26.384 | W86: =IF($A86>0,SUMIF('Age profile (years)'!$CT86:$GF86,"<" & R86+0.5,'Asset data'!$CX86:$GJ86),0) -> 51.82899247 | X86: =IF($A86>0,SUMIF('Age profile (years)'!$CT86:$GF86,"<" & S86+0.5,'Asset data'!$CX86:$GJ86)-W86,0) -> 0 | Y86: =IF($A86>0,SUMIF('Age profile (years)'!$CT86:$GF86,"<" & T86+0.5,'Asset data'!$CX86:$GJ86)-X86-W86,0) -> 10.36579849 | Z86: =IF($A86>0,SUMIF('Age profile (years)'!$CT86:$GF86,"<" & U86+0.5,'Asset data'!$CX86:$GJ86)-Y86-X86-W86,0) -> 0 | AA86: 0 | AB86: 0.8333333333 | AC86: 0 | AD86: 0.1666666667 | AE86: 0 | AF86: 0 | AI86: =IF($A86>0,'RRR hist-forc'!K86,0) -> 32.98 | AJ86: 2051.184206
A87: ='Asset data'!A87 -> 5 | B87: ='Asset data'!B87 -> 0 | C87: ='Asset data'!C87 -> 0 | D87: ='Asset data'!E87 -> POLE MOUNTED ; > 22 kV ; > 60 kVA AND < = 600 kVA | E87: =IF(A87>0,VLOOKUP(A87,IDtable,2),0) -> TRANSFORMERS | F87: =IF(A87>0,SUM('Asset data'!J87:CV87),0) -> 16 | G87: =IF(A87>0,'Asset data'!F87,0) -> 13.505149 | H87: =IF(A87>0,SUM('Asset data'!CX87:GJ87),0) -> 216.0823839 | I87: =H87/$H$18/1000 -> 1.298783663e-05 | J87: =IF(RANK(0,I$21:I$205)=RANK(I87,I$21:I$205),0,RANK(I87,I$21:I$205)) -> 60 | K87: =IF(A87>0,H87/(VLOOKUP(A87,$A$6:$H$17,8)*1000),0) -> 9.84295376e-05 | L87: =IF($A87>0,H87/F87,0) -> 13.505149 | M87: =IF($A87>0,SUMPRODUCT('Age profile (years)'!$CT87:$GF87,'Asset data'!$CX87:$GJ87)/H87-0.5,0) -> 26.75 | N87: =IF($A87>0,M87*H87,0) -> 5780.203771 | O87: =IF($A87>0,'Asset data'!G87,0) -> 36.51 | P87: =IF($A87>0,H87*O87,0) -> 7889.167838 | Q87: =IF($A87>0,(O87-M87)/O87,0) -> 0.2673240208 | R87: 3.651 | S87: 7.302 | T87: 21.906 | U87: 29.208 | W87: =IF($A87>0,SUMIF('Age profile (years)'!$CT87:$GF87,"<" & R87+0.5,'Asset data'!$CX87:$GJ87),0) -> 0 | X87: =IF($A87>0,SUMIF('Age profile (years)'!$CT87:$GF87,"<" & S87+0.5,'Asset data'!$CX87:$GJ87)-W87,0) -> 13.505149 | Y87: =IF($A87>0,SUMIF('Age profile (years)'!$CT87:$GF87,"<" & T87+0.5,'Asset data'!$CX87:$GJ87)-X87-W87,0) -> 13.505149 | Z87: =IF($A87>0,SUMIF('Age profile (years)'!$CT87:$GF87,"<" & U87+0.5,'Asset data'!$CX87:$GJ87)-Y87-X87-W87,0) -> 81.03089398 | AA87: =IF($A87>0,H87-Z87-Y87-X87-W87,0) -> 108.041192 | AB87: =IF($A87>0,W87/$H87,0) -> 0 | AC87: =IF($A87>0,X87/$H87,0) -> 0.0625 | AD87: =IF($A87>0,Y87/$H87,0) -> 0.0625 | AE87: =IF($A87>0,Z87/$H87,0) -> 0.375 | AF87: =IF($A87>0,AA87/$H87,0) -> 0.5 | AI87: =IF($A87>0,'RRR hist-forc'!K87,0) -> 36.51 | AJ87: =IF($A87>0,AI87*H87,0) -> 7889.167838
A88: ='Asset data'!A88 -> 0 | B88: ='Asset data'!B88 -> 0 | C88: ='Asset data'!C88 -> 0 | D88: ='Asset data'!E88 -> POLE MOUNTED ; > 22 kV ; > 600 kVA | E88: 0 | F88: =IF(A88>0,SUM('Asset data'!J88:CV88),0) -> 0 | G88: =IF(A88>0,'Asset data'!F88,0) -> 0 | H88: =IF(A88>0,SUM('Asset data'!CX88:GJ88),0) -> 0 | I88: 0 | J88: 0 | K88: 0 | L88: 0 | M88: =IF($A88>0,SUMPRODUCT('Age profile (years)'!$CT88:$GF88,'Asset data'!$CX88:$GJ88)/H88-0.5,0) -> 0 | N88: 0 | O88: =IF($A88>0,'Asset data'!G88,0) -> 0 | P88: 0 | Q88: 0 | R88: 0 | S88: 0 | T88: 0 | U88: 0 | W88: =IF($A88>0,SUMIF('Age profile (years)'!$CT88:$GF88,"<" & R88+0.5,'Asset data'!$CX88:$GJ88),0) -> 0 | X88: =IF($A88>0,SUMIF('Age profile (years)'!$CT88:$GF88,"<" & S88+0.5,'Asset data'!$CX88:$GJ88)-W88,0) -> 0 | Y88: =IF($A88>0,SUMIF('Age profile (years)'!$CT88:$GF88,"<" & T88+0.5,'Asset data'!$CX88:$GJ88)-X88-W88,0) -> 0 | Z88: =IF($A88>0,SUMIF('Age profile (years)'!$CT88:$GF88,"<" & U88+0.5,'Asset data'!$CX88:$GJ88)-Y88-X88-W88,0) -> 0 | AA88: 0 | AB88: 0 | AC88: 0 | AD88: 0 | AE88: 0 | AF88: 0 | AI88: =IF($A88>0,'RRR hist-forc'!K88,0) -> 0 | AJ88: 0
A89: ='Asset data'!A89 -> 0 | B89: ='Asset data'!B89 -> 0 | C89: ='Asset data'!C89 -> 0 | D89: ='Asset data'!E89 -> POLE MOUNTED ; > 22 kV ; < = 60 kVA | E89: 0 | F89: =IF(A89>0,SUM('Asset data'!J89:CV89),0) -> 0 | G89: =IF(A89>0,'Asset data'!F89,0) -> 0 | H89: =IF(A89>0,SUM('Asset data'!CX89:GJ89),0) -> 0 | I89: 0 | J89: 0 | K89: 0 | L89: 0 | M89: =IF($A89>0,SUMPRODUCT('Age profile (years)'!$CT89:$GF89,'Asset data'!$CX89:$GJ89)/H89-0.5,0) -> 0 | N89: 0 | O89: =IF($A89>0,'Asset data'!G89,0) -> 0 | P89: 0 | Q89: 0 | R89: 0 | S89: 0 | T89: 0 | U89: 0 | W89: =IF($A89>0,SUMIF('Age profile (years)'!$CT89:$GF89,"<" & R89+0.5,'Asset data'!$CX89:$GJ89),0) -> 0 | X89: =IF($A89>0,SUMIF('Age profile (years)'!$CT89:$GF89,"<" & S89+0.5,'Asset data'!$CX89:$GJ89)-W89,0) -> 0 | Y89: =IF($A89>0,SUMIF('Age profile (years)'!$CT89:$GF89,"<" & T89+0.5,'Asset data'!$CX89:$GJ89)-X89-W89,0) -> 0 | Z89: =IF($A89>0,SUMIF('Age profile (years)'!$CT89:$GF89,"<" & U89+0.5,'Asset data'!$CX89:$GJ89)-Y89-X89-W89,0) -> 0 | AA89: 0 | AB89: 0 | AC89: 0 | AD89: 0 | AE89: 0 | AF89: 0 | AI89: =IF($A89>0,'RRR hist-forc'!K89,0) -> 0 | AJ89: 0
A90: ='Asset data'!A90 -> 0 | B90: ='Asset data'!B90 -> 0 | C90: ='Asset data'!C90 -> 0 | D90: ='Asset data'!E90 -> POLE MOUNTED ; > 22 kV ; > 60 kVA AND < = 600 kVA | E90: 0 | F90: =IF(A90>0,SUM('Asset data'!J90:CV90),0) -> 0 | G90: =IF(A90>0,'Asset data'!F90,0) -> 0 | H90: =IF(A90>0,SUM('Asset data'!CX90:GJ90),0) -> 0 | I90: 0 | J90: 0 | K90: 0 | L90: 0 | M90: =IF($A90>0,SUMPRODUCT('Age profile (years)'!$CT90:$GF90,'Asset data'!$CX90:$GJ90)/H90-0.5,0) -> 0 | N90: 0 | O90: =IF($A90>0,'Asset data'!G90,0) -> 0 | P90: 0 | Q90: 0 | R90: 0 | S90: 0 | T90: 0 | U90: 0 | W90: =IF($A90>0,SUMIF('Age profile (years)'!$CT90:$GF90,"<" & R90+0.5,'Asset data'!$CX90:$GJ90),0) -> 0 | X90: =IF($A90>0,SUMIF('Age profile (years)'!$CT90:$GF90,"<" & S90+0.5,'Asset data'!$CX90:$GJ90)-W90,0) -> 0 | Y90: =IF($A90>0,SUMIF('Age profile (years)'!$CT90:$GF90,"<" & T90+0.5,'Asset data'!$CX90:$GJ90)-X90-W90,0) -> 0 | Z90: =IF($A90>0,SUMIF('Age profile (years)'!$CT90:$GF90,"<" & U90+0.5,'Asset data'!$CX90:$GJ90)-Y90-X90-W90,0) -> 0 | AA90: 0 | AB90: 0 | AC90: 0 | AD90: 0 | AE90: 0 | AF90: 0 | AI90: =IF($A90>0,'RRR hist-forc'!K90,0) -> 0 | AJ90: 0
A91: ='Asset data'!A91 -> 0 | B91: ='Asset data'!B91 -> 0 | C91: ='Asset data'!C91 -> 0 | D91: ='Asset data'!E91 -> POLE MOUNTED ; > 22 kV ; > 600 kVA | E91: 0 | F91: =IF(A91>0,SUM('Asset data'!J91:CV91),0) -> 0 | G91: =IF(A91>0,'Asset data'!F91,0) -> 0 | H91: =IF(A91>0,SUM('Asset data'!CX91:GJ91),0) -> 0 | I91: 0 | J91: 0 | K91: 0 | L91: 0 | M91: =IF($A91>0,SUMPRODUCT('Age profile (years)'!$CT91:$GF91,'Asset data'!$CX91:$GJ91)/H91-0.5,0) -> 0 | N91: 0 | O91: =IF($A91>0,'Asset data'!G91,0) -> 0 | P91: 0 | Q91: 0 | R91: 0 | S91: 0 | T91: 0 | U91: 0 | W91: =IF($A91>0,SUMIF('Age profile (years)'!$CT91:$GF91,"<" & R91+0.5,'Asset data'!$CX91:$GJ91),0) -> 0 | X91: =IF($A91>0,SUMIF('Age profile (years)'!$CT91:$GF91,"<" & S91+0.5,'Asset data'!$CX91:$GJ91)-W91,0) -> 0 | Y91: =IF($A91>0,SUMIF('Age profile (years)'!$CT91:$GF91,"<" & T91+0.5,'Asset data'!$CX91:$GJ91)-X91-W91,0) -> 0 | Z91: =IF($A91>0,SUMIF('Age profile (years)'!$CT91:$GF91,"<" & U91+0.5,'Asset data'!$CX91:$GJ91)-Y91-X91-W91,0) -> 0 | AA91: 0 | AB91: 0 | AC91: 0 | AD91: 0 | AE91: 0 | AF91: 0 | AI91: =IF($A91>0,'RRR hist-forc'!K91,0) -> 0 | AJ91: 0
A92: ='Asset data'!A92 -> 5 | B92: ='Asset data'!B92 -> 0 | C92: ='Asset data'!C92 -> 0 | D92: ='Asset data'!E92 -> KIOSK MOUNTED ; < = 22kV ; < = 60 kVA ; SINGLE PHASE | E92: TRANSFORMERS | F92: =IF(A92>0,SUM('Asset data'!J92:CV92),0) -> 1 | G92: =IF(A92>0,'Asset data'!F92,0) -> 1.729225911 | H92: =IF(A92>0,SUM('Asset data'!CX92:GJ92),0) -> 1.729225911 | I92: 1.039367634e-07 | J92: 65 | K92: 7.876945066e-07 | L92: 1.729225911 | M92: =IF($A92>0,SUMPRODUCT('Age profile (years)'!$CT92:$GF92,'Asset data'!$CX92:$GJ92)/H92-0.5,0) -> 20.5 | N92: 35.44913117 | O92: =IF($A92>0,'Asset data'!G92,0) -> 36.29 | P92: 62.75360831 | Q92: 0.4351060898 | R92: 3.629 | S92: 7.258 | T92: 21.774 | U92: 29.032 | W92: =IF($A92>0,SUMIF('Age profile (years)'!$CT92:$GF92,"<" & R92+0.5,'Asset data'!$CX92:$GJ92),0) -> 0 | X92: =IF($A92>0,SUMIF('Age profile (years)'!$CT92:$GF92,"<" & S92+0.5,'Asset data'!$CX92:$GJ92)-W92,0) -> 0 | Y92: =IF($A92>0,SUMIF('Age profile (years)'!$CT92:$GF92,"<" & T92+0.5,'Asset data'!$CX92:$GJ92)-X92-W92,0) -> 1.729225911 | Z92: =IF($A92>0,SUMIF('Age profile (years)'!$CT92:$GF92,"<" & U92+0.5,'Asset data'!$CX92:$GJ92)-Y92-X92-W92,0) -> 0 | AA92: 0 | AB92: 0 | AC92: 0 | AD92: 1 | AE92: 0 | AF92: 0 | AI92: =IF($A92>0,'RRR hist-forc'!K92,0) -> 36.29 | AJ92: 62.75360831
A93: ='Asset data'!A93 -> 5 | B93: ='Asset data'!B93 -> 0 | C93: ='Asset data'!C93 -> 0 | D93: ='Asset data'!E93 -> KIOSK MOUNTED ; < = 22kV ; > 60 kVA AND < = 600 kVA ; SINGLE PHASE | E93: TRANSFORMERS | F93: =IF(A93>0,SUM('Asset data'!J93:CV93),0) -> 14 | G93: =IF(A93>0,'Asset data'!F93,0) -> 35.37935344 | H93: =IF(A93>0,SUM('Asset data'!CX93:GJ93),0) -> 495.3109481 | I93: 2.977113431e-05 | J93: 55 | K93: 0.0002256233326 | L93: 35.37935344 | M93: =IF($A93>0,SUMPRODUCT('Age profile (years)'!$CT93:$GF93,'Asset data'!$CX93:$GJ93)/H93-0.5,0) -> 12.78571429 | N93: 6332.904265 | O93: =IF($A93>0,'Asset data'!G93,0) -> 36.29 | P93: 17974.83431 | Q93: 0.6476794079 | R93: 3.629 | S93: 7.258 | T93: 21.774 | U93: 29.032 | W93: =IF($A93>0,SUMIF('Age profile (years)'!$CT93:$GF93,"<" & R93+0.5,'Asset data'!$CX93:$GJ93),0) -> 35.37935344 | X93: =IF($A93>0,SUMIF('Age profile (years)'!$CT93:$GF93,"<" & S93+0.5,'Asset data'!$CX93:$GJ93)-W93,0) -> 106.1380603 | Y93: =IF($A93>0,SUMIF('Age profile (years)'!$CT93:$GF93,"<" & T93+0.5,'Asset data'!$CX93:$GJ93)-X93-W93,0) -> 353.7935344 | Z93: =IF($A93>0,SUMIF('Age profile (years)'!$CT93:$GF93,"<" & U93+0.5,'Asset data'!$CX93:$GJ93)-Y93-X93-W93,0) -> 0 | AA93: 0 | AB93: 0.07142857143 | AC93: 0.2142857143 | AD93: 0.7142857143 | AE93: 0 | AF93: 0 | AI93: =IF($A93>0,'RRR hist-forc'!K93,0) -> 36.29 | AJ93: 17974.83431
A94: ='Asset data'!A94 -> 0 | B94: ='Asset data'!B94 -> 0 | C94: ='Asset data'!C94 -> 0 | D94: ='Asset data'!E94 -> KIOSK MOUNTED ; < = 22kV ; > 600 kVA ; SINGLE PHASE | E94: 0 | F94: =IF(A94>0,SUM('Asset data'!J94:CV94),0) -> 0 | G94: =IF(A94>0,'Asset data'!F94,0) -> 0 | H94: =IF(A94>0,SUM('Asset data'!CX94:GJ94),0) -> 0 | I94: 0 | J94: 0 | K94: 0 | L94: 0 | M94: =IF($A94>0,SUMPRODUCT('Age profile (years)'!$CT94:$GF94,'Asset data'!$CX94:$GJ94)/H94-0.5,0) -> 0 | N94: 0 | O94: =IF($A94>0,'Asset data'!G94,0) -> 0 | P94: 0 | Q94: 0 | R94: 0 | S94: 0 | T94: 0 | U94: 0 | W94: =IF($A94>0,SUMIF('Age profile (years)'!$CT94:$GF94,"<" & R94+0.5,'Asset data'!$CX94:$GJ94),0) -> 0 | X94: =IF($A94>0,SUMIF('Age profile (years)'!$CT94:$GF94,"<" & S94+0.5,'Asset data'!$CX94:$GJ94)-W94,0) -> 0 | Y94: =IF($A94>0,SUMIF('Age profile (years)'!$CT94:$GF94,"<" & T94+0.5,'Asset data'!$CX94:$GJ94)-X94-W94,0) -> 0 | Z94: =IF($A94>0,SUMIF('Age profile (years)'!$CT94:$GF94,"<" & U94+0.5,'Asset data'!$CX94:$GJ94)-Y94-X94-W94,0) -> 0 | AA94: 0 | AB94: 0 | AC94: 0 | AD94: 0 | AE94: 0 | AF94: 0 | AI94: =IF($A94>0,'RRR hist-forc'!K94,0) -> 0 | AJ94: 0
A95: ='Asset data'!A95 -> 0 | B95: ='Asset data'!B95 -> 0 | C95: ='Asset data'!C95 -> 0 | D95: ='Asset data'!E95 -> KIOSK MOUNTED ; < = 22kV ; < = 60 kVA ; MULTIPLE PHASE | E95: 0 | F95: =IF(A95>0,SUM('Asset data'!J95:CV95),0) -> 0 | G95: =IF(A95>0,'Asset data'!F95,0) -> 0 | H95: =IF(A95>0,SUM('Asset data'!CX95:GJ95),0) -> 0 | I95: 0 | J95: 0 | K95: 0 | L95: 0 | M95: =IF($A95>0,SUMPRODUCT('Age profile (years)'!$CT95:$GF95,'Asset data'!$CX95:$GJ95)/H95-0.5,0) -> 0 | N95: 0 | O95: =IF($A95>0,'Asset data'!G95,0) -> 0 | P95: 0 | Q95: 0 | R95: 0 | S95: 0 | T95: 0 | U95: 0 | W95: =IF($A95>0,SUMIF('Age profile (years)'!$CT95:$GF95,"<" & R95+0.5,'Asset data'!$CX95:$GJ95),0) -> 0 | X95: =IF($A95>0,SUMIF('Age profile (years)'!$CT95:$GF95,"<" & S95+0.5,'Asset data'!$CX95:$GJ95)-W95,0) -> 0 | Y95: =IF($A95>0,SUMIF('Age profile (years)'!$CT95:$GF95,"<" & T95+0.5,'Asset data'!$CX95:$GJ95)-X95-W95,0) -> 0 | Z95: =IF($A95>0,SUMIF('Age profile (years)'!$CT95:$GF95,"<" & U95+0.5,'Asset data'!$CX95:$GJ95)-Y95-X95-W95,0) -> 0 | AA95: 0 | AB95: 0 | AC95: 0 | AD95: 0 | AE95: 0 | AF95: 0 | AI95: =IF($A95>0,'RRR hist-forc'!K95,0) -> 0 | AJ95: 0
A96: ='Asset data'!A96 -> 5 | B96: ='Asset data'!B96 -> 0 | C96: ='Asset data'!C96 -> 0 | D96: ='Asset data'!E96 -> KIOSK MOUNTED ; < = 22kV ; > 60 kVA AND < = 600 kVA ; MULTIPLE PHASE | E96: TRANSFORMERS | F96: =IF(A96>0,SUM('Asset data'!J96:CV96),0) -> 7466 | G96: =IF(A96>0,'Asset data'!F96,0) -> 37.67968809 | H96: =IF(A96>0,SUM('Asset data'!CX96:GJ96),0) -> 281316.5513 | I96: 0.01690879813 | J96: 15 | K96: 0.128144912 | L96: 37.67968809 | M96: =IF($A96>0,SUMPRODUCT('Age profile (years)'!$CT96:$GF96,'Asset data'!$CX96:$GJ96)/H96-0.5,0) -> 30.55826413 | N96: 8596545.479 | O96: =IF($A96>0,'Asset data'!G96,0) -> 55.35723661 | P96: 15572906.89 | Q96: 0.4479806797 | R96: 5.535723661 | S96: 11.07144732 | T96: 33.21434197 | U96: 44.28578929 | W96: =IF($A96>0,SUMIF('Age profile (years)'!$CT96:$GF96,"<" & R96+0.5,'Asset data'!$CX96:$GJ96),0) -> 7611.296995 | X96: =IF($A96>0,SUMIF('Age profile (years)'!$CT96:$GF96,"<" & S96+0.5,'Asset data'!$CX96:$GJ96)-W96,0) -> 12924.13302 | Y96: =IF($A96>0,SUMIF('Age profile (years)'!$CT96:$GF96,"<" & T96+0.5,'Asset data'!$CX96:$GJ96)-X96-W96,0) -> 131464.4318 | Z96: =IF($A96>0,SUMIF('Age profile (years)'!$CT96:$GF96,"<" & U96+0.5,'Asset data'!$CX96:$GJ96)-Y96-X96-W96,0) -> 55765.93838 | AA96: 73550.75116 | AB96: 0.02705598714 | AC96: 0.04594160193 | AD96: 0.4673185106 | AE96: 0.198231985 | AF96: 0.2614519153 | AI96: =IF($A96>0,'RRR hist-forc'!K96,0) -> 55.35723661 | AJ96: 15572906.89
A97: ='Asset data'!A97 -> 5 | B97: ='Asset data'!B97 -> 0 | C97: ='Asset data'!C97 -> 0 | D97: ='Asset data'!E97 -> KIOSK MOUNTED ; < = 22kV ; > 600 kVA ; MULTIPLE PHASE | E97: TRANSFORMERS | F97: =IF(A97>0,SUM('Asset data'!J97:CV97),0) -> 4131 | G97: =IF(A97>0,'Asset data'!F97,0) -> 74.5247988 | H97: =IF(A97>0,SUM('Asset data'!CX97:GJ97),0) -> 307861.9438 | I97: 0.01850433412 | J97: 14 | K97: 0.1402368311 | L97: 74.5247988 | M97: =IF($A97>0,SUMPRODUCT('Age profile (years)'!$CT97:$GF97,'Asset data'!$CX97:$GJ97)/H97-0.5,0) -> 28.28721859 | N97: 8708558.102 | O97: =IF($A97>0,'Asset data'!G97,0) -> 38.16544268 | P97: 11749687.37 | Q97: 0.2588263988 | R97: 3.816544268 | S97: 7.633088535 | T97: 22.89926561 | U97: 30.53235414 | W97: =IF($A97>0,SUMIF('Age profile (years)'!$CT97:$GF97,"<" & R97+0.5,'Asset data'!$CX97:$GJ97),0) -> 3651.715141 | X97: =IF($A97>0,SUMIF('Age profile (years)'!$CT97:$GF97,"<" & S97+0.5,'Asset data'!$CX97:$GJ97)-W97,0) -> 4918.636721 | Y97: =IF($A97>0,SUMIF('Age profile (years)'!$CT97:$GF97,"<" & T97+0.5,'Asset data'!$CX97:$GJ97)-X97-W97,0) -> 68041.14131 | Z97: =IF($A97>0,SUMIF('Age profile (years)'!$CT97:$GF97,"<" & U97+0.5,'Asset data'!$CX97:$GJ97)-Y97-X97-W97,0) -> 71692.85645 | AA97: 159557.5942 | AB97: 0.01186153474 | AC97: 0.01597676107 | AD97: 0.2210118615 | AE97: 0.2328733963 | AF97: 0.5182764464 | AI97: =IF($A97>0,'RRR hist-forc'!K97,0) -> 38.16544268 | AJ97: 11749687.37
A98: ='Asset data'!A98 -> 0 | B98: ='Asset data'!B98 -> 0 | C98: ='Asset data'!C98 -> 0 | D98: ='Asset data'!E98 -> KIOSK MOUNTED ; > 22 kV ; < = 60 kVA | E98: 0 | F98: =IF(A98>0,SUM('Asset data'!J98:CV98),0) -> 0 | G98: =IF(A98>0,'Asset data'!F98,0) -> 0 | H98: =IF(A98>0,SUM('Asset data'!CX98:GJ98),0) -> 0 | I98: 0 | J98: 0 | K98: 0 | L98: 0 | M98: =IF($A98>0,SUMPRODUCT('Age profile (years)'!$CT98:$GF98,'Asset data'!$CX98:$GJ98)/H98-0.5,0) -> 0 | N98: 0 | O98: =IF($A98>0,'Asset data'!G98,0) -> 0 | P98: 0 | Q98: 0 | R98: 0 | S98: 0 | T98: 0 | U98: 0 | W98: =IF($A98>0,SUMIF('Age profile (years)'!$CT98:$GF98,"<" & R98+0.5,'Asset data'!$CX98:$GJ98),0) -> 0 | X98: =IF($A98>0,SUMIF('Age profile (years)'!$CT98:$GF98,"<" & S98+0.5,'Asset data'!$CX98:$GJ98)-W98,0) -> 0 | Y98: =IF($A98>0,SUMIF('Age profile (years)'!$CT98:$GF98,"<" & T98+0.5,'Asset data'!$CX98:$GJ98)-X98-W98,0) -> 0 | Z98: =IF($A98>0,SUMIF('Age profile (years)'!$CT98:$GF98,"<" & U98+0.5,'Asset data'!$CX98:$GJ98)-Y98-X98-W98,0) -> 0 | AA98: 0 | AB98: 0 | AC98: 0 | AD98: 0 | AE98: 0 | AF98: 0 | AI98: =IF($A98>0,'RRR hist-forc'!K98,0) -> 0 | AJ98: 0
A99: ='Asset data'!A99 -> 0 | B99: ='Asset data'!B99 -> 0 | C99: ='Asset data'!C99 -> 0 | D99: ='Asset data'!E99 -> KIOSK MOUNTED ; > 22 kV ; > 60 kVA AND < = 600 kVA | E99: 0 | F99: =IF(A99>0,SUM('Asset data'!J99:CV99),0) -> 0 | G99: =IF(A99>0,'Asset data'!F99,0) -> 0 | H99: =IF(A99>0,SUM('Asset data'!CX99:GJ99),0) -> 0 | I99: 0 | J99: 0 | K99: 0 | L99: 0 | M99: =IF($A99>0,SUMPRODUCT('Age profile (years)'!$CT99:$GF99,'Asset data'!$CX99:$GJ99)/H99-0.5,0) -> 0 | N99: 0 | O99: =IF($A99>0,'Asset data'!G99,0) -> 0 | P99: 0 | Q99: 0 | R99: 0 | S99: 0 | T99: 0 | U99: 0 | W99: =IF($A99>0,SUMIF('Age profile (years)'!$CT99:$GF99,"<" & R99+0.5,'Asset data'!$CX99:$GJ99),0) -> 0 | X99: =IF($A99>0,SUMIF('Age profile (years)'!$CT99:$GF99,"<" & S99+0.5,'Asset data'!$CX99:$GJ99)-W99,0) -> 0 | Y99: =IF($A99>0,SUMIF('Age profile (years)'!$CT99:$GF99,"<" & T99+0.5,'Asset data'!$CX99:$GJ99)-X99-W99,0) -> 0 | Z99: =IF($A99>0,SUMIF('Age profile (years)'!$CT99:$GF99,"<" & U99+0.5,'Asset data'!$CX99:$GJ99)-Y99-X99-W99,0) -> 0 | AA99: 0 | AB99: 0 | AC99: 0 | AD99: 0 | AE99: 0 | AF99: 0 | AI99: =IF($A99>0,'RRR hist-forc'!K99,0) -> 0 | AJ99: 0
A100: ='Asset data'!A100 -> 5 | B100: ='Asset data'!B100 -> 0 | C100: ='Asset data'!C100 -> 0 | D100: ='Asset data'!E100 -> KIOSK MOUNTED ; > 22 kV ; > 600 kVA | E100: TRANSFORMERS | F100: =IF(A100>0,SUM('Asset data'!J100:CV100),0) -> 1 | G100: =IF(A100>0,'Asset data'!F100,0) -> 35.37935344 | H100: =IF(A100>0,SUM('Asset data'!CX100:GJ100),0) -> 35.37935344 | I100: 2.126509593e-06 | J100: 63 | K100: 1.611595233e-05 | L100: 35.37935344 | M100: =IF($A100>0,SUMPRODUCT('Age profile (years)'!$CT100:$GF100,'Asset data'!$CX100:$GJ100)/H100-0.5,0) -> 34.5 | N100: 1220.587694 | O100: =IF($A100>0,'Asset data'!G100,0) -> 36.29 | P100: 1283.916736 | Q100: 0.04932488289 | R100: 3.629 | S100: 7.258 | T100: 21.774 | U100: =IF($A100>0,$O100-U$4*$O100,0) -> 29.032 | W100: =IF($A100>0,SUMIF('Age profile (years)'!$CT100:$GF100,"<" & R100+0.5,'Asset data'!$CX100:$GJ100),0) -> 0 | X100: =IF($A100>0,SUMIF('Age profile (years)'!$CT100:$GF100,"<" & S100+0.5,'Asset data'!$CX100:$GJ100)-W100,0) -> 0 | Y100: =IF($A100>0,SUMIF('Age profile (years)'!$CT100:$GF100,"<" & T100+0.5,'Asset data'!$CX100:$GJ100)-X100-W100,0) -> 0 | Z100: =IF($A100>0,SUMIF('Age profile (years)'!$CT100:$GF100,"<" & U100+0.5,'Asset data'!$CX100:$GJ100)-Y100-X100-W100,0) -> 0 | AA100: 35.37935344 | AB100: 0 | AC100: 0 | AD100: 0 | AE100: 0 | AF100: 1 | AI100: =IF($A100>0,'RRR hist-forc'!K100,0) -> 36.29 | AJ100: 1283.916736
A101: ='Asset data'!A101 -> 0 | B101: ='Asset data'!B101 -> 0 | C101: ='Asset data'!C101 -> 0 | D101: ='Asset data'!E101 -> KIOSK MOUNTED ; > 22 kV ; < = 60 kVA | E101: 0 | F101: =IF(A101>0,SUM('Asset data'!J101:CV101),0) -> 0 | G101: =IF(A101>0,'Asset data'!F101,0) -> 0 | H101: =IF(A101>0,SUM('Asset data'!CX101:GJ101),0) -> 0 | I101: 0 | J101: 0 | K101: 0 | L101: 0 | M101: =IF($A101>0,SUMPRODUCT('Age profile (years)'!$CT101:$GF101,'Asset data'!$CX101:$GJ101)/H101-0.5,0) -> 0 | N101: 0 | O101: =IF($A101>0,'Asset data'!G101,0) -> 0 | P101: 0 | Q101: 0 | R101: 0 | S101: 0 | T101: 0 | U101: 0 | W101: =IF($A101>0,SUMIF('Age profile (years)'!$CT101:$GF101,"<" & R101+0.5,'Asset data'!$CX101:$GJ101),0) -> 0 | X101: =IF($A101>0,SUMIF('Age profile (years)'!$CT101:$GF101,"<" & S101+0.5,'Asset data'!$CX101:$GJ101)-W101,0) -> 0 | Y101: =IF($A101>0,SUMIF('Age profile (years)'!$CT101:$GF101,"<" & T101+0.5,'Asset data'!$CX101:$GJ101)-X101-W101,0) -> 0 | Z101: =IF($A101>0,SUMIF('Age profile (years)'!$CT101:$GF101,"<" & U101+0.5,'Asset data'!$CX101:$GJ101)-Y101-X101-W101,0) -> 0 | AA101: 0 | AB101: 0 | AC101: 0 | AD101: 0 | AE101: 0 | AF101: 0 | AI101: =IF($A101>0,'RRR hist-forc'!K101,0) -> 0 | AJ101: 0
A102: ='Asset data'!A102 -> 0 | B102: ='Asset data'!B102 -> 0 | C102: ='Asset data'!C102 -> 0 | D102: ='Asset data'!E102 -> KIOSK MOUNTED ; > 22 kV ; > 60 kVA AND < = 600 kVA | E102: 0 | F102: =IF(A102>0,SUM('Asset data'!J102:CV102),0) -> 0 | G102: =IF(A102>0,'Asset data'!F102,0) -> 0 | H102: =IF(A102>0,SUM('Asset data'!CX102:GJ102),0) -> 0 | I102: 0 | J102: 0 | K102: 0 | L102: 0 | M102: =IF($A102>0,SUMPRODUCT('Age profile (years)'!$CT102:$GF102,'Asset data'!$CX102:$GJ102)/H102-0.5,0) -> 0 | N102: 0 | O102: =IF($A102>0,'Asset data'!G102,0) -> 0 | P102: 0 | Q102: 0 | R102: 0 | S102: 0 | T102: 0 | U102: 0 | W102: =IF($A102>0,SUMIF('Age profile (years)'!$CT102:$GF102,"<" & R102+0.5,'Asset data'!$CX102:$GJ102),0) -> 0 | X102: =IF($A102>0,SUMIF('Age profile (years)'!$CT102:$GF102,"<" & S102+0.5,'Asset data'!$CX102:$GJ102)-W102,0) -> 0 | Y102: =IF($A102>0,SUMIF('Age profile (years)'!$CT102:$GF102,"<" & T102+0.5,'Asset data'!$CX102:$GJ102)-X102-W102,0) -> 0 | Z102: =IF($A102>0,SUMIF('Age profile (years)'!$CT102:$GF102,"<" & U102+0.5,'Asset data'!$CX102:$GJ102)-Y102-X102-W102,0) -> 0 | AA102: 0 | AB102: 0 | AC102: 0 | AD102: 0 | AE102: 0 | AF102: 0 | AI102: =IF($A102>0,'RRR hist-forc'!K102,0) -> 0 | AJ102: 0
A103: ='Asset data'!A103 -> 0 | B103: ='Asset data'!B103 -> 0 | C103: ='Asset data'!C103 -> 0 | D103: ='Asset data'!E103 -> KIOSK MOUNTED ; > 22 kV ; > 600 kVA | E103: 0 | F103: =IF(A103>0,SUM('Asset data'!J103:CV103),0) -> 0 | G103: =IF(A103>0,'Asset data'!F103,0) -> 0 | H103: =IF(A103>0,SUM('Asset data'!CX103:GJ103),0) -> 0 | I103: 0 | J103: 0 | K103: 0 | L103: 0 | M103: =IF($A103>0,SUMPRODUCT('Age profile (years)'!$CT103:$GF103,'Asset data'!$CX103:$GJ103)/H103-0.5,0) -> 0 | N103: 0 | O103: =IF($A103>0,'Asset data'!G103,0) -> 0 | P103: 0 | Q103: 0 | R103: 0 | S103: 0 | T103: 0 | U103: 0 | W103: =IF($A103>0,SUMIF('Age profile (years)'!$CT103:$GF103,"<" & R103+0.5,'Asset data'!$CX103:$GJ103),0) -> 0 | X103: =IF($A103>0,SUMIF('Age profile (years)'!$CT103:$GF103,"<" & S103+0.5,'Asset data'!$CX103:$GJ103)-W103,0) -> 0 | Y103: =IF($A103>0,SUMIF('Age profile (years)'!$CT103:$GF103,"<" & T103+0.5,'Asset data'!$CX103:$GJ103)-X103-W103,0) -> 0 | Z103: =IF($A103>0,SUMIF('Age profile (years)'!$CT103:$GF103,"<" & U103+0.5,'Asset data'!$CX103:$GJ103)-Y103-X103-W103,0) -> 0 | AA103: 0 | AB103: 0 | AC103: 0 | AD103: 0 | AE103: 0 | AF103: 0 | AI103: =IF($A103>0,'RRR hist-forc'!K103,0) -> 0 | AJ103: 0
A104: ='Asset data'!A104 -> 0 | B104: ='Asset data'!B104 -> 0 | C104: ='Asset data'!C104 -> 0 | D104: ='Asset data'!E104 -> GROUND OUTDOOR / INDOOR CHAMBER MOUNTED ; ˂ 22 kV ; < = 60 kVA ; SINGLE PHASE | E104: 0 | F104: =IF(A104>0,SUM('Asset data'!J104:CV104),0) -> 0 | G104: =IF(A104>0,'Asset data'!F104,0) -> 0 | H104: =IF(A104>0,SUM('Asset data'!CX104:GJ104),0) -> 0 | I104: 0 | J104: 0 | K104: 0 | L104: 0 | M104: =IF($A104>0,SUMPRODUCT('Age profile (years)'!$CT104:$GF104,'Asset data'!$CX104:$GJ104)/H104-0.5,0) -> 0 | N104: 0 | O104: =IF($A104>0,'Asset data'!G104,0) -> 0 | P104: 0 | Q104: 0 | R104: 0 | S104: 0 | T104: 0 | U104: 0 | W104: =IF($A104>0,SUMIF('Age profile (years)'!$CT104:$GF104,"<" & R104+0.5,'Asset data'!$CX104:$GJ104),0) -> 0 | X104: =IF($A104>0,SUMIF('Age profile (years)'!$CT104:$GF104,"<" & S104+0.5,'Asset data'!$CX104:$GJ104)-W104,0) -> 0 | Y104: =IF($A104>0,SUMIF('Age profile (years)'!$CT104:$GF104,"<" & T104+0.5,'Asset data'!$CX104:$GJ104)-X104-W104,0) -> 0 | Z104: =IF($A104>0,SUMIF('Age profile (years)'!$CT104:$GF104,"<" & U104+0.5,'Asset data'!$CX104:$GJ104)-Y104-X104-W104,0) -> 0 | AA104: 0 | AB104: 0 | AC104: 0 | AD104: 0 | AE104: 0 | AF104: 0 | AI104: =IF($A104>0,'RRR hist-forc'!K104,0) -> 0 | AJ104: 0
A105: ='Asset data'!A105 -> 0 | B105: ='Asset data'!B105 -> 0 | C105: ='Asset data'!C105 -> 0 | D105: ='Asset data'!E105 -> GROUND OUTDOOR / INDOOR CHAMBER MOUNTED ; ˂ 22 kV ; > 60 kVA AND < = 600 kVA ; SINGLE PHASE | E105: 0 | F105: =IF(A105>0,SUM('Asset data'!J105:CV105),0) -> 0 | G105: =IF(A105>0,'Asset data'!F105,0) -> 0 | H105: =IF(A105>0,SUM('Asset data'!CX105:GJ105),0) -> 0 | I105: 0 | J105: 0 | K105: 0 | L105: 0 | M105: =IF($A105>0,SUMPRODUCT('Age profile (years)'!$CT105:$GF105,'Asset data'!$CX105:$GJ105)/H105-0.5,0) -> 0 | N105: 0 | O105: =IF($A105>0,'Asset data'!G105,0) -> 0 | P105: 0 | Q105: 0 | R105: 0 | S105: 0 | T105: 0 | U105: 0 | W105: =IF($A105>0,SUMIF('Age profile (years)'!$CT105:$GF105,"<" & R105+0.5,'Asset data'!$CX105:$GJ105),0) -> 0 | X105: =IF($A105>0,SUMIF('Age profile (years)'!$CT105:$GF105,"<" & S105+0.5,'Asset data'!$CX105:$GJ105)-W105,0) -> 0 | Y105: =IF($A105>0,SUMIF('Age profile (years)'!$CT105:$GF105,"<" & T105+0.5,'Asset data'!$CX105:$GJ105)-X105-W105,0) -> 0 | Z105: =IF($A105>0,SUMIF('Age profile (years)'!$CT105:$GF105,"<" & U105+0.5,'Asset data'!$CX105:$GJ105)-Y105-X105-W105,0) -> 0 | AA105: 0 | AB105: 0 | AC105: 0 | AD105: 0 | AE105: 0 | AF105: 0 | AI105: =IF($A105>0,'RRR hist-forc'!K105,0) -> 0 | AJ105: 0
A106: ='Asset data'!A106 -> 0 | B106: ='Asset data'!B106 -> 0 | C106: ='Asset data'!C106 -> 0 | D106: ='Asset data'!E106 -> GROUND OUTDOOR / INDOOR CHAMBER MOUNTED ; ˂ 22 kV ; > 600 kVA ; SINGLE PHASE | E106: 0 | F106: =IF(A106>0,SUM('Asset data'!J106:CV106),0) -> 0 | G106: =IF(A106>0,'Asset data'!F106,0) -> 0 | H106: =IF(A106>0,SUM('Asset data'!CX106:GJ106),0) -> 0 | I106: 0 | J106: 0 | K106: 0 | L106: 0 | M106: =IF($A106>0,SUMPRODUCT('Age profile (years)'!$CT106:$GF106,'Asset data'!$CX106:$GJ106)/H106-0.5,0) -> 0 | N106: 0 | O106: =IF($A106>0,'Asset data'!G106,0) -> 0 | P106: 0 | Q106: 0 | R106: 0 | S106: 0 | T106: 0 | U106: 0 | W106: =IF($A106>0,SUMIF('Age profile (years)'!$CT106:$GF106,"<" & R106+0.5,'Asset data'!$CX106:$GJ106),0) -> 0 | X106: =IF($A106>0,SUMIF('Age profile (years)'!$CT106:$GF106,"<" & S106+0.5,'Asset data'!$CX106:$GJ106)-W106,0) -> 0 | Y106: =IF($A106>0,SUMIF('Age profile (years)'!$CT106:$GF106,"<" & T106+0.5,'Asset data'!$CX106:$GJ106)-X106-W106,0) -> 0 | Z106: =IF($A106>0,SUMIF('Age profile (years)'!$CT106:$GF106,"<" & U106+0.5,'Asset data'!$CX106:$GJ106)-Y106-X106-W106,0) -> 0 | AA106: 0 | AB106: 0 | AC106: 0 | AD106: 0 | AE106: 0 | AF106: 0 | AI106: =IF($A106>0,'RRR hist-forc'!K106,0) -> 0 | AJ106: 0
A107: ='Asset data'!A107 -> 0 | B107: ='Asset data'!B107 -> 0 | C107: ='Asset data'!C107 -> 0 | D107: ='Asset data'!E107 -> GROUND OUTDOOR / INDOOR CHAMBER MOUNTED ; ˂ 22 kV ; < = 60 kVA ; MULTIPLE PHASE | E107: 0 | F107: =IF(A107>0,SUM('Asset data'!J107:CV107),0) -> 0 | G107: =IF(A107>0,'Asset data'!F107,0) -> 0 | H107: =IF(A107>0,SUM('Asset data'!CX107:GJ107),0) -> 0 | I107: 0 | J107: 0 | K107: 0 | L107: 0 | M107: =IF($A107>0,SUMPRODUCT('Age profile (years)'!$CT107:$GF107,'Asset data'!$CX107:$GJ107)/H107-0.5,0) -> 0 | N107: 0 | O107: =IF($A107>0,'Asset data'!G107,0) -> 0 | P107: 0 | Q107: 0 | R107: 0 | S107: 0 | T107: 0 | U107: 0 | W107: =IF($A107>0,SUMIF('Age profile (years)'!$CT107:$GF107,"<" & R107+0.5,'Asset data'!$CX107:$GJ107),0) -> 0 | X107: =IF($A107>0,SUMIF('Age profile (years)'!$CT107:$GF107,"<" & S107+0.5,'Asset data'!$CX107:$GJ107)-W107,0) -> 0 | Y107: =IF($A107>0,SUMIF('Age profile (years)'!$CT107:$GF107,"<" & T107+0.5,'Asset data'!$CX107:$GJ107)-X107-W107,0) -> 0 | Z107: =IF($A107>0,SUMIF('Age profile (years)'!$CT107:$GF107,"<" & U107+0.5,'Asset data'!$CX107:$GJ107)-Y107-X107-W107,0) -> 0 | AA107: 0 | AB107: 0 | AC107: 0 | AD107: 0 | AE107: 0 | AF107: 0 | AI107: =IF($A107>0,'RRR hist-forc'!K107,0) -> 0 | AJ107: 0
A108: ='Asset data'!A108 -> 5 | B108: ='Asset data'!B108 -> 0 | C108: ='Asset data'!C108 -> 0 | D108: ='Asset data'!E108 -> GROUND OUTDOOR / INDOOR CHAMBER MOUNTED ; ˂ 22 kV ; > 60 kVA AND < = 600 kVA ; MULTIPLE PHASE | E108: TRANSFORMERS | F108: =IF(A108>0,SUM('Asset data'!J108:CV108),0) -> 949 | G108: =IF(A108>0,'Asset data'!F108,0) -> 48.66741272 | H108: =IF(A108>0,SUM('Asset data'!CX108:GJ108),0) -> 46185.37467 | I108: 0.002776015748 | J108: 33 | K108: 0.02103829563 | L108: 48.66741272 | M108: =IF($A108>0,SUMPRODUCT('Age profile (years)'!$CT108:$GF108,'Asset data'!$CX108:$GJ108)/H108-0.5,0) -> 18.23234984 | N108: 842067.9086 | O108: =IF($A108>0,'Asset data'!G108,0) -> 68.79370234 | P108: 3177262.918 | Q108: 0.7349706554 | R108: 6.879370234 | S108: 13.75874047 | T108: 41.27622141 | U108: 55.03496187 | W108: =IF($A108>0,SUMIF('Age profile (years)'!$CT108:$GF108,"<" & R108+0.5,'Asset data'!$CX108:$GJ108),0) -> 11680.17905 | X108: =IF($A108>0,SUMIF('Age profile (years)'!$CT108:$GF108,"<" & S108+0.5,'Asset data'!$CX108:$GJ108)-W108,0) -> 5353.415399 | Y108: =IF($A108>0,SUMIF('Age profile (years)'!$CT108:$GF108,"<" & T108+0.5,'Asset data'!$CX108:$GJ108)-X108-W108,0) -> 26669.74217 | Z108: =IF($A108>0,SUMIF('Age profile (years)'!$CT108:$GF108,"<" & U108+0.5,'Asset data'!$CX108:$GJ108)-Y108-X108-W108,0) -> 924.6808417 | AA108: 1557.357207 | AB108: 0.2528977871 | AC108: 0.1159114858 | AD108: 0.5774499473 | AE108: 0.02002107482 | AF108: 0.03371970495 | AI108: =IF($A108>0,'RRR hist-forc'!K108,0) -> 68.79370234 | AJ108: 3177262.918
A109: ='Asset data'!A109 -> 5 | B109: ='Asset data'!B109 -> 0 | C109: ='Asset data'!C109 -> 0 | D109: ='Asset data'!E109 -> GROUND OUTDOOR / INDOOR CHAMBER MOUNTED ; ˂ 22 kV ; > 600 kVA ; MULTIPLE PHASE | E109: TRANSFORMERS | F109: =IF(A109>0,SUM('Asset data'!J109:CV109),0) -> 3966 | G109: =IF(A109>0,'Asset data'!F109,0) -> 65.73402672 | H109: =IF(A109>0,SUM('Asset data'!CX109:GJ109),0) -> 260701.15 | I109: 0.01566968988 | J109: 16 | K109: 0.1187542139 | L109: 65.73402672 | M109: =IF($A109>0,SUMPRODUCT('Age profile (years)'!$CT109:$GF109,'Asset data'!$CX109:$GJ109)/H109-0.5,0) -> 36.1598588 | N109: 9426916.771 | O109: =IF($A109>0,'Asset data'!G109,0) -> 62.43161415 | P109: 16275993.6 | Q109: 0.4208085232 | R109: 6.243161415 | S109: 12.48632283 | T109: 37.45896849 | U109: 49.94529132 | W109: =IF($A109>0,SUMIF('Age profile (years)'!$CT109:$GF109,"<" & R109+0.5,'Asset data'!$CX109:$GJ109),0) -> 131.4680534 | X109: =IF($A109>0,SUMIF('Age profile (years)'!$CT109:$GF109,"<" & S109+0.5,'Asset data'!$CX109:$GJ109)-W109,0) -> 6244.732538 | Y109: =IF($A109>0,SUMIF('Age profile (years)'!$CT109:$GF109,"<" & T109+0.5,'Asset data'!$CX109:$GJ109)-X109-W109,0) -> 113785.6002 | Z109: =IF($A109>0,SUMIF('Age profile (years)'!$CT109:$GF109,"<" & U109+0.5,'Asset data'!$CX109:$GJ109)-Y109-X109-W109,0) -> 91501.76519 | AA109: 49037.58393 | AB109: 0.0005042864347 | AC109: 0.02395360565 | AD109: 0.4364599092 | AE109: 0.3509833585 | AF109: 0.1880988401 | AI109: =IF($A109>0,'RRR hist-forc'!K109,0) -> 62.43161415 | AJ109: 16275993.6
A110: ='Asset data'!A110 -> 5 | B110: ='Asset data'!B110 -> 0 | C110: ='Asset data'!C110 -> 0 | D110: ='Asset data'!E110 -> GROUND OUTDOOR / INDOOR CHAMBER MOUNTED ; > = 22 kV & < = 33 kV ; < = 15 MVA | E110: TRANSFORMERS | F110: =IF(A110>0,SUM('Asset data'!J110:CV110),0) -> 83 | G110: =IF(A110>0,'Asset data'!F110,0) -> 371.4539227 | H110: =IF(A110>0,SUM('Asset data'!CX110:GJ110),0) -> 30830.67559 | I110: 0.001853106997 | J110: 35 | K110: 0.01404394512 | L110: 371.4539227 | M110: =IF($A110>0,SUMPRODUCT('Age profile (years)'!$CT110:$GF110,'Asset data'!$CX110:$GJ110)/H110-0.5,0) -> 13.10240964 | N110: 403956.141 | O110: =IF($A110>0,'Asset data'!G110,0) -> 61.99645176 | P110: 1911392.492 | Q110: 0.7886587173 | R110: 6.199645176 | S110: 12.39929035 | T110: 37.19787105 | U110: 49.5971614 | W110: =IF($A110>0,SUMIF('Age profile (years)'!$CT110:$GF110,"<" & R110+0.5,'Asset data'!$CX110:$GJ110),0) -> 3714.539227 | X110: =IF($A110>0,SUMIF('Age profile (years)'!$CT110:$GF110,"<" & S110+0.5,'Asset data'!$CX110:$GJ110)-W110,0) -> 11143.61768 | Y110: =IF($A110>0,SUMIF('Age profile (years)'!$CT110:$GF110,"<" & T110+0.5,'Asset data'!$CX110:$GJ110)-X110-W110,0) -> 14858.15691 | Z110: =IF($A110>0,SUMIF('Age profile (years)'!$CT110:$GF110,"<" & U110+0.5,'Asset data'!$CX110:$GJ110)-Y110-X110-W110,0) -> 742.9078455 | AA110: 371.4539227 | AB110: 0.1204819277 | AC110: 0.3614457831 | AD110: 0.4819277108 | AE110: 0.02409638554 | AF110: 0.01204819277 | AI110: =IF($A110>0,'RRR hist-forc'!K110,0) -> 61.99645176 | AJ110: 1911392.492
A111: ='Asset data'!A111 -> 5 | B111: ='Asset data'!B111 -> 0 | C111: ='Asset data'!C111 -> 0 | D111: ='Asset data'!E111 -> GROUND OUTDOOR / INDOOR CHAMBER MOUNTED ; > = 22 kV & < = 33 kV ; > 15 MVA AND < = 40 MVA | E111: TRANSFORMERS | F111: =IF(A111>0,SUM('Asset data'!J111:CV111),0) -> 214 | G111: =IF(A111>0,'Asset data'!F111,0) -> 706.1700463 | H111: =IF(A111>0,SUM('Asset data'!CX111:GJ111),0) -> 151120.3899 | I111: 0.009083234363 | J111: 20 | K111: 0.06883814325 | L111: 706.1700463 | M111: =IF($A111>0,SUMPRODUCT('Age profile (years)'!$CT111:$GF111,'Asset data'!$CX111:$GJ111)/H111-0.5,0) -> 23.56074766 | N111: 3560509.373 | O111: =IF($A111>0,'Asset data'!G111,0) -> 48.23877026 | P111: 7289861.77 | Q111: 0.5115806739 | R111: 4.823877026 | S111: 9.647754053 | T111: 28.94326216 | U111: 38.59101621 | W111: =IF($A111>0,SUMIF('Age profile (years)'!$CT111:$GF111,"<" & R111+0.5,'Asset data'!$CX111:$GJ111),0) -> 43782.54287 | X111: =IF($A111>0,SUMIF('Age profile (years)'!$CT111:$GF111,"<" & S111+0.5,'Asset data'!$CX111:$GJ111)-W111,0) -> 14829.57097 | Y111: =IF($A111>0,SUMIF('Age profile (years)'!$CT111:$GF111,"<" & T111+0.5,'Asset data'!$CX111:$GJ111)-X111-W111,0) -> 13417.23088 | Z111: =IF($A111>0,SUMIF('Age profile (years)'!$CT111:$GF111,"<" & U111+0.5,'Asset data'!$CX111:$GJ111)-Y111-X111-W111,0) -> 19772.7613 | AA111: 59318.28389 | AB111: 0.2897196262 | AC111: 0.09813084112 | AD111: 0.08878504673 | AE111: 0.1308411215 | AF111: 0.3925233645 | AI111: =IF($A111>0,'RRR hist-forc'!K111,0) -> 48.23877026 | AJ111: 7289861.77
A112: ='Asset data'!A112 -> 0 | B112: ='Asset data'!B112 -> 0 | C112: ='Asset data'!C112 -> 0 | D112: ='Asset data'!E112 -> GROUND OUTDOOR / INDOOR CHAMBER MOUNTED ; > = 22 kV & < = 33 kV ; > 40 MVA | E112: 0 | F112: =IF(A112>0,SUM('Asset data'!J112:CV112),0) -> 0 | G112: =IF(A112>0,'Asset data'!F112,0) -> 0 | H112: =IF(A112>0,SUM('Asset data'!CX112:GJ112),0) -> 0 | I112: 0 | J112: 0 | K112: 0 | L112: 0 | M112: =IF($A112>0,SUMPRODUCT('Age profile (years)'!$CT112:$GF112,'Asset data'!$CX112:$GJ112)/H112-0.5,0) -> 0 | N112: 0 | O112: =IF($A112>0,'Asset data'!G112,0) -> 0 | P112: 0 | Q112: 0 | R112: 0 | S112: 0 | T112: 0 | U112: 0 | W112: =IF($A112>0,SUMIF('Age profile (years)'!$CT112:$GF112,"<" & R112+0.5,'Asset data'!$CX112:$GJ112),0) -> 0 | X112: =IF($A112>0,SUMIF('Age profile (years)'!$CT112:$GF112,"<" & S112+0.5,'Asset data'!$CX112:$GJ112)-W112,0) -> 0 | Y112: =IF($A112>0,SUMIF('Age profile (years)'!$CT112:$GF112,"<" & T112+0.5,'Asset data'!$CX112:$GJ112)-X112-W112,0) -> 0 | Z112: =IF($A112>0,SUMIF('Age profile (years)'!$CT112:$GF112,"<" & U112+0.5,'Asset data'!$CX112:$GJ112)-Y112-X112-W112,0) -> 0 | AA112: 0 | AB112: 0 | AC112: 0 | AD112: 0 | AE112: 0 | AF112: 0 | AI112: =IF($A112>0,'RRR hist-forc'!K112,0) -> 0 | AJ112: 0
A113: ='Asset data'!A113 -> 5 | B113: ='Asset data'!B113 -> 0 | C113: ='Asset data'!C113 -> 0 | D113: ='Asset data'!E113 -> GROUND OUTDOOR / INDOOR CHAMBER MOUNTED ; > 33 kV & < = 66 kV ; < = 15 MVA | E113: TRANSFORMERS | F113: =IF(A113>0,SUM('Asset data'!J113:CV113),0) -> 13 | G113: =IF(A113>0,'Asset data'!F113,0) -> 1041.561122 | H113: =IF(A113>0,SUM('Asset data'!CX113:GJ113),0) -> 13540.29459 | I113: 0.0008138522485 | J113: 42 | K113: 0.006167855571 | L113: 1041.561122 | M113: =IF($A113>0,SUMPRODUCT('Age profile (years)'!$CT113:$GF113,'Asset data'!$CX113:$GJ113)/H113-0.5,0) -> 30.03846154 | N113: 406729.6183 | O113: =IF($A113>0,'Asset data'!G113,0) -> 65.77612965 | P113: 890628.1725 | Q113: 0.5433227571 | R113: 6.577612965 | S113: 13.15522593 | T113: 39.46567779 | U113: 52.62090372 | W113: =IF($A113>0,SUMIF('Age profile (years)'!$CT113:$GF113,"<" & R113+0.5,'Asset data'!$CX113:$GJ113),0) -> 0 | X113: =IF($A113>0,SUMIF('Age profile (years)'!$CT113:$GF113,"<" & S113+0.5,'Asset data'!$CX113:$GJ113)-W113,0) -> 1041.561122 | Y113: =IF($A113>0,SUMIF('Age profile (years)'!$CT113:$GF113,"<" & T113+0.5,'Asset data'!$CX113:$GJ113)-X113-W113,0) -> 9374.050102 | Z113: =IF($A113>0,SUMIF('Age profile (years)'!$CT113:$GF113,"<" & U113+0.5,'Asset data'!$CX113:$GJ113)-Y113-X113-W113,0) -> -4.547473509e-13 | AA113: 3124.683367 | AB113: 0 | AC113: 0.07692307692 | AD113: 0.6923076923 | AE113: -3.358474572e-17 | AF113: 0.2307692308 | AI113: =IF($A113>0,'RRR hist-forc'!K113,0) -> 65.77612965 | AJ113: 890628.1725
A114: ='Asset data'!A114 -> 5 | B114: ='Asset data'!B114 -> 0 | C114: ='Asset data'!C114 -> 0 | D114: ='Asset data'!E114 -> GROUND OUTDOOR / INDOOR CHAMBER MOUNTED ; > 33 kV & < = 66 kV ; > 15 MVA AND < = 40 MVA | E114: TRANSFORMERS | F114: =IF(A114>0,SUM('Asset data'!J114:CV114),0) -> 38 | G114: =IF(A114>0,'Asset data'!F114,0) -> 1417.405535 | H114: =IF(A114>0,SUM('Asset data'!CX114:GJ114),0) -> 53861.41031 | I114: 0.003237391151 | J114: 32 | K114: 0.02453487237 | L114: 1417.405535 | M114: =IF($A114>0,SUMPRODUCT('Age profile (years)'!$CT114:$GF114,'Asset data'!$CX114:$GJ114)/H114-0.5,0) -> 24.18421053 | N114: 1302595.686 | O114: =IF($A114>0,'Asset data'!G114,0) -> 41.85104957 | P114: 2254156.553 | Q114: 0.4221361047 | R114: 4.185104957 | S114: 8.370209913 | T114: 25.11062974 | U114: 33.48083965 | W114: =IF($A114>0,SUMIF('Age profile (years)'!$CT114:$GF114,"<" & R114+0.5,'Asset data'!$CX114:$GJ114),0) -> 8504.433207 | X114: =IF($A114>0,SUMIF('Age profile (years)'!$CT114:$GF114,"<" & S114+0.5,'Asset data'!$CX114:$GJ114)-W114,0) -> 4252.216604 | Y114: =IF($A114>0,SUMIF('Age profile (years)'!$CT114:$GF114,"<" & T114+0.5,'Asset data'!$CX114:$GJ114)-X114-W114,0) -> 8504.433207 | Z114: =IF($A114>0,SUMIF('Age profile (years)'!$CT114:$GF114,"<" & U114+0.5,'Asset data'!$CX114:$GJ114)-Y114-X114-W114,0) -> 1417.405535 | AA114: 31182.92176 | AB114: 0.1578947368 | AC114: 0.07894736842 | AD114: 0.1578947368 | AE114: 0.02631578947 | AF114: 0.5789473684 | AI114: =IF($A114>0,'RRR hist-forc'!K114,0) -> 41.85104957 | AJ114: 2254156.553
A115: ='Asset data'!A115 -> 5 | B115: ='Asset data'!B115 -> 0 | C115: ='Asset data'!C115 -> 0 | D115: ='Asset data'!E115 -> GROUND OUTDOOR / INDOOR CHAMBER MOUNTED ; > 33 kV & < = 66 kV ; > 40 MVA | E115: TRANSFORMERS | F115: =IF(A115>0,SUM('Asset data'!J115:CV115),0) -> 2 | G115: =IF(A115>0,'Asset data'!F115,0) -> 108.1426761 | H115: =IF(A115>0,SUM('Asset data'!CX115:GJ115),0) -> 216.2853522 | I115: 1.300003623e-05 | J115: 59 | K115: 9.852199341e-05 | L115: 108.1426761 | M115: =IF($A115>0,SUMPRODUCT('Age profile (years)'!$CT115:$GF115,'Asset data'!$CX115:$GJ115)/H115-0.5,0) -> 3.5 | N115: 756.9987327 | O115: =IF($A115>0,'Asset data'!G115,0) -> 36.13783095 | P115: 7816.083495 | Q115: 0.9031485867 | R115: 3.613783095 | S115: 7.22756619 | T115: 21.68269857 | U115: 28.91026476 | W115: =IF($A115>0,SUMIF('Age profile (years)'!$CT115:$GF115,"<" & R115+0.5,'Asset data'!$CX115:$GJ115),0) -> 216.2853522 | X115: =IF($A115>0,SUMIF('Age profile (years)'!$CT115:$GF115,"<" & S115+0.5,'Asset data'!$CX115:$GJ115)-W115,0) -> 0 | Y115: =IF($A115>0,SUMIF('Age profile (years)'!$CT115:$GF115,"<" & T115+0.5,'Asset data'!$CX115:$GJ115)-X115-W115,0) -> 0 | Z115: =IF($A115>0,SUMIF('Age profile (years)'!$CT115:$GF115,"<" & U115+0.5,'Asset data'!$CX115:$GJ115)-Y115-X115-W115,0) -> 0 | AA115: 0 | AB115: 1 | AC115: 0 | AD115: 0 | AE115: 0 | AF115: 0 | AI115: =IF($A115>0,'RRR hist-forc'!K115,0) -> 36.13783095 | AJ115: 7816.083495
A116: ='Asset data'!A116 -> 5 | B116: ='Asset data'!B116 -> 0 | C116: ='Asset data'!C116 -> 0 | D116: ='Asset data'!E116 -> GROUND OUTDOOR / INDOOR CHAMBER MOUNTED ; > 66 kV & < = 132 kV ; < = 100 MVA | E116: TRANSFORMERS | F116: =IF(A116>0,SUM('Asset data'!J116:CV116),0) -> 194 | G116: =IF(A116>0,'Asset data'!F116,0) -> 2880.108325 | H116: =IF(A116>0,SUM('Asset data'!CX116:GJ116),0) -> 558741.015 | I116: 0.03358365863 | J116: 10 | K116: 0.2545169057 | L116: 2880.108325 | M116: =IF($A116>0,SUMPRODUCT('Age profile (years)'!$CT116:$GF116,'Asset data'!$CX116:$GJ116)/H116-0.5,0) -> 30.37628866 | N116: 16972478.36 | O116: =IF($A116>0,'Asset data'!G116,0) -> 49.59970253 | P116: 27713388.13 | Q116: 0.3875711524 | R116: 4.959970253 | S116: 9.919940506 | T116: 29.75982152 | U116: 39.67976202 | W116: =IF($A116>0,SUMIF('Age profile (years)'!$CT116:$GF116,"<" & R116+0.5,'Asset data'!$CX116:$GJ116),0) -> 69122.59979 | X116: =IF($A116>0,SUMIF('Age profile (years)'!$CT116:$GF116,"<" & S116+0.5,'Asset data'!$CX116:$GJ116)-W116,0) -> 46081.73319 | Y116: =IF($A116>0,SUMIF('Age profile (years)'!$CT116:$GF116,"<" & T116+0.5,'Asset data'!$CX116:$GJ116)-X116-W116,0) -> 95043.57471 | Z116: =IF($A116>0,SUMIF('Age profile (years)'!$CT116:$GF116,"<" & U116+0.5,'Asset data'!$CX116:$GJ116)-Y116-X116-W116,0) -> 77762.92476 | AA116: 270730.1825 | AB116: 0.1237113402 | AC116: 0.0824742268 | AD116: 0.1701030928 | AE116: 0.1391752577 | AF116: 0.4845360825 | AI116: =IF($A116>0,'RRR hist-forc'!K116,0) -> 49.59970253 | AJ116: 27713388.13
A117: ='Asset data'!A117 -> 5 | B117: ='Asset data'!B117 -> 0 | C117: ='Asset data'!C117 -> 0 | D117: ='Asset data'!E117 -> GROUND OUTDOOR / INDOOR CHAMBER MOUNTED ; > 66 kV & < = 132 kV ; > 100 MVA | E117: TRANSFORMERS | F117: =IF(A117>0,SUM('Asset data'!J117:CV117),0) -> 43 | G117: =IF(A117>0,'Asset data'!F117,0) -> 2608.587633 | H117: =IF(A117>0,SUM('Asset data'!CX117:GJ117),0) -> 112169.2682 | I117: 0.006742040252 | J117: 25 | K117: 0.05109518418 | L117: 2608.587633 | M117: =IF($A117>0,SUMPRODUCT('Age profile (years)'!$CT117:$GF117,'Asset data'!$CX117:$GJ117)/H117-0.5,0) -> 27.40697674 | N117: 3074220.526 | O117: =IF($A117>0,'Asset data'!G117,0) -> 49.57616464 | P117: 5560922.109 | Q117: 0.4471743237 | R117: 4.957616464 | S117: 9.915232928 | T117: 29.74569878 | U117: 39.66093171 | W117: =IF($A117>0,SUMIF('Age profile (years)'!$CT117:$GF117,"<" & R117+0.5,'Asset data'!$CX117:$GJ117),0) -> 20868.70107 | X117: =IF($A117>0,SUMIF('Age profile (years)'!$CT117:$GF117,"<" & S117+0.5,'Asset data'!$CX117:$GJ117)-W117,0) -> 13042.93817 | Y117: =IF($A117>0,SUMIF('Age profile (years)'!$CT117:$GF117,"<" & T117+0.5,'Asset data'!$CX117:$GJ117)-X117-W117,0) -> 20868.70107 | Z117: =IF($A117>0,SUMIF('Age profile (years)'!$CT117:$GF117,"<" & U117+0.5,'Asset data'!$CX117:$GJ117)-Y117-X117-W117,0) -> 7825.7629 | AA117: 49563.16503 | AB117: 0.1860465116 | AC117: 0.1162790698 | AD117: 0.1860465116 | AE117: 0.06976744186 | AF117: 0.4418604651 | AI117: =IF($A117>0,'RRR hist-forc'!K117,0) -> 49.57616464 | AJ117: 5560922.109
A118: ='Asset data'!A118 -> 0 | B118: ='Asset data'!B118 -> 0 | C118: ='Asset data'!C118 -> 0 | D118: ='Asset data'!E118 -> GROUND OUTDOOR / INDOOR CHAMBER MOUNTED ; > 132 kV ; < = 100 MVA | E118: 0 | F118: =IF(A118>0,SUM('Asset data'!J118:CV118),0) -> 0 | G118: =IF(A118>0,'Asset data'!F118,0) -> 0 | H118: =IF(A118>0,SUM('Asset data'!CX118:GJ118),0) -> 0 | I118: 0 | J118: 0 | K118: 0 | L118: 0 | M118: =IF($A118>0,SUMPRODUCT('Age profile (years)'!$CT118:$GF118,'Asset data'!$CX118:$GJ118)/H118-0.5,0) -> 0 | N118: 0 | O118: =IF($A118>0,'Asset data'!G118,0) -> 0 | P118: 0 | Q118: 0 | R118: 0 | S118: 0 | T118: 0 | U118: 0 | W118: =IF($A118>0,SUMIF('Age profile (years)'!$CT118:$GF118,"<" & R118+0.5,'Asset data'!$CX118:$GJ118),0) -> 0 | X118: =IF($A118>0,SUMIF('Age profile (years)'!$CT118:$GF118,"<" & S118+0.5,'Asset data'!$CX118:$GJ118)-W118,0) -> 0 | Y118: =IF($A118>0,SUMIF('Age profile (years)'!$CT118:$GF118,"<" & T118+0.5,'Asset data'!$CX118:$GJ118)-X118-W118,0) -> 0 | Z118: =IF($A118>0,SUMIF('Age profile (years)'!$CT118:$GF118,"<" & U118+0.5,'Asset data'!$CX118:$GJ118)-Y118-X118-W118,0) -> 0 | AA118: 0 | AB118: 0 | AC118: 0 | AD118: 0 | AE118: 0 | AF118: 0 | AI118: =IF($A118>0,'RRR hist-forc'!K118,0) -> 0 | AJ118: 0
A119: ='Asset data'!A119 -> 0 | B119: ='Asset data'!B119 -> 0 | C119: ='Asset data'!C119 -> 0 | D119: ='Asset data'!E119 -> GROUND OUTDOOR / INDOOR CHAMBER MOUNTED ; > 132 kV ; > 100 MVA | E119: 0 | F119: =IF(A119>0,SUM('Asset data'!J119:CV119),0) -> 0 | G119: =IF(A119>0,'Asset data'!F119,0) -> 0 | H119: =IF(A119>0,SUM('Asset data'!CX119:GJ119),0) -> 0 | I119: 0 | J119: 0 | K119: 0 | L119: 0 | M119: =IF($A119>0,SUMPRODUCT('Age profile (years)'!$CT119:$GF119,'Asset data'!$CX119:$GJ119)/H119-0.5,0) -> 0 | N119: 0 | O119: =IF($A119>0,'Asset data'!G119,0) -> 0 | P119: 0 | Q119: 0 | R119: 0 | S119: 0 | T119: 0 | U119: 0 | W119: =IF($A119>0,SUMIF('Age profile (years)'!$CT119:$GF119,"<" & R119+0.5,'Asset data'!$CX119:$GJ119),0) -> 0 | X119: =IF($A119>0,SUMIF('Age profile (years)'!$CT119:$GF119,"<" & S119+0.5,'Asset data'!$CX119:$GJ119)-W119,0) -> 0 | Y119: =IF($A119>0,SUMIF('Age profile (years)'!$CT119:$GF119,"<" & T119+0.5,'Asset data'!$CX119:$GJ119)-X119-W119,0) -> 0 | Z119: =IF($A119>0,SUMIF('Age profile (years)'!$CT119:$GF119,"<" & U119+0.5,'Asset data'!$CX119:$GJ119)-Y119-X119-W119,0) -> 0 | AA119: 0 | AB119: 0 | AC119: 0 | AD119: 0 | AE119: 0 | AF119: 0 | AI119: =IF($A119>0,'RRR hist-forc'!K119,0) -> 0 | AJ119: 0
A120: ='Asset data'!A120 -> 0 | B120: ='Asset data'!B120 -> 0 | C120: ='Asset data'!C120 -> 0 | D120: ='Asset data'!E120 -> OTHER - PLEASE ADD A ROW IF NECESSARY AND NOMINATE THE CATEGORY | E120: 0 | F120: =IF(A120>0,SUM('Asset data'!J120:CV120),0) -> 0 | G120: =IF(A120>0,'Asset data'!F120,0) -> 0 | H120: =IF(A120>0,SUM('Asset data'!CX120:GJ120),0) -> 0 | I120: 0 | J120: 0 | K120: 0 | L120: 0 | M120: =IF($A120>0,SUMPRODUCT('Age profile (years)'!$CT120:$GF120,'Asset data'!$CX120:$GJ120)/H120-0.5,0) -> 0 | N120: 0 | O120: =IF($A120>0,'Asset data'!G120,0) -> 0 | P120: 0 | Q120: 0 | R120: 0 | S120: 0 | T120: 0 | U120: 0 | W120: =IF($A120>0,SUMIF('Age profile (years)'!$CT120:$GF120,"<" & R120+0.5,'Asset data'!$CX120:$GJ120),0) -> 0 | X120: =IF($A120>0,SUMIF('Age profile (years)'!$CT120:$GF120,"<" & S120+0.5,'Asset data'!$CX120:$GJ120)-W120,0) -> 0 | Y120: =IF($A120>0,SUMIF('Age profile (years)'!$CT120:$GF120,"<" & T120+0.5,'Asset data'!$CX120:$GJ120)-X120-W120,0) -> 0 | Z120: =IF($A120>0,SUMIF('Age profile (years)'!$CT120:$GF120,"<" & U120+0.5,'Asset data'!$CX120:$GJ120)-Y120-X120-W120,0) -> 0 | AA120: 0 | AB120: 0 | AC120: 0 | AD120: 0 | AE120: 0 | AF120: 0 | AI120: =IF($A120>0,'RRR hist-forc'!K120,0) -> 0 | AJ120: 0
A121: ='Asset data'!A121 -> 5 | B121: ='Asset data'!B121 -> 0 | C121: ='Asset data'!C121 -> 0 | D121: ='Asset data'!E121 -> DISTRIBUTION SUBSTATIONS | E121: TRANSFORMERS | F121: =IF(A121>0,SUM('Asset data'!J121:CV121),0) -> 15209 | G121: =IF(A121>0,'Asset data'!F121,0) -> 11.4366471 | H121: =IF(A121>0,SUM('Asset data'!CX121:GJ121),0) -> 173939.9657 | I121: 0.01045482661 | J121: 17 | K121: 0.07923288369 | L121: 11.4366471 | M121: =IF($A121>0,SUMPRODUCT('Age profile (years)'!$CT121:$GF121,'Asset data'!$CX121:$GJ121)/H121-0.5,0) -> 21.32365705 | N121: 3709036.175 | O121: =IF($A121>0,'Asset data'!G121,0) -> 47.50964935 | P121: 8263826.778 | Q121: 0.5511720811 | R121: 4.750964935 | S121: 9.501929869 | T121: 28.50578961 | U121: 38.00771948 | W121: =IF($A121>0,SUMIF('Age profile (years)'!$CT121:$GF121,"<" & R121+0.5,'Asset data'!$CX121:$GJ121),0) -> 33034.75514 | X121: =IF($A121>0,SUMIF('Age profile (years)'!$CT121:$GF121,"<" & S121+0.5,'Asset data'!$CX121:$GJ121)-W121,0) -> 15536.68508 | Y121: =IF($A121>0,SUMIF('Age profile (years)'!$CT121:$GF121,"<" & T121+0.5,'Asset data'!$CX121:$GJ121)-X121-W121,0) -> 62341.16333 | Z121: =IF($A121>0,SUMIF('Age profile (years)'!$CT121:$GF121,"<" & U121+0.5,'Asset data'!$CX121:$GJ121)-Y121-X121-W121,0) -> 25612.37118 | AA121: 37414.99098 | AB121: 0.1899204418 | AC121: 0.08932211191 | AD121: 0.3584062069 | AE121: 0.1472483398 | AF121: 0.2151028996 | AI121: =IF($A121>0,'RRR hist-forc'!K121,0) -> 47.50964935 | AJ121: 8263826.778
A122: ='Asset data'!A122 -> 6 | B122: ='Asset data'!B122 -> 0 | C122: ='Asset data'!C122 -> 0 | D122: ='Asset data'!E122 -> ˂ = 11 kV ; FUSE | E122: SWITCHGEAR | F122: =IF(A122>0,SUM('Asset data'!J122:CV122),0) -> 37903 | G122: =IF(A122>0,'Asset data'!F122,0) -> 1.814611745 | H122: =IF(A122>0,SUM('Asset data'!CX122:GJ122),0) -> 68779.22898 | I122: 0.00413404079 | J122: 26 | K122: 0.02445102647 | L122: 1.814611745 | M122: =IF($A122>0,SUMPRODUCT('Age profile (years)'!$CT122:$GF122,'Asset data'!$CX122:$GJ122)/H122-0.5,0) -> 116.4138591 | N122: 8006855.469 | O122: =IF($A122>0,'Asset data'!G122,0) -> 134.3242507 | P122: 9238718.396 | Q122: 0.1333369927 | R122: 13.43242507 | S122: 26.86485014 | T122: 80.59455042 | U122: 107.4594006 | W122: =IF($A122>0,SUMIF('Age profile (years)'!$CT122:$GF122,"<" & R122+0.5,'Asset data'!$CX122:$GJ122),0) -> 0 | X122: =IF($A122>0,SUMIF('Age profile (years)'!$CT122:$GF122,"<" & S122+0.5,'Asset data'!$CX122:$GJ122)-W122,0) -> 0 | Y122: =IF($A122>0,SUMIF('Age profile (years)'!$CT122:$GF122,"<" & T122+0.5,'Asset data'!$CX122:$GJ122)-X122-W122,0) -> 1012.553354 | Z122: =IF($A122>0,SUMIF('Age profile (years)'!$CT122:$GF122,"<" & U122+0.5,'Asset data'!$CX122:$GJ122)-Y122-X122-W122,0) -> 17442.0481 | AA122: 50324.62753 | AB122: 0 | AC122: 0 | AD122: 0.01472178983 | AE122: 0.2535947023 | AF122: 0.7316835079 | AI122: =IF($A122>0,'RRR hist-forc'!K122,0) -> 134.3242507 | AJ122: 9238718.396
A123: ='Asset data'!A123 -> 6 | B123: ='Asset data'!B123 -> 0 | C123: ='Asset data'!C123 -> 0 | D123: ='Asset data'!E123 -> ˂ = 11 kV ; SWITCH | E123: SWITCHGEAR | F123: =IF(A123>0,SUM('Asset data'!J123:CV123),0) -> 78410 | G123: =IF(A123>0,'Asset data'!F123,0) -> 17.61893462 | H123: =IF(A123>0,SUM('Asset data'!CX123:GJ123),0) -> 1381500.663 | I123: 0.08303640763 | J123: 2 | K123: 0.4911236981 | L123: 17.61893462 | M123: =IF($A123>0,SUMPRODUCT('Age profile (years)'!$CT123:$GF123,'Asset data'!$CX123:$GJ123)/H123-0.5,0) -> 50.43638567 | N123: 69677900.25 | O123: =IF($A123>0,'Asset data'!G123,0) -> 70.97346593 | P123: 98049890.26 | Q123: 0.2893627921 | R123: 7.097346593 | S123: 14.19469319 | T123: 42.58407956 | U123: 56.77877274 | W123: =IF($A123>0,SUMIF('Age profile (years)'!$CT123:$GF123,"<" & R123+0.5,'Asset data'!$CX123:$GJ123),0) -> 14412.28852 | X123: =IF($A123>0,SUMIF('Age profile (years)'!$CT123:$GF123,"<" & S123+0.5,'Asset data'!$CX123:$GJ123)-W123,0) -> 13231.8199 | Y123: =IF($A123>0,SUMIF('Age profile (years)'!$CT123:$GF123,"<" & T123+0.5,'Asset data'!$CX123:$GJ123)-X123-W123,0) -> 428756.7739 | Z123: =IF($A123>0,SUMIF('Age profile (years)'!$CT123:$GF123,"<" & U123+0.5,'Asset data'!$CX123:$GJ123)-Y123-X123-W123,0) -> 267296.8571 | AA123: 657802.9239 | AB123: 0.01043234281 | AC123: 0.009577859967 | AD123: 0.310355822 | AE123: 0.1934829741 | AF123: 0.4761510011 | AI123: =IF($A123>0,'RRR hist-forc'!K123,0) -> 70.97346593 | AJ123: 98049890.26
A124: ='Asset data'!A124 -> 6 | B124: ='Asset data'!B124 -> 0 | C124: ='Asset data'!C124 -> 0 | D124: ='Asset data'!E124 -> ˂ = 11 kV ; CIRCUIT BREAKER | E124: SWITCHGEAR | F124: =IF(A124>0,SUM('Asset data'!J124:CV124),0) -> 7934 | G124: =IF(A124>0,'Asset data'!F124,0) -> 104.6403156 | H124: =IF(A124>0,SUM('Asset data'!CX124:GJ124),0) -> 830216.2642 | I124: 0.04990093596 | J124: 5 | K124: 0.2951420095 | L124: 104.6403156 | M124: =IF($A124>0,SUMPRODUCT('Age profile (years)'!$CT124:$GF124,'Asset data'!$CX124:$GJ124)/H124-0.5,0) -> 36.74388707 | N124: 30505372.65 | O124: =IF($A124>0,'Asset data'!G124,0) -> 64.23594798 | P124: 53329728.76 | Q124: 0.4279856027 | R124: 6.423594798 | S124: 12.8471896 | T124: 38.54156879 | U124: 51.38875839 | W124: =IF($A124>0,SUMIF('Age profile (years)'!$CT124:$GF124,"<" & R124+0.5,'Asset data'!$CX124:$GJ124),0) -> 95745.8888 | X124: =IF($A124>0,SUMIF('Age profile (years)'!$CT124:$GF124,"<" & S124+0.5,'Asset data'!$CX124:$GJ124)-W124,0) -> 37984.43457 | Y124: =IF($A124>0,SUMIF('Age profile (years)'!$CT124:$GF124,"<" & T124+0.5,'Asset data'!$CX124:$GJ124)-X124-W124,0) -> 264007.5163 | Z124: =IF($A124>0,SUMIF('Age profile (years)'!$CT124:$GF124,"<" & U124+0.5,'Asset data'!$CX124:$GJ124)-Y124-X124-W124,0) -> 84967.93629 | AA124: 347510.4882 | AB124: 0.1153264432 | AC124: 0.04575245778 | AD124: 0.3179984875 | AE124: 0.1023443408 | AF124: 0.4185782707 | AI124: =IF($A124>0,'RRR hist-forc'!K124,0) -> 64.23594798 | AJ124: 53329728.76
A125: ='Asset data'!A125 -> 6 | B125: ='Asset data'!B125 -> 0 | C125: ='Asset data'!C125 -> 0 | D125: ='Asset data'!E125 -> > 11 kV & < = 22 kV ; SWITCH | E125: SWITCHGEAR | F125: =IF(A125>0,SUM('Asset data'!J125:CV125),0) -> 55 | G125: =IF(A125>0,'Asset data'!F125,0) -> 17.80363101 | H125: =IF(A125>0,SUM('Asset data'!CX125:GJ125),0) -> 979.1997058 | I125: 5.885572702e-05 | J125: 54 | K125: 0.0003481056459 | L125: 17.80363101 | M125: =IF($A125>0,SUMPRODUCT('Age profile (years)'!$CT125:$GF125,'Asset data'!$CX125:$GJ125)/H125-0.5,0) -> 63.37272727 | N125: 62054.5559 | O125: =IF($A125>0,'Asset data'!G125,0) -> 76.93640348 | P125: 75336.10365 | Q125: 0.176297248 | R125: 7.693640348 | S125: 15.3872807 | T125: 46.16184209 | U125: 61.54912278 | W125: =IF($A125>0,SUMIF('Age profile (years)'!$CT125:$GF125,"<" & R125+0.5,'Asset data'!$CX125:$GJ125),0) -> 0 | X125: =IF($A125>0,SUMIF('Age profile (years)'!$CT125:$GF125,"<" & S125+0.5,'Asset data'!$CX125:$GJ125)-W125,0) -> 0 | Y125: =IF($A125>0,SUMIF('Age profile (years)'!$CT125:$GF125,"<" & T125+0.5,'Asset data'!$CX125:$GJ125)-X125-W125,0) -> 124.6254171 | Z125: =IF($A125>0,SUMIF('Age profile (years)'!$CT125:$GF125,"<" & U125+0.5,'Asset data'!$CX125:$GJ125)-Y125-X125-W125,0) -> 35.60726203 | AA125: 818.9670267 | AB125: 0 | AC125: 0 | AD125: 0.1272727273 | AE125: 0.03636363636 | AF125: 0.8363636364 | AI125: =IF($A125>0,'RRR hist-forc'!K125,0) -> 76.93640348 | AJ125: 75336.10365
A126: ='Asset data'!A126 -> 6 | B126: ='Asset data'!B126 -> 0 | C126: ='Asset data'!C126 -> 0 | D126: ='Asset data'!E126 -> > 11 kV & < = 22 kV ; CIRCUIT BREAKER | E126: SWITCHGEAR | F126: =IF(A126>0,SUM('Asset data'!J126:CV126),0) -> 7 | G126: =IF(A126>0,'Asset data'!F126,0) -> 46.57083633 | H126: =IF(A126>0,SUM('Asset data'!CX126:GJ126),0) -> 325.9958543 | I126: 1.959429001e-05 | J126: 58 | K126: 0.0001158915763 | L126: 46.57083633 | M126: =IF($A126>0,SUMPRODUCT('Age profile (years)'!$CT126:$GF126,'Asset data'!$CX126:$GJ126)/H126-0.5,0) -> 34.5 | N126: 11246.85697 | O126: =IF($A126>0,'Asset data'!G126,0) -> 41.79861863 | P126: 13626.17639 | Q126: 0.1746138717 | R126: 4.179861863 | S126: 8.359723726 | T126: 25.07917118 | U126: 33.4388949 | W126: =IF($A126>0,SUMIF('Age profile (years)'!$CT126:$GF126,"<" & R126+0.5,'Asset data'!$CX126:$GJ126),0) -> 0 | X126: =IF($A126>0,SUMIF('Age profile (years)'!$CT126:$GF126,"<" & S126+0.5,'Asset data'!$CX126:$GJ126)-W126,0) -> 0 | Y126: =IF($A126>0,SUMIF('Age profile (years)'!$CT126:$GF126,"<" & T126+0.5,'Asset data'!$CX126:$GJ126)-X126-W126,0) -> 0 | Z126: =IF($A126>0,SUMIF('Age profile (years)'!$CT126:$GF126,"<" & U126+0.5,'Asset data'!$CX126:$GJ126)-Y126-X126-W126,0) -> 93.14167265 | AA126: 232.8541816 | AB126: 0 | AC126: 0 | AD126: 0 | AE126: 0.2857142857 | AF126: 0.7142857143 | AI126: =IF($A126>0,'RRR hist-forc'!K126,0) -> 41.79861863 | AJ126: 13626.17639
A127: ='Asset data'!A127 -> 6 | B127: ='Asset data'!B127 -> 0 | C127: ='Asset data'!C127 -> 0 | D127: ='Asset data'!E127 -> > 22 kV & < = 33 kV ; SWITCH | E127: SWITCHGEAR | F127: =IF(A127>0,SUM('Asset data'!J127:CV127),0) -> 2665 | G127: =IF(A127>0,'Asset data'!F127,0) -> 49.52972247 | H127: =IF(A127>0,SUM('Asset data'!CX127:GJ127),0) -> 131996.7104 | I127: 0.007933787468 | J127: 22 | K127: 0.04692485083 | L127: 49.52972247 | M127: =IF($A127>0,SUMPRODUCT('Age profile (years)'!$CT127:$GF127,'Asset data'!$CX127:$GJ127)/H127-0.5,0) -> 21.78142589 | N127: 2875076.565 | O127: =IF($A127>0,'Asset data'!G127,0) -> 59.11078989 | P127: 7802429.813 | Q127: 0.6315152287 | R127: 5.911078989 | S127: 11.82215798 | T127: 35.46647393 | U127: 47.28863191 | W127: =IF($A127>0,SUMIF('Age profile (years)'!$CT127:$GF127,"<" & R127+0.5,'Asset data'!$CX127:$GJ127),0) -> 26052.63402 | X127: =IF($A127>0,SUMIF('Age profile (years)'!$CT127:$GF127,"<" & S127+0.5,'Asset data'!$CX127:$GJ127)-W127,0) -> 39623.77798 | Y127: =IF($A127>0,SUMIF('Age profile (years)'!$CT127:$GF127,"<" & T127+0.5,'Asset data'!$CX127:$GJ127)-X127-W127,0) -> 28380.53098 | Z127: =IF($A127>0,SUMIF('Age profile (years)'!$CT127:$GF127,"<" & U127+0.5,'Asset data'!$CX127:$GJ127)-Y127-X127-W127,0) -> 5794.977529 | AA127: 32144.78988 | AB127: 0.1973733583 | AC127: 0.3001876173 | AD127: 0.2150093809 | AE127: 0.04390243902 | AF127: 0.2435272045 | AI127: =IF($A127>0,'RRR hist-forc'!K127,0) -> 59.11078989 | AJ127: 7802429.813
A128: ='Asset data'!A128 -> 6 | B128: ='Asset data'!B128 -> 0 | C128: ='Asset data'!C128 -> 0 | D128: ='Asset data'!E128 -> > 22 kV & < = 33 kV ; CIRCUIT BREAKER | E128: SWITCHGEAR | F128: =IF(A128>0,SUM('Asset data'!J128:CV128),0) -> 956 | G128: =IF(A128>0,'Asset data'!F128,0) -> 118.9990149 | H128: =IF(A128>0,SUM('Asset data'!CX128:GJ128),0) -> 113763.0582 | I128: 0.00683783651 | J128: 24 | K128: 0.04044278468 | L128: 118.9990149 | M128: =IF($A128>0,SUMPRODUCT('Age profile (years)'!$CT128:$GF128,'Asset data'!$CX128:$GJ128)/H128-0.5,0) -> 23.74790795 | N128: 2701634.634 | O128: =IF($A128>0,'Asset data'!G128,0) -> 51.80580514 | P128: 5893586.826 | Q128: 0.541597551 | R128: 5.180580514 | S128: 10.36116103 | T128: 31.08348308 | U128: 41.44464411 | W128: =IF($A128>0,SUMIF('Age profile (years)'!$CT128:$GF128,"<" & R128+0.5,'Asset data'!$CX128:$GJ128),0) -> 37841.68673 | X128: =IF($A128>0,SUMIF('Age profile (years)'!$CT128:$GF128,"<" & S128+0.5,'Asset data'!$CX128:$GJ128)-W128,0) -> 10114.91626 | Y128: =IF($A128>0,SUMIF('Age profile (years)'!$CT128:$GF128,"<" & T128+0.5,'Asset data'!$CX128:$GJ128)-X128-W128,0) -> 8924.926115 | Z128: =IF($A128>0,SUMIF('Age profile (years)'!$CT128:$GF128,"<" & U128+0.5,'Asset data'!$CX128:$GJ128)-Y128-X128-W128,0) -> 14874.87686 | AA128: 42006.65225 | AB128: 0.3326359833 | AC128: 0.08891213389 | AD128: 0.07845188285 | AE128: 0.1307531381 | AF128: 0.3692468619 | AI128: =IF($A128>0,'RRR hist-forc'!K128,0) -> 51.80580514 | AJ128: 5893586.826
A129: ='Asset data'!A129 -> 6 | B129: ='Asset data'!B129 -> 0 | C129: ='Asset data'!C129 -> 0 | D129: ='Asset data'!E129 -> > 33 kV & < = 66 kV ; SWITCH | E129: SWITCHGEAR | F129: =IF(A129>0,SUM('Asset data'!J129:CV129),0) -> 468 | G129: =IF(A129>0,'Asset data'!F129,0) -> 48.67594073 | H129: =IF(A129>0,SUM('Asset data'!CX129:GJ129),0) -> 22780.34026 | I129: 0.001369233957 | J129: 37 | K129: 0.008098414463 | L129: 48.67594073 | M129: =IF($A129>0,SUMPRODUCT('Age profile (years)'!$CT129:$GF129,'Asset data'!$CX129:$GJ129)/H129-0.5,0) -> 78.17307692 | N129: 1780809.291 | O129: =IF($A129>0,'Asset data'!G129,0) -> 99.4033388 | P129: 2264441.881 | Q129: 0.2135769495 | R129: 9.94033388 | S129: 19.88066776 | T129: 59.64200328 | U129: 79.52267104 | W129: =IF($A129>0,SUMIF('Age profile (years)'!$CT129:$GF129,"<" & R129+0.5,'Asset data'!$CX129:$GJ129),0) -> 0 | X129: =IF($A129>0,SUMIF('Age profile (years)'!$CT129:$GF129,"<" & S129+0.5,'Asset data'!$CX129:$GJ129)-W129,0) -> 0 | Y129: =IF($A129>0,SUMIF('Age profile (years)'!$CT129:$GF129,"<" & T129+0.5,'Asset data'!$CX129:$GJ129)-X129-W129,0) -> 3845.399317 | Z129: =IF($A129>0,SUMIF('Age profile (years)'!$CT129:$GF129,"<" & U129+0.5,'Asset data'!$CX129:$GJ129)-Y129-X129-W129,0) -> 7058.011405 | AA129: 11876.92954 | AB129: 0 | AC129: 0 | AD129: 0.1688034188 | AE129: 0.3098290598 | AF129: 0.5213675214 | AI129: =IF($A129>0,'RRR hist-forc'!K129,0) -> 99.4033388 | AJ129: 2264441.881
A130: ='Asset data'!A130 -> 6 | B130: ='Asset data'!B130 -> 0 | C130: ='Asset data'!C130 -> 0 | D130: ='Asset data'!E130 -> > 33 kV & < = 66 kV ; CIRCUIT BREAKER | E130: SWITCHGEAR | F130: =IF(A130>0,SUM('Asset data'!J130:CV130),0) -> 137 | G130: =IF(A130>0,'Asset data'!F130,0) -> 103.1586564 | H130: =IF(A130>0,SUM('Asset data'!CX130:GJ130),0) -> 14132.73593 | I130: 0.0008494614971 | J130: 41 | K130: 0.005024189795 | L130: 103.1586564 | M130: =IF($A130>0,SUMPRODUCT('Age profile (years)'!$CT130:$GF130,'Asset data'!$CX130:$GJ130)/H130-0.5,0) -> 28.87226277 | N130: 408044.0655 | O130: =IF($A130>0,'Asset data'!G130,0) -> 37.80492131 | P130: 534286.9698 | Q130: 0.2362829555 | R130: 3.780492131 | S130: 7.560984262 | T130: 22.68295279 | U130: 30.24393705 | W130: =IF($A130>0,SUMIF('Age profile (years)'!$CT130:$GF130,"<" & R130+0.5,'Asset data'!$CX130:$GJ130),0) -> 515.7932821 | X130: =IF($A130>0,SUMIF('Age profile (years)'!$CT130:$GF130,"<" & S130+0.5,'Asset data'!$CX130:$GJ130)-W130,0) -> 1031.586564 | Y130: =IF($A130>0,SUMIF('Age profile (years)'!$CT130:$GF130,"<" & T130+0.5,'Asset data'!$CX130:$GJ130)-X130-W130,0) -> 618.9519386 | Z130: =IF($A130>0,SUMIF('Age profile (years)'!$CT130:$GF130,"<" & U130+0.5,'Asset data'!$CX130:$GJ130)-Y130-X130-W130,0) -> 2888.44238 | AA130: 9077.961766 | AB130: 0.03649635036 | AC130: 0.07299270073 | AD130: 0.04379562044 | AE130: 0.204379562 | AF130: 0.6423357664 | AI130: =IF($A130>0,'RRR hist-forc'!K130,0) -> 37.80492131 | AJ130: 534286.9698
A131: ='Asset data'!A131 -> 6 | B131: ='Asset data'!B131 -> 0 | C131: ='Asset data'!C131 -> 0 | D131: ='Asset data'!E131 -> > 66 kV & < = 132 kV ; SWITCH | E131: SWITCHGEAR | F131: =IF(A131>0,SUM('Asset data'!J131:CV131),0) -> 2063 | G131: =IF(A131>0,'Asset data'!F131,0) -> 72.68816217 | H131: =IF(A131>0,SUM('Asset data'!CX131:GJ131),0) -> 149955.6786 | I131: 0.009013228283 | J131: 21 | K131: 0.05330926677 | L131: 72.68816217 | M131: =IF($A131>0,SUMPRODUCT('Age profile (years)'!$CT131:$GF131,'Asset data'!$CX131:$GJ131)/H131-0.5,0) -> 36.50678623 | N131: 5474399.902 | O131: =IF($A131>0,'Asset data'!G131,0) -> 57.42813967 | P131: 8611675.653 | Q131: 0.3643049132 | R131: 5.742813967 | S131: 11.48562793 | T131: 34.4568838 | U131: 45.94251174 | W131: =IF($A131>0,SUMIF('Age profile (years)'!$CT131:$GF131,"<" & R131+0.5,'Asset data'!$CX131:$GJ131),0) -> 17372.47076 | X131: =IF($A131>0,SUMIF('Age profile (years)'!$CT131:$GF131,"<" & S131+0.5,'Asset data'!$CX131:$GJ131)-W131,0) -> 11484.72962 | Y131: =IF($A131>0,SUMIF('Age profile (years)'!$CT131:$GF131,"<" & T131+0.5,'Asset data'!$CX131:$GJ131)-X131-W131,0) -> 27548.81346 | Z131: =IF($A131>0,SUMIF('Age profile (years)'!$CT131:$GF131,"<" & U131+0.5,'Asset data'!$CX131:$GJ131)-Y131-X131-W131,0) -> 14901.07324 | AA131: 78648.59147 | AB131: 0.1158507029 | AC131: 0.07658749394 | AD131: 0.1837130393 | AE131: 0.09936984973 | AF131: 0.5244789142 | AI131: =IF($A131>0,'RRR hist-forc'!K131,0) -> 57.42813967 | AJ131: 8611675.653
A132: ='Asset data'!A132 -> 6 | B132: ='Asset data'!B132 -> 0 | C132: ='Asset data'!C132 -> 0 | D132: ='Asset data'!E132 -> > 66 kV & < = 132 kV ; CIRCUIT BREAKER | E132: SWITCHGEAR | F132: =IF(A132>0,SUM('Asset data'!J132:CV132),0) -> 484 | G132: =IF(A132>0,'Asset data'!F132,0) -> 127.2797802 | H132: =IF(A132>0,SUM('Asset data'!CX132:GJ132),0) -> 61603.41359 | I132: 0.003702731601 | J132: 31 | K132: 0.021900023 | L132: 127.2797802 | M132: =IF($A132>0,SUMPRODUCT('Age profile (years)'!$CT132:$GF132,'Asset data'!$CX132:$GJ132)/H132-0.5,0) -> 40.70247934 | N132: 2507411.669 | O132: =IF($A132>0,'Asset data'!G132,0) -> 49.78951543 | P132: 3067204.111 | Q132: 0.1825090284 | R132: 4.978951543 | S132: 9.957903085 | T132: 29.87370926 | U132: 39.83161234 | W132: =IF($A132>0,SUMIF('Age profile (years)'!$CT132:$GF132,"<" & R132+0.5,'Asset data'!$CX132:$GJ132),0) -> 1909.196702 | X132: =IF($A132>0,SUMIF('Age profile (years)'!$CT132:$GF132,"<" & S132+0.5,'Asset data'!$CX132:$GJ132)-W132,0) -> 636.3989008 | Y132: =IF($A132>0,SUMIF('Age profile (years)'!$CT132:$GF132,"<" & T132+0.5,'Asset data'!$CX132:$GJ132)-X132-W132,0) -> 3181.994504 | Z132: =IF($A132>0,SUMIF('Age profile (years)'!$CT132:$GF132,"<" & U132+0.5,'Asset data'!$CX132:$GJ132)-Y132-X132-W132,0) -> 11200.62065 | AA132: 44675.20283 | AB132: 0.03099173554 | AC132: 0.01033057851 | AD132: 0.05165289256 | AE132: 0.1818181818 | AF132: 0.7252066116 | AI132: =IF($A132>0,'RRR hist-forc'!K132,0) -> 49.78951543 | AJ132: 3067204.111
A133: ='Asset data'!A133 -> 0 | B133: ='Asset data'!B133 -> 0 | C133: ='Asset data'!C133 -> 0 | D133: ='Asset data'!E133 -> > 132 kV ; SWITCH | E133: 0 | F133: =IF(A133>0,SUM('Asset data'!J133:CV133),0) -> 0 | G133: =IF(A133>0,'Asset data'!F133,0) -> 0 | H133: =IF(A133>0,SUM('Asset data'!CX133:GJ133),0) -> 0 | I133: 0 | J133: 0 | K133: 0 | L133: 0 | M133: =IF($A133>0,SUMPRODUCT('Age profile (years)'!$CT133:$GF133,'Asset data'!$CX133:$GJ133)/H133-0.5,0) -> 0 | N133: 0 | O133: =IF($A133>0,'Asset data'!G133,0) -> 0 | P133: 0 | Q133: 0 | R133: 0 | S133: 0 | T133: 0 | U133: 0 | W133: =IF($A133>0,SUMIF('Age profile (years)'!$CT133:$GF133,"<" & R133+0.5,'Asset data'!$CX133:$GJ133),0) -> 0 | X133: =IF($A133>0,SUMIF('Age profile (years)'!$CT133:$GF133,"<" & S133+0.5,'Asset data'!$CX133:$GJ133)-W133,0) -> 0 | Y133: =IF($A133>0,SUMIF('Age profile (years)'!$CT133:$GF133,"<" & T133+0.5,'Asset data'!$CX133:$GJ133)-X133-W133,0) -> 0 | Z133: =IF($A133>0,SUMIF('Age profile (years)'!$CT133:$GF133,"<" & U133+0.5,'Asset data'!$CX133:$GJ133)-Y133-X133-W133,0) -> 0 | AA133: 0 | AB133: 0 | AC133: 0 | AD133: 0 | AE133: 0 | AF133: 0 | AI133: =IF($A133>0,'RRR hist-forc'!K133,0) -> 0 | AJ133: 0
A134: ='Asset data'!A134 -> 0 | B134: ='Asset data'!B134 -> 0 | C134: ='Asset data'!C134 -> 0 | D134: ='Asset data'!E134 -> > 132 kV ; CIRCUIT BREAKER | E134: 0 | F134: =IF(A134>0,SUM('Asset data'!J134:CV134),0) -> 0 | G134: =IF(A134>0,'Asset data'!F134,0) -> 0 | H134: =IF(A134>0,SUM('Asset data'!CX134:GJ134),0) -> 0 | I134: 0 | J134: 0 | K134: 0 | L134: 0 | M134: =IF($A134>0,SUMPRODUCT('Age profile (years)'!$CT134:$GF134,'Asset data'!$CX134:$GJ134)/H134-0.5,0) -> 0 | N134: 0 | O134: =IF($A134>0,'Asset data'!G134,0) -> 0 | P134: 0 | Q134: 0 | R134: 0 | S134: 0 | T134: 0 | U134: 0 | W134: =IF($A134>0,SUMIF('Age profile (years)'!$CT134:$GF134,"<" & R134+0.5,'Asset data'!$CX134:$GJ134),0) -> 0 | X134: =IF($A134>0,SUMIF('Age profile (years)'!$CT134:$GF134,"<" & S134+0.5,'Asset data'!$CX134:$GJ134)-W134,0) -> 0 | Y134: =IF($A134>0,SUMIF('Age profile (years)'!$CT134:$GF134,"<" & T134+0.5,'Asset data'!$CX134:$GJ134)-X134-W134,0) -> 0 | Z134: =IF($A134>0,SUMIF('Age profile (years)'!$CT134:$GF134,"<" & U134+0.5,'Asset data'!$CX134:$GJ134)-Y134-X134-W134,0) -> 0 | AA134: 0 | AB134: 0 | AC134: 0 | AD134: 0 | AE134: 0 | AF134: 0 | AI134: =IF($A134>0,'RRR hist-forc'!K134,0) -> 0 | AJ134: 0
A135: ='Asset data'!A135 -> 0 | B135: ='Asset data'!B135 -> 0 | C135: ='Asset data'!C135 -> 0 | D135: ='Asset data'!E135 -> OTHER - PLEASE ADD A ROW IF NECESSARY AND NOMINATE THE CATEGORY | E135: 0 | F135: =IF(A135>0,SUM('Asset data'!J135:CV135),0) -> 0 | G135: =IF(A135>0,'Asset data'!F135,0) -> 0 | H135: =IF(A135>0,SUM('Asset data'!CX135:GJ135),0) -> 0 | I135: 0 | J135: 0 | K135: 0 | L135: 0 | M135: =IF($A135>0,SUMPRODUCT('Age profile (years)'!$CT135:$GF135,'Asset data'!$CX135:$GJ135)/H135-0.5,0) -> 0 | N135: 0 | O135: =IF($A135>0,'Asset data'!G135,0) -> 0 | P135: 0 | Q135: 0 | R135: 0 | S135: 0 | T135: 0 | U135: 0 | W135: =IF($A135>0,SUMIF('Age profile (years)'!$CT135:$GF135,"<" & R135+0.5,'Asset data'!$CX135:$GJ135),0) -> 0 | X135: =IF($A135>0,SUMIF('Age profile (years)'!$CT135:$GF135,"<" & S135+0.5,'Asset data'!$CX135:$GJ135)-W135,0) -> 0 | Y135: =IF($A135>0,SUMIF('Age profile (years)'!$CT135:$GF135,"<" & T135+0.5,'Asset data'!$CX135:$GJ135)-X135-W135,0) -> 0 | Z135: =IF($A135>0,SUMIF('Age profile (years)'!$CT135:$GF135,"<" & U135+0.5,'Asset data'!$CX135:$GJ135)-Y135-X135-W135,0) -> 0 | AA135: 0 | AB135: 0 | AC135: 0 | AD135: 0 | AE135: 0 | AF135: 0 | AI135: =IF($A135>0,'RRR hist-forc'!K135,0) -> 0 | AJ135: 0
A136: ='Asset data'!A136 -> 6 | B136: ='Asset data'!B136 -> 0 | C136: ='Asset data'!C136 -> 0 | D136: ='Asset data'!E136 -> > 11 kV & < ≈ 33 kV ; FUSE & FUSE SWITCH (not including enclosed type) | E136: SWITCHGEAR | F136: =IF(A136>0,SUM('Asset data'!J136:CV136),0) -> 123 | G136: =IF(A136>0,'Asset data'!F136,0) -> 135.6835636 | H136: =IF(A136>0,SUM('Asset data'!CX136:GJ136),0) -> 16689.07833 | I136: 0.001003112881 | J136: 40 | K136: 0.00593296991 | L136: 135.6835636 | M136: =IF($A136>0,SUMPRODUCT('Age profile (years)'!$CT136:$GF136,'Asset data'!$CX136:$GJ136)/H136-0.5,0) -> 3.613821138 | N136: 60311.34403 | O136: =IF($A136>0,'Asset data'!G136,0) -> 18.55358153 | P136: 309642.1753 | Q136: 0.8052224508 | R136: 1.855358153 | S136: 3.710716305 | T136: 11.13214892 | U136: 14.84286522 | W136: =IF($A136>0,SUMIF('Age profile (years)'!$CT136:$GF136,"<" & R136+0.5,'Asset data'!$CX136:$GJ136),0) -> 5563.026109 | X136: =IF($A136>0,SUMIF('Age profile (years)'!$CT136:$GF136,"<" & S136+0.5,'Asset data'!$CX136:$GJ136)-W136,0) -> 271.3671273 | Y136: =IF($A136>0,SUMIF('Age profile (years)'!$CT136:$GF136,"<" & T136+0.5,'Asset data'!$CX136:$GJ136)-X136-W136,0) -> 2985.0384 | Z136: =IF($A136>0,SUMIF('Age profile (years)'!$CT136:$GF136,"<" & U136+0.5,'Asset data'!$CX136:$GJ136)-Y136-X136-W136,0) -> 1492.5192 | AA136: 6377.127491 | AB136: 0.3333333333 | AC136: 0.0162601626 | AD136: 0.1788617886 | AE136: 0.08943089431 | AF136: 0.3821138211 | AI136: =IF($A136>0,'RRR hist-forc'!K136,0) -> 18.55358153 | AJ136: 309642.1753
A137: ='Asset data'!A137 -> 0 | B137: ='Asset data'!B137 -> 0 | C137: ='Asset data'!C137 -> 0 | D137: ='Asset data'!E137 -> < 1 kV ; CIRCUIT BREAKER | E137: 0 | F137: =IF(A137>0,SUM('Asset data'!J137:CV137),0) -> 0 | G137: =IF(A137>0,'Asset data'!F137,0) -> 0 | H137: =IF(A137>0,SUM('Asset data'!CX137:GJ137),0) -> 0 | I137: 0 | J137: 0 | K137: 0 | L137: 0 | M137: =IF($A137>0,SUMPRODUCT('Age profile (years)'!$CT137:$GF137,'Asset data'!$CX137:$GJ137)/H137-0.5,0) -> 0 | N137: 0 | O137: =IF($A137>0,'Asset data'!G137,0) -> 0 | P137: 0 | Q137: 0 | R137: 0 | S137: 0 | T137: 0 | U137: 0 | W137: =IF($A137>0,SUMIF('Age profile (years)'!$CT137:$GF137,"<" & R137+0.5,'Asset data'!$CX137:$GJ137),0) -> 0 | X137: =IF($A137>0,SUMIF('Age profile (years)'!$CT137:$GF137,"<" & S137+0.5,'Asset data'!$CX137:$GJ137)-W137,0) -> 0 | Y137: =IF($A137>0,SUMIF('Age profile (years)'!$CT137:$GF137,"<" & T137+0.5,'Asset data'!$CX137:$GJ137)-X137-W137,0) -> 0 | Z137: =IF($A137>0,SUMIF('Age profile (years)'!$CT137:$GF137,"<" & U137+0.5,'Asset data'!$CX137:$GJ137)-Y137-X137-W137,0) -> 0 | AA137: 0 | AB137: 0 | AC137: 0 | AD137: 0 | AE137: 0 | AF137: 0 | AI137: =IF($A137>0,'RRR hist-forc'!K137,0) -> 0 | AJ137: 0
A138: ='Asset data'!A138 -> 0 | B138: ='Asset data'!B138 -> 0 | C138: ='Asset data'!C138 -> 0 | D138: ='Asset data'!E138 -> > 1 kV & < ≈ 11 kV ; CIRCUIT BREAKER | E138: 0 | F138: =IF(A138>0,SUM('Asset data'!J138:CV138),0) -> 0 | G138: =IF(A138>0,'Asset data'!F138,0) -> 0 | H138: =IF(A138>0,SUM('Asset data'!CX138:GJ138),0) -> 0 | I138: 0 | J138: 0 | K138: 0 | L138: 0 | M138: =IF($A138>0,SUMPRODUCT('Age profile (years)'!$CT138:$GF138,'Asset data'!$CX138:$GJ138)/H138-0.5,0) -> 0 | N138: 0 | O138: =IF($A138>0,'Asset data'!G138,0) -> 0 | P138: 0 | Q138: 0 | R138: 0 | S138: 0 | T138: 0 | U138: 0 | W138: =IF($A138>0,SUMIF('Age profile (years)'!$CT138:$GF138,"<" & R138+0.5,'Asset data'!$CX138:$GJ138),0) -> 0 | X138: =IF($A138>0,SUMIF('Age profile (years)'!$CT138:$GF138,"<" & S138+0.5,'Asset data'!$CX138:$GJ138)-W138,0) -> 0 | Y138: =IF($A138>0,SUMIF('Age profile (years)'!$CT138:$GF138,"<" & T138+0.5,'Asset data'!$CX138:$GJ138)-X138-W138,0) -> 0 | Z138: =IF($A138>0,SUMIF('Age profile (years)'!$CT138:$GF138,"<" & U138+0.5,'Asset data'!$CX138:$GJ138)-Y138-X138-W138,0) -> 0 | AA138: 0 | AB138: 0 | AC138: 0 | AD138: 0 | AE138: 0 | AF138: 0 | AI138: =IF($A138>0,'RRR hist-forc'!K138,0) -> 0 | AJ138: 0
A139: ='Asset data'!A139 -> 0 | B139: ='Asset data'!B139 -> 0 | C139: ='Asset data'!C139 -> 0 | D139: ='Asset data'!E139 -> DISTRIBUTION SUBSTATIONS | E139: 0 | F139: =IF(A139>0,SUM('Asset data'!J139:CV139),0) -> 0 | G139: =IF(A139>0,'Asset data'!F139,0) -> 0 | H139: =IF(A139>0,SUM('Asset data'!CX139:GJ139),0) -> 0 | I139: 0 | J139: 0 | K139: 0 | L139: 0 | M139: =IF($A139>0,SUMPRODUCT('Age profile (years)'!$CT139:$GF139,'Asset data'!$CX139:$GJ139)/H139-0.5,0) -> 0 | N139: 0 | O139: =IF($A139>0,'Asset data'!G139,0) -> 0 | P139: 0 | Q139: 0 | R139: 0 | S139: 0 | T139: 0 | U139: 0 | W139: =IF($A139>0,SUMIF('Age profile (years)'!$CT139:$GF139,"<" & R139+0.5,'Asset data'!$CX139:$GJ139),0) -> 0 | X139: =IF($A139>0,SUMIF('Age profile (years)'!$CT139:$GF139,"<" & S139+0.5,'Asset data'!$CX139:$GJ139)-W139,0) -> 0 | Y139: =IF($A139>0,SUMIF('Age profile (years)'!$CT139:$GF139,"<" & T139+0.5,'Asset data'!$CX139:$GJ139)-X139-W139,0) -> 0 | Z139: =IF($A139>0,SUMIF('Age profile (years)'!$CT139:$GF139,"<" & U139+0.5,'Asset data'!$CX139:$GJ139)-Y139-X139-W139,0) -> 0 | AA139: 0 | AB139: 0 | AC139: 0 | AD139: 0 | AE139: 0 | AF139: 0 | AI139: =IF($A139>0,'RRR hist-forc'!K139,0) -> 0 | AJ139: 0
A140: ='Asset data'!A140 -> 6 | B140: ='Asset data'!B140 -> 0 | C140: ='Asset data'!C140 -> 0 | D140: ='Asset data'!E140 -> ZONE & SUBTRANSMISION SUBSTATIONS | E140: SWITCHGEAR | F140: =IF(A140>0,SUM('Asset data'!J140:CV140),0) -> 210.6 | G140: =IF(A140>0,'Asset data'!F140,0) -> 95.99211079 | H140: =IF(A140>0,SUM('Asset data'!CX140:GJ140),0) -> 20215.93853 | I140: 0.001215098159 | J140: 38 | K140: 0.007186769255 | L140: 95.99211079 | M140: =IF($A140>0,SUMPRODUCT('Age profile (years)'!$CT140:$GF140,'Asset data'!$CX140:$GJ140)/H140-0.5,0) -> 11.45299145 | N140: 231532.9712 | O140: =IF($A140>0,'Asset data'!G140,0) -> 47.51 | P140: 960459.2397 | Q140: 0.758935141 | R140: 4.751 | S140: 9.502 | T140: 28.506 | U140: 38.008 | W140: =IF($A140>0,SUMIF('Age profile (years)'!$CT140:$GF140,"<" & R140+0.5,'Asset data'!$CX140:$GJ140),0) -> 9416.826069 | X140: =IF($A140>0,SUMIF('Age profile (years)'!$CT140:$GF140,"<" & S140+0.5,'Asset data'!$CX140:$GJ140)-W140,0) -> 2246.215392 | Y140: =IF($A140>0,SUMIF('Age profile (years)'!$CT140:$GF140,"<" & T140+0.5,'Asset data'!$CX140:$GJ140)-X140-W140,0) -> 3542.108888 | Z140: =IF($A140>0,SUMIF('Age profile (years)'!$CT140:$GF140,"<" & U140+0.5,'Asset data'!$CX140:$GJ140)-Y140-X140-W140,0) -> 777.5360974 | AA140: 4233.252086 | AB140: 0.4658119658 | AC140: 0.1111111111 | AD140: 0.1752136752 | AE140: 0.03846153846 | AF140: 0.2094017094 | AI140: =IF($A140>0,'RRR hist-forc'!K140,0) -> 47.51 | AJ140: 960459.2397
A141: ='Asset data'!A141 -> 0 | B141: ='Asset data'!B141 -> 0 | C141: ='Asset data'!C141 -> 0 | D141: ='Asset data'!E141 -> 0 | E141: 0 | F141: =IF(A141>0,SUM('Asset data'!J141:CV141),0) -> 0 | G141: =IF(A141>0,'Asset data'!F141,0) -> 0 | H141: =IF(A141>0,SUM('Asset data'!CX141:GJ141),0) -> 0 | I141: 0 | J141: 0 | K141: 0 | L141: 0 | M141: =IF($A141>0,SUMPRODUCT('Age profile (years)'!$CT141:$GF141,'Asset data'!$CX141:$GJ141)/H141-0.5,0) -> 0 | N141: 0 | O141: =IF($A141>0,'Asset data'!G141,0) -> 0 | P141: 0 | Q141: 0 | R141: 0 | S141: 0 | T141: 0 | U141: 0 | W141: =IF($A141>0,SUMIF('Age profile (years)'!$CT141:$GF141,"<" & R141+0.5,'Asset data'!$CX141:$GJ141),0) -> 0 | X141: =IF($A141>0,SUMIF('Age profile (years)'!$CT141:$GF141,"<" & S141+0.5,'Asset data'!$CX141:$GJ141)-W141,0) -> 0 | Y141: =IF($A141>0,SUMIF('Age profile (years)'!$CT141:$GF141,"<" & T141+0.5,'Asset data'!$CX141:$GJ141)-X141-W141,0) -> 0 | Z141: =IF($A141>0,SUMIF('Age profile (years)'!$CT141:$GF141,"<" & U141+0.5,'Asset data'!$CX141:$GJ141)-Y141-X141-W141,0) -> 0 | AA141: 0 | AB141: 0 | AC141: 0 | AD141: 0 | AE141: 0 | AF141: 0 | AI141: =IF($A141>0,'RRR hist-forc'!K141,0) -> 0 | AJ141: 0
A142: ='Asset data'!A142 -> 0 | B142: ='Asset data'!B142 -> 0 | C142: ='Asset data'!C142 -> 0 | D142: ='Asset data'!E142 -> 0 | E142: 0 | F142: =IF(A142>0,SUM('Asset data'!J142:CV142),0) -> 0 | G142: =IF(A142>0,'Asset data'!F142,0) -> 0 | H142: =IF(A142>0,SUM('Asset data'!CX142:GJ142),0) -> 0 | I142: 0 | J142: 0 | K142: 0 | L142: 0 | M142: =IF($A142>0,SUMPRODUCT('Age profile (years)'!$CT142:$GF142,'Asset data'!$CX142:$GJ142)/H142-0.5,0) -> 0 | N142: 0 | O142: =IF($A142>0,'Asset data'!G142,0) -> 0 | P142: 0 | Q142: 0 | R142: 0 | S142: 0 | T142: 0 | U142: 0 | W142: =IF($A142>0,SUMIF('Age profile (years)'!$CT142:$GF142,"<" & R142+0.5,'Asset data'!$CX142:$GJ142),0) -> 0 | X142: =IF($A142>0,SUMIF('Age profile (years)'!$CT142:$GF142,"<" & S142+0.5,'Asset data'!$CX142:$GJ142)-W142,0) -> 0 | Y142: =IF($A142>0,SUMIF('Age profile (years)'!$CT142:$GF142,"<" & T142+0.5,'Asset data'!$CX142:$GJ142)-X142-W142,0) -> 0 | Z142: =IF($A142>0,SUMIF('Age profile (years)'!$CT142:$GF142,"<" & U142+0.5,'Asset data'!$CX142:$GJ142)-Y142-X142-W142,0) -> 0 | AA142: 0 | AB142: 0 | AC142: 0 | AD142: 0 | AE142: 0 | AF142: 0 | AI142: =IF($A142>0,'RRR hist-forc'!K142,0) -> 0 | AJ142: 0
AI206: =IF($A206>0,'RRR hist-forc'!K206,0) -> 0 | AJ206: =IF($A206>0,AI206*H206,0) -> 0

Sheet Asset data
A1: Meth all | D1: 2 | E1: =IF(D1=2,"all normal",IF(D1=1,"all deterministic","individual")) -> all normal | L1: Profile type: | M1: 3 | N1: =VLOOKUP(APtype,IDtable,4) -> Installation date
F3: Unit | J3: Quantities | CX3: Replacement Cost (NOT depreciated)
F4: Cost | G4: Replacement life | I4: Rep | J4: =VLOOKUP(APtype,IDtable,4) -> Installation date | CX4: =VLOOKUP(APtype,IDtable,4) -> Installation date
A5: ID | B5: ID | C5: ID | D5: Asset category | E5: Asset ID | F5: $ ('000) | G5: mean | H5: SD | I5: Meth | J5: =IF(OR(APtype=1,APtype=2),0,IF(APtype=3,Now,9999)) -> 2013 | K5: =IF(OR(APtype=1,APtype=2),J5+1,IF(APtype=3,J5-1,9999)) -> 2012 | L5: 2011 | M5: 2010 | N5: 2009 | O5: 2008 | P5: 2007 | Q5: 2006 | R5: 2005 | S5: 2004 | T5: 2003 | U5: 2002 | V5: 2001 | W5: 2000 | X5: 1999 | Y5: 1998 | Z5: 1997 | AA5: 1996 | AB5: 1995 | AC5: 1994 | AD5: 1993 | AE5: 1992 | AF5: 1991 | AG5: 1990 | AH5: 1989 | AI5: 1988 | AJ5: 1987 | AK5: 1986 | AL5: 1985 | AM5: 1984 | AN5: 1983 | AO5: 1982 | AP5: 1981 | AQ5: =IF(OR(APtype=1,APtype=2),AP5+1,IF(APtype=3,AP5-1,9999)) -> 1980 | AR5: 1979 | AS5: 1978 | AT5: 1977 | AU5: 1976 | AV5: 1975 | AW5: 1974 | AX5: 1973 | AY5: 1972 | AZ5: 1971 | BA5: 1970 | BB5: 1969 | BC5: 1968 | BD5: 1967 | BE5: 1966 | BF5: 1965 | BG5: 1964 | BH5: 1963 | BI5: 1962 | BJ5: 1961 | BK5: 1960 | BL5: 1959 | BM5: 1958 | BN5: 1957 | BO5: 1956 | BP5: 1955 | BQ5: 1954 | BR5: 1953 | BS5: 1952 | BT5: 1951 | BU5: 1950 | BV5: 1949 | BW5: =IF(OR(APtype=1,APtype=2),BV5+1,IF(APtype=3,BV5-1,9999)) -> 1948 | BX5: 1947 | BY5: 1946 | BZ5: 1945 | CA5: 1944 | CB5: 1943 | CC5: 1942 | CD5: 1941 | CE5: 1940 | CF5: 1939 | CG5: 1938 | CH5: 1937 | CI5: 1936 | CJ5: 1935 | CK5: 1934 | CL5: 1933 | CM5: 1932 | CN5: 1931 | CO5: 1930 | CP5: 1929 | CQ5: 1928 | CR5: 1927 | CS5: 1926 | CT5: 1925 | CU5: 1924 | CV5: 1923 | CX5: =J5 -> 2013 | CY5: =K5 -> 2012 | CZ5: 2011 | DA5: 2010 | DB5: 2009 | DC5: 2008 | DD5: 2007 | DE5: 2006 | DF5: 2005 | DG5: 2004 | DH5: 2003 | DI5: 2002 | DJ5: 2001 | DK5: 2000 | DL5: 1999 | DM5: 1998 | DN5: 1997 | DO5: 1996 | DP5: 1995 | DQ5: 1994 | DR5: 1993 | DS5: 1992 | DT5: 1991 | DU5: 1990 | DV5: 1989 | DW5: 1988 | DX5: 1987 | DY5: 1986 | DZ5: 1985 | EA5: 1984 | EB5: 1983 | EC5: 1982 | ED5: 1981 | EE5: 1980 | EF5: 1979 | EG5: 1978 | EH5: 1977 | EI5: 1976 | EJ5: 1975 | EK5: 1974 | EL5: 1973 | EM5: 1972 | EN5: 1971 | EO5: 1970 | EP5: 1969 | EQ5: 1968 | ER5: 1967 | ES5: 1966 | ET5: 1965 | EU5: 1964 | EV5: 1963 | EW5: 1962 | EX5: 1961 | EY5: 1960 | EZ5: 1959 | FA5: 1958 | FB5: 1957 | FC5: 1956 | FD5: 1955 | FE5: 1954 | FF5: 1953 | FG5: 1952 | FH5: 1951 | FI5: 1950 | FJ5: 1949 | FK5: =BW5 -> 1948 | FL5: 1947 | FM5: 1946 | FN5: 1945 | FO5: 1944 | FP5: 1943 | FQ5: 1942 | FR5: 1941 | FS5: 1940 | FT5: 1939 | FU5: 1938 | FV5: 1937 | FW5: 1936 | FX5: 1935 | FY5: 1934 | FZ5: 1933 | GA5: 1932 | GB5: 1931 | GC5: 1930 | GD5: 1929 | GE5: 1928 | GF5: 1927 | GG5: 1926 | GH5: 1925 | GI5: 1924 | GJ5: 1923
D21: =IF(A21>0,VLOOKUP(A21,IDtable,2),"") ->  | CX21: =$F21*J21 -> 0 | CY21: =$F21*K21 -> 0 | CZ21: 0 | DA21: 0 | DB21: 0 | DC21: 0 | DD21: 0 | DE21: 0 | DF21: 0 | DG21: 0 | DH21: 0 | DI21: 0 | DJ21: 0 | DK21: 0 | DL21: 0 | DM21: 0 | DN21: 0 | DO21: 0 | DP21: 0 | DQ21: 0 | DR21: 0 | DS21: 0 | DT21: 0 | DU21: 0 | DV21: 0 | DW21: 0 | DX21: 0 | DY21: 0 | DZ21: 0 | EA21: 0 | EB21: 0 | EC21: 0 | ED21: 0 | EE21: 0 | EF21: 0 | EG21: 0 | EH21: 0 | EI21: 0 | EJ21: 0 | EK21: 0 | EL21: 0 | EM21: 0 | EN21: 0 | EO21: 0 | EP21: 0 | EQ21: 0 | ER21: 0 | ES21: 0 | ET21: 0 | EU21: 0 | EV21: 0 | EW21: 0 | EX21: 0 | EY21: 0 | EZ21: 0 | FA21: 0 | FB21: 0 | FC21: 0 | FD21: 0 | FE21: 0 | FF21: 0 | FG21: 0 | FH21: 0 | FI21: 0 | FJ21: 0 | FK21: =$F21*BW21 -> 0 | FL21: 0 | FM21: 0 | FN21: 0 | FO21: 0 | FP21: 0 | FQ21: 0 | FR21: 0 | FS21: 0 | FT21: 0 | FU21: 0 | FV21: 0 | FW21: 0 | FX21: 0 | FY21: 0 | FZ21: 0 | GA21: 0 | GB21: 0 | GC21: 0 | GD21: 0 | GE21: 0 | GF21: 0 | GG21: 0 | GH21: 0 | GI21: 0 | GJ21: 0
A22: 1 | D22: POLES | E22: STAKING OF A WOODEN POLE | F22: 7.484688597 | G22: 12.55970356 | H22: 3.543967206 | I22: 2 | J22: 2000 | K22: 2319 | L22: 1999 | M22: 3159 | N22: 2530 | O22: 3045 | P22: 1539 | Q22: 1176 | R22: 1132 | S22: 921 | T22: 1051 | U22: 543 | V22: 357 | W22: 332 | X22: 315 | Y22: 310 | Z22: 309 | AA22: 0 | AB22: 0 | AC22: 0 | AD22: 0 | AE22: 0 | AF22: 0 | AG22: 0 | AH22: 0 | AI22: 0 | AJ22: 0 | AK22: 0 | AL22: 0 | AM22: 0 | AN22: 0 | AO22: 0 | AP22: 0 | AQ22: 0 | AR22: 0 | AS22: 0 | AT22: 0 | AU22: 0 | AV22: 0 | AW22: 0 | AX22: 0 | AY22: 0 | AZ22: 0 | BA22: 0 | BB22: 0 | BC22: 0 | BD22: 0 | BE22: 0 | BF22: 0 | BG22: 0 | BH22: 0 | BI22: 0 | BJ22: 0 | BK22: 0 | BL22: 0 | BM22: 0 | BN22: 0 | BO22: 0 | BP22: 0 | BQ22: 0 | BR22: 0 | BS22: 0 | BT22: 0 | BU22: 0 | BV22: 0 | BW22: 0 | BX22: 0 | BY22: 0 | BZ22: 0 | CA22: 0 | CB22: 0 | CC22: 0 | CD22: 0 | CE22: 0 | CF22: 0 | CG22: 0 | CH22: 0 | CI22: 0 | CJ22: 0 | CK22: 0 | CL22: 0 | CM22: 0 | CN22: 0 | CO22: 0 | CP22: 0 | CQ22: 0 | CR22: 0 | CS22: 0 | CT22: 0 | CU22: 0 | CV22: 0 | CX22: =$F22*J22 -> 14969.37719 | CY22: =$F22*K22 -> 17356.99286 | CZ22: =$F22*L22 -> 14961.89251 | DA22: =$F22*M22 -> 23644.13128 | DB22: =$F22*N22 -> 18936.26215 | DC22: =$F22*O22 -> 22790.87678 | DD22: =$F22*P22 -> 11518.93575 | DE22: =$F22*Q22 -> 8801.99379 | DF22: =$F22*R22 -> 8472.667492 | DG22: =$F22*S22 -> 6893.398198 | DH22: =$F22*T22 -> 7866.407716 | DI22: =$F22*U22 -> 4064.185908 | DJ22: =$F22*V22 -> 2672.033829 | DK22: =$F22*W22 -> 2484.916614 | DL22: =$F22*X22 -> 2357.676908 | DM22: =$F22*Y22 -> 2320.253465 | DN22: =$F22*Z22 -> 2312.768777 | DO22: =$F22*AA22 -> 0 | DP22: =$F22*AB22 -> 0 | DQ22: =$F22*AC22 -> 0 | DR22: =$F22*AD22 -> 0 | DS22: =$F22*AE22 -> 0 | DT22: =$F22*AF22 -> 0 | DU22: =$F22*AG22 -> 0 | DV22: =$F22*AH22 -> 0 | DW22: =$F22*AI22 -> 0 | DX22: =$F22*AJ22 -> 0 | DY22: =$F22*AK22 -> 0 | DZ22: =$F22*AL22 -> 0 | EA22: =$F22*AM22 -> 0 | EB22: =$F22*AN22 -> 0 | EC22: =$F22*AO22 -> 0 | ED22: =$F22*AP22 -> 0 | EE22: =$F22*AQ22 -> 0 | EF22: =$F22*AR22 -> 0 | EG22: =$F22*AS22 -> 0 | EH22: =$F22*AT22 -> 0 | EI22: =$F22*AU22 -> 0 | EJ22: =$F22*AV22 -> 0 | EK22: =$F22*AW22 -> 0 | EL22: =$F22*AX22 -> 0 | EM22: =$F22*AY22 -> 0 | EN22: =$F22*AZ22 -> 0 | EO22: =$F22*BA22 -> 0 | EP22: =$F22*BB22 -> 0 | EQ22: =$F22*BC22 -> 0 | ER22: =$F22*BD22 -> 0 | ES22: =$F22*BE22 -> 0 | ET22: =$F22*BF22 -> 0 | EU22: =$F22*BG22 -> 0 | EV22: =$F22*BH22 -> 0 | EW22: =$F22*BI22 -> 0 | EX22: =$F22*BJ22 -> 0 | EY22: =$F22*BK22 -> 0 | EZ22: =$F22*BL22 -> 0 | FA22: =$F22*BM22 -> 0 | FB22: =$F22*BN22 -> 0 | FC22: =$F22*BO22 -> 0 | FD22: =$F22*BP22 -> 0 | FE22: =$F22*BQ22 -> 0 | FF22: =$F22*BR22 -> 0 | FG22: =$F22*BS22 -> 0 | FH22: =$F22*BT22 -> 0 | FI22: =$F22*BU22 -> 0 | FJ22: =$F22*BV22 -> 0 | FK22: =$F22*BW22 -> 0 | FL22: =$F22*BX22 -> 0 | FM22: =$F22*BY22 -> 0 | FN22: =$F22*BZ22 -> 0 | FO22: =$F22*CA22 -> 0 | FP22: =$F22*CB22 -> 0 | FQ22: =$F22*CC22 -> 0 | FR22: =$F22*CD22 -> 0 | FS22: =$F22*CE22 -> 0 | FT22: =$F22*CF22 -> 0 | FU22: =$F22*CG22 -> 0 | FV22: =$F22*CH22 -> 0 | FW22: =$F22*CI22 -> 0 | FX22: =$F22*CJ22 -> 0 | FY22: =$F22*CK22 -> 0 | FZ22: =$F22*CL22 -> 0 | GA22: =$F22*CM22 -> 0 | GB22: =$F22*CN22 -> 0 | GC22: =$F22*CO22 -> 0 | GD22: =$F22*CP22 -> 0 | GE22: =$F22*CQ22 -> 0 | GF22: =$F22*CR22 -> 0 | GG22: =$F22*CS22 -> 0 | GH22: =$F22*CT22 -> 0 | GI22: =$F22*CU22 -> 0 | GJ22: =$F22*CV22 -> 0
A23: 1 | D23: POLES | E23: ˂ = 1 kV; WOOD | F23: 4.400616138 | G23: 60.16284782 | H23: 7.756471351 | I23: 2 | J23: 3472 | K23: 4177 | L23: 3834 | M23: 3692 | N23: 3070 | O23: 3047 | P23: 2636 | Q23: 2268 | R23: 1946 | S23: 2219 | T23: 1761 | U23: 1692 | V23: 1451 | W23: 1504 | X23: 1514 | Y23: 1911 | Z23: 2066 | AA23: 3008 | AB23: 3035 | AC23: 2661 | AD23: 1833 | AE23: 1596 | AF23: 3836 | AG23: 3914 | AH23: 3309 | AI23: 2835 | AJ23: 4496 | AK23: 3769 | AL23: 3307 | AM23: 2424 | AN23: 3746 | AO23: 6318 | AP23: 5737 | AQ23: 5545 | AR23: 4547 | AS23: 3421 | AT23: 3896 | AU23: 2702 | AV23: 3759 | AW23: 4662 | AX23: 3493 | AY23: 6868 | AZ23: 6784 | BA23: 5889 | BB23: 7071 | BC23: 10210 | BD23: 12916 | BE23: 11384 | BF23: 14266 | BG23: 9873 | BH23: 14598 | BI23: 7793 | BJ23: 9641 | BK23: 6295 | BL23: 7700 | BM23: 4722 | BN23: 2435 | BO23: 655 | BP23: 3387 | BQ23: 654 | BR23: 1287 | BS23: 580 | BT23: 892 | BU23: 161 | BV23: 31 | BW23: 755 | BX23: 658 | BY23: 0 | BZ23: 9 | CA23: 0 | CB23: 915 | CC23: 0 | CD23: 0 | CE23: 0 | CF23: 0 | CG23: 0 | CH23: 0 | CI23: 0 | CJ23: 0 | CK23: 0 | CL23: 0 | CM23: 0 | CN23: 362 | CO23: 0 | CP23: 0 | CQ23: 0 | CR23: 0 | CS23: 0 | CT23: 0 | CU23: 0 | CV23: 0 | CX23: 15278.93923 | CY23: 18381.37361 | CZ23: 16871.96227 | DA23: 16247.07478 | DB23: 13509.89155 | DC23: 13408.67737 | DD23: 11600.02414 | DE23: 9980.597402 | DF23: 8563.599005 | DG23: 9764.967211 | DH23: 7749.48502 | DI23: 7445.842506 | DJ23: 6385.294017 | DK23: 6618.526672 | DL23: 6662.532834 | DM23: 8409.577441 | DN23: 9091.672942 | DO23: 13237.05334 | DP23: 13355.86998 | DQ23: 11710.03954 | DR23: 8066.329382 | DS23: 7023.383357 | DT23: 16880.76351 | DU23: 17224.01157 | DV23: 14561.6388 | DW23: 12475.74675 | DX23: 19785.17016 | DY23: 16585.92223 | DZ23: 14552.83757 | EA23: 10667.09352 | EB23: 16484.70805 | EC23: 27803.09276 | ED23: 25246.33479 | EE23: 24401.41649 | EF23: 20009.60158 | EG23: 15054.50781 | EH23: 17144.80048 | EI23: 11890.46481 | EJ23: 16541.91606 | EK23: 20515.67244 | EL23: 15371.35217 | EM23: 30223.43164 | EN23: 29853.77988 | EO23: 25915.22844 | EP23: 31116.75672 | EQ23: 44930.29077 | ER23: 56838.35804 | ES23: 50096.61412 | ET23: 62779.18983 | EU23: 43447.28314 | EV23: 64240.19439 | EW23: 34294.00157 | EX23: 42426.34019 | EY23: 27701.87859 | EZ23: 33884.74427 | FA23: 20779.70941 | FB23: 10715.5003 | FC23: 2882.403571 | FD23: 14904.88686 | FE23: 2878.002955 | FF23: 5663.59297 | FG23: 2552.35736 | FH23: 3925.349596 | FI23: 708.4991983 | FJ23: 136.4191003 | FK23: 3322.465185 | FL23: 2895.605419 | FM23: 0 | FN23: 39.60554525 | FO23: 0 | FP23: 4026.563767 | FQ23: 0 | FR23: 0 | FS23: 0 | FT23: 0 | FU23: 0 | FV23: 0 | FW23: 0 | FX23: 0 | FY23: 0 | FZ23: 0 | GA23: 0 | GB23: 1593.023042 | GC23: 0 | GD23: 0 | GE23: 0 | GF23: 0 | GG23: 0 | GH23: 0 | GI23: 0 | GJ23: 0
A24: 1 | D24: POLES | E24: > 1 kV & < = 11 kV; WOOD | F24: 4.063306302 | G24: 53.09752699 | H24: 7.286804992 | I24: 2 | J24: 2587 | K24: 2878 | L24: 2827 | M24: 2705 | N24: 2891 | O24: 2315 | P24: 2173 | Q24: 1938 | R24: 1953 | S24: 2090 | T24: 1549 | U24: 1629 | V24: 1600 | W24: 2260 | X24: 1448 | Y24: 1552 | Z24: 1224 | AA24: 1600 | AB24: 1978 | AC24: 1704 | AD24: 1413 | AE24: 1597 | AF24: 2552 | AG24: 2591 | AH24: 2026 | AI24: 2002 | AJ24: 2635 | AK24: 2812 | AL24: 2396 | AM24: 1534 | AN24: 2659 | AO24: 3879 | AP24: 2955 | AQ24: 2209 | AR24: 2193 | AS24: 1931 | AT24: 2058 | AU24: 1901 | AV24: 3329 | AW24: 3067 | AX24: 2295 | AY24: 3381 | AZ24: 3110 | BA24: 3489 | BB24: 2130 | BC24: 3670 | BD24: 4296 | BE24: 3529 | BF24: 4078 | BG24: 2655 | BH24: 1996 | BI24: 1089 | BJ24: 2066 | BK24: 1316 | BL24: 712 | BM24: 252 | BN24: 116 | BO24: 120 | BP24: 30 | BQ24: 39 | BR24: 18 | BS24: 1 | BT24: 1 | BU24: 0 | BV24: 27 | BW24: 1 | BX24: 0 | BY24: 0 | BZ24: 12 | CA24: 0 | CB24: 1 | CC24: 0 | CD24: 0 | CE24: 0 | CF24: 0 | CG24: 0 | CH24: 0 | CI24: 0 | CJ24: 0 | CK24: 0 | CL24: 0 | CM24: 0 | CN24: 0 | CO24: 0 | CP24: 0 | CQ24: 0 | CR24: 0 | CS24: 0 | CT24: 0 | CU24: 0 | CV24: 0 | CX24: 10511.7734 | CY24: 11694.19554 | CZ24: 11486.96691 | DA24: 10991.24355 | DB24: 11747.01852 | DC24: 9406.554088 | DD24: 8829.564593 | DE24: 7874.687613 | DF24: 7935.637207 | DG24: 8492.31017 | DH24: 6294.061461 | DI24: 6619.125965 | DJ24: 6501.290083 | DK24: 9183.072242 | DL24: 5883.667525 | DM24: 6306.25138 | DN24: 4973.486913 | DO24: 6501.290083 | DP24: 8037.219865 | DQ24: 6923.873938 | DR24: 5741.451804 | DS24: 6489.100164 | DT24: 10369.55768 | DU24: 10528.02663 | DV24: 8232.258567 | DW24: 8134.739216 | DX24: 10706.8121 | DY24: 11426.01732 | DZ24: 9735.681899 | EA24: 6233.111867 | EB24: 10804.33146 | EC24: 15761.56514 | ED24: 12007.07012 | EE24: 8975.84362 | EF24: 8910.830719 | EG24: 7846.244468 | EH24: 8362.284369 | EI24: 7724.345279 | EJ24: 13526.74668 | EK24: 12462.16043 | EL24: 9325.287962 | EM24: 13738.03861 | EN24: 12636.8826 | EO24: 14176.87569 | EP24: 8654.842422 | EQ24: 14912.33413 | ER24: 17455.96387 | ES24: 14339.40794 | ET24: 16570.1631 | EU24: 10788.07823 | EV24: 8110.359378 | EW24: 4424.940562 | EX24: 8394.790819 | EY24: 5347.311093 | EZ24: 2893.074087 | FA24: 1023.953188 | FB24: 471.343531 | FC24: 487.5967562 | FD24: 121.899189 | FE24: 158.4689458 | FF24: 73.13951343 | FG24: 4.063306302 | FH24: 4.063306302 | FI24: 0 | FJ24: 109.7092701 | FK24: 4.063306302 | FL24: 0 | FM24: 0 | FN24: 48.75967562 | FO24: 0 | FP24: 4.063306302 | FQ24: 0 | FR24: 0 | FS24: 0 | FT24: 0 | FU24: 0 | FV24: 0 | FW24: 0 | FX24: 0 | FY24: 0 | FZ24: 0 | GA24: 0 | GB24: 0 | GC24: 0 | GD24: 0 | GE24: 0 | GF24: 0 | GG24: 0 | GH24: 0 | GI24: 0 | GJ24: 0
A25: 1 | D25: POLES | E25: ˃ 11 kV & < = 22 kV; WOOD | F25: 0.5108338757 | G25: 57.34373643 | H25: 7.57256472 | I25: 2 | J25: 6 | K25: 0 | L25: 0 | M25: 1 | N25: 31 | O25: 5 | P25: 1 | Q25: 1 | R25: 11 | S25: 31 | T25: 25 | U25: 23 | V25: 11 | W25: 40 | X25: 31 | Y25: 14 | Z25: 7 | AA25: 1 | AB25: 4 | AC25: 2 | AD25: 18 | AE25: 5 | AF25: 7 | AG25: 10 | AH25: 10 | AI25: 1 | AJ25: 2 | AK25: 1 | AL25: 0 | AM25: 2 | AN25: 4 | AO25: 9 | AP25: 11 | AQ25: 1 | AR25: 0 | AS25: 0 | AT25: 0 | AU25: 18 | AV25: 0 | AW25: 0 | AX25: 38 | AY25: 42 | AZ25: 5 | BA25: 189 | BB25: 0 | BC25: 0 | BD25: 24 | BE25: 0 | BF25: 0 | BG25: 0 | BH25: 1 | BI25: 0 | BJ25: 0 | BK25: 0 | BL25: 0 | BM25: 0 | BN25: 0 | BO25: 0 | BP25: 0 | BQ25: 0 | BR25: 0 | BS25: 0 | BT25: 0 | BU25: 0 | BV25: 0 | BW25: 0 | BX25: 0 | BY25: 0 | BZ25: 0 | CA25: 0 | CB25: 0 | CC25: 0 | CD25: 0 | CE25: 0 | CF25: 0 | CG25: 0 | CH25: 0 | CI25: 0 | CJ25: 0 | CK25: 0 | CL25: 0 | CM25: 0 | CN25: 0 | CO25: 0 | CP25: 0 | CQ25: 0 | CR25: 0 | CS25: 0 | CT25: 0 | CU25: 0 | CV25: 0 | CX25: 3.065003254 | CY25: 0 | CZ25: 0 | DA25: 0.5108338757 | DB25: 15.83585015 | DC25: 2.554169378 | DD25: 0.5108338757 | DE25: 0.5108338757 | DF25: 5.619172632 | DG25: 15.83585015 | DH25: 12.77084689 | DI25: 11.74917914 | DJ25: 5.619172632 | DK25: 20.43335503 | DL25: 15.83585015 | DM25: 7.151674259 | DN25: 3.57583713 | DO25: 0.5108338757 | DP25: 2.043335503 | DQ25: 1.021667751 | DR25: 9.195009762 | DS25: 2.554169378 | DT25: 3.57583713 | DU25: 5.108338757 | DV25: 5.108338757 | DW25: 0.5108338757 | DX25: 1.021667751 | DY25: 0.5108338757 | DZ25: 0 | EA25: 1.021667751 | EB25: 2.043335503 | EC25: 4.597504881 | ED25: 5.619172632 | EE25: 0.5108338757 | EF25: 0 | EG25: 0 | EH25: 0 | EI25: 9.195009762 | EJ25: 0 | EK25: 0 | EL25: 19.41168727 | EM25: 21.45502278 | EN25: 2.554169378 | EO25: 96.5476025 | EP25: 0 | EQ25: 0 | ER25: 12.26001302 | ES25: 0 | ET25: 0 | EU25: 0 | EV25: 0.5108338757 | EW25: 0 | EX25: 0 | EY25: 0 | EZ25: 0 | FA25: 0 | FB25: 0 | FC25: 0 | FD25: 0 | FE25: 0 | FF25: 0 | FG25: 0 | FH25: 0 | FI25: 0 | FJ25: 0 | FK25: 0 | FL25: 0 | FM25: 0 | FN25: 0 | FO25: 0 | FP25: 0 | FQ25: 0 | FR25: 0 | FS25: 0 | FT25: 0 | FU25: 0 | FV25: 0 | FW25: 0 | FX25: 0 | FY25: 0 | FZ25: 0 | GA25: 0 | GB25: 0 | GC25: 0 | GD25: 0 | GE25: 0 | GF25: 0 | GG25: 0 | GH25: 0 | GI25: 0 | GJ25: 0
A26: 1 | D26: POLES | E26: > 22 kV & < = 66 kV; WOOD | F26: 0.5108338757 | G26: 56.62326383 | H26: 7.52484311 | I26: 2 | J26: 206 | K26: 276 | L26: 293 | M26: 360 | N26: 374 | O26: 271 | P26: 221 | Q26: 138 | R26: 223 | S26: 208 | T26: 232 | U26: 245 | V26: 154 | W26: 129 | X26: 112 | Y26: 126 | Z26: 94 | AA26: 133 | AB26: 206 | AC26: 245 | AD26: 216 | AE26: 339 | AF26: 237 | AG26: 232 | AH26: 178 | AI26: 123 | AJ26: 360 | AK26: 295 | AL26: 262 | AM26: 283 | AN26: 587 | AO26: 672 | AP26: 332 | AQ26: 430 | AR26: 267 | AS26: 293 | AT26: 406 | AU26: 229 | AV26: 242 | AW26: 373 | AX26: 220 | AY26: 590 | AZ26: 621 | BA26: 597 | BB26: 460 | BC26: 653 | BD26: 784 | BE26: 870 | BF26: 701 | BG26: 443 | BH26: 271 | BI26: 125 | BJ26: 275 | BK26: 250 | BL26: 49 | BM26: 0 | BN26: 0 | BO26: 0 | BP26: 30 | BQ26: 12 | BR26: 0 | BS26: 0 | BT26: 0 | BU26: 0 | BV26: 6 | BW26: 0 | BX26: 0 | BY26: 0 | BZ26: 82 | CA26: 0 | CB26: 0 | CC26: 0 | CD26: 0 | CE26: 0 | CF26: 0 | CG26: 0 | CH26: 0 | CI26: 0 | CJ26: 0 | CK26: 0 | CL26: 0 | CM26: 0 | CN26: 0 | CO26: 0 | CP26: 0 | CQ26: 0 | CR26: 0 | CS26: 0 | CT26: 0 | CU26: 0 | CV26: 0 | CX26: 105.2317784 | CY26: 140.9901497 | CZ26: 149.6743256 | DA26: 183.9001952 | DB26: 191.0518695 | DC26: 138.4359803 | DD26: 112.8942865 | DE26: 70.49507484 | DF26: 113.9159543 | DG26: 106.2534461 | DH26: 118.5134592 | DI26: 125.1542995 | DJ26: 78.66841685 | DK26: 65.89756996 | DL26: 57.21339407 | DM26: 64.36506833 | DN26: 48.01838431 | DO26: 67.94090546 | DP26: 105.2317784 | DQ26: 125.1542995 | DR26: 110.3401171 | DS26: 173.1726838 | DT26: 121.0676285 | DU26: 118.5134592 | DV26: 90.92842987 | DW26: 62.83256671 | DX26: 183.9001952 | DY26: 150.6959933 | DZ26: 133.8384754 | EA26: 144.5659868 | EB26: 299.859485 | EC26: 343.2803644 | ED26: 169.5968467 | EE26: 219.6585665 | EF26: 136.3926448 | EG26: 149.6743256 | EH26: 207.3985535 | EI26: 116.9809575 | EJ26: 123.6217979 | EK26: 190.5410356 | EL26: 112.3834526 | EM26: 301.3919866 | EN26: 317.2278368 | EO26: 304.9678238 | EP26: 234.9835828 | EQ26: 333.5745208 | ER26: 400.4937585 | ES26: 444.4254718 | ET26: 358.0945468 | EU26: 226.2994069 | EV26: 138.4359803 | EW26: 63.85423446 | EX26: 140.4793158 | EY26: 127.7084689 | EZ26: 25.03085991 | FA26: 0 | FB26: 0 | FC26: 0 | FD26: 15.32501627 | FE26: 6.130006508 | FF26: 0 | FG26: 0 | FH26: 0 | FI26: 0 | FJ26: 3.065003254 | FK26: 0 | FL26: 0 | FM26: 0 | FN26: 41.8883778 | FO26: 0 | FP26: 0 | FQ26: 0 | FR26: 0 | FS26: 0 | FT26: 0 | FU26: 0 | FV26: 0 | FW26: 0 | FX26: 0 | FY26: 0 | FZ26: 0 | GA26: 0 | GB26: 0 | GC26: 0 | GD26: 0 | GE26: 0 | GF26: 0 | GG26: 0 | GH26: 0 | GI26: 0 | GJ26: 0
A27: 1 | D27: POLES | E27: > 66 kV & < = 132 kV; WOOD | F27: 0.5108338757 | G27: 60.42208046 | H27: 7.773164122 | I27: 2 | J27: 16 | K27: 21 | L27: 22 | M27: 49 | N27: 33 | O27: 57 | P27: 16 | Q27: 10 | R27: 17 | S27: 11 | T27: 13 | U27: 10 | V27: 36 | W27: 88 | X27: 13 | Y27: 8 | Z27: 16 | AA27: 21 | AB27: 36 | AC27: 63 | AD27: 13 | AE27: 15 | AF27: 33 | AG27: 40 | AH27: 12 | AI27: 18 | AJ27: 17 | AK27: 19 | AL27: 22 | AM27: 33 | AN27: 416 | AO27: 345 | AP27: 52 | AQ27: 35 | AR27: 80 | AS27: 108 | AT27: 73 | AU27: 511 | AV27: 141 | AW27: 127 | AX27: 17 | AY27: 174 | AZ27: 144 | BA27: 397 | BB27: 250 | BC27: 206 | BD27: 66 | BE27: 177 | BF27: 124 | BG27: 122 | BH27: 72 | BI27: 0 | BJ27: 49 | BK27: 119 | BL27: 14 | BM27: 13 | BN27: 0 | BO27: 0 | BP27: 0 | BQ27: 0 | BR27: 0 | BS27: 0 | BT27: 0 | BU27: 0 | BV27: 0 | BW27: 0 | BX27: 0 | BY27: 0 | BZ27: 0 | CA27: 0 | CB27: 0 | CC27: 0 | CD27: 0 | CE27: 0 | CF27: 0 | CG27: 0 | CH27: 0 | CI27: 0 | CJ27: 0 | CK27: 0 | CL27: 0 | CM27: 0 | CN27: 0 | CO27: 0 | CP27: 0 | CQ27: 0 | CR27: 0 | CS27: 0 | CT27: 0 | CU27: 0 | CV27: 0 | CX27: 8.17334201 | CY27: 10.72751139 | CZ27: 11.23834526 | DA27: 25.03085991 | DB27: 16.8575179 | DC27: 29.11753091 | DD27: 8.17334201 | DE27: 5.108338757 | DF27: 8.684175886 | DG27: 5.619172632 | DH27: 6.640840383 | DI27: 5.108338757 | DJ27: 18.39001952 | DK27: 44.95338106 | DL27: 6.640840383 | DM27: 4.086671005 | DN27: 8.17334201 | DO27: 10.72751139 | DP27: 18.39001952 | DQ27: 32.18253417 | DR27: 6.640840383 | DS27: 7.662508135 | DT27: 16.8575179 | DU27: 20.43335503 | DV27: 6.130006508 | DW27: 9.195009762 | DX27: 8.684175886 | DY27: 9.705843637 | DZ27: 11.23834526 | EA27: 16.8575179 | EB27: 212.5068923 | EC27: 176.2376871 | ED27: 26.56336153 | EE27: 17.87918565 | EF27: 40.86671005 | EG27: 55.17005857 | EH27: 37.29087292 | EI27: 261.0361105 | EJ27: 72.02757647 | EK27: 64.87590221 | EL27: 8.684175886 | EM27: 88.88509436 | EN27: 73.56007809 | EO27: 202.8010486 | EP27: 127.7084689 | EQ27: 105.2317784 | ER27: 33.71503579 | ES27: 90.41759599 | ET27: 63.34340058 | EU27: 62.32173283 | EV27: 36.78003905 | EW27: 0 | EX27: 25.03085991 | EY27: 60.7892312 | EZ27: 7.151674259 | FA27: 6.640840383 | FB27: 0 | FC27: 0 | FD27: 0 | FE27: 0 | FF27: 0 | FG27: 0 | FH27: 0 | FI27: 0 | FJ27: 0 | FK27: 0 | FL27: 0 | FM27: 0 | FN27: 0 | FO27: 0 | FP27: 0 | FQ27: 0 | FR27: 0 | FS27: 0 | FT27: 0 | FU27: 0 | FV27: 0 | FW27: 0 | FX27: 0 | FY27: 0 | FZ27: 0 | GA27: 0 | GB27: 0 | GC27: 0 | GD27: 0 | GE27: 0 | GF27: 0 | GG27: 0 | GH27: 0 | GI27: 0 | GJ27: 0
D28: =IF(A28>0,VLOOKUP(A28,IDtable,2),"") ->  | E28: > 132 kV; WOOD | F28: 0 | G28: 0 | H28: 0 | I28: 2 | J28: 0 | K28: 0 | L28: 0 | M28: 0 | N28: 0 | O28: 0 | P28: 0 | Q28: 0 | R28: 0 | S28: 0 | T28: 0 | U28: 0 | V28: 0 | W28: 0 | X28: 0 | Y28: 0 | Z28: 0 | AA28: 0 | AB28: 0 | AC28: 0 | AD28: 0 | AE28: 0 | AF28: 0 | AG28: 0 | AH28: 0 | AI28: 0 | AJ28: 0 | AK28: 0 | AL28: 0 | AM28: 0 | AN28: 0 | AO28: 0 | AP28: 0 | AQ28: 0 | AR28: 0 | AS28: 0 | AT28: 0 | AU28: 0 | AV28: 0 | AW28: 0 | AX28: 0 | AY28: 0 | AZ28: 0 | BA28: 0 | BB28: 0 | BC28: 0 | BD28: 0 | BE28: 0 | BF28: 0 | BG28: 0 | BH28: 0 | BI28: 0 | BJ28: 0 | BK28: 0 | BL28: 0 | BM28: 0 | BN28: 0 | BO28: 0 | BP28: 0 | BQ28: 0 | BR28: 0 | BS28: 0 | BT28: 0 | BU28: 0 | BV28: 0 | BW28: 0 | BX28: 0 | BY28: 0 | BZ28: 0 | CA28: 0 | CB28: 0 | CC28: 0 | CD28: 0 | CE28: 0 | CF28: 0 | CG28: 0 | CH28: 0 | CI28: 0 | CJ28: 0 | CK28: 0 | CL28: 0 | CM28: 0 | CN28: 0 | CO28: 0 | CP28: 0 | CQ28: 0 | CR28: 0 | CS28: 0 | CT28: 0 | CU28: 0 | CV28: 0 | CX28: 0 | CY28: 0 | CZ28: 0 | DA28: 0 | DB28: 0 | DC28: 0 | DD28: 0 | DE28: 0 | DF28: 0 | DG28: 0 | DH28: 0 | DI28: 0 | DJ28: 0 | DK28: 0 | DL28: 0 | DM28: 0 | DN28: 0 | DO28: 0 | DP28: 0 | DQ28: 0 | DR28: 0 | DS28: 0 | DT28: 0 | DU28: 0 | DV28: 0 | DW28: 0 | DX28: 0 | DY28: 0 | DZ28: 0 | EA28: 0 | EB28: 0 | EC28: 0 | ED28: 0 | EE28: 0 | EF28: 0 | EG28: 0 | EH28: 0 | EI28: 0 | EJ28: 0 | EK28: 0 | EL28: 0 | EM28: 0 | EN28: 0 | EO28: 0 | EP28: 0 | EQ28: 0 | ER28: 0 | ES28: 0 | ET28: 0 | EU28: 0 | EV28: 0 | EW28: 0 | EX28: 0 | EY28: 0 | EZ28: 0 | FA28: 0 | FB28: 0 | FC28: 0 | FD28: 0 | FE28: 0 | FF28: 0 | FG28: 0 | FH28: 0 | FI28: 0 | FJ28: 0 | FK28: 0 | FL28: 0 | FM28: 0 | FN28: 0 | FO28: 0 | FP28: 0 | FQ28: 0 | FR28: 0 | FS28: 0 | FT28: 0 | FU28: 0 | FV28: 0 | FW28: 0 | FX28: 0 | FY28: 0 | FZ28: 0 | GA28: 0 | GB28: 0 | GC28: 0 | GD28: 0 | GE28: 0 | GF28: 0 | GG28: 0 | GH28: 0 | GI28: 0 | GJ28: 0
A29: 1 | D29: POLES | E29: ˂ = 1 kV; CONCRETE | F29: 9.643251227 | G29: 48.10554264 | H29: 6.935815932 | I29: 2 | J29: 13 | K29: 25 | L29: 20 | M29: 25 | N29: 2 | O29: 6 | P29: 5 | Q29: 13 | R29: 2 | S29: 14 | T29: 0 | U29: 0 | V29: 6 | W29: 6 | X29: 0 | Y29: 1 | Z29: 0 | AA29: 22 | AB29: 17 | AC29: 41 | AD29: 3 | AE29: 61 | AF29: 12 | AG29: 44 | AH29: 0 | AI29: 0 | AJ29: 2 | AK29: 27 | AL29: 7 | AM29: 10 | AN29: 0 | AO29: 3 | AP29: 2 | AQ29: 0 | AR29: 0 | AS29: 0 | AT29: 0 | AU29: 0 | AV29: 1 | AW29: 0 | AX29: 25 | AY29: 7 | AZ29: 4 | BA29: 3 | BB29: 0 | BC29: 1 | BD29: 0 | BE29: 0 | BF29: 0 | BG29: 9 | BH29: 0 | BI29: 1 | BJ29: 16 | BK29: 5 | BL29: 0 | BM29: 2 | BN29: 0 | BO29: 0 | BP29: 0 | BQ29: 0 | BR29: 0 | BS29: 1 | BT29: 0 | BU29: 0 | BV29: 0 | BW29: 0 | BX29: 0 | BY29: 0 | BZ29: 0 | CA29: 0 | CB29: 0 | CC29: 0 | CD29: 0 | CE29: 0 | CF29: 0 | CG29: 0 | CH29: 0 | CI29: 0 | CJ29: 0 | CK29: 0 | CL29: 0 | CM29: 0 | CN29: 0 | CO29: 0 | CP29: 0 | CQ29: 0 | CR29: 0 | CS29: 0 | CT29: 0 | CU29: 0 | CV29: 0 | CX29: 125.362266 | CY29: 241.0812807 | CZ29: 192.8650245 | DA29: 241.0812807 | DB29: 19.28650245 | DC29: 57.85950736 | DD29: 48.21625614 | DE29: 125.362266 | DF29: 19.28650245 | DG29: 135.0055172 | DH29: 0 | DI29: 0 | DJ29: 57.85950736 | DK29: 57.85950736 | DL29: 0 | DM29: 9.643251227 | DN29: 0 | DO29: 212.151527 | DP29: 163.9352709 | DQ29: 395.3733003 | DR29: 28.92975368 | DS29: 588.2383249 | DT29: 115.7190147 | DU29: 424.303054 | DV29: 0 | DW29: 0 | DX29: 19.28650245 | DY29: 260.3677831 | DZ29: 67.50275859 | EA29: 96.43251227 | EB29: 0 | EC29: 28.92975368 | ED29: 19.28650245 | EE29: 0 | EF29: 0 | EG29: 0 | EH29: 0 | EI29: 0 | EJ29: 9.643251227 | EK29: 0 | EL29: 241.0812807 | EM29: 67.50275859 | EN29: 38.57300491 | EO29: 28.92975368 | EP29: 0 | EQ29: 9.643251227 | ER29: 0 | ES29: 0 | ET29: 0 | EU29: 86.78926104 | EV29: 0 | EW29: 9.643251227 | EX29: 154.2920196 | EY29: 48.21625614 | EZ29: 0 | FA29: 19.28650245 | FB29: 0 | FC29: 0 | FD29: 0 | FE29: 0 | FF29: 0 | FG29: 9.643251227 | FH29: 0 | FI29: 0 | FJ29: 0 | FK29: 0 | FL29: 0 | FM29: 0 | FN29: 0 | FO29: 0 | FP29: 0 | FQ29: 0 | FR29: 0 | FS29: 0 | FT29: 0 | FU29: 0 | FV29: 0 | FW29: 0 | FX29: 0 | FY29: 0 | FZ29: 0 | GA29: 0 | GB29: 0 | GC29: 0 | GD29: 0 | GE29: 0 | GF29: 0 | GG29: 0 | GH29: 0 | GI29: 0 | GJ29: 0
A30: 1 | D30: POLES | E30: > 1 kV & < = 11 kV; CONCRETE | F30: 11.4509847 | G30: 26.75588831 | H30: 5.172609429 | I30: 2 | J30: 10 | K30: 17 | L30: 12 | M30: 8 | N30: 2 | O30: 3 | P30: 10 | Q30: 6 | R30: 1 | S30: 7 | T30: 12 | U30: 9 | V30: 9 | W30: 0 | X30: 4 | Y30: 0 | Z30: 2 | AA30: 55 | AB30: 8 | AC30: 63 | AD30: 28 | AE30: 1 | AF30: 0 | AG30: 3 | AH30: 0 | AI30: 0 | AJ30: 1 | AK30: 0 | AL30: 0 | AM30: 0 | AN30: 0 | AO30: 0 | AP30: 0 | AQ30: 0 | AR30: 0 | AS30: 0 | AT30: 0 | AU30: 0 | AV30: 0 | AW30: 0 | AX30: 0 | AY30: 0 | AZ30: 1 | BA30: 0 | BB30: 0 | BC30: 1 | BD30: 0 | BE30: 0 | BF30: 0 | BG30: 0 | BH30: 0 | BI30: 0 | BJ30: 1 | BK30: 0 | BL30: 0 | BM30: 0 | BN30: 0 | BO30: 0 | BP30: 0 | BQ30: 0 | BR30: 0 | BS30: 0 | BT30: 0 | BU30: 0 | BV30: 0 | BW30: 0 | BX30: 0 | BY30: 0 | BZ30: 0 | CA30: 0 | CB30: 0 | CC30: 0 | CD30: 0 | CE30: 0 | CF30: 0 | CG30: 0 | CH30: 0 | CI30: 0 | CJ30: 0 | CK30: 0 | CL30: 0 | CM30: 0 | CN30: 0 | CO30: 0 | CP30: 0 | CQ30: 0 | CR30: 0 | CS30: 0 | CT30: 0 | CU30: 0 | CV30: 0 | CX30: 114.509847 | CY30: 194.6667398 | CZ30: 137.4118164 | DA30: 91.60787757 | DB30: 22.90196939 | DC30: 34.35295409 | DD30: 114.509847 | DE30: 68.70590818 | DF30: 11.4509847 | DG30: 80.15689288 | DH30: 137.4118164 | DI30: 103.0588623 | DJ30: 103.0588623 | DK30: 0 | DL30: 45.80393879 | DM30: 0 | DN30: 22.90196939 | DO30: 629.8041583 | DP30: 91.60787757 | DQ30: 721.4120359 | DR30: 320.6275715 | DS30: 11.4509847 | DT30: 0 | DU30: 34.35295409 | DV30: 0 | DW30: 0 | DX30: 11.4509847 | DY30: 0 | DZ30: 0 | EA30: 0 | EB30: 0 | EC30: 0 | ED30: 0 | EE30: 0 | EF30: 0 | EG30: 0 | EH30: 0 | EI30: 0 | EJ30: 0 | EK30: 0 | EL30: 0 | EM30: 0 | EN30: 11.4509847 | EO30: 0 | EP30: 0 | EQ30: 11.4509847 | ER30: 0 | ES30: 0 | ET30: 0 | EU30: 0 | EV30: 0 | EW30: 0 | EX30: 11.4509847 | EY30: 0 | EZ30: 0 | FA30: 0 | FB30: 0 | FC30: 0 | FD30: 0 | FE30: 0 | FF30: 0 | FG30: 0 | FH30: 0 | FI30: 0 | FJ30: 0 | FK30: 0 | FL30: 0 | FM30: 0 | FN30: 0 | FO30: 0 | FP30: 0 | FQ30: 0 | FR30: 0 | FS30: 0 | FT30: 0 | FU30: 0 | FV30: 0 | FW30: 0 | FX30: 0 | FY30: 0 | FZ30: 0 | GA30: 0 | GB30: 0 | GC30: 0 | GD30: 0 | GE30: 0 | GF30: 0 | GG30: 0 | GH30: 0 | GI30: 0 | GJ30: 0
E31: ˃ 11 kV & < = 22 kV; CONCRETE | F31: 0 | G31: 0 | H31: 0 | I31: 2 | J31: 0 | K31: 0 | L31: 0 | M31: 0 | N31: 0 | O31: 0 | P31: 0 | Q31: 0 | R31: 0 | S31: 0 | T31: 0 | U31: 0 | V31: 0 | W31: 0 | X31: 0 | Y31: 0 | Z31: 0 | AA31: 0 | AB31: 0 | AC31: 0 | AD31: 0 | AE31: 0 | AF31: 0 | AG31: 0 | AH31: 0 | AI31: 0 | AJ31: 0 | AK31: 0 | AL31: 0 | AM31: 0 | AN31: 0 | AO31: 0 | AP31: 0 | AQ31: 0 | AR31: 0 | AS31: 0 | AT31: 0 | AU31: 0 | AV31: 0 | AW31: 0 | AX31: 0 | AY31: 0 | AZ31: 0 | BA31: 0 | BB31: 0 | BC31: 0 | BD31: 0 | BE31: 0 | BF31: 0 | BG31: 0 | BH31: 0 | BI31: 0 | BJ31: 0 | BK31: 0 | BL31: 0 | BM31: 0 | BN31: 0 | BO31: 0 | BP31: 0 | BQ31: 0 | BR31: 0 | BS31: 0 | BT31: 0 | BU31: 0 | BV31: 0 | BW31: 0 | BX31: 0 | BY31: 0 | BZ31: 0 | CA31: 0 | CB31: 0 | CC31: 0 | CD31: 0 | CE31: 0 | CF31: 0 | CG31: 0 | CH31: 0 | CI31: 0 | CJ31: 0 | CK31: 0 | CL31: 0 | CM31: 0 | CN31: 0 | CO31: 0 | CP31: 0 | CQ31: 0 | CR31: 0 | CS31: 0 | CT31: 0 | CU31: 0 | CV31: 0 | CX31: 0 | CY31: 0 | CZ31: 0 | DA31: 0 | DB31: 0 | DC31: 0 | DD31: 0 | DE31: 0 | DF31: 0 | DG31: 0 | DH31: 0 | DI31: 0 | DJ31: 0 | DK31: 0 | DL31: 0 | DM31: 0 | DN31: 0 | DO31: 0 | DP31: 0 | DQ31: 0 | DR31: 0 | DS31: 0 | DT31: 0 | DU31: 0 | DV31: 0 | DW31: 0 | DX31: 0 | DY31: 0 | DZ31: 0 | EA31: 0 | EB31: 0 | EC31: 0 | ED31: 0 | EE31: 0 | EF31: 0 | EG31: 0 | EH31: 0 | EI31: 0 | EJ31: 0 | EK31: 0 | EL31: 0 | EM31: 0 | EN31: 0 | EO31: 0 | EP31: 0 | EQ31: 0 | ER31: 0 | ES31: 0 | ET31: 0 | EU31: 0 | EV31: 0 | EW31: 0 | EX31: 0 | EY31: 0 | EZ31: 0 | FA31: 0 | FB31: 0 | FC31: 0 | FD31: 0 | FE31: 0 | FF31: 0 | FG31: 0 | FH31: 0 | FI31: 0 | FJ31: 0 | FK31: 0 | FL31: 0 | FM31: 0 | FN31: 0 | FO31: 0 | FP31: 0 | FQ31: 0 | FR31: 0 | FS31: 0 | FT31: 0 | FU31: 0 | FV31: 0 | FW31: 0 | FX31: 0 | FY31: 0 | FZ31: 0 | GA31: 0 | GB31: 0 | GC31: 0 | GD31: 0 | GE31: 0 | GF31: 0 | GG31: 0 | GH31: 0 | GI31: 0 | GJ31: 0
A32: 1 | D32: POLES | E32: > 22 kV & < = 66 kV; CONCRETE | F32: 20.18874088 | G32: 44.19260296 | H32: 6.647751722 | I32: 2 | J32: 51 | K32: 156 | L32: 342 | M32: 322 | N32: 95 | O32: 112 | P32: 416 | Q32: 410 | R32: 310 | S32: 155 | T32: 108 | U32: 92 | V32: 74 | W32: 85 | X32: 13 | Y32: 60 | Z32: 4 | AA32: 56 | AB32: 10 | AC32: 54 | AD32: 19 | AE32: 86 | AF32: 42 | AG32: 47 | AH32: 39 | AI32: 0 | AJ32: 38 | AK32: 6 | AL32: 0 | AM32: 57 | AN32: 4 | AO32: 0 | AP32: 0 | AQ32: 1 | AR32: 0 | AS32: 1 | AT32: 1 | AU32: 0 | AV32: 20 | AW32: 0 | AX32: 0 | AY32: 0 | AZ32: 2 | BA32: 1 | BB32: 0 | BC32: 8 | BD32: 1 | BE32: 46 | BF32: 22 | BG32: 1 | BH32: 0 | BI32: 0 | BJ32: 0 | BK32: 23 | BL32: 0 | BM32: 0 | BN32: 0 | BO32: 0 | BP32: 0 | BQ32: 0 | BR32: 0 | BS32: 0 | BT32: 0 | BU32: 0 | BV32: 0 | BW32: 0 | BX32: 0 | BY32: 0 | BZ32: 0 | CA32: 0 | CB32: 0 | CC32: 0 | CD32: 0 | CE32: 0 | CF32: 0 | CG32: 0 | CH32: 0 | CI32: 0 | CJ32: 0 | CK32: 0 | CL32: 0 | CM32: 0 | CN32: 0 | CO32: 0 | CP32: 0 | CQ32: 0 | CR32: 0 | CS32: 0 | CT32: 0 | CU32: 0 | CV32: 0 | CX32: 1029.625785 | CY32: 3149.443578 | CZ32: 6904.549381 | DA32: 6500.774564 | DB32: 1917.930384 | DC32: 2261.138979 | DD32: 8398.516207 | DE32: 8277.383761 | DF32: 6258.509673 | DG32: 3129.254837 | DH32: 2180.384015 | DI32: 1857.364161 | DJ32: 1493.966825 | DK32: 1716.042975 | DL32: 262.4536315 | DM32: 1211.324453 | DN32: 80.75496353 | DO32: 1130.569489 | DP32: 201.8874088 | DQ32: 1090.192008 | DR32: 383.5860767 | DS32: 1736.231716 | DT32: 847.927117 | DU32: 948.8708214 | DV32: 787.3608944 | DW32: 0 | DX32: 767.1721535 | DY32: 121.1324453 | DZ32: 0 | EA32: 1150.75823 | EB32: 80.75496353 | EC32: 0 | ED32: 0 | EE32: 20.18874088 | EF32: 0 | EG32: 20.18874088 | EH32: 20.18874088 | EI32: 0 | EJ32: 403.7748176 | EK32: 0 | EL32: 0 | EM32: 0 | EN32: 40.37748176 | EO32: 20.18874088 | EP32: 0 | EQ32: 161.5099271 | ER32: 20.18874088 | ES32: 928.6820805 | ET32: 444.1522994 | EU32: 20.18874088 | EV32: 0 | EW32: 0 | EX32: 0 | EY32: 464.3410403 | EZ32: 0 | FA32: 0 | FB32: 0 | FC32: 0 | FD32: 0 | FE32: 0 | FF32: 0 | FG32: 0 | FH32: 0 | FI32: 0 | FJ32: 0 | FK32: 0 | FL32: 0 | FM32: 0 | FN32: 0 | FO32: 0 | FP32: 0 | FQ32: 0 | FR32: 0 | FS32: 0 | FT32: 0 | FU32: 0 | FV32: 0 | FW32: 0 | FX32: 0 | FY32: 0 | FZ32: 0 | GA32: 0 | GB32: 0 | GC32: 0 | GD32: 0 | GE32: 0 | GF32: 0 | GG32: 0 | GH32: 0 | GI32: 0 | GJ32: 0
A33: 1 | D33: POLES | E33: > 66 kV & < = 132 kV; CONCRETE | F33: 14.41742799 | G33: 41.02697996 | H33: 6.405230672 | I33: 2 | J33: 29 | K33: 217 | L33: 280 | M33: 416 | N33: 184 | O33: 62 | P33: 79 | Q33: 30 | R33: 47 | S33: 148 | T33: 255 | U33: 64 | V33: 144 | W33: 67 | X33: 2 | Y33: 3 | Z33: 17 | AA33: 30 | AB33: 2 | AC33: 1 | AD33: 4 | AE33: 0 | AF33: 99 | AG33: 28 | AH33: 2 | AI33: 46 | AJ33: 14 | AK33: 119 | AL33: 30 | AM33: 8 | AN33: 17 | AO33: 19 | AP33: 5 | AQ33: 0 | AR33: 0 | AS33: 0 | AT33: 0 | AU33: 0 | AV33: 1 | AW33: 2 | AX33: 0 | AY33: 2 | AZ33: 0 | BA33: 7 | BB33: 2 | BC33: 7 | BD33: 6 | BE33: 2 | BF33: 10 | BG33: 0 | BH33: 3 | BI33: 0 | BJ33: 0 | BK33: 37 | BL33: 0 | BM33: 0 | BN33: 0 | BO33: 0 | BP33: 0 | BQ33: 0 | BR33: 0 | BS33: 0 | BT33: 0 | BU33: 0 | BV33: 0 | BW33: 0 | BX33: 0 | BY33: 0 | BZ33: 0 | CA33: 0 | CB33: 0 | CC33: 0 | CD33: 0 | CE33: 0 | CF33: 0 | CG33: 0 | CH33: 0 | CI33: 0 | CJ33: 0 | CK33: 0 | CL33: 0 | CM33: 0 | CN33: 0 | CO33: 0 | CP33: 0 | CQ33: 0 | CR33: 0 | CS33: 0 | CT33: 0 | CU33: 0 | CV33: 0 | CX33: 418.1054118 | CY33: 3128.581874 | CZ33: 4036.879838 | DA33: 5997.650045 | DB33: 2652.806751 | DC33: 893.8805355 | DD33: 1138.976811 | DE33: 432.5228398 | DF33: 677.6191156 | DG33: 2133.779343 | DH33: 3676.444138 | DI33: 922.7153915 | DJ33: 2076.109631 | DK33: 965.9676755 | DL33: 28.83485598 | DM33: 43.25228398 | DN33: 245.0962759 | DO33: 432.5228398 | DP33: 28.83485598 | DQ33: 14.41742799 | DR33: 57.66971197 | DS33: 0 | DT33: 1427.325371 | DU33: 403.6879838 | DV33: 28.83485598 | DW33: 663.2016877 | DX33: 201.8439919 | DY33: 1715.673931 | DZ33: 432.5228398 | EA33: 115.3394239 | EB33: 245.0962759 | EC33: 273.9311319 | ED33: 72.08713996 | EE33: 0 | EF33: 0 | EG33: 0 | EH33: 0 | EI33: 0 | EJ33: 14.41742799 | EK33: 28.83485598 | EL33: 0 | EM33: 28.83485598 | EN33: 0 | EO33: 100.9219959 | EP33: 28.83485598 | EQ33: 100.9219959 | ER33: 86.50456795 | ES33: 28.83485598 | ET33: 144.1742799 | EU33: 0 | EV33: 43.25228398 | EW33: 0 | EX33: 0 | EY33: 533.4448357 | EZ33: 0 | FA33: 0 | FB33: 0 | FC33: 0 | FD33: 0 | FE33: 0 | FF33: 0 | FG33: 0 | FH33: 0 | FI33: 0 | FJ33: 0 | FK33: 0 | FL33: 0 | FM33: 0 | FN33: 0 | FO33: 0 | FP33: 0 | FQ33: 0 | FR33: 0 | FS33: 0 | FT33: 0 | FU33: 0 | FV33: 0 | FW33: 0 | FX33: 0 | FY33: 0 | FZ33: 0 | GA33: 0 | GB33: 0 | GC33: 0 | GD33: 0 | GE33: 0 | GF33: 0 | GG33: 0 | GH33: 0 | GI33: 0 | GJ33: 0
E34: > 132 kV; CONCRETE | F34: 0 | G34: 0 | H34: 0 | I34: 2 | J34: 0 | K34: 0 | L34: 0 | M34: 0 | N34: 0 | O34: 0 | P34: 0 | Q34: 0 | R34: 0 | S34: 0 | T34: 0 | U34: 0 | V34: 0 | W34: 0 | X34: 0 | Y34: 0 | Z34: 0 | AA34: 0 | AB34: 0 | AC34: 0 | AD34: 0 | AE34: 0 | AF34: 0 | AG34: 0 | AH34: 0 | AI34: 0 | AJ34: 0 | AK34: 0 | AL34: 0 | AM34: 0 | AN34: 0 | AO34: 0 | AP34: 0 | AQ34: 0 | AR34: 0 | AS34: 0 | AT34: 0 | AU34: 0 | AV34: 0 | AW34: 0 | AX34: 0 | AY34: 0 | AZ34: 0 | BA34: 0 | BB34: 0 | BC34: 0 | BD34: 0 | BE34: 0 | BF34: 0 | BG34: 0 | BH34: 0 | BI34: 0 | BJ34: 0 | BK34: 0 | BL34: 0 | BM34: 0 | BN34: 0 | BO34: 0 | BP34: 0 | BQ34: 0 | BR34: 0 | BS34: 0 | BT34: 0 | BU34: 0 | BV34: 0 | BW34: 0 | BX34: 0 | BY34: 0 | BZ34: 0 | CA34: 0 | CB34: 0 | CC34: 0 | CD34: 0 | CE34: 0 | CF34: 0 | CG34: 0 | CH34: 0 | CI34: 0 | CJ34: 0 | CK34: 0 | CL34: 0 | CM34: 0 | CN34: 0 | CO34: 0 | CP34: 0 | CQ34: 0 | CR34: 0 | CS34: 0 | CT34: 0 | CU34: 0 | CV34: 0 | CX34: 0 | CY34: 0 | CZ34: 0 | DA34: 0 | DB34: 0 | DC34: 0 | DD34: 0 | DE34: 0 | DF34: 0 | DG34: 0 | DH34: 0 | DI34: 0 | DJ34: 0 | DK34: 0 | DL34: 0 | DM34: 0 | DN34: 0 | DO34: 0 | DP34: 0 | DQ34: 0 | DR34: 0 | DS34: 0 | DT34: 0 | DU34: 0 | DV34: 0 | DW34: 0 | DX34: 0 | DY34: 0 | DZ34: 0 | EA34: 0 | EB34: 0 | EC34: 0 | ED34: 0 | EE34: 0 | EF34: 0 | EG34: 0 | EH34: 0 | EI34: 0 | EJ34: 0 | EK34: 0 | EL34: 0 | EM34: 0 | EN34: 0 | EO34: 0 | EP34: 0 | EQ34: 0 | ER34: 0 | ES34: 0 | ET34: 0 | EU34: 0 | EV34: 0 | EW34: 0 | EX34: 0 | EY34: 0 | EZ34: 0 | FA34: 0 | FB34: 0 | FC34: 0 | FD34: 0 | FE34: 0 | FF34: 0 | FG34: 0 | FH34: 0 | FI34: 0 | FJ34: 0 | FK34: 0 | FL34: 0 | FM34: 0 | FN34: 0 | FO34: 0 | FP34: 0 | FQ34: 0 | FR34: 0 | FS34: 0 | FT34: 0 | FU34: 0 | FV34: 0 | FW34: 0 | FX34: 0 | FY34: 0 | FZ34: 0 | GA34: 0 | GB34: 0 | GC34: 0 | GD34: 0 | GE34: 0 | GF34: 0 | GG34: 0 | GH34: 0 | GI34: 0 | GJ34: 0
A35: 1 | D35: POLES | E35: ˂ = 1 kV; STEEL | F35: 8.35319239 | G35: 55.5126016 | H35: 7.450677929 | I35: 2 | J35: 72 | K35: 102 | L35: 93 | M35: 78 | N35: 70 | O35: 182 | P35: 514 | Q35: 387 | R35: 314 | S35: 224 | T35: 183 | U35: 108 | V35: 102 | W35: 589 | X35: 18 | Y35: 63 | Z35: 26 | AA35: 44 | AB35: 11 | AC35: 25 | AD35: 11 | AE35: 184 | AF35: 120 | AG35: 189 | AH35: 4 | AI35: 120 | AJ35: 14 | AK35: 12 | AL35: 166 | AM35: 285 | AN35: 972 | AO35: 652 | AP35: 355 | AQ35: 101 | AR35: 58 | AS35: 14 | AT35: 114 | AU35: 16 | AV35: 14 | AW35: 37 | AX35: 44 | AY35: 216 | AZ35: 35 | BA35: 58 | BB35: 53 | BC35: 134 | BD35: 64 | BE35: 144 | BF35: 98 | BG35: 111 | BH35: 45 | BI35: 20 | BJ35: 45 | BK35: 65 | BL35: 60 | BM35: 21 | BN35: 9 | BO35: 0 | BP35: 33 | BQ35: 1 | BR35: 1 | BS35: 6 | BT35: 0 | BU35: 1 | BV35: 0 | BW35: 2 | BX35: 3 | BY35: 0 | BZ35: 0 | CA35: 0 | CB35: 0 | CC35: 0 | CD35: 0 | CE35: 0 | CF35: 0 | CG35: 0 | CH35: 0 | CI35: 0 | CJ35: 0 | CK35: 0 | CL35: 0 | CM35: 0 | CN35: 3 | CO35: 0 | CP35: 0 | CQ35: 0 | CR35: 0 | CS35: 0 | CT35: 0 | CU35: 0 | CV35: 0 | CX35: 601.4298521 | CY35: 852.0256238 | CZ35: 776.8468923 | DA35: 651.5490064 | DB35: 584.7234673 | DC35: 1520.281015 | DD35: 4293.540889 | DE35: 3232.685455 | DF35: 2622.902411 | DG35: 1871.115095 | DH35: 1528.634207 | DI35: 902.1447782 | DJ35: 852.0256238 | DK35: 4920.030318 | DL35: 150.357463 | DM35: 526.2511206 | DN35: 217.1830021 | DO35: 367.5404652 | DP35: 91.88511629 | DQ35: 208.8298098 | DR35: 91.88511629 | DS35: 1536.9874 | DT35: 1002.383087 | DU35: 1578.753362 | DV35: 33.41276956 | DW35: 1002.383087 | DX35: 116.9446935 | DY35: 100.2383087 | DZ35: 1386.629937 | EA35: 2380.659831 | EB35: 8119.303003 | EC35: 5446.281438 | ED35: 2965.383299 | EE35: 843.6724314 | EF35: 484.4851586 | EG35: 116.9446935 | EH35: 952.2639325 | EI35: 133.6510782 | EJ35: 116.9446935 | EK35: 309.0681184 | EL35: 367.5404652 | EM35: 1804.289556 | EN35: 292.3617337 | EO35: 484.4851586 | EP35: 442.7191967 | EQ35: 1119.32778 | ER35: 534.604313 | ES35: 1202.859704 | ET35: 818.6128542 | EU35: 927.2043553 | EV35: 375.8936576 | EW35: 167.0638478 | EX35: 375.8936576 | EY35: 542.9575054 | EZ35: 501.1915434 | FA35: 175.4170402 | FB35: 75.17873151 | FC35: 0 | FD35: 275.6553489 | FE35: 8.35319239 | FF35: 8.35319239 | FG35: 50.11915434 | FH35: 0 | FI35: 8.35319239 | FJ35: 0 | FK35: 16.70638478 | FL35: 25.05957717 | FM35: 0 | FN35: 0 | FO35: 0 | FP35: 0 | FQ35: 0 | FR35: 0 | FS35: 0 | FT35: 0 | FU35: 0 | FV35: 0 | FW35: 0 | FX35: 0 | FY35: 0 | FZ35: 0 | GA35: 0 | GB35: 25.05957717 | GC35: 0 | GD35: 0 | GE35: 0 | GF35: 0 | GG35: 0 | GH35: 0 | GI35: 0 | GJ35: 0
A36: 1 | D36: POLES | E36: > 1 kV & < = 11 kV; STEEL | F36: 8.502050356 | G36: 48.38758346 | H36: 6.956118419 | I36: 2 | J36: 0 | K36: 8 | L36: 0 | M36: 0 | N36: 0 | O36: 1 | P36: 0 | Q36: 4 | R36: 5 | S36: 0 | T36: 0 | U36: 0 | V36: 0 | W36: 0 | X36: 0 | Y36: 0 | Z36: 0 | AA36: 0 | AB36: 0 | AC36: 0 | AD36: 0 | AE36: 0 | AF36: 0 | AG36: 0 | AH36: 0 | AI36: 0 | AJ36: 0 | AK36: 0 | AL36: 0 | AM36: 0 | AN36: 0 | AO36: 0 | AP36: 1 | AQ36: 0 | AR36: 0 | AS36: 1 | AT36: 12 | AU36: 0 | AV36: 0 | AW36: 2 | AX36: 0 | AY36: 0 | AZ36: 1 | BA36: 0 | BB36: 0 | BC36: 0 | BD36: 0 | BE36: 1 | BF36: 0 | BG36: 1 | BH36: 0 | BI36: 0 | BJ36: 0 | BK36: 0 | BL36: 0 | BM36: 2 | BN36: 0 | BO36: 0 | BP36: 0 | BQ36: 0 | BR36: 0 | BS36: 0 | BT36: 0 | BU36: 0 | BV36: 0 | BW36: 0 | BX36: 0 | BY36: 0 | BZ36: 0 | CA36: 0 | CB36: 0 | CC36: 0 | CD36: 0 | CE36: 0 | CF36: 0 | CG36: 0 | CH36: 0 | CI36: 0 | CJ36: 0 | CK36: 0 | CL36: 0 | CM36: 0 | CN36: 0 | CO36: 0 | CP36: 0 | CQ36: 0 | CR36: 0 | CS36: 0 | CT36: 0 | CU36: 0 | CV36: 0 | CX36: 0 | CY36: 68.01640285 | CZ36: 0 | DA36: 0 | DB36: 0 | DC36: 8.502050356 | DD36: 0 | DE36: 34.00820143 | DF36: 42.51025178 | DG36: 0 | DH36: 0 | DI36: 0 | DJ36: 0 | DK36: 0 | DL36: 0 | DM36: 0 | DN36: 0 | DO36: 0 | DP36: 0 | DQ36: 0 | DR36: 0 | DS36: 0 | DT36: 0 | DU36: 0 | DV36: 0 | DW36: 0 | DX36: 0 | DY36: 0 | DZ36: 0 | EA36: 0 | EB36: 0 | EC36: 0 | ED36: 8.502050356 | EE36: 0 | EF36: 0 | EG36: 8.502050356 | EH36: 102.0246043 | EI36: 0 | EJ36: 0 | EK36: 17.00410071 | EL36: 0 | EM36: 0 | EN36: 8.502050356 | EO36: 0 | EP36: 0 | EQ36: 0 | ER36: 0 | ES36: 8.502050356 | ET36: 0 | EU36: 8.502050356 | EV36: 0 | EW36: 0 | EX36: 0 | EY36: 0 | EZ36: 0 | FA36: 17.00410071 | FB36: 0 | FC36: 0 | FD36: 0 | FE36: 0 | FF36: 0 | FG36: 0 | FH36: 0 | FI36: 0 | FJ36: 0 | FK36: 0 | FL36: 0 | FM36: 0 | FN36: 0 | FO36: 0 | FP36: 0 | FQ36: 0 | FR36: 0 | FS36: 0 | FT36: 0 | FU36: 0 | FV36: 0 | FW36: 0 | FX36: 0 | FY36: 0 | FZ36: 0 | GA36: 0 | GB36: 0 | GC36: 0 | GD36: 0 | GE36: 0 | GF36: 0 | GG36: 0 | GH36: 0 | GI36: 0 | GJ36: 0
A37: 1 | D37: POLES | E37: ˃ 11 kV & < = 22 kV; STEEL | F37: 9.224428936 | G37: 16.65842734 | H37: 4.081473672 | I37: 2 | J37: 1 | K37: 0 | L37: 0 | M37: 0 | N37: 0 | O37: 0 | P37: 0 | Q37: 0 | R37: 1 | S37: 0 | T37: 2 | U37: 4 | V37: 0 | W37: 0 | X37: 0 | Y37: 0 | Z37: 0 | AA37: 0 | AB37: 0 | AC37: 0 | AD37: 0 | AE37: 0 | AF37: 0 | AG37: 0 | AH37: 0 | AI37: 0 | AJ37: 0 | AK37: 0 | AL37: 0 | AM37: 0 | AN37: 0 | AO37: 0 | AP37: 0 | AQ37: 0 | AR37: 0 | AS37: 0 | AT37: 0 | AU37: 0 | AV37: 0 | AW37: 0 | AX37: 0 | AY37: 0 | AZ37: 0 | BA37: 0 | BB37: 0 | BC37: 0 | BD37: 0 | BE37: 0 | BF37: 0 | BG37: 0 | BH37: 0 | BI37: 0 | BJ37: 0 | BK37: 0 | BL37: 0 | BM37: 0 | BN37: 0 | BO37: 0 | BP37: 0 | BQ37: 0 | BR37: 0 | BS37: 0 | BT37: 0 | BU37: 0 | BV37: 0 | BW37: 0 | BX37: 0 | BY37: 0 | BZ37: 0 | CA37: 0 | CB37: 0 | CC37: 0 | CD37: 0 | CE37: 0 | CF37: 0 | CG37: 0 | CH37: 0 | CI37: 0 | CJ37: 0 | CK37: 0 | CL37: 0 | CM37: 0 | CN37: 0 | CO37: 0 | CP37: 0 | CQ37: 0 | CR37: 0 | CS37: 0 | CT37: 0 | CU37: 0 | CV37: 0 | CX37: 9.224428936 | CY37: 0 | CZ37: 0 | DA37: 0 | DB37: 0 | DC37: 0 | DD37: 0 | DE37: 0 | DF37: 9.224428936 | DG37: 0 | DH37: 18.44885787 | DI37: 36.89771574 | DJ37: 0 | DK37: 0 | DL37: 0 | DM37: 0 | DN37: 0 | DO37: 0 | DP37: 0 | DQ37: 0 | DR37: 0 | DS37: 0 | DT37: 0 | DU37: 0 | DV37: 0 | DW37: 0 | DX37: 0 | DY37: 0 | DZ37: 0 | EA37: 0 | EB37: 0 | EC37: 0 | ED37: 0 | EE37: 0 | EF37: 0 | EG37: 0 | EH37: 0 | EI37: 0 | EJ37: 0 | EK37: 0 | EL37: 0 | EM37: 0 | EN37: 0 | EO37: 0 | EP37: 0 | EQ37: 0 | ER37: 0 | ES37: 0 | ET37: 0 | EU37: 0 | EV37: 0 | EW37: 0 | EX37: 0 | EY37: 0 | EZ37: 0 | FA37: 0 | FB37: 0 | FC37: 0 | FD37: 0 | FE37: 0 | FF37: 0 | FG37: 0 | FH37: 0 | FI37: 0 | FJ37: 0 | FK37: 0 | FL37: 0 | FM37: 0 | FN37: 0 | FO37: 0 | FP37: 0 | FQ37: 0 | FR37: 0 | FS37: 0 | FT37: 0 | FU37: 0 | FV37: 0 | FW37: 0 | FX37: 0 | FY37: 0 | FZ37: 0 | GA37: 0 | GB37: 0 | GC37: 0 | GD37: 0 | GE37: 0 | GF37: 0 | GG37: 0 | GH37: 0 | GI37: 0 | GJ37: 0
A38: 1 | D38: POLES | E38: > 22 kV & < = 66 kV; STEEL | F38: 19.83449594 | G38: 11.46189216 | H38: 3.385541635 | I38: 2 | J38: 2 | K38: 24 | L38: 99 | M38: 5 | N38: 1 | O38: 21 | P38: 46 | Q38: 28 | R38: 0 | S38: 4 | T38: 0 | U38: 0 | V38: 0 | W38: 0 | X38: 0 | Y38: 0 | Z38: 0 | AA38: 0 | AB38: 0 | AC38: 0 | AD38: 0 | AE38: 0 | AF38: 0 | AG38: 0 | AH38: 0 | AI38: 0 | AJ38: 0 | AK38: 0 | AL38: 0 | AM38: 0 | AN38: 0 | AO38: 2 | AP38: 0 | AQ38: 0 | AR38: 0 | AS38: 0 | AT38: 0 | AU38: 0 | AV38: 0 | AW38: 0 | AX38: 0 | AY38: 0 | AZ38: 0 | BA38: 0 | BB38: 0 | BC38: 0 | BD38: 0 | BE38: 0 | BF38: 0 | BG38: 0 | BH38: 0 | BI38: 0 | BJ38: 0 | BK38: 0 | BL38: 0 | BM38: 0 | BN38: 0 | BO38: 0 | BP38: 0 | BQ38: 0 | BR38: 0 | BS38: 0 | BT38: 0 | BU38: 0 | BV38: 0 | BW38: 0 | BX38: 0 | BY38: 0 | BZ38: 0 | CA38: 0 | CB38: 0 | CC38: 0 | CD38: 0 | CE38: 0 | CF38: 0 | CG38: 0 | CH38: 0 | CI38: 0 | CJ38: 0 | CK38: 0 | CL38: 0 | CM38: 0 | CN38: 0 | CO38: 0 | CP38: 0 | CQ38: 0 | CR38: 0 | CS38: 0 | CT38: 0 | CU38: 0 | CV38: 0 | CX38: 39.66899189 | CY38: 476.0279026 | CZ38: 1963.615098 | DA38: 99.17247972 | DB38: 19.83449594 | DC38: 416.5244148 | DD38: 912.3868134 | DE38: 555.3658864 | DF38: 0 | DG38: 79.33798377 | DH38: 0 | DI38: 0 | DJ38: 0 | DK38: 0 | DL38: 0 | DM38: 0 | DN38: 0 | DO38: 0 | DP38: 0 | DQ38: 0 | DR38: 0 | DS38: 0 | DT38: 0 | DU38: 0 | DV38: 0 | DW38: 0 | DX38: 0 | DY38: 0 | DZ38: 0 | EA38: 0 | EB38: 0 | EC38: 39.66899189 | ED38: 0 | EE38: 0 | EF38: 0 | EG38: 0 | EH38: 0 | EI38: 0 | EJ38: 0 | EK38: 0 | EL38: 0 | EM38: 0 | EN38: 0 | EO38: 0 | EP38: 0 | EQ38: 0 | ER38: 0 | ES38: 0 | ET38: 0 | EU38: 0 | EV38: 0 | EW38: 0 | EX38: 0 | EY38: 0 | EZ38: 0 | FA38: 0 | FB38: 0 | FC38: 0 | FD38: 0 | FE38: 0 | FF38: 0 | FG38: 0 | FH38: 0 | FI38: 0 | FJ38: 0 | FK38: 0 | FL38: 0 | FM38: 0 | FN38: 0 | FO38: 0 | FP38: 0 | FQ38: 0 | FR38: 0 | FS38: 0 | FT38: 0 | FU38: 0 | FV38: 0 | FW38: 0 | FX38: 0 | FY38: 0 | FZ38: 0 | GA38: 0 | GB38: 0 | GC38: 0 | GD38: 0 | GE38: 0 | GF38: 0 | GG38: 0 | GH38: 0 | GI38: 0 | GJ38: 0
A39: 1 | D39: POLES | E39: > 66 kV & < = 132 kV; STEEL | F39: 15.08079068 | G39: 47.80195984 | H39: 6.913896141 | I39: 2 | J39: 0 | K39: 8 | L39: 9 | M39: 14 | N39: 7 | O39: 6 | P39: 0 | Q39: 16 | R39: 11 | S39: 2 | T39: 0 | U39: 0 | V39: 0 | W39: 0 | X39: 0 | Y39: 0 | Z39: 0 | AA39: 0 | AB39: 0 | AC39: 0 | AD39: 0 | AE39: 0 | AF39: 0 | AG39: 0 | AH39: 0 | AI39: 9 | AJ39: 0 | AK39: 0 | AL39: 0 | AM39: 0 | AN39: 2 | AO39: 0 | AP39: 37 | AQ39: 0 | AR39: 0 | AS39: 1 | AT39: 0 | AU39: 0 | AV39: 0 | AW39: 0 | AX39: 0 | AY39: 0 | AZ39: 0 | BA39: 0 | BB39: 0 | BC39: 0 | BD39: 0 | BE39: 0 | BF39: 0 | BG39: 0 | BH39: 1 | BI39: 0 | BJ39: 0 | BK39: 2 | BL39: 0 | BM39: 4 | BN39: 0 | BO39: 0 | BP39: 0 | BQ39: 0 | BR39: 0 | BS39: 0 | BT39: 0 | BU39: 0 | BV39: 0 | BW39: 0 | BX39: 0 | BY39: 0 | BZ39: 0 | CA39: 0 | CB39: 0 | CC39: 0 | CD39: 0 | CE39: 0 | CF39: 0 | CG39: 0 | CH39: 0 | CI39: 0 | CJ39: 0 | CK39: 0 | CL39: 0 | CM39: 0 | CN39: 0 | CO39: 0 | CP39: 0 | CQ39: 0 | CR39: 0 | CS39: 0 | CT39: 0 | CU39: 0 | CV39: 0 | CX39: 0 | CY39: 120.6463255 | CZ39: 135.7271161 | DA39: 211.1310696 | DB39: 105.5655348 | DC39: 90.4847441 | DD39: 0 | DE39: 241.2926509 | DF39: 165.8886975 | DG39: 30.16158137 | DH39: 0 | DI39: 0 | DJ39: 0 | DK39: 0 | DL39: 0 | DM39: 0 | DN39: 0 | DO39: 0 | DP39: 0 | DQ39: 0 | DR39: 0 | DS39: 0 | DT39: 0 | DU39: 0 | DV39: 0 | DW39: 135.7271161 | DX39: 0 | DY39: 0 | DZ39: 0 | EA39: 0 | EB39: 30.16158137 | EC39: 0 | ED39: 557.9892553 | EE39: 0 | EF39: 0 | EG39: 15.08079068 | EH39: 0 | EI39: 0 | EJ39: 0 | EK39: 0 | EL39: 0 | EM39: 0 | EN39: 0 | EO39: 0 | EP39: 0 | EQ39: 0 | ER39: 0 | ES39: 0 | ET39: 0 | EU39: 0 | EV39: 15.08079068 | EW39: 0 | EX39: 0 | EY39: 30.16158137 | EZ39: 0 | FA39: 60.32316273 | FB39: 0 | FC39: 0 | FD39: 0 | FE39: 0 | FF39: 0 | FG39: 0 | FH39: 0 | FI39: 0 | FJ39: 0 | FK39: 0 | FL39: 0 | FM39: 0 | FN39: 0 | FO39: 0 | FP39: 0 | FQ39: 0 | FR39: 0 | FS39: 0 | FT39: 0 | FU39: 0 | FV39: 0 | FW39: 0 | FX39: 0 | FY39: 0 | FZ39: 0 | GA39: 0 | GB39: 0 | GC39: 0 | GD39: 0 | GE39: 0 | GF39: 0 | GG39: 0 | GH39: 0 | GI39: 0 | GJ39: 0
E40: > 132 kV; STEEL | F40: 0 | G40: 0 | H40: 0 | I40: 2 | J40: 0 | K40: 0 | L40: 0 | M40: 0 | N40: 0 | O40: 0 | P40: 0 | Q40: 0 | R40: 0 | S40: 0 | T40: 0 | U40: 0 | V40: 0 | W40: 0 | X40: 0 | Y40: 0 | Z40: 0 | AA40: 0 | AB40: 0 | AC40: 0 | AD40: 0 | AE40: 0 | AF40: 0 | AG40: 0 | AH40: 0 | AI40: 0 | AJ40: 0 | AK40: 0 | AL40: 0 | AM40: 0 | AN40: 0 | AO40: 0 | AP40: 0 | AQ40: 0 | AR40: 0 | AS40: 0 | AT40: 0 | AU40: 0 | AV40: 0 | AW40: 0 | AX40: 0 | AY40: 0 | AZ40: 0 | BA40: 0 | BB40: 0 | BC40: 0 | BD40: 0 | BE40: 0 | BF40: 0 | BG40: 0 | BH40: 0 | BI40: 0 | BJ40: 0 | BK40: 0 | BL40: 0 | BM40: 0 | BN40: 0 | BO40: 0 | BP40: 0 | BQ40: 0 | BR40: 0 | BS40: 0 | BT40: 0 | BU40: 0 | BV40: 0 | BW40: 0 | BX40: 0 | BY40: 0 | BZ40: 0 | CA40: 0 | CB40: 0 | CC40: 0 | CD40: 0 | CE40: 0 | CF40: 0 | CG40: 0 | CH40: 0 | CI40: 0 | CJ40: 0 | CK40: 0 | CL40: 0 | CM40: 0 | CN40: 0 | CO40: 0 | CP40: 0 | CQ40: 0 | CR40: 0 | CS40: 0 | CT40: 0 | CU40: 0 | CV40: 0 | CX40: 0 | CY40: 0 | CZ40: 0 | DA40: 0 | DB40: 0 | DC40: 0 | DD40: 0 | DE40: 0 | DF40: 0 | DG40: 0 | DH40: 0 | DI40: 0 | DJ40: 0 | DK40: 0 | DL40: 0 | DM40: 0 | DN40: 0 | DO40: 0 | DP40: 0 | DQ40: 0 | DR40: 0 | DS40: 0 | DT40: 0 | DU40: 0 | DV40: 0 | DW40: 0 | DX40: 0 | DY40: 0 | DZ40: 0 | EA40: 0 | EB40: 0 | EC40: 0 | ED40: 0 | EE40: 0 | EF40: 0 | EG40: 0 | EH40: 0 | EI40: 0 | EJ40: 0 | EK40: 0 | EL40: 0 | EM40: 0 | EN40: 0 | EO40: 0 | EP40: 0 | EQ40: 0 | ER40: 0 | ES40: 0 | ET40: 0 | EU40: 0 | EV40: 0 | EW40: 0 | EX40: 0 | EY40: 0 | EZ40: 0 | FA40: 0 | FB40: 0 | FC40: 0 | FD40: 0 | FE40: 0 | FF40: 0 | FG40: 0 | FH40: 0 | FI40: 0 | FJ40: 0 | FK40: 0 | FL40: 0 | FM40: 0 | FN40: 0 | FO40: 0 | FP40: 0 | FQ40: 0 | FR40: 0 | FS40: 0 | FT40: 0 | FU40: 0 | FV40: 0 | FW40: 0 | FX40: 0 | FY40: 0 | FZ40: 0 | GA40: 0 | GB40: 0 | GC40: 0 | GD40: 0 | GE40: 0 | GF40: 0 | GG40: 0 | GH40: 0 | GI40: 0 | GJ40: 0
E41: OTHER - PLEASE ADD A ROW IF NECESSARY AND NOMINATE THE CATEGORY | F41: 0 | G41: 0 | H41: 0 | I41: 2 | J41: 0 | K41: 0 | L41: 0 | M41: 0 | N41: 0 | O41: 0 | P41: 0 | Q41: 0 | R41: 0 | S41: 0 | T41: 0 | U41: 0 | V41: 0 | W41: 0 | X41: 0 | Y41: 0 | Z41: 0 | AA41: 0 | AB41: 0 | AC41: 0 | AD41: 0 | AE41: 0 | AF41: 0 | AG41: 0 | AH41: 0 | AI41: 0 | AJ41: 0 | AK41: 0 | AL41: 0 | AM41: 0 | AN41: 0 | AO41: 0 | AP41: 0 | AQ41: 0 | AR41: 0 | AS41: 0 | AT41: 0 | AU41: 0 | AV41: 0 | AW41: 0 | AX41: 0 | AY41: 0 | AZ41: 0 | BA41: 0 | BB41: 0 | BC41: 0 | BD41: 0 | BE41: 0 | BF41: 0 | BG41: 0 | BH41: 0 | BI41: 0 | BJ41: 0 | BK41: 0 | BL41: 0 | BM41: 0 | BN41: 0 | BO41: 0 | BP41: 0 | BQ41: 0 | BR41: 0 | BS41: 0 | BT41: 0 | BU41: 0 | BV41: 0 | BW41: 0 | BX41: 0 | BY41: 0 | BZ41: 0 | CA41: 0 | CB41: 0 | CC41: 0 | CD41: 0 | CE41: 0 | CF41: 0 | CG41: 0 | CH41: 0 | CI41: 0 | CJ41: 0 | CK41: 0 | CL41: 0 | CM41: 0 | CN41: 0 | CO41: 0 | CP41: 0 | CQ41: 0 | CR41: 0 | CS41: 0 | CT41: 0 | CU41: 0 | CV41: 0 | CX41: 0 | CY41: 0 | CZ41: 0 | DA41: 0 | DB41: 0 | DC41: 0 | DD41: 0 | DE41: 0 | DF41: 0 | DG41: 0 | DH41: 0 | DI41: 0 | DJ41: 0 | DK41: 0 | DL41: 0 | DM41: 0 | DN41: 0 | DO41: 0 | DP41: 0 | DQ41: 0 | DR41: 0 | DS41: 0 | DT41: 0 | DU41: 0 | DV41: 0 | DW41: 0 | DX41: 0 | DY41: 0 | DZ41: 0 | EA41: 0 | EB41: 0 | EC41: 0 | ED41: 0 | EE41: 0 | EF41: 0 | EG41: 0 | EH41: 0 | EI41: 0 | EJ41: 0 | EK41: 0 | EL41: 0 | EM41: 0 | EN41: 0 | EO41: 0 | EP41: 0 | EQ41: 0 | ER41: 0 | ES41: 0 | ET41: 0 | EU41: 0 | EV41: 0 | EW41: 0 | EX41: 0 | EY41: 0 | EZ41: 0 | FA41: 0 | FB41: 0 | FC41: 0 | FD41: 0 | FE41: 0 | FF41: 0 | FG41: 0 | FH41: 0 | FI41: 0 | FJ41: 0 | FK41: 0 | FL41: 0 | FM41: 0 | FN41: 0 | FO41: 0 | FP41: 0 | FQ41: 0 | FR41: 0 | FS41: 0 | FT41: 0 | FU41: 0 | FV41: 0 | FW41: 0 | FX41: 0 | FY41: 0 | FZ41: 0 | GA41: 0 | GB41: 0 | GC41: 0 | GD41: 0 | GE41: 0 | GF41: 0 | GG41: 0 | GH41: 0 | GI41: 0 | GJ41: 0
A42: 1 | D42: POLES | E42: TOWERS | F42: 176.3192638 | G42: 67.2267326 | H42: 8.199190972 | I42: 2 | J42: 0 | K42: 0 | L42: 0 | M42: 2 | N42: 0 | O42: 0 | P42: 0 | Q42: 1 | R42: 0 | S42: 0 | T42: 0 | U42: 0 | V42: 0 | W42: 0 | X42: 0 | Y42: 0 | Z42: 2 | AA42: 1 | AB42: 0 | AC42: 0 | AD42: 0 | AE42: 1 | AF42: 0 | AG42: 0 | AH42: 0 | AI42: 5 | AJ42: 0 | AK42: 0 | AL42: 0 | AM42: 0 | AN42: 0 | AO42: 0 | AP42: 0 | AQ42: 3 | AR42: 1 | AS42: 26 | AT42: 0 | AU42: 1 | AV42: 0 | AW42: 23 | AX42: 12 | AY42: 95 | AZ42: 7 | BA42: 0 | BB42: 0 | BC42: 81 | BD42: 43 | BE42: 2 | BF42: 94 | BG42: 42 | BH42: 19 | BI42: 123 | BJ42: 73 | BK42: 40 | BL42: 38 | BM42: 4 | BN42: 0 | BO42: 0 | BP42: 0 | BQ42: 0 | BR42: 0 | BS42: 0 | BT42: 0 | BU42: 0 | BV42: 0 | BW42: 0 | BX42: 0 | BY42: 0 | BZ42: 0 | CA42: 0 | CB42: 0 | CC42: 0 | CD42: 0 | CE42: 0 | CF42: 0 | CG42: 0 | CH42: 0 | CI42: 0 | CJ42: 0 | CK42: 0 | CL42: 0 | CM42: 0 | CN42: 0 | CO42: 0 | CP42: 0 | CQ42: 0 | CR42: 0 | CS42: 0 | CT42: 0 | CU42: 0 | CV42: 0 | CX42: 0 | CY42: 0 | CZ42: 0 | DA42: 352.6385275 | DB42: 0 | DC42: 0 | DD42: 0 | DE42: 176.3192638 | DF42: 0 | DG42: 0 | DH42: 0 | DI42: 0 | DJ42: 0 | DK42: 0 | DL42: 0 | DM42: 0 | DN42: 352.6385275 | DO42: 176.3192638 | DP42: 0 | DQ42: 0 | DR42: 0 | DS42: 176.3192638 | DT42: 0 | DU42: 0 | DV42: 0 | DW42: 881.5963188 | DX42: 0 | DY42: 0 | DZ42: 0 | EA42: 0 | EB42: 0 | EC42: 0 | ED42: 0 | EE42: 528.9577913 | EF42: 176.3192638 | EG42: 4584.300858 | EH42: 0 | EI42: 176.3192638 | EJ42: 0 | EK42: 4055.343066 | EL42: 2115.831165 | EM42: 16750.33006 | EN42: 1234.234846 | EO42: 0 | EP42: 0 | EQ42: 14281.86036 | ER42: 7581.728342 | ES42: 352.6385275 | ET42: 16574.01079 | EU42: 7405.409078 | EV42: 3350.066011 | EW42: 21687.26944 | EX42: 12871.30625 | EY42: 7052.77055 | EZ42: 6700.132023 | FA42: 705.277055 | FB42: 0 | FC42: 0 | FD42: 0 | FE42: 0 | FF42: 0 | FG42: 0 | FH42: 0 | FI42: 0 | FJ42: 0 | FK42: 0 | FL42: 0 | FM42: 0 | FN42: 0 | FO42: 0 | FP42: 0 | FQ42: 0 | FR42: 0 | FS42: 0 | FT42: 0 | FU42: 0 | FV42: 0 | FW42: 0 | FX42: 0 | FY42: 0 | FZ42: 0 | GA42: 0 | GB42: 0 | GC42: 0 | GD42: 0 | GE42: 0 | GF42: 0 | GG42: 0 | GH42: 0 | GI42: 0 | GJ42: 0
A43: 2 | D43: OVERHEAD CONDUCTORS | E43: ˂ = 1 kV | F43: 58.89030058 | G43: 67.21718045 | H43: 8.198608446 | I43: 2 | J43: 105.2150377 | K43: 146.8149761 | L43: 147.4586005 | M43: 127.6702975 | N43: 137.2166112 | O43: 124.6392882 | P43: 106.5077085 | Q43: 113.7663439 | R43: 104.5254207 | S43: 88.27583928 | T43: 98.79599594 | U43: 69.4917352 | V43: 65.39005382 | W43: 71.40086416 | X43: 58.50551608 | Y43: 49.33417655 | Z43: 49.77287366 | AA43: 51.69583319 | AB43: 64.54716726 | AC43: 64.40156359 | AD43: 45.56914409 | AE43: 36.29215355 | AF43: 87.78967478 | AG43: 109.6878052 | AH43: 81.53053073 | AI43: 69.0930302 | AJ43: 106.955382 | AK43: 102.3226424 | AL43: 119.6562361 | AM43: 92.70616608 | AN43: 86.24183331 | AO43: 177.1297182 | AP43: 165.8508302 | AQ43: 371.6472654 | AR43: 228.6414924 | AS43: 134.6641884 | AT43: 152.5924871 | AU43: 147.0487288 | AV43: 175.4629754 | AW43: 270.9047788 | AX43: 178.508626 | AY43: 278.3899746 | AZ43: 203.7881462 | BA43: 248.486801 | BB43: 336.2408708 | BC43: 442.1273459 | BD43: 309.1550284 | BE43: 527.2022967 | BF43: 546.2616485 | BG43: 544.6571116 | BH43: 910.0109512 | BI43: 469.0566464 | BJ43: 534.4406961 | BK43: 604.447207 | BL43: 528.0712873 | BM43: 279.5572804 | BN43: 340.5144977 | BO43: 382.1187372 | BP43: 99.55565869 | BQ43: 49.56331101 | BR43: 49.35689114 | BS43: 37.6890914 | BT43: 54.69757221 | BU43: 20.13622678 | BV43: 38.99714251 | BW43: 18.0525596 | BX43: 4.67487104 | BY43: 7.866267875 | BZ43: 59.43509185 | CA43: 0 | CB43: 0 | CC43: 0 | CD43: 0 | CE43: 51.79177422 | CF43: 0 | CG43: 0 | CH43: 0 | CI43: 0 | CJ43: 0 | CK43: 0 | CL43: 0 | CM43: 0 | CN43: 0 | CO43: 0 | CP43: 0 | CQ43: 75.32542794 | CR43: 62.82048522 | CS43: 0 | CT43: 0 | CU43: 0 | CV43: 0.636471865 | CX43: 6196.145194 | CY43: 8645.97807 | CZ43: 8683.881307 | DA43: 7518.542196 | DB43: 8080.727476 | DC43: 7340.045147 | DD43: 6272.270965 | DE43: 6699.734189 | DF43: 6155.533441 | DG43: 5198.590709 | DH43: 5818.125897 | DI43: 4092.389174 | DJ43: 3850.839924 | DK43: 4204.818352 | DL43: 3445.407428 | DM43: 2905.304486 | DN43: 2931.139491 | DO43: 3044.383155 | DP43: 3801.202081 | DQ43: 3792.627437 | DR43: 2683.580593 | DS43: 2137.255831 | DT43: 5169.960335 | DU43: 6459.547817 | DV43: 4801.357461 | DW43: 4068.909317 | DX43: 6298.634594 | DY43: 6025.811165 | DZ43: 7046.591709 | EA43: 5459.493986 | EB43: 5078.807486 | EC43: 10431.22235 | ED43: 9767.005241 | EE43: 21886.41917 | EF43: 13464.76621 | EG43: 7930.414533 | EH43: 8986.217429 | EI43: 8659.743839 | EJ43: 10333.06736 | EK43: 15953.66385 | EL43: 10512.42664 | EM43: 16394.46928 | EN43: 12001.14518 | EO43: 14633.4624 | EP43: 19801.32595 | EQ43: 26037.01229 | ER43: 18206.23255 | ES43: 31047.10172 | ET43: 32169.51267 | EU43: 32075.02101 | EV43: 53590.81845 | EW43: 27622.8869 | EX43: 31473.37323 | EY43: 35596.07771 | EZ43: 31098.27684 | FA43: 16463.21227 | FB43: 20053.00112 | FC43: 22503.08729 | FD43: 5862.862665 | FE43: 2918.798283 | FF43: 2906.642155 | FG43: 2219.521921 | FH43: 3221.156468 | FI43: 1185.828448 | FJ43: 2296.553444 | FK43: 1063.120661 | FL43: 275.3045607 | FM43: 463.2468796 | FN43: 3500.150424 | FO43: 0 | FP43: 0 | FQ43: 0 | FR43: 0 | FS43: 3050.033152 | FT43: 0 | FU43: 0 | FV43: 0 | FW43: 0 | FX43: 0 | FY43: 0 | FZ43: 0 | GA43: 0 | GB43: 0 | GC43: 0 | GD43: 0 | GE43: 4435.937092 | GF43: 3699.517257 | GG43: 0 | GH43: 0 | GI43: 0 | GJ43: 37.48201944
A44: 2 | D44: OVERHEAD CONDUCTORS | E44: > 1 kV & < = 11 kV | F44: 70.16466111 | G44: 47.3846896 | H44: 6.883653797 | I44: 2 | J44: 164.0008174 | K44: 133.5262014 | L44: 167.2403257 | M44: 145.0389431 | N44: 160.5181603 | O44: 142.4915743 | P44: 140.6377121 | Q44: 106.4029137 | R44: 188.1483822 | S44: 119.9421712 | T44: 130.5144461 | U44: 129.9946118 | V44: 125.7569925 | W44: 167.0253773 | X44: 138.1962558 | Y44: 102.7682657 | Z44: 63.55480309 | AA44: 61.10085168 | AB44: 64.74935774 | AC44: 63.87022713 | AD44: 68.31920405 | AE44: 61.59439062 | AF44: 79.37442049 | AG44: 93.48686329 | AH44: 65.85072488 | AI44: 69.22819634 | AJ44: 88.57307037 | AK44: 97.43911942 | AL44: 85.32196149 | AM44: 66.34675686 | AN44: 65.52999711 | AO44: 130.2761964 | AP44: 107.7267902 | AQ44: 284.454091 | AR44: 189.1061326 | AS44: 130.3808292 | AT44: 176.7126443 | AU44: 164.4465852 | AV44: 143.6261822 | AW44: 217.977143 | AX44: 264.9959696 | AY44: 358.6018787 | AZ44: 220.5776211 | BA44: 173.4671624 | BB44: 398.3691818 | BC44: 332.3652204 | BD44: 271.8220703 | BE44: 268.8900847 | BF44: 350.5179487 | BG44: 265.6499434 | BH44: 503.6467819 | BI44: 181.733528 | BJ44: 361.3370321 | BK44: 221.7121748 | BL44: 215.2806536 | BM44: 106.822698 | BN44: 123.5823495 | BO44: 138.1440428 | BP44: 15.96712784 | BQ44: 35.44801714 | BR44: 12.56442564 | BS44: 29.81719049 | BT44: 1.008664615 | BU44: 0 | BV44: 0 | BW44: 0 | BX44: 9.831586086 | BY44: 0 | BZ44: 0 | CA44: 0 | CB44: 0 | CC44: 0 | CD44: 0 | CE44: 14.39104632 | CF44: 0 | CG44: 0 | CH44: 0 | CI44: 0 | CJ44: 0 | CK44: 0 | CL44: 0 | CM44: 0 | CN44: 0 | CO44: 0 | CP44: 0 | CQ44: 0.466627035 | CR44: 0 | CS44: 0 | CT44: 0 | CU44: 0 | CV44: 0 | CX44: 11507.06178 | CY44: 9368.820667 | CZ44: 11734.36077 | DA44: 10176.60829 | DB44: 11262.70232 | DC44: 9997.873021 | DD44: 9867.797412 | DE44: 7465.724379 | DF44: 13201.36747 | DG44: 8415.701792 | DH44: 9157.501878 | DI44: 9121.027885 | DJ44: 8823.696762 | DK44: 11719.27899 | DL44: 9696.493455 | DM44: 7210.700534 | DN44: 4459.30122 | DO44: 4287.120551 | DP44: 4543.116743 | DQ44: 4481.432841 | DR44: 4793.593799 | DS44: 4321.749544 | DT44: 5569.279314 | DU44: 6559.474081 | DV44: 4620.393795 | DW44: 4857.372935 | DX44: 6214.699466 | DY44: 6836.782793 | DZ44: 5986.586513 | EA44: 4655.197711 | EB44: 4597.89004 | EC44: 9140.785168 | ED44: 7558.613728 | EE44: 19958.62489 | EF44: 13268.56771 | EG44: 9148.126695 | EH44: 12398.9828 | EI44: 11538.33892 | EJ44: 10077.4824 | EK44: 15294.29237 | EL44: 18593.3524 | EM44: 25161.17929 | EN44: 15476.75403 | EO44: 12171.26466 | EP44: 27951.43863 | EQ44: 23320.29305 | ER44: 19072.30344 | ES44: 18866.58167 | ET44: 24593.97308 | EU44: 18639.23825 | EV44: 35338.20577 | EW44: 12751.2714 | EX44: 25353.0904 | EY44: 15556.35961 | EZ44: 15105.09411 | FA44: 7495.178405 | FB44: 8671.113672 | FC44: 9692.829946 | FD44: 1120.328114 | FE44: 2487.198109 | FF44: 881.5786673 | FG44: 2092.113066 | FH44: 70.77261088 | FI44: 0 | FJ44: 0 | FK44: 0 | FL44: 689.8299059 | FM44: 0 | FN44: 0 | FO44: 0 | FP44: 0 | FQ44: 0 | FR44: 0 | FS44: 1009.742888 | FT44: 0 | FU44: 0 | FV44: 0 | FW44: 0 | FX44: 0 | FY44: 0 | FZ44: 0 | GA44: 0 | GB44: 0 | GC44: 0 | GD44: 0 | GE44: 32.74072777 | GF44: 0 | GG44: 0 | GH44: 0 | GI44: 0 | GJ44: 0
A45: 2 | D45: OVERHEAD CONDUCTORS | E45: ˃ 11 kV & < = 22 kV ; SWER | F45: 36.24075581 | G45: 87.94502172 | H45: 9.37790071 | I45: 2 | J45: 0 | K45: 6.72004423 | L45: 0 | M45: 0 | N45: 0 | O45: 0 | P45: 0.222166875 | Q45: 0.001955218 | R45: 0.155934626 | S45: 0 | T45: 0 | U45: 0 | V45: 0.073800202 | W45: 0.311546708 | X45: 0 | Y45: 0 | Z45: 0 | AA45: 0 | AB45: 0 | AC45: 0 | AD45: 9.99e-05 | AE45: 0 | AF45: 0 | AG45: 0.812854868 | AH45: 0.000300205 | AI45: 0.002704321 | AJ45: 3.574784793 | AK45: 0 | AL45: 42.21858342 | AM45: 1.464707178 | AN45: 0.0001 | AO45: 0.002385348 | AP45: 0 | AQ45: 0 | AR45: 0 | AS45: 0.000100005 | AT45: 2.245704762 | AU45: 0 | AV45: 0 | AW45: 4.365606641 | AX45: 1.25250872 | AY45: 0 | AZ45: 0.397695018 | BA45: 1.009646934 | BB45: 0 | BC45: 0 | BD45: 0 | BE45: 0 | BF45: 0 | BG45: 0 | BH45: 11.166625 | BI45: 6.05902454 | BJ45: 0 | BK45: 0 | BL45: 0 | BM45: 0 | BN45: 42.53006451 | BO45: 0 | BP45: 0 | BQ45: 0 | BR45: 0 | BS45: 0 | BT45: 0 | BU45: 0 | BV45: 0 | BW45: 0 | BX45: 0 | BY45: 0 | BZ45: 0 | CA45: 0 | CB45: 0 | CC45: 0 | CD45: 0 | CE45: 0 | CF45: 0 | CG45: 0 | CH45: 0 | CI45: 0 | CJ45: 0 | CK45: 0 | CL45: 0 | CM45: 0 | CN45: 0 | CO45: 0 | CP45: 0 | CQ45: 0 | CR45: 0 | CS45: 0 | CT45: 0 | CU45: 0 | CV45: 0 | CX45: 0 | CY45: 243.539482 | CZ45: 0 | DA45: 0 | DB45: 0 | DC45: 0 | DD45: 8.051495466 | DE45: 0.07085857809 | DF45: 5.651188703 | DG45: 0 | DH45: 0 | DI45: 0 | DJ45: 2.674575099 | DK45: 11.29068817 | DL45: 0 | DM45: 0 | DN45: 0 | DO45: 0 | DP45: 0 | DQ45: 0 | DR45: 0.003620451505 | DS45: 0 | DT45: 0 | DU45: 29.45847478 | DV45: 0.0108796561 | DW45: 0.09800663699 | DX45: 129.5529028 | DY45: 0 | DZ45: 1530.033372 | EA45: 53.08209517 | EB45: 0.003624075581 | EC45: 0.08644681439 | ED45: 0 | EE45: 0 | EF45: 0 | EG45: 0.003624256785 | EH45: 81.3860379 | EI45: 0 | EJ45: 0 | EK45: 158.2128842 | EL45: 45.39186267 | EM45: 0 | EN45: 14.41276803 | EO45: 36.59036799 | EP45: 0 | EQ45: 0 | ER45: 0 | ES45: 0 | ET45: 0 | EU45: 0 | EV45: 404.6869298 | EW45: 219.5836288 | EX45: 0 | EY45: 0 | EZ45: 0 | FA45: 0 | FB45: 1541.321682 | FC45: 0 | FD45: 0 | FE45: 0 | FF45: 0 | FG45: 0 | FH45: 0 | FI45: 0 | FJ45: 0 | FK45: 0 | FL45: 0 | FM45: 0 | FN45: 0 | FO45: 0 | FP45: 0 | FQ45: 0 | FR45: 0 | FS45: 0 | FT45: 0 | FU45: 0 | FV45: 0 | FW45: 0 | FX45: 0 | FY45: 0 | FZ45: 0 | GA45: 0 | GB45: 0 | GC45: 0 | GD45: 0 | GE45: 0 | GF45: 0 | GG45: 0 | GH45: 0 | GI45: 0 | GJ45: 0
A46: 2 | D46: OVERHEAD CONDUCTORS | E46: ˃ 11 kV & < = 22 kV ; SINGLE-PHASE | F46: 73.23463169 | G46: 40.61 | H46: 6.372597587 | I46: 2 | J46: 0 | K46: 0 | L46: 0 | M46: 0 | N46: 4.03610782 | O46: 0.268238883 | P46: 0 | Q46: 0 | R46: 2.084100158 | S46: 5.732072492 | T46: 0.2462999351 | U46: 0.3728043679 | V46: 2.18115157 | W46: 11.399068 | X46: 4.430565218 | Y46: 2.077863773 | Z46: 0.687259278 | AA46: 0 | AB46: 0.497554615 | AC46: 0 | AD46: 0.000103078 | AE46: 0.230950431 | AF46: 1.211458229 | AG46: 1.2158768 | AH46: 0.7709016752 | AI46: 0 | AJ46: 0.000103097 | AK46: 0.177989742 | AL46: 0 | AM46: 0.187734838 | AN46: 0.846494142 | AO46: 0.557156023 | AP46: 1.117480126 | AQ46: 0.00173283 | AR46: 0 | AS46: 0 | AT46: 0 | AU46: 0 | AV46: 0 | AW46: 6.210104876 | AX46: 6.133270863 | AY46: 9.370772804 | AZ46: 3.437626235 | BA46: 6.293664829 | BB46: 0 | BC46: 0 | BD46: 0 | BE46: 0 | BF46: 0 | BG46: 0 | BH46: 0 | BI46: 0 | BJ46: 0 | BK46: 0 | BL46: 0 | BM46: 0 | BN46: 0 | BO46: 0 | BP46: 0 | BQ46: 0 | BR46: 0 | BS46: 0 | BT46: 0 | BU46: 0 | BV46: 0 | BW46: 0 | BX46: 0 | BY46: 0 | BZ46: 0 | CA46: 0 | CB46: 0 | CC46: 0 | CD46: 0 | CE46: 0 | CF46: 0 | CG46: 0 | CH46: 0 | CI46: 0 | CJ46: 0 | CK46: 0 | CL46: 0 | CM46: 0 | CN46: 0 | CO46: 0 | CP46: 0 | CQ46: 0 | CR46: 0 | CS46: 0 | CT46: 0 | CU46: 0 | CV46: 0 | CX46: 0 | CY46: 0 | CZ46: 0 | DA46: 0 | DB46: 295.5828697 | DC46: 19.6443758 | DD46: 0 | DE46: 0 | DF46: 152.6283075 | DG46: 419.7862178 | DH46: 18.03768503 | DI46: 27.30219058 | DJ46: 159.7358319 | DK46: 834.8065467 | DL46: 324.4708119 | DM46: 152.1715881 | DN46: 50.3311801 | DO46: 0 | DP46: 36.43822898 | DQ46: 0 | DR46: 0.007548879365 | DS46: 16.91356975 | DT46: 88.72069718 | DU46: 89.04428963 | DV46: 56.45670025 | DW46: 0 | DX46: 0.007550270823 | DY46: 13.0350132 | DZ46: 0 | EA46: 13.74869172 | EB46: 61.99268672 | EC46: 40.80311614 | ED46: 81.83824545 | EE46: 0.1269031668 | EF46: 0 | EG46: 0 | EH46: 0 | EI46: 0 | EJ46: 0 | EK46: 454.7947433 | EL46: 449.1678327 | EM46: 686.2650949 | EN46: 251.7532912 | EO46: 460.9142257 | EP46: 0 | EQ46: 0 | ER46: 0 | ES46: 0 | ET46: 0 | EU46: 0 | EV46: 0 | EW46: 0 | EX46: 0 | EY46: 0 | EZ46: 0 | FA46: 0 | FB46: 0 | FC46: 0 | FD46: 0 | FE46: 0 | FF46: 0 | FG46: 0 | FH46: 0 | FI46: 0 | FJ46: 0 | FK46: 0 | FL46: 0 | FM46: 0 | FN46: 0 | FO46: 0 | FP46: 0 | FQ46: 0 | FR46: 0 | FS46: 0 | FT46: 0 | FU46: 0 | FV46: 0 | FW46: 0 | FX46: 0 | FY46: 0 | FZ46: 0 | GA46: 0 | GB46: 0 | GC46: 0 | GD46: 0 | GE46: 0 | GF46: 0 | GG46: 0 | GH46: 0 | GI46: 0 | GJ46: 0
A47: 2 | D47: OVERHEAD CONDUCTORS | E47: ˃ 11 kV & < = 22 kV ; MULTIPLE-PHASE | F47: 62.52225782 | G47: 75.61549736 | H47: 8.695717185 | I47: 2 | J47: 0 | K47: 0 | L47: 0 | M47: 0.126977462 | N47: 0 | O47: 0 | P47: 0 | Q47: 0 | R47: 0.0001004103521 | S47: 3.121921811 | T47: 0.4828861829 | U47: 5.194837243 | V47: 0 | W47: 0.6554766655 | X47: 0.00105928638 | Y47: 1.18116768 | Z47: 0 | AA47: 0 | AB47: 2.673771438 | AC47: 0 | AD47: 0 | AE47: 0 | AF47: 0.08668976436 | AG47: 0 | AH47: 1.801615182 | AI47: 0 | AJ47: 0 | AK47: 0 | AL47: 0 | AM47: 0 | AN47: 0 | AO47: 0 | AP47: 0 | AQ47: 0 | AR47: 0 | AS47: 0 | AT47: 0 | AU47: 0 | AV47: 0 | AW47: 1.769906219 | AX47: 1.818667346 | AY47: 9.993231188e-05 | AZ47: 0 | BA47: 23.22541492 | BB47: 0 | BC47: 0 | BD47: 0 | BE47: 0 | BF47: 0 | BG47: 11.65827392 | BH47: 0 | BI47: 0 | BJ47: 0 | BK47: 0 | BL47: 0 | BM47: 0 | BN47: 0 | BO47: 0 | BP47: 0 | BQ47: 0 | BR47: 0 | BS47: 0 | BT47: 0 | BU47: 0 | BV47: 0 | BW47: 0 | BX47: 0 | BY47: 0 | BZ47: 0 | CA47: 0 | CB47: 0 | CC47: 0 | CD47: 0 | CE47: 0 | CF47: 0 | CG47: 0 | CH47: 0 | CI47: 0 | CJ47: 0 | CK47: 0 | CL47: 0 | CM47: 0 | CN47: 0 | CO47: 0 | CP47: 0 | CQ47: 0 | CR47: 0 | CS47: 0 | CT47: 0 | CU47: 0 | CV47: 0 | CX47: 0 | CY47: 0 | CZ47: 0 | DA47: 7.938917617 | DB47: 0 | DC47: 0 | DD47: 0 | DE47: 0 | DF47: 0.006277881925 | DG47: 195.1896004 | DH47: 30.19113443 | DI47: 324.7929535 | DJ47: 0 | DK47: 40.98188108 | DL47: 0.06622897617 | DM47: 73.84927021 | DN47: 0 | DO47: 0 | DP47: 167.1702272 | DQ47: 0 | DR47: 0 | DS47: 0 | DT47: 5.420039798 | DU47: 0 | DV47: 112.6410489 | DW47: 0 | DX47: 0 | DY47: 0 | DZ47: 0 | EA47: 0 | EB47: 0 | EC47: 0 | ED47: 0 | EE47: 0 | EF47: 0 | EG47: 0 | EH47: 0 | EI47: 0 | EJ47: 0 | EK47: 110.658533 | EL47: 113.7071887 | EM47: 0.006247993768 | EN47: 0 | EO47: 1452.10538 | EP47: 0 | EQ47: 0 | ER47: 0 | ES47: 0 | ET47: 0 | EU47: 728.9016081 | EV47: 0 | EW47: 0 | EX47: 0 | EY47: 0 | EZ47: 0 | FA47: 0 | FB47: 0 | FC47: 0 | FD47: 0 | FE47: 0 | FF47: 0 | FG47: 0 | FH47: 0 | FI47: 0 | FJ47: 0 | FK47: 0 | FL47: 0 | FM47: 0 | FN47: 0 | FO47: 0 | FP47: 0 | FQ47: 0 | FR47: 0 | FS47: 0 | FT47: 0 | FU47: 0 | FV47: 0 | FW47: 0 | FX47: 0 | FY47: 0 | FZ47: 0 | GA47: 0 | GB47: 0 | GC47: 0 | GD47: 0 | GE47: 0 | GF47: 0 | GG47: 0 | GH47: 0 | GI47: 0 | GJ47: 0
A48: 2 | D48: OVERHEAD CONDUCTORS | E48: > 22 kV & < = 66 kV | F48: 228.5221839 | G48: 54.78910948 | H48: 7.401966595 | I48: 2 | J48: 30.95418703 | K48: 22.36327118 | L48: 57.73993305 | M48: 74.12512504 | N48: 16.88990396 | O48: 61.44678989 | P48: 45.39170536 | Q48: 81.88055215 | R48: 34.06999067 | S48: 14.97693298 | T48: 9.799502137 | U48: 20.76158675 | V48: 23.09359098 | W48: 15.70689555 | X48: 9.736411691 | Y48: 18.41113543 | Z48: 3.844349187 | AA48: 6.599288538 | AB48: 4.195815288 | AC48: 31.00074047 | AD48: 0.579130055 | AE48: 20.7922642 | AF48: 1.103407164 | AG48: 14.75658234 | AH48: 5.993823575 | AI48: 0.496195483 | AJ48: 2.310734168 | AK48: 0.326998397 | AL48: 33.25231792 | AM48: 7.996499409 | AN48: 12.35075555 | AO48: 26.54790078 | AP48: 41.42041479 | AQ48: 79.49114582 | AR48: 15.51025371 | AS48: 9.539974309 | AT48: 38.2904772 | AU48: 18.67313421 | AV48: 0.002627923 | AW48: 20.89824802 | AX48: 6.884610114 | AY48: 24.81261123 | AZ48: 12.04804209 | BA48: 23.17463212 | BB48: 59.2408024 | BC48: 95.54699833 | BD48: 51.8575908 | BE48: 14.01753114 | BF48: 132.0784707 | BG48: 109.9467859 | BH48: 85.34609244 | BI48: 28.54155493 | BJ48: 28.44934379 | BK48: 95.24963835 | BL48: 0 | BM48: 0 | BN48: 2.79042922 | BO48: 19.69279843 | BP48: 10.82611286 | BQ48: 6.09735291 | BR48: 12.60398192 | BS48: 6.781387366 | BT48: 0 | BU48: 0 | BV48: 0 | BW48: 0 | BX48: 0 | BY48: 0 | BZ48: 0 | CA48: 0 | CB48: 0 | CC48: 0 | CD48: 0 | CE48: 0 | CF48: 0 | CG48: 0 | CH48: 0 | CI48: 0 | CJ48: 0 | CK48: 0 | CL48: 0 | CM48: 0 | CN48: 0 | CO48: 0 | CP48: 0 | CQ48: 0 | CR48: 0 | CS48: 0 | CT48: 0 | CU48: 0 | CV48: 0 | CX48: 7073.718421 | CY48: 5110.503568 | CZ48: 13194.8556 | DA48: 16939.23545 | DB48: 3859.717739 | DC48: 14041.95462 | DD48: 10373.01164 | DE48: 18711.52259 | DF48: 7785.748673 | DG48: 3422.561432 | DH48: 2239.403629 | DI48: 4744.483146 | DJ48: 5277.397846 | DK48: 3589.374074 | DL48: 2224.986063 | DM48: 4207.352878 | DN48: 878.5190718 | DO48: 1508.083829 | DP48: 958.8368728 | DQ48: 7084.356914 | DR48: 132.3440649 | DS48: 4751.493623 | DT48: 252.1530148 | DU48: 3372.206424 | DV48: 1369.721653 | DW48: 113.3916754 | DX48: 528.0540185 | DY48: 74.72638781 | DZ48: 7598.892311 | EA48: 1827.377508 | EB48: 2822.42163 | EC48: 6066.784265 | ED48: 9465.483645 | EE48: 18165.49024 | EF48: 3544.437051 | EG48: 2180.095763 | EH48: 8750.223471 | EI48: 4267.225409 | EJ48: 0.6005387031 | EK48: 4775.713278 | EL48: 1573.286138 | EM48: 5670.232107 | EN48: 2753.24489 | EO48: 5295.917543 | EP48: 13537.83754 | EQ48: 21834.60872 | ER48: 11850.6099 | ES48: 3203.316829 | ET48: 30182.86057 | EU48: 25125.27962 | EV48: 19503.47543 | EW48: 6522.378464 | EX48: 6501.306174 | EY48: 21766.65537 | EZ48: 0 | FA48: 0 | FB48: 637.6749793 | FC48: 4500.241305 | FD48: 2474.006954 | FE48: 1393.380403 | FF48: 2880.289474 | FG48: 1549.697451 | FH48: 0 | FI48: 0 | FJ48: 0 | FK48: 0 | FL48: 0 | FM48: 0 | FN48: 0 | FO48: 0 | FP48: 0 | FQ48: 0 | FR48: 0 | FS48: 0 | FT48: 0 | FU48: 0 | FV48: 0 | FW48: 0 | FX48: 0 | FY48: 0 | FZ48: 0 | GA48: 0 | GB48: 0 | GC48: 0 | GD48: 0 | GE48: 0 | GF48: 0 | GG48: 0 | GH48: 0 | GI48: 0 | GJ48: 0
A49: 2 | D49: OVERHEAD CONDUCTORS | E49: > 66 kV & < = 132 kV | F49: 57.83349437 | G49: 63.74880762 | H49: 7.984285041 | I49: 2 | J49: 15.1339405 | K49: 21.84265569 | L49: 75.75864784 | M49: 16.75325242 | N49: 3.140676411 | O49: 7.53084611 | P49: 7.595697345 | Q49: 1.46030985 | R49: 2.79794291 | S49: 11.00982242 | T49: 19.57901918 | U49: 13.510733 | V49: 3.52372628 | W49: 4.436301457 | X49: 0 | Y49: 4.65464655 | Z49: 1.69167798 | AA49: 0 | AB49: 35.47005378 | AC49: 0 | AD49: 0 | AE49: 0 | AF49: 0 | AG49: 0 | AH49: 0 | AI49: 6.22817546 | AJ49: 3.932194659 | AK49: 4.50066168 | AL49: 50.6885264 | AM49: 0.213612416 | AN49: 8.78283599 | AO49: 16.39350963 | AP49: 2.1179938 | AQ49: 0.696064954 | AR49: 29.01081578 | AS49: 28.8205536 | AT49: 20.92152665 | AU49: 26.17744554 | AV49: 12.91531172 | AW49: 27.54364716 | AX49: 25.96620922 | AY49: 32.1693325 | AZ49: 4.338855614 | BA49: 3.682145565 | BB49: 13.0629369 | BC49: 117.6291918 | BD49: 8.55485859 | BE49: 0.392519806 | BF49: 14.63771775 | BG49: 50.9699397 | BH49: 60.80859583 | BI49: 10.28612279 | BJ49: 54.73748919 | BK49: 188.9912843 | BL49: 0 | BM49: 0 | BN49: 0 | BO49: 14.80264157 | BP49: 0 | BQ49: 0 | BR49: 0 | BS49: 0 | BT49: 0 | BU49: 0 | BV49: 0 | BW49: 0 | BX49: 0 | BY49: 0 | BZ49: 0 | CA49: 0 | CB49: 0 | CC49: 0 | CD49: 0 | CE49: 0 | CF49: 0 | CG49: 0 | CH49: 0 | CI49: 0 | CJ49: 0 | CK49: 0 | CL49: 0 | CM49: 0 | CN49: 0 | CO49: 0 | CP49: 0 | CQ49: 0 | CR49: 0 | CS49: 0 | CT49: 0 | CU49: 0 | CV49: 0 | CX49: 875.2486625 | CY49: 1263.237105 | CZ49: 4381.387334 | DA49: 968.8991298 | DB49: 181.6362915 | DC49: 435.5351461 | DD49: 439.2857197 | DE49: 84.45482149 | DF49: 161.8148155 | DG49: 636.736503 | DH49: 1132.323096 | DI49: 781.3729009 | DJ49: 203.789404 | DK49: 256.5668153 | DL49: 0 | DM49: 269.1944751 | DN49: 97.83564894 | DO49: 0 | DP49: 2051.357156 | DQ49: 0 | DR49: 0 | DS49: 0 | DT49: 0 | DU49: 0 | DV49: 0 | DW49: 360.1971504 | DX49: 227.4125577 | DY49: 260.2889919 | DZ49: 2931.494606 | EA49: 12.35395246 | EB49: 507.9420958 | EC49: 948.0939469 | ED49: 122.4909825 | EE49: 40.2558686 | EF49: 1677.796851 | EG49: 1666.793324 | EH49: 1209.964993 | EI49: 1513.933149 | EJ49: 746.9376077 | EK49: 1592.945363 | EL49: 1501.716615 | EM49: 1860.46491 | EN49: 250.9311817 | EO49: 212.9513448 | EP49: 755.4752877 | EQ49: 6802.907202 | ER49: 494.7573661 | ES49: 22.70079199 | ET49: 846.5503671 | EU49: 2947.769721 | EV49: 3516.773584 | EW49: 594.8824245 | EX49: 3165.660273 | EY49: 10930.02638 | EZ49: 0 | FA49: 0 | FB49: 0 | FC49: 856.0884879 | FD49: 0 | FE49: 0 | FF49: 0 | FG49: 0 | FH49: 0 | FI49: 0 | FJ49: 0 | FK49: 0 | FL49: 0 | FM49: 0 | FN49: 0 | FO49: 0 | FP49: 0 | FQ49: 0 | FR49: 0 | FS49: 0 | FT49: 0 | FU49: 0 | FV49: 0 | FW49: 0 | FX49: 0 | FY49: 0 | FZ49: 0 | GA49: 0 | GB49: 0 | GC49: 0 | GD49: 0 | GE49: 0 | GF49: 0 | GG49: 0 | GH49: 0 | GI49: 0 | GJ49: 0
E50: > 132 kV | F50: 0 | G50: 40.61 | H50: 6.372597587 | I50: 2 | J50: 0 | K50: 0 | L50: 0 | M50: 0 | N50: 0 | O50: 0 | P50: 0 | Q50: 0 | R50: 0 | S50: 0 | T50: 0 | U50: 0 | V50: 0 | W50: 0 | X50: 0 | Y50: 0 | Z50: 0 | AA50: 0 | AB50: 0 | AC50: 0 | AD50: 0 | AE50: 0 | AF50: 0 | AG50: 0 | AH50: 0 | AI50: 0 | AJ50: 0 | AK50: 0 | AL50: 0 | AM50: 0 | AN50: 0 | AO50: 0 | AP50: 0 | AQ50: 0 | AR50: 0 | AS50: 0 | AT50: 0 | AU50: 0 | AV50: 0 | AW50: 0 | AX50: 0 | AY50: 0 | AZ50: 0 | BA50: 0 | BB50: 0 | BC50: 0 | BD50: 0 | BE50: 0 | BF50: 0 | BG50: 0 | BH50: 0 | BI50: 0 | BJ50: 0 | BK50: 0 | BL50: 0 | BM50: 0 | BN50: 0 | BO50: 0 | BP50: 0 | BQ50: 0 | BR50: 0 | BS50: 0 | BT50: 0 | BU50: 0 | BV50: 0 | BW50: 0 | BX50: 0 | BY50: 0 | BZ50: 0 | CA50: 0 | CB50: 0 | CC50: 0 | CD50: 0 | CE50: 0 | CF50: 0 | CG50: 0 | CH50: 0 | CI50: 0 | CJ50: 0 | CK50: 0 | CL50: 0 | CM50: 0 | CN50: 0 | CO50: 0 | CP50: 0 | CQ50: 0 | CR50: 0 | CS50: 0 | CT50: 0 | CU50: 0 | CV50: 0 | CX50: 0 | CY50: 0 | CZ50: 0 | DA50: 0 | DB50: 0 | DC50: 0 | DD50: 0 | DE50: 0 | DF50: 0 | DG50: 0 | DH50: 0 | DI50: 0 | DJ50: 0 | DK50: 0 | DL50: 0 | DM50: 0 | DN50: 0 | DO50: 0 | DP50: 0 | DQ50: 0 | DR50: 0 | DS50: 0 | DT50: 0 | DU50: 0 | DV50: 0 | DW50: 0 | DX50: 0 | DY50: 0 | DZ50: 0 | EA50: 0 | EB50: 0 | EC50: 0 | ED50: 0 | EE50: 0 | EF50: 0 | EG50: 0 | EH50: 0 | EI50: 0 | EJ50: 0 | EK50: 0 | EL50: 0 | EM50: 0 | EN50: 0 | EO50: 0 | EP50: 0 | EQ50: 0 | ER50: 0 | ES50: 0 | ET50: 0 | EU50: 0 | EV50: 0 | EW50: 0 | EX50: 0 | EY50: 0 | EZ50: 0 | FA50: 0 | FB50: 0 | FC50: 0 | FD50: 0 | FE50: 0 | FF50: 0 | FG50: 0 | FH50: 0 | FI50: 0 | FJ50: 0 | FK50: 0 | FL50: 0 | FM50: 0 | FN50: 0 | FO50: 0 | FP50: 0 | FQ50: 0 | FR50: 0 | FS50: 0 | FT50: 0 | FU50: 0 | FV50: 0 | FW50: 0 | FX50: 0 | FY50: 0 | FZ50: 0 | GA50: 0 | GB50: 0 | GC50: 0 | GD50: 0 | GE50: 0 | GF50: 0 | GG50: 0 | GH50: 0 | GI50: 0 | GJ50: 0
E51: OTHER - PLEASE ADD A ROW IF NECESSARY AND NOMINATE THE CATEGORY | F51: 0 | G51: 0 | H51: 0 | I51: 2 | J51: 0 | K51: 0 | L51: 0 | M51: 0 | N51: 0 | O51: 0 | P51: 0 | Q51: 0 | R51: 0 | S51: 0 | T51: 0 | U51: 0 | V51: 0 | W51: 0 | X51: 0 | Y51: 0 | Z51: 0 | AA51: 0 | AB51: 0 | AC51: 0 | AD51: 0 | AE51: 0 | AF51: 0 | AG51: 0 | AH51: 0 | AI51: 0 | AJ51: 0 | AK51: 0 | AL51: 0 | AM51: 0 | AN51: 0 | AO51: 0 | AP51: 0 | AQ51: 0 | AR51: 0 | AS51: 0 | AT51: 0 | AU51: 0 | AV51: 0 | AW51: 0 | AX51: 0 | AY51: 0 | AZ51: 0 | BA51: 0 | BB51: 0 | BC51: 0 | BD51: 0 | BE51: 0 | BF51: 0 | BG51: 0 | BH51: 0 | BI51: 0 | BJ51: 0 | BK51: 0 | BL51: 0 | BM51: 0 | BN51: 0 | BO51: 0 | BP51: 0 | BQ51: 0 | BR51: 0 | BS51: 0 | BT51: 0 | BU51: 0 | BV51: 0 | BW51: 0 | BX51: 0 | BY51: 0 | BZ51: 0 | CA51: 0 | CB51: 0 | CC51: 0 | CD51: 0 | CE51: 0 | CF51: 0 | CG51: 0 | CH51: 0 | CI51: 0 | CJ51: 0 | CK51: 0 | CL51: 0 | CM51: 0 | CN51: 0 | CO51: 0 | CP51: 0 | CQ51: 0 | CR51: 0 | CS51: 0 | CT51: 0 | CU51: 0 | CV51: 0 | CX51: 0 | CY51: 0 | CZ51: 0 | DA51: 0 | DB51: 0 | DC51: 0 | DD51: 0 | DE51: 0 | DF51: 0 | DG51: 0 | DH51: 0 | DI51: 0 | DJ51: 0 | DK51: 0 | DL51: 0 | DM51: 0 | DN51: 0 | DO51: 0 | DP51: 0 | DQ51: 0 | DR51: 0 | DS51: 0 | DT51: 0 | DU51: 0 | DV51: 0 | DW51: 0 | DX51: 0 | DY51: 0 | DZ51: 0 | EA51: 0 | EB51: 0 | EC51: 0 | ED51: 0 | EE51: 0 | EF51: 0 | EG51: 0 | EH51: 0 | EI51: 0 | EJ51: 0 | EK51: 0 | EL51: 0 | EM51: 0 | EN51: 0 | EO51: 0 | EP51: 0 | EQ51: 0 | ER51: 0 | ES51: 0 | ET51: 0 | EU51: 0 | EV51: 0 | EW51: 0 | EX51: 0 | EY51: 0 | EZ51: 0 | FA51: 0 | FB51: 0 | FC51: 0 | FD51: 0 | FE51: 0 | FF51: 0 | FG51: 0 | FH51: 0 | FI51: 0 | FJ51: 0 | FK51: 0 | FL51: 0 | FM51: 0 | FN51: 0 | FO51: 0 | FP51: 0 | FQ51: 0 | FR51: 0 | FS51: 0 | FT51: 0 | FU51: 0 | FV51: 0 | FW51: 0 | FX51: 0 | FY51: 0 | FZ51: 0 | GA51: 0 | GB51: 0 | GC51: 0 | GD51: 0 | GE51: 0 | GF51: 0 | GG51: 0 | GH51: 0 | GI51: 0 | GJ51: 0
A52: 3 | D52: UNDERGROUND CABLES | E52: ˂ = 1 kV | F52: 206.7605506 | G52: 66.19827032 | H52: 8.136231949 | I52: 2 | J52: 177.6077932 | K52: 221.3551758 | L52: 181.1567728 | M52: 134.0899235 | N52: 148.1636514 | O52: 126.733405 | P52: 129.4051719 | Q52: 159.6210615 | R52: 154.7388324 | S52: 143.4039244 | T52: 148.7591536 | U52: 95.72775745 | V52: 97.47661741 | W52: 99.89791833 | X52: 108.998829 | Y52: 61.98137879 | Z52: 69.20660997 | AA52: 58.40677498 | AB52: 77.34289662 | AC52: 53.99601392 | AD52: 67.69425299 | AE52: 47.96704749 | AF52: 43.12481869 | AG52: 31.62419992 | AH52: 48.60323413 | AI52: 75.31818296 | AJ52: 33.21351829 | AK52: 39.71493369 | AL52: 53.49243449 | AM52: 43.35339918 | AN52: 74.13013464 | AO52: 111.9006693 | AP52: 138.4966812 | AQ52: 94.70711834 | AR52: 133.4601949 | AS52: 113.5341788 | AT52: 122.4293758 | AU52: 53.45766272 | AV52: 56.6460308 | AW52: 96.13243022 | AX52: 47.80756163 | AY52: 92.2937977 | AZ52: 49.63379105 | BA52: 71.74354856 | BB52: 78.50565726 | BC52: 104.8463609 | BD52: 29.33347539 | BE52: 96.93944561 | BF52: 119.995971 | BG52: 76.13522254 | BH52: 126.7397308 | BI52: 70.17432124 | BJ52: 111.7359583 | BK52: 107.5196152 | BL52: 88.67460947 | BM52: 57.67235686 | BN52: 70.08721974 | BO52: 51.45763107 | BP52: 85.23934737 | BQ52: 11.79953426 | BR52: 5.875665158 | BS52: 15.37636871 | BT52: 14.09785731 | BU52: 11.22026238 | BV52: 13.94768877 | BW52: 8.005457476 | BX52: 0.505042183 | BY52: 2.453330066 | BZ52: 16.03369656 | CA52: 0.033810632 | CB52: 0.113515824 | CC52: 0.17763466 | CD52: 0.458282432 | CE52: 3.752834862 | CF52: 0.35806497 | CG52: 0.398171309 | CH52: 0.146858942 | CI52: 0.121584786 | CJ52: 0.021335102 | CK52: 0.267033311 | CL52: 0.07138474 | CM52: 0.149168597 | CN52: 0.781418264 | CO52: 0.15973967 | CP52: 0.169801696 | CQ52: 20.91458639 | CR52: 12.9828531 | CS52: 0.121259478 | CT52: 0.009218295 | CU52: 0 | CV52: 0.007817255 | CX52: 36722.28512 | CY52: 45767.51804 | CZ52: 37456.07408 | DA52: 27724.50642 | DB52: 30634.39815 | DC52: 26203.46859 | DD52: 26755.8846 | DE52: 33003.33857 | DF52: 31993.88619 | DG52: 29650.27438 | DH52: 30757.52451 | DI52: 19792.72384 | DJ52: 20154.31909 | DK52: 20654.9486 | DL52: 22536.65791 | DM52: 12815.30401 | DN52: 14309.19678 | DO52: 12076.21696 | DP52: 15991.45989 | DQ52: 11164.24557 | DR52: 13996.50102 | DS52: 9917.693151 | DT52: 8916.511258 | DU52: 6538.636988 | DV52: 10049.23145 | DW52: 15572.82898 | DX52: 6867.24533 | DY52: 8211.481558 | DZ52: 11060.12521 | EA52: 8963.772687 | EB52: 15327.18746 | EC52: 23136.644 | ED52: 28635.65007 | EE52: 19581.69594 | EF52: 27594.30338 | EG52: 23474.38932 | EH52: 25313.56515 | EI52: 11052.93578 | EJ52: 11712.16452 | EK52: 19876.39421 | EL52: 9884.717767 | EM52: 19082.71643 | EN52: 10262.30997 | EO52: 14833.7356 | EP52: 16231.87292 | EQ52: 21678.09131 | ER52: 6065.005523 | ES52: 20043.25315 | ET52: 24810.43303 | EU52: 15741.76054 | EV52: 26204.77652 | EW52: 14509.2813 | EX52: 23102.58827 | EY52: 22230.81484 | EZ52: 18334.41108 | FA52: 11924.36826 | FB52: 14491.27214 | FC52: 10639.40813 | FD52: 17624.1344 | FE52: 2439.6782 | FF52: 1214.855763 | FG52: 3179.226461 | FH52: 2914.880741 | FI52: 2319.907629 | FJ52: 2883.83181 | FK52: 1655.212796 | FL52: 104.4227998 | FM52: 507.2518753 | FN52: 3315.13593 | FO52: 6.990704889 | FP52: 23.47059427 | FQ52: 36.72784011 | FR52: 94.75472798 | FS52: 775.9382025 | FT52: 74.03371036 | FU52: 82.32611909 | FV52: 30.36463571 | FW52: 25.1389373 | FX52: 4.411257437 | FY52: 55.21195442 | FZ52: 14.75954815 | GA52: 30.84218125 | GB52: 161.5664705 | GC52: 33.02786213 | GD52: 35.10829216 | GE52: 4324.311399 | GF52: 2684.341855 | GG52: 25.07167644 | GH52: 1.90597975 | GI52: 0 | GJ52: 1.616299948
A53: 3 | D53: =IF(A53>0,VLOOKUP(A53,IDtable,2),"") -> UNDERGROUND CABLES | E53: > 1 kV & < = 11 kV | F53: 572.790279 | G53: 70.60237147 | H53: 8.402521733 | I53: 2 | J53: 279.8082 | K53: 299.4798142 | L53: 279.1103485 | M53: 221.0337713 | N53: 217.0279392 | O53: 167.4871283 | P53: 197.536389 | Q53: 132.0785496 | R53: 127.3427246 | S53: 113.6681727 | T53: 116.2724657 | U53: 97.57555399 | V53: 112.3873956 | W53: 123.0518065 | X53: 105.5003336 | Y53: 82.41119186 | Z53: 53.46280311 | AA53: 59.91003841 | AB53: 91.53126931 | AC53: 56.42372417 | AD53: 71.86923945 | AE53: 88.25706314 | AF53: 59.05825559 | AG53: 60.09685039 | AH53: 52.38146251 | AI53: 85.30662037 | AJ53: 46.6114872 | AK53: 40.15168715 | AL53: 77.58916355 | AM53: 33.90158279 | AN53: 78.96597598 | AO53: 91.94004929 | AP53: 114.7318463 | AQ53: 135.533596 | AR53: 157.017593 | AS53: 128.6977959 | AT53: 117.9192575 | AU53: 90.53032978 | AV53: 88.2434647 | AW53: 110.1437964 | AX53: 73.1781142 | AY53: 98.83131065 | AZ53: 55.87615347 | BA53: 124.8542327 | BB53: 76.22020284 | BC53: 146.7160344 | BD53: 79.41364888 | BE53: 126.6255178 | BF53: 140.1680242 | BG53: 166.0676921 | BH53: 263.9541459 | BI53: 117.6822713 | BJ53: 186.6908226 | BK53: 158.1799094 | BL53: 177.9597807 | BM53: 150.377541 | BN53: 156.6269508 | BO53: 174.0015148 | BP53: 213.2836189 | BQ53: 21.9719029 | BR53: 33.86242608 | BS53: 23.25027101 | BT53: 27.28478266 | BU53: 22.4740473 | BV53: 25.47177747 | BW53: 17.05463319 | BX53: 1.1982079 | BY53: 3.607522925 | BZ53: 49.95478859 | CA53: 0.606396188 | CB53: 1.985656645 | CC53: 1.231707381 | CD53: 1.067599447 | CE53: 28.22073924 | CF53: 3.871824602 | CG53: 5.267900593 | CH53: 2.292632068 | CI53: 1.414210668 | CJ53: 0.462807296 | CK53: 0.330423573 | CL53: 0.186789459 | CM53: 1.397137205 | CN53: 2.730121946 | CO53: 18.42945074 | CP53: 10.24054196 | CQ53: 63.58441267 | CR53: 50.63212295 | CS53: 2.332568641 | CT53: 0.0070777 | CU53: 0 | CV53: 0.000900076 | CX53: 160271.417 | CY53: 171539.1263 | CZ53: 159871.6944 | DA53: 126605.9956 | DB53: 124311.4939 | DC53: 95934.99895 | DD53: 113146.9234 | DE53: 75653.30929 | DF53: 72940.67476 | DG53: 65108.02434 | DH53: 66599.73808 | DI53: 55890.3288 | DJ53: 64374.40769 | DK53: 70482.87857 | DL53: 60429.5655 | DM53: 47204.32958 | DN53: 30622.97391 | DO53: 34315.88762 | DP53: 52428.22129 | DQ53: 32318.96071 | DR53: 41166.00172 | DS53: 50552.78782 | DT53: 33827.9947 | DU53: 34422.89171 | DV53: 30003.59253 | DW53: 48862.80288 | DX53: 26698.60676 | DY53: 22998.49609 | DZ53: 44442.31864 | EA53: 19418.49706 | EB53: 45230.94342 | EC53: 52662.36649 | ED53: 65717.28625 | EE53: 77632.32627 | EF53: 89938.15089 | EG53: 73716.84641 | EH53: 67543.00443 | EI53: 51854.89285 | EJ53: 50544.99877 | EK53: 63089.29588 | EL53: 41915.71245 | EM53: 56609.61401 | EN53: 32005.31754 | EO53: 71515.2908 | EP53: 43658.19125 | EQ53: 84037.51826 | ER53: 45487.3661 | ES53: 72529.86567 | ET53: 80286.88172 | EU53: 95121.95969 | EV53: 151190.3689 | EW53: 67407.26099 | EX53: 106934.6884 | EY53: 90603.91447 | EZ53: 101933.6324 | FA53: 86134.79369 | FB53: 89714.39485 | FC53: 99666.3762 | FD53: 122166.7836 | FE53: 12585.29239 | FF53: 19396.06849 | FG53: 13317.52922 | FH53: 15628.45827 | FI53: 12872.91583 | FJ53: 14589.98652 | FK53: 9768.728101 | FL53: 686.3218374 | FM53: 2066.354063 | FN53: 28613.6173 | FO53: 347.3378417 | FP53: 1137.364824 | FQ53: 705.5100144 | FR53: 611.5105851 | FS53: 16164.5651 | FT53: 2217.743494 | FU53: 3017.402251 | FV53: 1313.197362 | FW53: 810.0461231 | FX53: 265.0915202 | FY53: 189.2634106 | FZ53: 106.9911863 | GA53: 800.2666095 | GB53: 1563.787311 | GC53: 10556.21023 | GD53: 5865.682887 | GE53: 36420.53347 | GF53: 29001.58783 | GG53: 1336.072643 | GH53: 4.054037758 | GI53: 0 | GJ53: 0.5155547832
A54: 3 | D54: UNDERGROUND CABLES | E54: > 11 kV & < = 22 kV | F54: 588.1384003 | G54: 66.509986 | H54: 8.155365473 | I54: 2 | J54: 0 | K54: 0 | L54: 0 | M54: 0 | N54: 0 | O54: 0 | P54: 0 | Q54: 0 | R54: 0 | S54: 0 | T54: 0 | U54: 0 | V54: 0 | W54: 0 | X54: 0 | Y54: 0 | Z54: 0 | AA54: 0 | AB54: 0 | AC54: 0 | AD54: 0 | AE54: 0 | AF54: 0 | AG54: 0.010000497 | AH54: 0 | AI54: 0 | AJ54: 0 | AK54: 0 | AL54: 0 | AM54: 0 | AN54: 0 | AO54: 0 | AP54: 0 | AQ54: 0 | AR54: 0 | AS54: 0 | AT54: 0 | AU54: 0 | AV54: 0 | AW54: 0 | AX54: 0 | AY54: 0 | AZ54: 0 | BA54: 0 | BB54: 0 | BC54: 0 | BD54: 0 | BE54: 0 | BF54: 0 | BG54: 0 | BH54: 0 | BI54: 0 | BJ54: 0 | BK54: 0 | BL54: 0 | BM54: 0 | BN54: 0 | BO54: 0 | BP54: 0 | BQ54: 0 | BR54: 0 | BS54: 0 | BT54: 0 | BU54: 0 | BV54: 0 | BW54: 0 | BX54: 0 | BY54: 0 | BZ54: 0 | CA54: 0 | CB54: 0 | CC54: 0 | CD54: 0 | CE54: 0 | CF54: 0 | CG54: 0 | CH54: 0 | CI54: 0 | CJ54: 0 | CK54: 0 | CL54: 0 | CM54: 0 | CN54: 0 | CO54: 0 | CP54: 0 | CQ54: 0 | CR54: 0 | CS54: 0 | CT54: 0 | CU54: 0 | CV54: 0 | CX54: 0 | CY54: 0 | CZ54: 0 | DA54: 0 | DB54: 0 | DC54: 0 | DD54: 0 | DE54: 0 | DF54: 0 | DG54: 0 | DH54: 0 | DI54: 0 | DJ54: 0 | DK54: 0 | DL54: 0 | DM54: 0 | DN54: 0 | DO54: 0 | DP54: 0 | DQ54: 0 | DR54: 0 | DS54: 0 | DT54: 0 | DU54: 5.881676307 | DV54: 0 | DW54: 0 | DX54: 0 | DY54: 0 | DZ54: 0 | EA54: 0 | EB54: 0 | EC54: 0 | ED54: 0 | EE54: 0 | EF54: 0 | EG54: 0 | EH54: 0 | EI54: 0 | EJ54: 0 | EK54: 0 | EL54: 0 | EM54: 0 | EN54: 0 | EO54: 0 | EP54: 0 | EQ54: 0 | ER54: 0 | ES54: 0 | ET54: 0 | EU54: 0 | EV54: 0 | EW54: 0 | EX54: 0 | EY54: 0 | EZ54: 0 | FA54: 0 | FB54: 0 | FC54: 0 | FD54: 0 | FE54: 0 | FF54: 0 | FG54: 0 | FH54: 0 | FI54: 0 | FJ54: 0 | FK54: 0 | FL54: 0 | FM54: 0 | FN54: 0 | FO54: 0 | FP54: 0 | FQ54: 0 | FR54: 0 | FS54: 0 | FT54: 0 | FU54: 0 | FV54: 0 | FW54: 0 | FX54: 0 | FY54: 0 | FZ54: 0 | GA54: 0 | GB54: 0 | GC54: 0 | GD54: 0 | GE54: 0 | GF54: 0 | GG54: 0 | GH54: 0 | GI54: 0 | GJ54: 0
A55: 3 | D55: UNDERGROUND CABLES | E55: > 22 kV & < = 33 kV | F55: 488.4063137 | G55: 77.08029983 | H55: 8.779538703 | I55: 2 | J55: 15.31479831 | K55: 21.49865278 | L55: 25.27414473 | M55: 28.99268397 | N55: 25.23204537 | O55: 8.759344529 | P55: 18.67575036 | Q55: 12.15200471 | R55: 11.30532769 | S55: 0.891402414 | T55: 14.47247966 | U55: 5.3649879 | V55: 6.297301981 | W55: 8.712162406 | X55: 4.605952042 | Y55: 2.600766179 | Z55: 0.700928793 | AA55: 3.811545614 | AB55: 0.193424988 | AC55: 2.531189696 | AD55: 0.276327747 | AE55: 0.508215035 | AF55: 0.904111655 | AG55: 0.403608625 | AH55: 0.144130236 | AI55: 0.077177219 | AJ55: 0.941438481 | AK55: 0.480546503 | AL55: 0.077263852 | AM55: 0.486310609 | AN55: 0.19857359 | AO55: 0.029358949 | AP55: 0.4010938 | AQ55: 0.156776843 | AR55: 3.977202589 | AS55: 3.084843478 | AT55: 0.713534975 | AU55: 4.23486215 | AV55: 1.774985168 | AW55: 12.45725237 | AX55: 7.107019318 | AY55: 13.63608134 | AZ55: 11.6860801 | BA55: 0.586224059 | BB55: 2.902966618 | BC55: 64.74533716 | BD55: 22.83520285 | BE55: 22.49075728 | BF55: 36.69078748 | BG55: 42.28969927 | BH55: 39.76241473 | BI55: 0.112437935 | BJ55: 0 | BK55: 1.805833805 | BL55: 0.726487143 | BM55: 0.709050457 | BN55: 2.553023839 | BO55: 43.73723376 | BP55: 20.015174 | BQ55: 2.42301864 | BR55: 25.16757062 | BS55: 13.07358183 | BT55: 5.014052805 | BU55: 0.946777254 | BV55: 19.55545041 | BW55: 16.46439951 | BX55: 41.59829253 | BY55: 0.636550841 | BZ55: 0.696835104 | CA55: 1.21345169 | CB55: 2.79193366 | CC55: 0.133972048 | CD55: 3.88035825 | CE55: 5.306615481 | CF55: 1.59988977 | CG55: 1.65043626 | CH55: 20.55930408 | CI55: 0 | CJ55: 0 | CK55: 0 | CL55: 0 | CM55: 18.42786178 | CN55: 7.006823818 | CO55: 32.65698946 | CP55: 0 | CQ55: 0 | CR55: 0 | CS55: 0 | CT55: 0 | CU55: 0 | CV55: 0 | CX55: 7479.844187 | CY55: 10500.07775 | CZ55: 12344.05186 | DA55: 14160.2099 | DB55: 12323.49026 | DC55: 4278.119172 | DD55: 9121.354391 | DE55: 5935.115825 | DF55: 5521.593424 | DG55: 435.3665671 | DH55: 7068.45044 | DI55: 2620.293963 | DJ55: 3075.642047 | DK55: 4255.075125 | DL55: 2249.576058 | DM55: 1270.230622 | DN55: 342.338048 | DO55: 1861.582943 | DP55: 94.46998537 | DQ55: 1236.249029 | DR55: 134.9602163 | DS55: 248.2154318 | DT55: 441.5738406 | DU55: 197.1250007 | DV55: 70.39411726 | DW55: 37.69384103 | DX55: 459.8044981 | DY55: 234.7019461 | DZ55: 37.73615314 | EA55: 237.5171719 | EB55: 96.98459509 | EC55: 14.33909606 | ED55: 195.8967443 | EE55: 76.57079996 | EF55: 1942.490855 | EG55: 1506.657031 | EH55: 348.4949868 | EI55: 2068.333412 | EJ55: 866.9139628 | EK55: 6084.200709 | EL55: 3471.113107 | EM55: 6659.948219 | EN55: 5707.555303 | EO55: 286.3155317 | EP55: 1417.827225 | EQ55: 31622.03145 | ER55: 11152.85725 | ES55: 10984.62786 | ET55: 17920.01226 | EU55: 20654.55613 | EV55: 19420.2144 | EW55: 54.91539735 | EX55: 0 | EY55: 881.9806319 | EZ55: 354.8209075 | FA55: 346.3047199 | FB55: 1246.912962 | FC55: 21361.54111 | FD55: 9775.537353 | FE55: 1183.417602 | FF55: 12292.00039 | FG55: 6385.219909 | FH55: 2448.895047 | FI55: 462.4119885 | FJ55: 9551.005448 | FK55: 8041.316671 | FL55: 20316.86871 | FM55: 310.8954497 | FN55: 340.3386644 | FO55: 592.6574668 | FP55: 1363.598027 | FQ55: 65.4327941 | FR55: 1895.191469 | FS55: 2591.784505 | FT55: 781.3962649 | FU55: 806.0834898 | FV55: 10041.29392 | FW55: 0 | FX55: 0 | FY55: 0 | FZ55: 0 | GA55: 9000.284043 | GB55: 3422.176992 | GC55: 15949.87984 | GD55: 0 | GE55: 0 | GF55: 0 | GG55: 0 | GH55: 0 | GI55: 0 | GJ55: 0
A56: 3 | D56: UNDERGROUND CABLES | E56: > 33 kV & < = 66 kV | F56: 1101.501908 | G56: 46.66 | H56: 6.830812543 | I56: 2 | J56: 0.415048081 | K56: 0.570569136 | L56: 1.088055339 | M56: 0 | N56: 0 | O56: 0 | P56: 0 | Q56: 0 | R56: 0 | S56: 0 | T56: 0 | U56: 0 | V56: 0 | W56: 0 | X56: 0 | Y56: 0 | Z56: 0 | AA56: 0 | AB56: 0 | AC56: 0 | AD56: 0 | AE56: 0 | AF56: 0 | AG56: 0 | AH56: 0 | AI56: 0 | AJ56: 0 | AK56: 0 | AL56: 0 | AM56: 0 | AN56: 0 | AO56: 0 | AP56: 0 | AQ56: 0.068292016 | AR56: 0 | AS56: 0 | AT56: 0 | AU56: 0 | AV56: 0 | AW56: 0 | AX56: 0 | AY56: 0 | AZ56: 0 | BA56: 0 | BB56: 0.269853411 | BC56: 0 | BD56: 0 | BE56: 0 | BF56: 0 | BG56: 0 | BH56: 0 | BI56: 0 | BJ56: 0 | BK56: 0 | BL56: 0 | BM56: 0 | BN56: 0 | BO56: 0.093025353 | BP56: 0 | BQ56: 0 | BR56: 0 | BS56: 0 | BT56: 0 | BU56: 0 | BV56: 0 | BW56: 0 | BX56: 0 | BY56: 0 | BZ56: 0 | CA56: 0 | CB56: 0 | CC56: 0 | CD56: 0 | CE56: 0 | CF56: 0 | CG56: 0 | CH56: 0 | CI56: 0 | CJ56: 0 | CK56: 0 | CL56: 0 | CM56: 0 | CN56: 0 | CO56: 0 | CP56: 0 | CQ56: 0 | CR56: 0 | CS56: 0 | CT56: 0 | CU56: 0 | CV56: 0 | CX56: 457.1762533 | CY56: 628.4829922 | CZ56: 1198.495032 | DA56: 0 | DB56: 0 | DC56: 0 | DD56: 0 | DE56: 0 | DF56: 0 | DG56: 0 | DH56: 0 | DI56: 0 | DJ56: 0 | DK56: 0 | DL56: 0 | DM56: 0 | DN56: 0 | DO56: 0 | DP56: 0 | DQ56: 0 | DR56: 0 | DS56: 0 | DT56: 0 | DU56: 0 | DV56: 0 | DW56: 0 | DX56: 0 | DY56: 0 | DZ56: 0 | EA56: 0 | EB56: 0 | EC56: 0 | ED56: 0 | EE56: 75.22378596 | EF56: 0 | EG56: 0 | EH56: 0 | EI56: 0 | EJ56: 0 | EK56: 0 | EL56: 0 | EM56: 0 | EN56: 0 | EO56: 0 | EP56: 297.2440472 | EQ56: 0 | ER56: 0 | ES56: 0 | ET56: 0 | EU56: 0 | EV56: 0 | EW56: 0 | EX56: 0 | EY56: 0 | EZ56: 0 | FA56: 0 | FB56: 0 | FC56: 102.4676039 | FD56: 0 | FE56: 0 | FF56: 0 | FG56: 0 | FH56: 0 | FI56: 0 | FJ56: 0 | FK56: 0 | FL56: 0 | FM56: 0 | FN56: 0 | FO56: 0 | FP56: 0 | FQ56: 0 | FR56: 0 | FS56: 0 | FT56: 0 | FU56: 0 | FV56: 0 | FW56: 0 | FX56: 0 | FY56: 0 | FZ56: 0 | GA56: 0 | GB56: 0 | GC56: 0 | GD56: 0 | GE56: 0 | GF56: 0 | GG56: 0 | GH56: 0 | GI56: 0 | GJ56: 0
A57: 3 | D57: UNDERGROUND CABLES | E57: > 66 kV & < = 132 kV | F57: 1101.501908 | G57: 47.25577253 | H57: 6.874283419 | I57: 2 | J57: 23.14504248 | K57: 24.3036516 | L57: 22.34536663 | M57: 23.26189919 | N57: 0.258489824 | O57: 18.8590109 | P57: 0.128432744 | Q57: 0.655514292 | R57: 5.496896571 | S57: 3.882429987 | T57: 16.27480482 | U57: 8.107855649 | V57: 0 | W57: 6.488539124 | X57: 0.447695092 | Y57: 9.329345618 | Z57: 0.188147559 | AA57: 0.013581349 | AB57: 0.578538921 | AC57: 0.061824829 | AD57: 0 | AE57: 0 | AF57: 0.009263329 | AG57: 0.847893837 | AH57: 0 | AI57: 11.31293644 | AJ57: 0 | AK57: 0.010854738 | AL57: 0.010039675 | AM57: 0 | AN57: 3.11277 | AO57: 3.805217124 | AP57: 19.88828847 | AQ57: 23.00605706 | AR57: 5.72369445 | AS57: 14.50226647 | AT57: 18.12719178 | AU57: 10.25016444 | AV57: 7.317211009 | AW57: 1.21283624 | AX57: 88.32748004 | AY57: 51.20477863 | AZ57: 26.97165714 | BA57: 13.79000428 | BB57: 32.91446481 | BC57: 27.07209252 | BD57: 5.122912764 | BE57: 16.16030525 | BF57: 0 | BG57: 0 | BH57: 39.74407233 | BI57: 0 | BJ57: 0.047700521 | BK57: 2.62836363 | BL57: 0 | BM57: 0 | BN57: 0 | BO57: 0 | BP57: 0 | BQ57: 0 | BR57: 0 | BS57: 0 | BT57: 0 | BU57: 0 | BV57: 0 | BW57: 0 | BX57: 0 | BY57: 0 | BZ57: 0 | CA57: 0 | CB57: 0 | CC57: 0 | CD57: 0 | CE57: 0 | CF57: 0 | CG57: 0 | CH57: 0 | CI57: 0 | CJ57: 0 | CK57: 0 | CL57: 0 | CM57: 0 | CN57: 0 | CO57: 0 | CP57: 0 | CQ57: 0 | CR57: 0 | CS57: 0 | CT57: 0 | CU57: 0 | CV57: 0 | CX57: 25494.30846 | CY57: 26770.51861 | CZ57: 24613.46398 | DA57: 25623.02635 | DB57: 284.7270344 | DC57: 20773.2365 | DD57: 141.4689126 | DE57: 722.0502436 | DF57: 6054.842063 | DG57: 4276.50404 | DH57: 17926.72857 | DI57: 8930.818471 | DJ57: 0 | DK57: 7147.138228 | DL57: 493.1369982 | DM57: 10276.292 | DN57: 207.2448953 | DO57: 14.95988184 | DP57: 637.2617256 | DQ57: 68.10016713 | DR57: 0 | DS57: 0 | DT57: 10.20357457 | DU57: 933.9566796 | DV57: 0 | DW57: 12461.22108 | DX57: 0 | DY57: 11.95651462 | DZ57: 11.05872117 | EA57: 0 | EB57: 3428.722096 | EC57: 4191.453924 | ED57: 21906.9877 | EE57: 25341.21576 | EF57: 6304.66036 | EG57: 15974.27419 | EH57: 19967.13634 | EI57: 11290.57569 | EJ57: 8059.921891 | EK57: 1335.941433 | EL57: 97292.88783 | EM57: 56402.16138 | EN57: 29709.33181 | EO57: 15189.71603 | EP57: 36255.34581 | EQ57: 29819.96158 | ER57: 5642.898186 | ES57: 17800.60707 | ET57: 0 | EU57: 0 | EV57: 43778.17152 | EW57: 0 | EX57: 52.54221491 | EY57: 2895.147555 | EZ57: 0 | FA57: 0 | FB57: 0 | FC57: 0 | FD57: 0 | FE57: 0 | FF57: 0 | FG57: 0 | FH57: 0 | FI57: 0 | FJ57: 0 | FK57: 0 | FL57: 0 | FM57: 0 | FN57: 0 | FO57: 0 | FP57: 0 | FQ57: 0 | FR57: 0 | FS57: 0 | FT57: 0 | FU57: 0 | FV57: 0 | FW57: 0 | FX57: 0 | FY57: 0 | FZ57: 0 | GA57: 0 | GB57: 0 | GC57: 0 | GD57: 0 | GE57: 0 | GF57: 0 | GG57: 0 | GH57: 0 | GI57: 0 | GJ57: 0
E58: > 132 kV | F58: 0 | G58: 0 | H58: 0 | I58: 2 | J58: 0 | K58: 0 | L58: 0 | M58: 0 | N58: 0 | O58: 0 | P58: 0 | Q58: 0 | R58: 0 | S58: 0 | T58: 0 | U58: 0 | V58: 0 | W58: 0 | X58: 0 | Y58: 0 | Z58: 0 | AA58: 0 | AB58: 0 | AC58: 0 | AD58: 0 | AE58: 0 | AF58: 0 | AG58: 0 | AH58: 0 | AI58: 0 | AJ58: 0 | AK58: 0 | AL58: 0 | AM58: 0 | AN58: 0 | AO58: 0 | AP58: 0 | AQ58: 0 | AR58: 0 | AS58: 0 | AT58: 0 | AU58: 0 | AV58: 0 | AW58: 0 | AX58: 0 | AY58: 0 | AZ58: 0 | BA58: 0 | BB58: 0 | BC58: 0 | BD58: 0 | BE58: 0 | BF58: 0 | BG58: 0 | BH58: 0 | BI58: 0 | BJ58: 0 | BK58: 0 | BL58: 0 | BM58: 0 | BN58: 0 | BO58: 0 | BP58: 0 | BQ58: 0 | BR58: 0 | BS58: 0 | BT58: 0 | BU58: 0 | BV58: 0 | BW58: 0 | BX58: 0 | BY58: 0 | BZ58: 0 | CA58: 0 | CB58: 0 | CC58: 0 | CD58: 0 | CE58: 0 | CF58: 0 | CG58: 0 | CH58: 0 | CI58: 0 | CJ58: 0 | CK58: 0 | CL58: 0 | CM58: 0 | CN58: 0 | CO58: 0 | CP58: 0 | CQ58: 0 | CR58: 0 | CS58: 0 | CT58: 0 | CU58: 0 | CV58: 0 | CX58: 0 | CY58: 0 | CZ58: 0 | DA58: 0 | DB58: 0 | DC58: 0 | DD58: 0 | DE58: 0 | DF58: 0 | DG58: 0 | DH58: 0 | DI58: 0 | DJ58: 0 | DK58: 0 | DL58: 0 | DM58: 0 | DN58: 0 | DO58: 0 | DP58: 0 | DQ58: 0 | DR58: 0 | DS58: 0 | DT58: 0 | DU58: 0 | DV58: 0 | DW58: 0 | DX58: 0 | DY58: 0 | DZ58: 0 | EA58: 0 | EB58: 0 | EC58: 0 | ED58: 0 | EE58: 0 | EF58: 0 | EG58: 0 | EH58: 0 | EI58: 0 | EJ58: 0 | EK58: 0 | EL58: 0 | EM58: 0 | EN58: 0 | EO58: 0 | EP58: 0 | EQ58: 0 | ER58: 0 | ES58: 0 | ET58: 0 | EU58: 0 | EV58: 0 | EW58: 0 | EX58: 0 | EY58: 0 | EZ58: 0 | FA58: 0 | FB58: 0 | FC58: 0 | FD58: 0 | FE58: 0 | FF58: 0 | FG58: 0 | FH58: 0 | FI58: 0 | FJ58: 0 | FK58: 0 | FL58: 0 | FM58: 0 | FN58: 0 | FO58: 0 | FP58: 0 | FQ58: 0 | FR58: 0 | FS58: 0 | FT58: 0 | FU58: 0 | FV58: 0 | FW58: 0 | FX58: 0 | FY58: 0 | FZ58: 0 | GA58: 0 | GB58: 0 | GC58: 0 | GD58: 0 | GE58: 0 | GF58: 0 | GG58: 0 | GH58: 0 | GI58: 0 | GJ58: 0
E59: OTHER - PLEASE ADD A ROW IF NECESSARY AND NOMINATE THE CATEGORY | F59: 0 | G59: 0 | H59: 0 | I59: 2 | J59: 0 | K59: 0 | L59: 0 | M59: 0 | N59: 0 | O59: 0 | P59: 0 | Q59: 0 | R59: 0 | S59: 0 | T59: 0 | U59: 0 | V59: 0 | W59: 0 | X59: 0 | Y59: 0 | Z59: 0 | AA59: 0 | AB59: 0 | AC59: 0 | AD59: 0 | AE59: 0 | AF59: 0 | AG59: 0 | AH59: 0 | AI59: 0 | AJ59: 0 | AK59: 0 | AL59: 0 | AM59: 0 | AN59: 0 | AO59: 0 | AP59: 0 | AQ59: 0 | AR59: 0 | AS59: 0 | AT59: 0 | AU59: 0 | AV59: 0 | AW59: 0 | AX59: 0 | AY59: 0 | AZ59: 0 | BA59: 0 | BB59: 0 | BC59: 0 | BD59: 0 | BE59: 0 | BF59: 0 | BG59: 0 | BH59: 0 | BI59: 0 | BJ59: 0 | BK59: 0 | BL59: 0 | BM59: 0 | BN59: 0 | BO59: 0 | BP59: 0 | BQ59: 0 | BR59: 0 | BS59: 0 | BT59: 0 | BU59: 0 | BV59: 0 | BW59: 0 | BX59: 0 | BY59: 0 | BZ59: 0 | CA59: 0 | CB59: 0 | CC59: 0 | CD59: 0 | CE59: 0 | CF59: 0 | CG59: 0 | CH59: 0 | CI59: 0 | CJ59: 0 | CK59: 0 | CL59: 0 | CM59: 0 | CN59: 0 | CO59: 0 | CP59: 0 | CQ59: 0 | CR59: 0 | CS59: 0 | CT59: 0 | CU59: 0 | CV59: 0 | CX59: 0 | CY59: 0 | CZ59: 0 | DA59: 0 | DB59: 0 | DC59: 0 | DD59: 0 | DE59: 0 | DF59: 0 | DG59: 0 | DH59: 0 | DI59: 0 | DJ59: 0 | DK59: 0 | DL59: 0 | DM59: 0 | DN59: 0 | DO59: 0 | DP59: 0 | DQ59: 0 | DR59: 0 | DS59: 0 | DT59: 0 | DU59: 0 | DV59: 0 | DW59: 0 | DX59: 0 | DY59: 0 | DZ59: 0 | EA59: 0 | EB59: 0 | EC59: 0 | ED59: 0 | EE59: 0 | EF59: 0 | EG59: 0 | EH59: 0 | EI59: 0 | EJ59: 0 | EK59: 0 | EL59: 0 | EM59: 0 | EN59: 0 | EO59: 0 | EP59: 0 | EQ59: 0 | ER59: 0 | ES59: 0 | ET59: 0 | EU59: 0 | EV59: 0 | EW59: 0 | EX59: 0 | EY59: 0 | EZ59: 0 | FA59: 0 | FB59: 0 | FC59: 0 | FD59: 0 | FE59: 0 | FF59: 0 | FG59: 0 | FH59: 0 | FI59: 0 | FJ59: 0 | FK59: 0 | FL59: 0 | FM59: 0 | FN59: 0 | FO59: 0 | FP59: 0 | FQ59: 0 | FR59: 0 | FS59: 0 | FT59: 0 | FU59: 0 | FV59: 0 | FW59: 0 | FX59: 0 | FY59: 0 | FZ59: 0 | GA59: 0 | GB59: 0 | GC59: 0 | GD59: 0 | GE59: 0 | GF59: 0 | GG59: 0 | GH59: 0 | GI59: 0 | GJ59: 0
A60: 4 | D60: SERVICE LINES | E60: ˂ = 11 kV ; RESIDENTIAL ; SIMPLE TYPE | F60: 0.8119375765 | G60: 63.85323756 | H60: 7.990822083 | I60: 2 | J60: 19008 | K60: 24931 | L60: 23374 | M60: 26037 | N60: 30493 | O60: 24001 | P60: 20012 | Q60: 20886 | R60: 15612 | S60: 14468 | T60: 12481 | U60: 13572 | V60: 12466 | W60: 9356 | X60: 7432 | Y60: 6994 | Z60: 8594 | AA60: 8458 | AB60: 11276 | AC60: 8237 | AD60: 6777 | AE60: 5933 | AF60: 11506 | AG60: 11147 | AH60: 11436 | AI60: 8444 | AJ60: 11422 | AK60: 10522 | AL60: 10776 | AM60: 7264 | AN60: 7111 | AO60: 11897 | AP60: 13727 | AQ60: 22929 | AR60: 14782 | AS60: 11633 | AT60: 9607 | AU60: 4589 | AV60: 6425 | AW60: 11708 | AX60: 4386 | AY60: 10937 | AZ60: 6666 | BA60: 11367 | BB60: 14818 | BC60: 16970 | BD60: 8820 | BE60: 18742 | BF60: 23761 | BG60: 20222 | BH60: 36457 | BI60: 16763 | BJ60: 24019 | BK60: 35775 | BL60: 28654 | BM60: 18249 | BN60: 15752 | BO60: 18089 | BP60: 7540 | BQ60: 4614 | BR60: 2418 | BS60: 4246 | BT60: 4441 | BU60: 3096 | BV60: 3506 | BW60: 3210 | BX60: 52 | BY60: 1028 | BZ60: 2560 | CA60: 0 | CB60: 0 | CC60: 1 | CD60: 0 | CE60: 2343 | CF60: 2 | CG60: 2 | CH60: 5 | CI60: 0 | CJ60: 0 | CK60: 0 | CL60: 0 | CM60: 0 | CN60: 0 | CO60: 0 | CP60: 0 | CQ60: 8284 | CR60: 1321 | CS60: 0 | CT60: 0 | CU60: 0 | CV60: 4489 | CX60: 15433.30945 | CY60: 20242.41572 | CZ60: 18978.22891 | DA60: 21140.41868 | DB60: 24758.41252 | DC60: 19487.31377 | DD60: 16248.49478 | DE60: 16958.12822 | DF60: 12675.96944 | DG60: 11747.11286 | DH60: 10133.79289 | DI60: 11019.61679 | DJ60: 10121.61383 | DK60: 7596.487966 | DL60: 6034.320069 | DM60: 5678.69141 | DN60: 6977.791533 | DO60: 6867.368022 | DP60: 9155.408113 | DQ60: 6687.929818 | DR60: 5502.500956 | DS60: 4817.225641 | DT60: 9342.153755 | DU60: 9050.668165 | DV60: 9285.318125 | DW60: 6856.000896 | DX60: 9273.950999 | DY60: 8543.20718 | DZ60: 8749.439325 | EA60: 5897.914556 | EB60: 5773.688107 | EC60: 9659.621348 | ED60: 11145.46711 | EE60: 18616.91669 | EF60: 12002.06126 | EG60: 9445.269828 | EH60: 7800.284298 | EI60: 3725.981539 | EJ60: 5216.698929 | EK60: 9506.165146 | EL60: 3561.158211 | EM60: 8880.161274 | EN60: 5412.375885 | EO60: 9229.294432 | EP60: 12031.29101 | EQ60: 13778.58067 | ER60: 7161.289425 | ES60: 15217.33406 | ET60: 19292.44876 | EU60: 16419.00167 | EV60: 29600.80823 | EW60: 13610.5096 | EX60: 19501.92865 | EY60: 29047.0668 | EZ60: 23265.25932 | FA60: 14817.04883 | FB60: 12789.64071 | FC60: 14687.13882 | FD60: 6122.009327 | FE60: 3746.279978 | FF60: 1963.26506 | FG60: 3447.48695 | FH60: 3605.814777 | FI60: 2513.758737 | FJ60: 2846.653143 | FK60: 2606.319621 | FL60: 42.22075398 | FM60: 834.6718287 | FN60: 2078.560196 | FO60: 0 | FP60: 0 | FQ60: 0.8119375765 | FR60: 0 | FS60: 1902.369742 | FT60: 1.623875153 | FU60: 1.623875153 | FV60: 4.059687883 | FW60: 0 | FX60: 0 | FY60: 0 | FZ60: 0 | GA60: 0 | GB60: 0 | GC60: 0 | GD60: 0 | GE60: 6726.090884 | GF60: 1072.569539 | GG60: 0 | GH60: 0 | GI60: 0 | GJ60: 3644.787781
A61: 4 | D61: SERVICE LINES | E61: ˂ = 11 kV ; COMMERCIAL & INDUSTRIAL ; SIMPLE TYPE | F61: 0.8444150262 | G61: 76.27713968 | H61: 8.733678474 | I61: 2 | J61: 995 | K61: 986 | L61: 1270 | M61: 1287 | N61: 1591 | O61: 1463 | P61: 1262 | Q61: 2506 | R61: 3596 | S61: 1566 | T61: 1015 | U61: 1137 | V61: 1290 | W61: 1012 | X61: 673 | Y61: 679 | Z61: 548 | AA61: 582 | AB61: 635 | AC61: 572 | AD61: 515 | AE61: 503 | AF61: 723 | AG61: 693 | AH61: 725 | AI61: 586 | AJ61: 678 | AK61: 800 | AL61: 807 | AM61: 489 | AN61: 862 | AO61: 618 | AP61: 565 | AQ61: 1685 | AR61: 834 | AS61: 655 | AT61: 731 | AU61: 296 | AV61: 366 | AW61: 870 | AX61: 405 | AY61: 797 | AZ61: 469 | BA61: 814 | BB61: 736 | BC61: 2696 | BD61: 587 | BE61: 1557 | BF61: 2489 | BG61: 1913 | BH61: 2464 | BI61: 1738 | BJ61: 2224 | BK61: 2309 | BL61: 2173 | BM61: 1719 | BN61: 1906 | BO61: 1340 | BP61: 2111 | BQ61: 318 | BR61: 166 | BS61: 476 | BT61: 449 | BU61: 218 | BV61: 334 | BW61: 226 | BX61: 6 | BY61: 50 | BZ61: 258 | CA61: 0 | CB61: 0 | CC61: 0 | CD61: 0 | CE61: 109 | CF61: 0 | CG61: 0 | CH61: 0 | CI61: 0 | CJ61: 0 | CK61: 0 | CL61: 0 | CM61: 0 | CN61: 0 | CO61: 0 | CP61: 0 | CQ61: 724 | CR61: 418 | CS61: 0 | CT61: 0 | CU61: 0 | CV61: 201 | CX61: 840.1929511 | CY61: 832.5932159 | CZ61: 1072.407083 | DA61: 1086.762139 | DB61: 1343.464307 | DC61: 1235.379183 | DD61: 1065.651763 | DE61: 2116.104056 | DF61: 3036.516434 | DG61: 1322.353931 | DH61: 857.0812516 | DI61: 960.0998848 | DJ61: 1089.295384 | DK61: 854.5480065 | DL61: 568.2913126 | DM61: 573.3578028 | DN61: 462.7394344 | DO61: 491.4495453 | DP61: 536.2035416 | DQ61: 483.005395 | DR61: 434.8737385 | DS61: 424.7407582 | DT61: 610.512064 | DU61: 585.1796132 | DV61: 612.200894 | DW61: 494.8272054 | DX61: 572.5133878 | DY61: 675.532021 | DZ61: 681.4429262 | EA61: 412.9189478 | EB61: 727.8857526 | EC61: 521.8484862 | ED61: 477.0944898 | EE61: 1422.839319 | EF61: 704.2421319 | EG61: 553.0918422 | EH61: 617.2673842 | EI61: 249.9468478 | EJ61: 309.0558996 | EK61: 734.6410728 | EL61: 341.9880856 | EM61: 672.9987759 | EN61: 396.0306473 | EO61: 687.3538313 | EP61: 621.4894593 | EQ61: 2276.542911 | ER61: 495.6716204 | ES61: 1314.754196 | ET61: 2101.749 | EU61: 1615.365945 | EV61: 2080.638625 | EW61: 1467.593316 | EX61: 1877.979018 | EY61: 1949.754296 | EZ61: 1834.913852 | FA61: 1451.54943 | FB61: 1609.45504 | FC61: 1131.516135 | FD61: 1782.56012 | FE61: 268.5239783 | FF61: 140.1728944 | FG61: 401.9415525 | FH61: 379.1423468 | FI61: 184.0824757 | FJ61: 282.0346188 | FK61: 190.8377959 | FL61: 5.066490157 | FM61: 42.22075131 | FN61: 217.8590768 | FO61: 0 | FP61: 0 | FQ61: 0 | FR61: 0 | FS61: 92.04123786 | FT61: 0 | FU61: 0 | FV61: 0 | FW61: 0 | FX61: 0 | FY61: 0 | FZ61: 0 | GA61: 0 | GB61: 0 | GC61: 0 | GD61: 0 | GE61: 611.356479 | GF61: 352.965481 | GG61: 0 | GH61: 0 | GI61: 0 | GJ61: 169.7274203
E62: ˂ = 11 kV ; RESIDENTIAL ; COMPLEX TYPE | F62: 0 | G62: 0 | H62: 0 | I62: 2 | J62: 0 | K62: 0 | L62: 0 | M62: 0 | N62: 0 | O62: 0 | P62: 0 | Q62: 0 | R62: 0 | S62: 0 | T62: 0 | U62: 0 | V62: 0 | W62: 0 | X62: 0 | Y62: 0 | Z62: 0 | AA62: 0 | AB62: 0 | AC62: 0 | AD62: 0 | AE62: 0 | AF62: 0 | AG62: 0 | AH62: 0 | AI62: 0 | AJ62: 0 | AK62: 0 | AL62: 0 | AM62: 0 | AN62: 0 | AO62: 0 | AP62: 0 | AQ62: 0 | AR62: 0 | AS62: 0 | AT62: 0 | AU62: 0 | AV62: 0 | AW62: 0 | AX62: 0 | AY62: 0 | AZ62: 0 | BA62: 0 | BB62: 0 | BC62: 0 | BD62: 0 | BE62: 0 | BF62: 0 | BG62: 0 | BH62: 0 | BI62: 0 | BJ62: 0 | BK62: 0 | BL62: 0 | BM62: 0 | BN62: 0 | BO62: 0 | BP62: 0 | BQ62: 0 | BR62: 0 | BS62: 0 | BT62: 0 | BU62: 0 | BV62: 0 | BW62: 0 | BX62: 0 | BY62: 0 | BZ62: 0 | CA62: 0 | CB62: 0 | CC62: 0 | CD62: 0 | CE62: 0 | CF62: 0 | CG62: 0 | CH62: 0 | CI62: 0 | CJ62: 0 | CK62: 0 | CL62: 0 | CM62: 0 | CN62: 0 | CO62: 0 | CP62: 0 | CQ62: 0 | CR62: 0 | CS62: 0 | CT62: 0 | CU62: 0 | CV62: 0 | CX62: 0 | CY62: 0 | CZ62: 0 | DA62: 0 | DB62: 0 | DC62: 0 | DD62: 0 | DE62: 0 | DF62: 0 | DG62: 0 | DH62: 0 | DI62: 0 | DJ62: 0 | DK62: 0 | DL62: 0 | DM62: 0 | DN62: 0 | DO62: 0 | DP62: 0 | DQ62: 0 | DR62: 0 | DS62: 0 | DT62: 0 | DU62: 0 | DV62: 0 | DW62: 0 | DX62: 0 | DY62: 0 | DZ62: 0 | EA62: 0 | EB62: 0 | EC62: 0 | ED62: 0 | EE62: 0 | EF62: 0 | EG62: 0 | EH62: 0 | EI62: 0 | EJ62: 0 | EK62: 0 | EL62: 0 | EM62: 0 | EN62: 0 | EO62: 0 | EP62: 0 | EQ62: 0 | ER62: 0 | ES62: 0 | ET62: 0 | EU62: 0 | EV62: 0 | EW62: 0 | EX62: 0 | EY62: 0 | EZ62: 0 | FA62: 0 | FB62: 0 | FC62: 0 | FD62: 0 | FE62: 0 | FF62: 0 | FG62: 0 | FH62: 0 | FI62: 0 | FJ62: 0 | FK62: 0 | FL62: 0 | FM62: 0 | FN62: 0 | FO62: 0 | FP62: 0 | FQ62: 0 | FR62: 0 | FS62: 0 | FT62: 0 | FU62: 0 | FV62: 0 | FW62: 0 | FX62: 0 | FY62: 0 | FZ62: 0 | GA62: 0 | GB62: 0 | GC62: 0 | GD62: 0 | GE62: 0 | GF62: 0 | GG62: 0 | GH62: 0 | GI62: 0 | GJ62: 0
E63: ˂ = 11 kV ; COMMERCIAL & INDUSTRIAL ; COMPLEX TYPE | F63: 0 | G63: 0 | H63: 0 | I63: 2 | J63: 0 | K63: 0 | L63: 0 | M63: 0 | N63: 0 | O63: 0 | P63: 0 | Q63: 0 | R63: 0 | S63: 0 | T63: 0 | U63: 0 | V63: 0 | W63: 0 | X63: 0 | Y63: 0 | Z63: 0 | AA63: 0 | AB63: 0 | AC63: 0 | AD63: 0 | AE63: 0 | AF63: 0 | AG63: 0 | AH63: 0 | AI63: 0 | AJ63: 0 | AK63: 0 | AL63: 0 | AM63: 0 | AN63: 0 | AO63: 0 | AP63: 0 | AQ63: 0 | AR63: 0 | AS63: 0 | AT63: 0 | AU63: 0 | AV63: 0 | AW63: 0 | AX63: 0 | AY63: 0 | AZ63: 0 | BA63: 0 | BB63: 0 | BC63: 0 | BD63: 0 | BE63: 0 | BF63: 0 | BG63: 0 | BH63: 0 | BI63: 0 | BJ63: 0 | BK63: 0 | BL63: 0 | BM63: 0 | BN63: 0 | BO63: 0 | BP63: 0 | BQ63: 0 | BR63: 0 | BS63: 0 | BT63: 0 | BU63: 0 | BV63: 0 | BW63: 0 | BX63: 0 | BY63: 0 | BZ63: 0 | CA63: 0 | CB63: 0 | CC63: 0 | CD63: 0 | CE63: 0 | CF63: 0 | CG63: 0 | CH63: 0 | CI63: 0 | CJ63: 0 | CK63: 0 | CL63: 0 | CM63: 0 | CN63: 0 | CO63: 0 | CP63: 0 | CQ63: 0 | CR63: 0 | CS63: 0 | CT63: 0 | CU63: 0 | CV63: 0 | CX63: 0 | CY63: 0 | CZ63: 0 | DA63: 0 | DB63: 0 | DC63: 0 | DD63: 0 | DE63: 0 | DF63: 0 | DG63: 0 | DH63: 0 | DI63: 0 | DJ63: 0 | DK63: 0 | DL63: 0 | DM63: 0 | DN63: 0 | DO63: 0 | DP63: 0 | DQ63: 0 | DR63: 0 | DS63: 0 | DT63: 0 | DU63: 0 | DV63: 0 | DW63: 0 | DX63: 0 | DY63: 0 | DZ63: 0 | EA63: 0 | EB63: 0 | EC63: 0 | ED63: 0 | EE63: 0 | EF63: 0 | EG63: 0 | EH63: 0 | EI63: 0 | EJ63: 0 | EK63: 0 | EL63: 0 | EM63: 0 | EN63: 0 | EO63: 0 | EP63: 0 | EQ63: 0 | ER63: 0 | ES63: 0 | ET63: 0 | EU63: 0 | EV63: 0 | EW63: 0 | EX63: 0 | EY63: 0 | EZ63: 0 | FA63: 0 | FB63: 0 | FC63: 0 | FD63: 0 | FE63: 0 | FF63: 0 | FG63: 0 | FH63: 0 | FI63: 0 | FJ63: 0 | FK63: 0 | FL63: 0 | FM63: 0 | FN63: 0 | FO63: 0 | FP63: 0 | FQ63: 0 | FR63: 0 | FS63: 0 | FT63: 0 | FU63: 0 | FV63: 0 | FW63: 0 | FX63: 0 | FY63: 0 | FZ63: 0 | GA63: 0 | GB63: 0 | GC63: 0 | GD63: 0 | GE63: 0 | GF63: 0 | GG63: 0 | GH63: 0 | GI63: 0 | GJ63: 0
E64: ˂ = 11 kV ; SUBDIVISION ; COMPLEX TYPE | F64: 0 | G64: 0 | H64: 0 | I64: 2 | J64: 0 | K64: 0 | L64: 0 | M64: 0 | N64: 0 | O64: 0 | P64: 0 | Q64: 0 | R64: 0 | S64: 0 | T64: 0 | U64: 0 | V64: 0 | W64: 0 | X64: 0 | Y64: 0 | Z64: 0 | AA64: 0 | AB64: 0 | AC64: 0 | AD64: 0 | AE64: 0 | AF64: 0 | AG64: 0 | AH64: 0 | AI64: 0 | AJ64: 0 | AK64: 0 | AL64: 0 | AM64: 0 | AN64: 0 | AO64: 0 | AP64: 0 | AQ64: 0 | AR64: 0 | AS64: 0 | AT64: 0 | AU64: 0 | AV64: 0 | AW64: 0 | AX64: 0 | AY64: 0 | AZ64: 0 | BA64: 0 | BB64: 0 | BC64: 0 | BD64: 0 | BE64: 0 | BF64: 0 | BG64: 0 | BH64: 0 | BI64: 0 | BJ64: 0 | BK64: 0 | BL64: 0 | BM64: 0 | BN64: 0 | BO64: 0 | BP64: 0 | BQ64: 0 | BR64: 0 | BS64: 0 | BT64: 0 | BU64: 0 | BV64: 0 | BW64: 0 | BX64: 0 | BY64: 0 | BZ64: 0 | CA64: 0 | CB64: 0 | CC64: 0 | CD64: 0 | CE64: 0 | CF64: 0 | CG64: 0 | CH64: 0 | CI64: 0 | CJ64: 0 | CK64: 0 | CL64: 0 | CM64: 0 | CN64: 0 | CO64: 0 | CP64: 0 | CQ64: 0 | CR64: 0 | CS64: 0 | CT64: 0 | CU64: 0 | CV64: 0 | CX64: 0 | CY64: 0 | CZ64: 0 | DA64: 0 | DB64: 0 | DC64: 0 | DD64: 0 | DE64: 0 | DF64: 0 | DG64: 0 | DH64: 0 | DI64: 0 | DJ64: 0 | DK64: 0 | DL64: 0 | DM64: 0 | DN64: 0 | DO64: 0 | DP64: 0 | DQ64: 0 | DR64: 0 | DS64: 0 | DT64: 0 | DU64: 0 | DV64: 0 | DW64: 0 | DX64: 0 | DY64: 0 | DZ64: 0 | EA64: 0 | EB64: 0 | EC64: 0 | ED64: 0 | EE64: 0 | EF64: 0 | EG64: 0 | EH64: 0 | EI64: 0 | EJ64: 0 | EK64: 0 | EL64: 0 | EM64: 0 | EN64: 0 | EO64: 0 | EP64: 0 | EQ64: 0 | ER64: 0 | ES64: 0 | ET64: 0 | EU64: 0 | EV64: 0 | EW64: 0 | EX64: 0 | EY64: 0 | EZ64: 0 | FA64: 0 | FB64: 0 | FC64: 0 | FD64: 0 | FE64: 0 | FF64: 0 | FG64: 0 | FH64: 0 | FI64: 0 | FJ64: 0 | FK64: 0 | FL64: 0 | FM64: 0 | FN64: 0 | FO64: 0 | FP64: 0 | FQ64: 0 | FR64: 0 | FS64: 0 | FT64: 0 | FU64: 0 | FV64: 0 | FW64: 0 | FX64: 0 | FY64: 0 | FZ64: 0 | GA64: 0 | GB64: 0 | GC64: 0 | GD64: 0 | GE64: 0 | GF64: 0 | GG64: 0 | GH64: 0 | GI64: 0 | GJ64: 0
E65: > 11 kV & < = 22 kV ; COMMERCIAL & INDUSTRIAL | F65: 0 | G65: 0 | H65: 0 | I65: 2 | J65: 0 | K65: 0 | L65: 0 | M65: 0 | N65: 0 | O65: 0 | P65: 0 | Q65: 0 | R65: 0 | S65: 0 | T65: 0 | U65: 0 | V65: 0 | W65: 0 | X65: 0 | Y65: 0 | Z65: 0 | AA65: 0 | AB65: 0 | AC65: 0 | AD65: 0 | AE65: 0 | AF65: 0 | AG65: 0 | AH65: 0 | AI65: 0 | AJ65: 0 | AK65: 0 | AL65: 0 | AM65: 0 | AN65: 0 | AO65: 0 | AP65: 0 | AQ65: 0 | AR65: 0 | AS65: 0 | AT65: 0 | AU65: 0 | AV65: 0 | AW65: 0 | AX65: 0 | AY65: 0 | AZ65: 0 | BA65: 0 | BB65: 0 | BC65: 0 | BD65: 0 | BE65: 0 | BF65: 0 | BG65: 0 | BH65: 0 | BI65: 0 | BJ65: 0 | BK65: 0 | BL65: 0 | BM65: 0 | BN65: 0 | BO65: 0 | BP65: 0 | BQ65: 0 | BR65: 0 | BS65: 0 | BT65: 0 | BU65: 0 | BV65: 0 | BW65: 0 | BX65: 0 | BY65: 0 | BZ65: 0 | CA65: 0 | CB65: 0 | CC65: 0 | CD65: 0 | CE65: 0 | CF65: 0 | CG65: 0 | CH65: 0 | CI65: 0 | CJ65: 0 | CK65: 0 | CL65: 0 | CM65: 0 | CN65: 0 | CO65: 0 | CP65: 0 | CQ65: 0 | CR65: 0 | CS65: 0 | CT65: 0 | CU65: 0 | CV65: 0 | CX65: 0 | CY65: 0 | CZ65: 0 | DA65: 0 | DB65: 0 | DC65: 0 | DD65: 0 | DE65: 0 | DF65: 0 | DG65: 0 | DH65: 0 | DI65: 0 | DJ65: 0 | DK65: 0 | DL65: 0 | DM65: 0 | DN65: 0 | DO65: 0 | DP65: 0 | DQ65: 0 | DR65: 0 | DS65: 0 | DT65: 0 | DU65: 0 | DV65: 0 | DW65: 0 | DX65: 0 | DY65: 0 | DZ65: 0 | EA65: 0 | EB65: 0 | EC65: 0 | ED65: 0 | EE65: 0 | EF65: 0 | EG65: 0 | EH65: 0 | EI65: 0 | EJ65: 0 | EK65: 0 | EL65: 0 | EM65: 0 | EN65: 0 | EO65: 0 | EP65: 0 | EQ65: 0 | ER65: 0 | ES65: 0 | ET65: 0 | EU65: 0 | EV65: 0 | EW65: 0 | EX65: 0 | EY65: 0 | EZ65: 0 | FA65: 0 | FB65: 0 | FC65: 0 | FD65: 0 | FE65: 0 | FF65: 0 | FG65: 0 | FH65: 0 | FI65: 0 | FJ65: 0 | FK65: 0 | FL65: 0 | FM65: 0 | FN65: 0 | FO65: 0 | FP65: 0 | FQ65: 0 | FR65: 0 | FS65: 0 | FT65: 0 | FU65: 0 | FV65: 0 | FW65: 0 | FX65: 0 | FY65: 0 | FZ65: 0 | GA65: 0 | GB65: 0 | GC65: 0 | GD65: 0 | GE65: 0 | GF65: 0 | GG65: 0 | GH65: 0 | GI65: 0 | GJ65: 0
E66: > 11 kV & < = 22 kV ; SUBDIVISION | F66: 0 | G66: 0 | H66: 0 | I66: 2 | J66: 0 | K66: 0 | L66: 0 | M66: 0 | N66: 0 | O66: 0 | P66: 0 | Q66: 0 | R66: 0 | S66: 0 | T66: 0 | U66: 0 | V66: 0 | W66: 0 | X66: 0 | Y66: 0 | Z66: 0 | AA66: 0 | AB66: 0 | AC66: 0 | AD66: 0 | AE66: 0 | AF66: 0 | AG66: 0 | AH66: 0 | AI66: 0 | AJ66: 0 | AK66: 0 | AL66: 0 | AM66: 0 | AN66: 0 | AO66: 0 | AP66: 0 | AQ66: 0 | AR66: 0 | AS66: 0 | AT66: 0 | AU66: 0 | AV66: 0 | AW66: 0 | AX66: 0 | AY66: 0 | AZ66: 0 | BA66: 0 | BB66: 0 | BC66: 0 | BD66: 0 | BE66: 0 | BF66: 0 | BG66: 0 | BH66: 0 | BI66: 0 | BJ66: 0 | BK66: 0 | BL66: 0 | BM66: 0 | BN66: 0 | BO66: 0 | BP66: 0 | BQ66: 0 | BR66: 0 | BS66: 0 | BT66: 0 | BU66: 0 | BV66: 0 | BW66: 0 | BX66: 0 | BY66: 0 | BZ66: 0 | CA66: 0 | CB66: 0 | CC66: 0 | CD66: 0 | CE66: 0 | CF66: 0 | CG66: 0 | CH66: 0 | CI66: 0 | CJ66: 0 | CK66: 0 | CL66: 0 | CM66: 0 | CN66: 0 | CO66: 0 | CP66: 0 | CQ66: 0 | CR66: 0 | CS66: 0 | CT66: 0 | CU66: 0 | CV66: 0 | CX66: 0 | CY66: 0 | CZ66: 0 | DA66: 0 | DB66: 0 | DC66: 0 | DD66: 0 | DE66: 0 | DF66: 0 | DG66: 0 | DH66: 0 | DI66: 0 | DJ66: 0 | DK66: 0 | DL66: 0 | DM66: 0 | DN66: 0 | DO66: 0 | DP66: 0 | DQ66: 0 | DR66: 0 | DS66: 0 | DT66: 0 | DU66: 0 | DV66: 0 | DW66: 0 | DX66: 0 | DY66: 0 | DZ66: 0 | EA66: 0 | EB66: 0 | EC66: 0 | ED66: 0 | EE66: 0 | EF66: 0 | EG66: 0 | EH66: 0 | EI66: 0 | EJ66: 0 | EK66: 0 | EL66: 0 | EM66: 0 | EN66: 0 | EO66: 0 | EP66: 0 | EQ66: 0 | ER66: 0 | ES66: 0 | ET66: 0 | EU66: 0 | EV66: 0 | EW66: 0 | EX66: 0 | EY66: 0 | EZ66: 0 | FA66: 0 | FB66: 0 | FC66: 0 | FD66: 0 | FE66: 0 | FF66: 0 | FG66: 0 | FH66: 0 | FI66: 0 | FJ66: 0 | FK66: 0 | FL66: 0 | FM66: 0 | FN66: 0 | FO66: 0 | FP66: 0 | FQ66: 0 | FR66: 0 | FS66: 0 | FT66: 0 | FU66: 0 | FV66: 0 | FW66: 0 | FX66: 0 | FY66: 0 | FZ66: 0 | GA66: 0 | GB66: 0 | GC66: 0 | GD66: 0 | GE66: 0 | GF66: 0 | GG66: 0 | GH66: 0 | GI66: 0 | GJ66: 0
E67: > 22 kV & < = 33 kV ; COMMERCIAL & INDUSTRIAL | F67: 0 | G67: 0 | H67: 0 | I67: 2 | J67: 0 | K67: 0 | L67: 0 | M67: 0 | N67: 0 | O67: 0 | P67: 0 | Q67: 0 | R67: 0 | S67: 0 | T67: 0 | U67: 0 | V67: 0 | W67: 0 | X67: 0 | Y67: 0 | Z67: 0 | AA67: 0 | AB67: 0 | AC67: 0 | AD67: 0 | AE67: 0 | AF67: 0 | AG67: 0 | AH67: 0 | AI67: 0 | AJ67: 0 | AK67: 0 | AL67: 0 | AM67: 0 | AN67: 0 | AO67: 0 | AP67: 0 | AQ67: 0 | AR67: 0 | AS67: 0 | AT67: 0 | AU67: 0 | AV67: 0 | AW67: 0 | AX67: 0 | AY67: 0 | AZ67: 0 | BA67: 0 | BB67: 0 | BC67: 0 | BD67: 0 | BE67: 0 | BF67: 0 | BG67: 0 | BH67: 0 | BI67: 0 | BJ67: 0 | BK67: 0 | BL67: 0 | BM67: 0 | BN67: 0 | BO67: 0 | BP67: 0 | BQ67: 0 | BR67: 0 | BS67: 0 | BT67: 0 | BU67: 0 | BV67: 0 | BW67: 0 | BX67: 0 | BY67: 0 | BZ67: 0 | CA67: 0 | CB67: 0 | CC67: 0 | CD67: 0 | CE67: 0 | CF67: 0 | CG67: 0 | CH67: 0 | CI67: 0 | CJ67: 0 | CK67: 0 | CL67: 0 | CM67: 0 | CN67: 0 | CO67: 0 | CP67: 0 | CQ67: 0 | CR67: 0 | CS67: 0 | CT67: 0 | CU67: 0 | CV67: 0 | CX67: 0 | CY67: 0 | CZ67: 0 | DA67: 0 | DB67: 0 | DC67: 0 | DD67: 0 | DE67: 0 | DF67: 0 | DG67: 0 | DH67: 0 | DI67: 0 | DJ67: 0 | DK67: 0 | DL67: 0 | DM67: 0 | DN67: 0 | DO67: 0 | DP67: 0 | DQ67: 0 | DR67: 0 | DS67: 0 | DT67: 0 | DU67: 0 | DV67: 0 | DW67: 0 | DX67: 0 | DY67: 0 | DZ67: 0 | EA67: 0 | EB67: 0 | EC67: 0 | ED67: 0 | EE67: 0 | EF67: 0 | EG67: 0 | EH67: 0 | EI67: 0 | EJ67: 0 | EK67: 0 | EL67: 0 | EM67: 0 | EN67: 0 | EO67: 0 | EP67: 0 | EQ67: 0 | ER67: 0 | ES67: 0 | ET67: 0 | EU67: 0 | EV67: 0 | EW67: 0 | EX67: 0 | EY67: 0 | EZ67: 0 | FA67: 0 | FB67: 0 | FC67: 0 | FD67: 0 | FE67: 0 | FF67: 0 | FG67: 0 | FH67: 0 | FI67: 0 | FJ67: 0 | FK67: 0 | FL67: 0 | FM67: 0 | FN67: 0 | FO67: 0 | FP67: 0 | FQ67: 0 | FR67: 0 | FS67: 0 | FT67: 0 | FU67: 0 | FV67: 0 | FW67: 0 | FX67: 0 | FY67: 0 | FZ67: 0 | GA67: 0 | GB67: 0 | GC67: 0 | GD67: 0 | GE67: 0 | GF67: 0 | GG67: 0 | GH67: 0 | GI67: 0 | GJ67: 0
E68: > 22 kV & < = 33 kV ; SUBDIVISION | F68: 0 | G68: 0 | H68: 0 | I68: 2 | J68: 0 | K68: 0 | L68: 0 | M68: 0 | N68: 0 | O68: 0 | P68: 0 | Q68: 0 | R68: 0 | S68: 0 | T68: 0 | U68: 0 | V68: 0 | W68: 0 | X68: 0 | Y68: 0 | Z68: 0 | AA68: 0 | AB68: 0 | AC68: 0 | AD68: 0 | AE68: 0 | AF68: 0 | AG68: 0 | AH68: 0 | AI68: 0 | AJ68: 0 | AK68: 0 | AL68: 0 | AM68: 0 | AN68: 0 | AO68: 0 | AP68: 0 | AQ68: 0 | AR68: 0 | AS68: 0 | AT68: 0 | AU68: 0 | AV68: 0 | AW68: 0 | AX68: 0 | AY68: 0 | AZ68: 0 | BA68: 0 | BB68: 0 | BC68: 0 | BD68: 0 | BE68: 0 | BF68: 0 | BG68: 0 | BH68: 0 | BI68: 0 | BJ68: 0 | BK68: 0 | BL68: 0 | BM68: 0 | BN68: 0 | BO68: 0 | BP68: 0 | BQ68: 0 | BR68: 0 | BS68: 0 | BT68: 0 | BU68: 0 | BV68: 0 | BW68: 0 | BX68: 0 | BY68: 0 | BZ68: 0 | CA68: 0 | CB68: 0 | CC68: 0 | CD68: 0 | CE68: 0 | CF68: 0 | CG68: 0 | CH68: 0 | CI68: 0 | CJ68: 0 | CK68: 0 | CL68: 0 | CM68: 0 | CN68: 0 | CO68: 0 | CP68: 0 | CQ68: 0 | CR68: 0 | CS68: 0 | CT68: 0 | CU68: 0 | CV68: 0 | CX68: 0 | CY68: 0 | CZ68: 0 | DA68: 0 | DB68: 0 | DC68: 0 | DD68: 0 | DE68: 0 | DF68: 0 | DG68: 0 | DH68: 0 | DI68: 0 | DJ68: 0 | DK68: 0 | DL68: 0 | DM68: 0 | DN68: 0 | DO68: 0 | DP68: 0 | DQ68: 0 | DR68: 0 | DS68: 0 | DT68: 0 | DU68: 0 | DV68: 0 | DW68: 0 | DX68: 0 | DY68: 0 | DZ68: 0 | EA68: 0 | EB68: 0 | EC68: 0 | ED68: 0 | EE68: 0 | EF68: 0 | EG68: 0 | EH68: 0 | EI68: 0 | EJ68: 0 | EK68: 0 | EL68: 0 | EM68: 0 | EN68: 0 | EO68: 0 | EP68: 0 | EQ68: 0 | ER68: 0 | ES68: 0 | ET68: 0 | EU68: 0 | EV68: 0 | EW68: 0 | EX68: 0 | EY68: 0 | EZ68: 0 | FA68: 0 | FB68: 0 | FC68: 0 | FD68: 0 | FE68: 0 | FF68: 0 | FG68: 0 | FH68: 0 | FI68: 0 | FJ68: 0 | FK68: 0 | FL68: 0 | FM68: 0 | FN68: 0 | FO68: 0 | FP68: 0 | FQ68: 0 | FR68: 0 | FS68: 0 | FT68: 0 | FU68: 0 | FV68: 0 | FW68: 0 | FX68: 0 | FY68: 0 | FZ68: 0 | GA68: 0 | GB68: 0 | GC68: 0 | GD68: 0 | GE68: 0 | GF68: 0 | GG68: 0 | GH68: 0 | GI68: 0 | GJ68: 0
E69: > 33 kV & < = 66 kV ; COMMERCIAL & INDUSTRIAL | F69: 0 | G69: 0 | H69: 0 | I69: 2 | J69: 0 | K69: 0 | L69: 0 | M69: 0 | N69: 0 | O69: 0 | P69: 0 | Q69: 0 | R69: 0 | S69: 0 | T69: 0 | U69: 0 | V69: 0 | W69: 0 | X69: 0 | Y69: 0 | Z69: 0 | AA69: 0 | AB69: 0 | AC69: 0 | AD69: 0 | AE69: 0 | AF69: 0 | AG69: 0 | AH69: 0 | AI69: 0 | AJ69: 0 | AK69: 0 | AL69: 0 | AM69: 0 | AN69: 0 | AO69: 0 | AP69: 0 | AQ69: 0 | AR69: 0 | AS69: 0 | AT69: 0 | AU69: 0 | AV69: 0 | AW69: 0 | AX69: 0 | AY69: 0 | AZ69: 0 | BA69: 0 | BB69: 0 | BC69: 0 | BD69: 0 | BE69: 0 | BF69: 0 | BG69: 0 | BH69: 0 | BI69: 0 | BJ69: 0 | BK69: 0 | BL69: 0 | BM69: 0 | BN69: 0 | BO69: 0 | BP69: 0 | BQ69: 0 | BR69: 0 | BS69: 0 | BT69: 0 | BU69: 0 | BV69: 0 | BW69: 0 | BX69: 0 | BY69: 0 | BZ69: 0 | CA69: 0 | CB69: 0 | CC69: 0 | CD69: 0 | CE69: 0 | CF69: 0 | CG69: 0 | CH69: 0 | CI69: 0 | CJ69: 0 | CK69: 0 | CL69: 0 | CM69: 0 | CN69: 0 | CO69: 0 | CP69: 0 | CQ69: 0 | CR69: 0 | CS69: 0 | CT69: 0 | CU69: 0 | CV69: 0 | CX69: 0 | CY69: 0 | CZ69: 0 | DA69: 0 | DB69: 0 | DC69: 0 | DD69: 0 | DE69: 0 | DF69: 0 | DG69: 0 | DH69: 0 | DI69: 0 | DJ69: 0 | DK69: 0 | DL69: 0 | DM69: 0 | DN69: 0 | DO69: 0 | DP69: 0 | DQ69: 0 | DR69: 0 | DS69: 0 | DT69: 0 | DU69: 0 | DV69: 0 | DW69: 0 | DX69: 0 | DY69: 0 | DZ69: 0 | EA69: 0 | EB69: 0 | EC69: 0 | ED69: 0 | EE69: 0 | EF69: 0 | EG69: 0 | EH69: 0 | EI69: 0 | EJ69: 0 | EK69: 0 | EL69: 0 | EM69: 0 | EN69: 0 | EO69: 0 | EP69: 0 | EQ69: 0 | ER69: 0 | ES69: 0 | ET69: 0 | EU69: 0 | EV69: 0 | EW69: 0 | EX69: 0 | EY69: 0 | EZ69: 0 | FA69: 0 | FB69: 0 | FC69: 0 | FD69: 0 | FE69: 0 | FF69: 0 | FG69: 0 | FH69: 0 | FI69: 0 | FJ69: 0 | FK69: 0 | FL69: 0 | FM69: 0 | FN69: 0 | FO69: 0 | FP69: 0 | FQ69: 0 | FR69: 0 | FS69: 0 | FT69: 0 | FU69: 0 | FV69: 0 | FW69: 0 | FX69: 0 | FY69: 0 | FZ69: 0 | GA69: 0 | GB69: 0 | GC69: 0 | GD69: 0 | GE69: 0 | GF69: 0 | GG69: 0 | GH69: 0 | GI69: 0 | GJ69: 0
E70: > 33 kV & < = 66 kV ; SUBDIVISION | F70: 0 | G70: 0 | H70: 0 | I70: 2 | J70: 0 | K70: 0 | L70: 0 | M70: 0 | N70: 0 | O70: 0 | P70: 0 | Q70: 0 | R70: 0 | S70: 0 | T70: 0 | U70: 0 | V70: 0 | W70: 0 | X70: 0 | Y70: 0 | Z70: 0 | AA70: 0 | AB70: 0 | AC70: 0 | AD70: 0 | AE70: 0 | AF70: 0 | AG70: 0 | AH70: 0 | AI70: 0 | AJ70: 0 | AK70: 0 | AL70: 0 | AM70: 0 | AN70: 0 | AO70: 0 | AP70: 0 | AQ70: 0 | AR70: 0 | AS70: 0 | AT70: 0 | AU70: 0 | AV70: 0 | AW70: 0 | AX70: 0 | AY70: 0 | AZ70: 0 | BA70: 0 | BB70: 0 | BC70: 0 | BD70: 0 | BE70: 0 | BF70: 0 | BG70: 0 | BH70: 0 | BI70: 0 | BJ70: 0 | BK70: 0 | BL70: 0 | BM70: 0 | BN70: 0 | BO70: 0 | BP70: 0 | BQ70: 0 | BR70: 0 | BS70: 0 | BT70: 0 | BU70: 0 | BV70: 0 | BW70: 0 | BX70: 0 | BY70: 0 | BZ70: 0 | CA70: 0 | CB70: 0 | CC70: 0 | CD70: 0 | CE70: 0 | CF70: 0 | CG70: 0 | CH70: 0 | CI70: 0 | CJ70: 0 | CK70: 0 | CL70: 0 | CM70: 0 | CN70: 0 | CO70: 0 | CP70: 0 | CQ70: 0 | CR70: 0 | CS70: 0 | CT70: 0 | CU70: 0 | CV70: 0 | CX70: 0 | CY70: 0 | CZ70: 0 | DA70: 0 | DB70: 0 | DC70: 0 | DD70: 0 | DE70: 0 | DF70: 0 | DG70: 0 | DH70: 0 | DI70: 0 | DJ70: 0 | DK70: 0 | DL70: 0 | DM70: 0 | DN70: 0 | DO70: 0 | DP70: 0 | DQ70: 0 | DR70: 0 | DS70: 0 | DT70: 0 | DU70: 0 | DV70: 0 | DW70: 0 | DX70: 0 | DY70: 0 | DZ70: 0 | EA70: 0 | EB70: 0 | EC70: 0 | ED70: 0 | EE70: 0 | EF70: 0 | EG70: 0 | EH70: 0 | EI70: 0 | EJ70: 0 | EK70: 0 | EL70: 0 | EM70: 0 | EN70: 0 | EO70: 0 | EP70: 0 | EQ70: 0 | ER70: 0 | ES70: 0 | ET70: 0 | EU70: 0 | EV70: 0 | EW70: 0 | EX70: 0 | EY70: 0 | EZ70: 0 | FA70: 0 | FB70: 0 | FC70: 0 | FD70: 0 | FE70: 0 | FF70: 0 | FG70: 0 | FH70: 0 | FI70: 0 | FJ70: 0 | FK70: 0 | FL70: 0 | FM70: 0 | FN70: 0 | FO70: 0 | FP70: 0 | FQ70: 0 | FR70: 0 | FS70: 0 | FT70: 0 | FU70: 0 | FV70: 0 | FW70: 0 | FX70: 0 | FY70: 0 | FZ70: 0 | GA70: 0 | GB70: 0 | GC70: 0 | GD70: 0 | GE70: 0 | GF70: 0 | GG70: 0 | GH70: 0 | GI70: 0 | GJ70: 0
E71: > 66 kV & < = 132 kV ; COMMERCIAL & INDUSTRIAL | F71: 0 | G71: 0 | H71: 0 | I71: 2 | J71: 0 | K71: 0 | L71: 0 | M71: 0 | N71: 0 | O71: 0 | P71: 0 | Q71: 0 | R71: 0 | S71: 0 | T71: 0 | U71: 0 | V71: 0 | W71: 0 | X71: 0 | Y71: 0 | Z71: 0 | AA71: 0 | AB71: 0 | AC71: 0 | AD71: 0 | AE71: 0 | AF71: 0 | AG71: 0 | AH71: 0 | AI71: 0 | AJ71: 0 | AK71: 0 | AL71: 0 | AM71: 0 | AN71: 0 | AO71: 0 | AP71: 0 | AQ71: 0 | AR71: 0 | AS71: 0 | AT71: 0 | AU71: 0 | AV71: 0 | AW71: 0 | AX71: 0 | AY71: 0 | AZ71: 0 | BA71: 0 | BB71: 0 | BC71: 0 | BD71: 0 | BE71: 0 | BF71: 0 | BG71: 0 | BH71: 0 | BI71: 0 | BJ71: 0 | BK71: 0 | BL71: 0 | BM71: 0 | BN71: 0 | BO71: 0 | BP71: 0 | BQ71: 0 | BR71: 0 | BS71: 0 | BT71: 0 | BU71: 0 | BV71: 0 | BW71: 0 | BX71: 0 | BY71: 0 | BZ71: 0 | CA71: 0 | CB71: 0 | CC71: 0 | CD71: 0 | CE71: 0 | CF71: 0 | CG71: 0 | CH71: 0 | CI71: 0 | CJ71: 0 | CK71: 0 | CL71: 0 | CM71: 0 | CN71: 0 | CO71: 0 | CP71: 0 | CQ71: 0 | CR71: 0 | CS71: 0 | CT71: 0 | CU71: 0 | CV71: 0 | CX71: 0 | CY71: 0 | CZ71: 0 | DA71: 0 | DB71: 0 | DC71: 0 | DD71: 0 | DE71: 0 | DF71: 0 | DG71: 0 | DH71: 0 | DI71: 0 | DJ71: 0 | DK71: 0 | DL71: 0 | DM71: 0 | DN71: 0 | DO71: 0 | DP71: 0 | DQ71: 0 | DR71: 0 | DS71: 0 | DT71: 0 | DU71: 0 | DV71: 0 | DW71: 0 | DX71: 0 | DY71: 0 | DZ71: 0 | EA71: 0 | EB71: 0 | EC71: 0 | ED71: 0 | EE71: 0 | EF71: 0 | EG71: 0 | EH71: 0 | EI71: 0 | EJ71: 0 | EK71: 0 | EL71: 0 | EM71: 0 | EN71: 0 | EO71: 0 | EP71: 0 | EQ71: 0 | ER71: 0 | ES71: 0 | ET71: 0 | EU71: 0 | EV71: 0 | EW71: 0 | EX71: 0 | EY71: 0 | EZ71: 0 | FA71: 0 | FB71: 0 | FC71: 0 | FD71: 0 | FE71: 0 | FF71: 0 | FG71: 0 | FH71: 0 | FI71: 0 | FJ71: 0 | FK71: 0 | FL71: 0 | FM71: 0 | FN71: 0 | FO71: 0 | FP71: 0 | FQ71: 0 | FR71: 0 | FS71: 0 | FT71: 0 | FU71: 0 | FV71: 0 | FW71: 0 | FX71: 0 | FY71: 0 | FZ71: 0 | GA71: 0 | GB71: 0 | GC71: 0 | GD71: 0 | GE71: 0 | GF71: 0 | GG71: 0 | GH71: 0 | GI71: 0 | GJ71: 0
E72: > 66 kV & < = 132 kV ; SUBDIVISION | F72: 0 | G72: 0 | H72: 0 | I72: 2 | J72: 0 | K72: 0 | L72: 0 | M72: 0 | N72: 0 | O72: 0 | P72: 0 | Q72: 0 | R72: 0 | S72: 0 | T72: 0 | U72: 0 | V72: 0 | W72: 0 | X72: 0 | Y72: 0 | Z72: 0 | AA72: 0 | AB72: 0 | AC72: 0 | AD72: 0 | AE72: 0 | AF72: 0 | AG72: 0 | AH72: 0 | AI72: 0 | AJ72: 0 | AK72: 0 | AL72: 0 | AM72: 0 | AN72: 0 | AO72: 0 | AP72: 0 | AQ72: 0 | AR72: 0 | AS72: 0 | AT72: 0 | AU72: 0 | AV72: 0 | AW72: 0 | AX72: 0 | AY72: 0 | AZ72: 0 | BA72: 0 | BB72: 0 | BC72: 0 | BD72: 0 | BE72: 0 | BF72: 0 | BG72: 0 | BH72: 0 | BI72: 0 | BJ72: 0 | BK72: 0 | BL72: 0 | BM72: 0 | BN72: 0 | BO72: 0 | BP72: 0 | BQ72: 0 | BR72: 0 | BS72: 0 | BT72: 0 | BU72: 0 | BV72: 0 | BW72: 0 | BX72: 0 | BY72: 0 | BZ72: 0 | CA72: 0 | CB72: 0 | CC72: 0 | CD72: 0 | CE72: 0 | CF72: 0 | CG72: 0 | CH72: 0 | CI72: 0 | CJ72: 0 | CK72: 0 | CL72: 0 | CM72: 0 | CN72: 0 | CO72: 0 | CP72: 0 | CQ72: 0 | CR72: 0 | CS72: 0 | CT72: 0 | CU72: 0 | CV72: 0 | CX72: 0 | CY72: 0 | CZ72: 0 | DA72: 0 | DB72: 0 | DC72: 0 | DD72: 0 | DE72: 0 | DF72: 0 | DG72: 0 | DH72: 0 | DI72: 0 | DJ72: 0 | DK72: 0 | DL72: 0 | DM72: 0 | DN72: 0 | DO72: 0 | DP72: 0 | DQ72: 0 | DR72: 0 | DS72: 0 | DT72: 0 | DU72: 0 | DV72: 0 | DW72: 0 | DX72: 0 | DY72: 0 | DZ72: 0 | EA72: 0 | EB72: 0 | EC72: 0 | ED72: 0 | EE72: 0 | EF72: 0 | EG72: 0 | EH72: 0 | EI72: 0 | EJ72: 0 | EK72: 0 | EL72: 0 | EM72: 0 | EN72: 0 | EO72: 0 | EP72: 0 | EQ72: 0 | ER72: 0 | ES72: 0 | ET72: 0 | EU72: 0 | EV72: 0 | EW72: 0 | EX72: 0 | EY72: 0 | EZ72: 0 | FA72: 0 | FB72: 0 | FC72: 0 | FD72: 0 | FE72: 0 | FF72: 0 | FG72: 0 | FH72: 0 | FI72: 0 | FJ72: 0 | FK72: 0 | FL72: 0 | FM72: 0 | FN72: 0 | FO72: 0 | FP72: 0 | FQ72: 0 | FR72: 0 | FS72: 0 | FT72: 0 | FU72: 0 | FV72: 0 | FW72: 0 | FX72: 0 | FY72: 0 | FZ72: 0 | GA72: 0 | GB72: 0 | GC72: 0 | GD72: 0 | GE72: 0 | GF72: 0 | GG72: 0 | GH72: 0 | GI72: 0 | GJ72: 0
E73: > 132 kV ; COMMERCIAL & INDUSTRIAL | F73: 0 | G73: 0 | H73: 0 | I73: 2 | J73: 0 | K73: 0 | L73: 0 | M73: 0 | N73: 0 | O73: 0 | P73: 0 | Q73: 0 | R73: 0 | S73: 0 | T73: 0 | U73: 0 | V73: 0 | W73: 0 | X73: 0 | Y73: 0 | Z73: 0 | AA73: 0 | AB73: 0 | AC73: 0 | AD73: 0 | AE73: 0 | AF73: 0 | AG73: 0 | AH73: 0 | AI73: 0 | AJ73: 0 | AK73: 0 | AL73: 0 | AM73: 0 | AN73: 0 | AO73: 0 | AP73: 0 | AQ73: 0 | AR73: 0 | AS73: 0 | AT73: 0 | AU73: 0 | AV73: 0 | AW73: 0 | AX73: 0 | AY73: 0 | AZ73: 0 | BA73: 0 | BB73: 0 | BC73: 0 | BD73: 0 | BE73: 0 | BF73: 0 | BG73: 0 | BH73: 0 | BI73: 0 | BJ73: 0 | BK73: 0 | BL73: 0 | BM73: 0 | BN73: 0 | BO73: 0 | BP73: 0 | BQ73: 0 | BR73: 0 | BS73: 0 | BT73: 0 | BU73: 0 | BV73: 0 | BW73: 0 | BX73: 0 | BY73: 0 | BZ73: 0 | CA73: 0 | CB73: 0 | CC73: 0 | CD73: 0 | CE73: 0 | CF73: 0 | CG73: 0 | CH73: 0 | CI73: 0 | CJ73: 0 | CK73: 0 | CL73: 0 | CM73: 0 | CN73: 0 | CO73: 0 | CP73: 0 | CQ73: 0 | CR73: 0 | CS73: 0 | CT73: 0 | CU73: 0 | CV73: 0 | CX73: 0 | CY73: 0 | CZ73: 0 | DA73: 0 | DB73: 0 | DC73: 0 | DD73: 0 | DE73: 0 | DF73: 0 | DG73: 0 | DH73: 0 | DI73: 0 | DJ73: 0 | DK73: 0 | DL73: 0 | DM73: 0 | DN73: 0 | DO73: 0 | DP73: 0 | DQ73: 0 | DR73: 0 | DS73: 0 | DT73: 0 | DU73: 0 | DV73: 0 | DW73: 0 | DX73: 0 | DY73: 0 | DZ73: 0 | EA73: 0 | EB73: 0 | EC73: 0 | ED73: 0 | EE73: 0 | EF73: 0 | EG73: 0 | EH73: 0 | EI73: 0 | EJ73: 0 | EK73: 0 | EL73: 0 | EM73: 0 | EN73: 0 | EO73: 0 | EP73: 0 | EQ73: 0 | ER73: 0 | ES73: 0 | ET73: 0 | EU73: 0 | EV73: 0 | EW73: 0 | EX73: 0 | EY73: 0 | EZ73: 0 | FA73: 0 | FB73: 0 | FC73: 0 | FD73: 0 | FE73: 0 | FF73: 0 | FG73: 0 | FH73: 0 | FI73: 0 | FJ73: 0 | FK73: 0 | FL73: 0 | FM73: 0 | FN73: 0 | FO73: 0 | FP73: 0 | FQ73: 0 | FR73: 0 | FS73: 0 | FT73: 0 | FU73: 0 | FV73: 0 | FW73: 0 | FX73: 0 | FY73: 0 | FZ73: 0 | GA73: 0 | GB73: 0 | GC73: 0 | GD73: 0 | GE73: 0 | GF73: 0 | GG73: 0 | GH73: 0 | GI73: 0 | GJ73: 0
E74: > 132 kV ; SUBDIVISION | F74: 0 | G74: 0 | H74: 0 | I74: 2 | J74: 0 | K74: 0 | L74: 0 | M74: 0 | N74: 0 | O74: 0 | P74: 0 | Q74: 0 | R74: 0 | S74: 0 | T74: 0 | U74: 0 | V74: 0 | W74: 0 | X74: 0 | Y74: 0 | Z74: 0 | AA74: 0 | AB74: 0 | AC74: 0 | AD74: 0 | AE74: 0 | AF74: 0 | AG74: 0 | AH74: 0 | AI74: 0 | AJ74: 0 | AK74: 0 | AL74: 0 | AM74: 0 | AN74: 0 | AO74: 0 | AP74: 0 | AQ74: 0 | AR74: 0 | AS74: 0 | AT74: 0 | AU74: 0 | AV74: 0 | AW74: 0 | AX74: 0 | AY74: 0 | AZ74: 0 | BA74: 0 | BB74: 0 | BC74: 0 | BD74: 0 | BE74: 0 | BF74: 0 | BG74: 0 | BH74: 0 | BI74: 0 | BJ74: 0 | BK74: 0 | BL74: 0 | BM74: 0 | BN74: 0 | BO74: 0 | BP74: 0 | BQ74: 0 | BR74: 0 | BS74: 0 | BT74: 0 | BU74: 0 | BV74: 0 | BW74: 0 | BX74: 0 | BY74: 0 | BZ74: 0 | CA74: 0 | CB74: 0 | CC74: 0 | CD74: 0 | CE74: 0 | CF74: 0 | CG74: 0 | CH74: 0 | CI74: 0 | CJ74: 0 | CK74: 0 | CL74: 0 | CM74: 0 | CN74: 0 | CO74: 0 | CP74: 0 | CQ74: 0 | CR74: 0 | CS74: 0 | CT74: 0 | CU74: 0 | CV74: 0 | CX74: 0 | CY74: 0 | CZ74: 0 | DA74: 0 | DB74: 0 | DC74: 0 | DD74: 0 | DE74: 0 | DF74: 0 | DG74: 0 | DH74: 0 | DI74: 0 | DJ74: 0 | DK74: 0 | DL74: 0 | DM74: 0 | DN74: 0 | DO74: 0 | DP74: 0 | DQ74: 0 | DR74: 0 | DS74: 0 | DT74: 0 | DU74: 0 | DV74: 0 | DW74: 0 | DX74: 0 | DY74: 0 | DZ74: 0 | EA74: 0 | EB74: 0 | EC74: 0 | ED74: 0 | EE74: 0 | EF74: 0 | EG74: 0 | EH74: 0 | EI74: 0 | EJ74: 0 | EK74: 0 | EL74: 0 | EM74: 0 | EN74: 0 | EO74: 0 | EP74: 0 | EQ74: 0 | ER74: 0 | ES74: 0 | ET74: 0 | EU74: 0 | EV74: 0 | EW74: 0 | EX74: 0 | EY74: 0 | EZ74: 0 | FA74: 0 | FB74: 0 | FC74: 0 | FD74: 0 | FE74: 0 | FF74: 0 | FG74: 0 | FH74: 0 | FI74: 0 | FJ74: 0 | FK74: 0 | FL74: 0 | FM74: 0 | FN74: 0 | FO74: 0 | FP74: 0 | FQ74: 0 | FR74: 0 | FS74: 0 | FT74: 0 | FU74: 0 | FV74: 0 | FW74: 0 | FX74: 0 | FY74: 0 | FZ74: 0 | GA74: 0 | GB74: 0 | GC74: 0 | GD74: 0 | GE74: 0 | GF74: 0 | GG74: 0 | GH74: 0 | GI74: 0 | GJ74: 0
E75: OTHER - PLEASE ADD A ROW IF NECESSARY AND NOMINATE THE CATEGORY | F75: 0 | G75: 0 | H75: 0 | I75: 2 | J75: 0 | K75: 0 | L75: 0 | M75: 0 | N75: 0 | O75: 0 | P75: 0 | Q75: 0 | R75: 0 | S75: 0 | T75: 0 | U75: 0 | V75: 0 | W75: 0 | X75: 0 | Y75: 0 | Z75: 0 | AA75: 0 | AB75: 0 | AC75: 0 | AD75: 0 | AE75: 0 | AF75: 0 | AG75: 0 | AH75: 0 | AI75: 0 | AJ75: 0 | AK75: 0 | AL75: 0 | AM75: 0 | AN75: 0 | AO75: 0 | AP75: 0 | AQ75: 0 | AR75: 0 | AS75: 0 | AT75: 0 | AU75: 0 | AV75: 0 | AW75: 0 | AX75: 0 | AY75: 0 | AZ75: 0 | BA75: 0 | BB75: 0 | BC75: 0 | BD75: 0 | BE75: 0 | BF75: 0 | BG75: 0 | BH75: 0 | BI75: 0 | BJ75: 0 | BK75: 0 | BL75: 0 | BM75: 0 | BN75: 0 | BO75: 0 | BP75: 0 | BQ75: 0 | BR75: 0 | BS75: 0 | BT75: 0 | BU75: 0 | BV75: 0 | BW75: 0 | BX75: 0 | BY75: 0 | BZ75: 0 | CA75: 0 | CB75: 0 | CC75: 0 | CD75: 0 | CE75: 0 | CF75: 0 | CG75: 0 | CH75: 0 | CI75: 0 | CJ75: 0 | CK75: 0 | CL75: 0 | CM75: 0 | CN75: 0 | CO75: 0 | CP75: 0 | CQ75: 0 | CR75: 0 | CS75: 0 | CT75: 0 | CU75: 0 | CV75: 0 | CX75: 0 | CY75: 0 | CZ75: 0 | DA75: 0 | DB75: 0 | DC75: 0 | DD75: 0 | DE75: 0 | DF75: 0 | DG75: 0 | DH75: 0 | DI75: 0 | DJ75: 0 | DK75: 0 | DL75: 0 | DM75: 0 | DN75: 0 | DO75: 0 | DP75: 0 | DQ75: 0 | DR75: 0 | DS75: 0 | DT75: 0 | DU75: 0 | DV75: 0 | DW75: 0 | DX75: 0 | DY75: 0 | DZ75: 0 | EA75: 0 | EB75: 0 | EC75: 0 | ED75: 0 | EE75: 0 | EF75: 0 | EG75: 0 | EH75: 0 | EI75: 0 | EJ75: 0 | EK75: 0 | EL75: 0 | EM75: 0 | EN75: 0 | EO75: 0 | EP75: 0 | EQ75: 0 | ER75: 0 | ES75: 0 | ET75: 0 | EU75: 0 | EV75: 0 | EW75: 0 | EX75: 0 | EY75: 0 | EZ75: 0 | FA75: 0 | FB75: 0 | FC75: 0 | FD75: 0 | FE75: 0 | FF75: 0 | FG75: 0 | FH75: 0 | FI75: 0 | FJ75: 0 | FK75: 0 | FL75: 0 | FM75: 0 | FN75: 0 | FO75: 0 | FP75: 0 | FQ75: 0 | FR75: 0 | FS75: 0 | FT75: 0 | FU75: 0 | FV75: 0 | FW75: 0 | FX75: 0 | FY75: 0 | FZ75: 0 | GA75: 0 | GB75: 0 | GC75: 0 | GD75: 0 | GE75: 0 | GF75: 0 | GG75: 0 | GH75: 0 | GI75: 0 | GJ75: 0
